Workbook

Sheet template
C1: 1/year | E1: 1/day | G1: 2/day | I1: n= | J1: 8760
A2: Frequency | C2: =2*PI()/J1 -> 0.0007172585967 | D2: =2*PI()*364/J1 -> 0.2610821292 | E2: =2*PI()*365/J1 -> 0.2617993878 | F2: =2*PI()*366/J1 -> 0.2625166464 | G2: =2*PI()*730/J1 -> 0.5235987756
A3: Mean | B3: =AVERAGE(A11:A8760) -> 211.7750615 | C3: 123.862299 | D3: -72.32264283 | E3: -305.4691037 | F3: -86.12181563 | G3: 100.1021169
A4: Variance | B4: =STDEV(A11:A8770)^2 -> 94799.61191 | C4: -21.92148498 | D4: -48.8393259 | E4: -132.1142932 | F4: -20.83775727 | G4: 107.3981676
B5: Contribution | C5: =(C3^2+C4^2)/2 -> 7911.210307 | D5: =(D3^2+D4^2)/2 -> 3807.92221 | E5: 55382.7799 | F5: 3925.589628 | G5: 10777.40011
B6: Variance Explained | C6: =C5/$B$4 -> 0.08345192715 | D6: =D5/$B$4 -> 0.04016812024 | E6: =E5/$B$4 -> 0.5842089307 | F6: =F5/$B$4 -> 0.04140934281 | G6: =G5/$B$4 -> 0.1136861205 | I6: Three | J6: OLS
I7: Cycle
F8: Total | G8: =SUM(C6:G6) -> 0.8629244414 | I8: + | J8: =SUM(J11:J8770) -> 113739253.7
I9: Beats
A10: Series | B10: Time | I10: Model
A11: 0 | B11: 1 | C11: =C$3*COS(C$2*$B11)+C$4*SIN(C$2*$B11) -> 123.8465438 | D11: =D$3*COS(D$2*$B11)+D$4*SIN(D$2*$B11) -> -82.4784242 | E11: -329.2541916 | F11: -88.5789207 | G11: 140.39006 | I11: =B$3+SUM(C11:G11) -> -24.29987126 | J11: =(A11-I11)^2 -> 590.483743
A12: 0 | B12: =B11+1 -> 2 | C12: 123.8307248 | D12: -87.0440189 | E12: -330.6011505 | F12: -84.96658707 | G12: 143.0605999 | I12: -23.94537024 | J12: 573.3807558
A13: 0 | B13: =B12+1 -> 3 | C13: 123.8148422 | D13: -85.70998203 | E13: -309.4181873 | F13: -75.5323323 | G13: 107.3981676 | I13: -27.67243037 | J13: 765.7634027
A14: 0 | B14: =B13+1 -> 4 | C14: 123.7988958 | D14: -78.56673137 | E14: -267.148886 | F14: -60.9225927 | G14: 42.958483 | I14: -28.10576973 | J14: 789.9342923
A15: 0 | B15: =B14+1 -> 5 | C15: 123.7828858 | D15: -66.09841905 | E15: -206.6738296 | F15: -42.13842946 | G15: -32.99189241 | I15: -12.3446232 | J15: 152.3897221
A16: 0.89 | B16: =B15+1 -> 6 | C16: 123.766812 | D16: -49.15011689 | E16: -132.1142932 | F16: -20.46693577 | G16: -100.1021169 | I16: 33.70841078 | J16: 1077.048086
A17: 19.579 | B17: 7 | C17: 123.7506746 | D17: -28.87053955 | E17: -48.55138609 | F17: 2.606954906 | G17: -140.39006 | I17: 120.3207054 | J17: 10148.89121
A18: 68.199 | B18: 8 | C18: 123.7344736 | D18: -6.634187359 | E18: 38.32021775 | F18: 25.50221671 | G18: -143.0605999 | I18: 249.6371823 | J18: 32919.81399
A19: 156.27 | B19: 9 | C19: 123.7182089 | D19: 16.05181389 | E19: 122.5803621 | F19: 46.65006344 | G19: -107.3981676 | I19: 413.3773422 | J19: 66104.18541
A20: 303.78 | B20: 10 | C20: 123.7018805 | D20: 37.64986229 | E20: 198.4868573 | F20: 64.60144201 | G20: -42.958483 | I20: 593.2566206 | J20: 83796.71389
A21: 224.14 | B21: 11 | C21: 123.6854885 | D21: 56.69609474 | E21: 260.8668012 | F21: 78.12632172 | G21: 32.99189241 | I21: 764.1416601 | J21: 291601.7929
A22: 239.54 | B22: 12 | C22: 123.6690329 | D22: 71.899604 | E22: 305.4691037 | F22: 86.29797612 | G22: 100.1021169 | I22: 899.2128951 | J22: 435168.3286
A23: 424.01 | B23: 13 | C23: 123.6525136 | D23: 82.22993325 | E23: 329.2541916 | F23: 88.55648244 | G23: 140.39006 | I23: 975.8582425 | J23: 304536.4827
A24: 400.06 | B24: 14 | C24: 123.6359307 | D24: 86.98691794 | E24: 330.6011505 | F24: 84.74708754 | G24: 143.0605999 | I24: 980.8067481 | J24: 337266.7855
A25: 343.48 | B25: 15 | C25: 123.6192843 | D25: 85.84814122 | E25: 309.4181873 | F25: 75.13081163 | G25: 107.3981676 | I25: 913.1896535 | J25: 324569.0893
A26: 198.51 | B26: 16 | C26: 123.6025742 | D26: 78.89078662 | E26: 267.148886 | F26: 60.36656314 | G26: 42.958483 | I26: 784.7423545 | J26: 343668.3734
A27: 82.188 | B27: 17 | C27: 123.5858005 | D27: =D$3*COS(D$2*$B27)+D$4*SIN(D$2*$B27) -> 66.58640668 | E27: 206.6738296 | F27: 41.46599022 | G27: -32.99189241 | I27: 617.0951961 | J27: 286125.7084
A28: 58.06 | B28: 18 | C28: 123.5689633 | D28: 49.76896229 | E28: 132.1142932 | F28: 19.72416248 | G28: -100.1021169 | I28: 436.8493259 | J28: 143481.3534
A29: 36.283 | B29: 19 | C29: 123.5520625 | D29: 29.57829888 | E29: 48.55138609 | F29: -3.369167333 | G29: -140.39006 | I29: 269.6975816 | J29: 54482.36691
A30: 13.869 | B30: 20 | C30: 123.5350981 | D30: 7.382890424 | E30: -38.32021775 | F30: -26.23164138 | G30: -143.0605999 | I30: 135.080591 | J30: 14692.24979
A31: 0.14361 | B31: 21 | C31: 123.5180702 | D31: -15.31291236 | E31: -122.5803621 | F31: -47.29672009 | G31: -107.3981676 | I31: 42.70496955 | J31: 1811.469327
A32: 0 | B32: 22 | C32: 123.5009787 | D32: -36.97084325 | E32: -198.4868573 | F32: -65.12102164 | G32: -42.958483 | I32: -8.261165002 | J32: 68.24684719
A33: 0 | B33: 23 | C33: 123.4838237 | D33: -56.12298044 | E33: -260.8668012 | F33: -78.48322267 | G33: 32.99189241 | I33: -27.22222673 | J33: 741.0496283
A34: 0 | B34: 24 | C34: 123.4666051 | D34: -71.47123873 | E34: -305.4691037 | F34: -86.4677435 | G34: 100.1021169 | I34: -28.06430242 | J34: 787.6050702
A35: 0 | B35: 25 | C35: 123.4493231 | D35: -81.97535057 | E35: -329.2541916 | F35: -88.52748376 | G35: 140.39006 | I35: -24.14258137 | J35: 582.8642354
A36: 0 | B36: 26 | C36: 123.4319775 | D36: -86.92337283 | E36: -330.6011505 | F36: -84.52130979 | G36: 143.0605999 | I36: -23.77819421 | J36: 565.4025197
A37: 0 | B37: 27 | C37: 123.4145684 | D37: -85.97994063 | E37: -309.4181873 | F37: -74.72372514 | G37: 107.3981676 | I37: -27.53405554 | J37: 758.1242144
A38: 0 | B38: 28 | C38: 123.3970959 | D38: -79.2089975 | E38: -267.148886 | F38: -59.80606152 | G38: 42.958483 | I38: -28.03330462 | J38: 785.8661678
A39: 0 | B39: 29 | C39: 123.3795598 | D39: -67.06946147 | E39: -206.6738296 | F39: -40.79047911 | G39: -32.99189241 | I39: -12.37104122 | J39: 153.0426609
A40: 0.076111 | B40: 30 | C40: 123.3619603 | D40: -50.38412072 | E40: -132.1142932 | F40: -18.97992799 | G40: -100.1021169 | I40: 33.556563 | J40: 1120.940666
A41: 16.104 | B41: 31 | C41: 123.3442973 | D41: -30.283867 | E41: -48.55138609 | F41: 4.131130166 | G41: -140.39006 | I41: 120.0251759 | J41: 10799.6108
A42: 48.788 | B42: 32 | C42: 123.3265709 | D42: -8.131046552 | E42: 38.32021775 | F42: 26.95912277 | G42: -143.0605999 | I42: 249.1893265 | J42: 40160.69164
A43: 73.275 | B43: 33 | C43: 123.308781 | D43: =D$3*COS(D$2*$B43)+D$4*SIN(D$2*$B43) -> 14.57287643 | E43: 122.5803621 | F43: 47.93987292 | G43: -107.3981676 | I43: 412.7787863 | J43: 115262.8209
A44: 122.04 | B44: 34 | C44: 123.2909277 | D44: 36.28908534 | E44: 198.4868573 | F44: 65.63577699 | G44: -42.958483 | I44: 592.5192258 | J44: 221350.7019
A45: 210.34 | B45: 35 | C45: 123.2730109 | D45: 55.54570845 | E45: 260.8668012 | F45: 78.83430945 | G45: 32.99189241 | I45: 763.286784 | J45: 305750.1459
A46: 275.31 | B46: 36 | C46: 123.2550308 | D46: 71.03757875 | E46: 305.4691037 | F46: 86.63110519 | G46: 100.1021169 | I46: 898.2699969 | J46: 388079.1577
A47: 388.87 | B47: 37 | C47: 123.2369872 | D47: 81.71469501 | E47: 329.2541916 | F47: 88.4919268 | G47: 140.39006 | I47: 974.8629222 | J47: 343387.7048
A48: 365.4 | B48: 38 | C48: 123.2188802 | D48: 86.85338829 | E48: 330.6011505 | F48: 84.28927055 | G48: 143.0605999 | I48: 979.798351 | J48: 377485.3337
A49: 394.96 | B49: 39 | C49: 123.2007098 | D49: 86.10537049 | E49: 309.4181873 | F49: 74.31110298 | G49: 107.3981676 | I49: 912.2085997 | J49: 267546.1139
A50: 219.98 | B50: 40 | C50: 123.1824761 | D50: 79.52134044 | E50: 267.148886 | F50: 59.24112936 | G50: 42.958483 | I50: 783.8273764 | J50: 317923.8638
A51: 149.06 | B51: 41 | C51: 123.1641789 | D51: 67.54754763 | E51: 206.6738296 | F51: 40.11194617 | G51: -32.99189241 | I51: 616.2806714 | J51: 218295.1558
A52: 66.65 | B52: 42 | C52: 123.1458185 | D52: 50.9955466 | E52: 132.1142932 | F52: 18.23428743 | G52: -100.1021169 | I52: 436.1628903 | J52: 136539.7761
A53: 82.535 | B53: 43 | C53: 123.1273946 | D53: 30.98719164 | E53: 48.55138609 | F53: -4.892786958 | G53: -140.39006 | I53: 269.1581869 | J53: 34828.21389
A54: 30.563 | B54: 44 | C54: 123.1089074 | D54: 8.878600317 | E54: -38.32021775 | F54: -27.68460698 | G54: -143.0605999 | I54: 134.6971446 | J54: 10843.92008
A55: 1.4725 | B55: 45 | C55: 123.0903569 | D55: -13.83176091 | E55: -122.5803621 | F55: -48.57947427 | G55: -107.3981676 | I55: 42.47565358 | J55: 1681.258604
A56: 0 | B56: 46 | C56: 123.0717431 | D56: -35.60463907 | E56: -198.4868573 | F56: -66.14566993 | G56: -42.958483 | I56: -8.348844725 | J56: 69.70320825
A57: 0 | B57: 47 | C57: 123.0530659 | D57: -54.96432153 | E57: -260.8668012 | F57: -79.17955604 | G57: 32.99189241 | I57: -27.19065895 | J57: 739.3319343
A58: 0 | B58: 48 | C58: 123.0343254 | D58: -70.59865617 | E58: -305.4691037 | F58: -86.7880491 | G58: 100.1021169 | I58: -27.94430514 | J58: 780.8841899
A59: 0 | B59: 49 | C59: 123.0155217 | D59: =D$3*COS(D$2*$B59)+D$4*SIN(D$2*$B59) -> -81.44798587 | E59: -329.2541916 | F59: -88.44981421 | G59: 140.39006 | I59: -23.97134852 | J59: 574.62555
A60: 0 | B60: 50 | C60: 122.9966546 | D60: -86.7769695 | E60: -330.6011505 | F60: -84.05098702 | G60: 143.0605999 | I60: -23.59679098 | J60: 556.8085444
A61: 0 | B61: 51 | C61: 122.9777243 | D61: -86.22442152 | E61: -309.4181873 | F61: -73.89297572 | G61: 107.3981676 | I61: -27.38463114 | J61: 749.9180228
A62: 0 | B62: 52 | C62: 122.9587307 | D62: -79.82779229 | E62: -267.148886 | F62: -58.67180851 | G62: 42.958483 | I62: -27.95621156 | J62: 781.5497649
A63: 0 | B63: 53 | C63: 122.9396739 | D63: -68.02062976 | E63: -206.6738296 | F63: -39.43044167 | G63: -32.99189241 | I63: -12.40205804 | J63: 153.8110436
A64: 0.12222 | B64: 54 | C64: 122.9205538 | D64: -51.60319464 | E64: -132.1142932 | F64: -17.48729605 | G64: -100.1021169 | I64: 33.38871448 | J64: 1106.659655
A65: 10.448 | B65: 55 | C65: 122.9013704 | D65: -31.68822069 | E65: -48.55138609 | F65: 5.654081284 | G65: -140.39006 | I65: 119.7008464 | J65: 11936.18445
A66: 78.208 | B66: 56 | C66: 122.8821239 | D66: -9.62549634 | E66: 38.32021775 | F66: 28.40804026 | G66: -143.0605999 | I66: 248.6993471 | J66: 29067.29945
A67: 213.88 | B67: 57 | C67: 122.8628141 | D67: 13.08962071 | E67: 122.5803621 | F67: 49.21547677 | G67: -107.3981676 | I67: 412.1251676 | J67: 39301.14646
A68: 519.72 | B68: 58 | C68: 122.8434411 | D68: 34.91755515 | E68: 198.4868573 | F68: 66.65066268 | G68: -42.958483 | I68: 591.7150947 | J68: 5183.293665
A69: 523.17 | B69: 59 | C69: 122.8240049 | D69: 54.37886276 | E69: 260.8668012 | F69: 79.51893687 | G69: 32.99189241 | I69: 762.3555597 | J69: 57209.73196
A70: 804.39 | B70: 60 | C70: 122.8045055 | D70: 70.15450352 | E70: 305.4691037 | F70: 86.93856359 | G70: 100.1021169 | I70: 897.2438548 | J70: 8621.83835
A71: 1063.4 | B71: 61 | C71: 122.784943 | D71: 81.17524293 | E71: 329.2541916 | F71: 88.4011491 | G71: 140.39006 | I71: 973.7806482 | J71: 8031.628223
A72: 943.58 | B72: 62 | C72: 122.7653172 | D72: 86.69412212 | E72: 330.6011505 | F72: 83.80647684 | G72: 143.0605999 | I72: 978.7027281 | J72: 1233.606032
A73: 1039.3 | B73: 63 | C73: 122.7456284 | D73: 86.33708489 | E73: 309.4181873 | F73: 73.46937434 | G73: 107.3981676 | I73: 911.143504 | J73: 16424.08746
A74: 913.39 | B74: 64 | C74: 122.7258763 | D74: 80.12833036 | E74: 267.148886 | F74: 58.09814116 | G74: 42.958483 | I74: 782.8347784 | J74: 17044.6659
A75: 599.33 | B75: 65 | C75: =C$3*COS(C$2*$B75)+C$4*SIN(C$2*$B75) -> 122.7060612 | D75: =D$3*COS(D$2*$B75)+D$4*SIN(D$2*$B75) -> 68.4886728 | E75: 206.6738296 | F75: 38.74601609 | G75: -32.99189241 | I75: =B$3+SUM(C75:G75) -> 615.3977487 | J75: =(A75-I75)^2 -> 258.1725492
A76: 521.05 | B76: 66 | C76: 122.6861829 | D76: 52.20701983 | E76: 132.1142932 | F76: 16.73900917 | G76: -100.1021169 | I76: 435.4194497 | J76: 7332.591145
A77: 234.92 | B77: 67 | C77: 122.6662415 | D77: 32.38690223 | E77: 48.55138609 | F77: -6.414956745 | G77: -140.39006 | I77: 268.5745746 | J77: 1132.630389
A78: 50.612 | B78: 68 | C78: 122.646237 | D78: 10.37167929 | E78: -38.32021775 | F78: -29.12936902 | G78: -143.0605999 | I78: 134.2827911 | J78: 7000.801281
A79: 1.7525 | B79: 69 | C79: 122.6261693 | D79: -12.34651081 | E79: -122.5803621 | F79: -49.8478333 | G79: -107.3981676 | I79: 42.22835708 | J79: 1638.295007
A80: 0 | B80: =B79+1 -> 70 | C80: 122.6060386 | D80: -34.22788447 | E80: -198.4868573 | F80: -67.15071783 | G80: -42.958483 | I80: -8.442842449 | J80: 71.28158862
A81: 0 | B81: 71 | C81: 122.5858449 | D81: -53.78937551 | E81: -260.8668012 | F81: -79.8524268 | G81: 32.99189241 | I81: -27.15580473 | J81: 737.4377304
A82: 0 | B82: 72 | C82: 122.565588 | D82: -69.70515371 | E82: -305.4691037 | F82: -87.08263753 | G82: 100.1021169 | I82: -27.81412852 | J82: 773.6257452
A83: 0 | B83: 73 | C83: 122.5452681 | D83: -80.89648638 | E83: -329.2541916 | F83: -88.34593507 | G83: 140.39006 | I83: -23.78622344 | J83: 565.7844255
A84: 0 | B84: 74 | C84: 122.5248852 | D84: -86.60485228 | E84: -330.6011505 | F84: -83.55575813 | G84: 143.0605999 | I84: -23.4012143 | J84: 547.6168306
A85: 0 | B85: 75 | C85: 122.5044392 | D85: -86.44335225 | E85: -309.4181873 | F85: -73.04033023 | G85: 107.3981676 | I85: -27.22420146 | J85: 741.157145
A86: 0 | B86: 76 | C86: 122.4839302 | D86: -80.42293239 | E86: -267.148886 | F86: -57.52016978 | G86: 42.958483 | I86: -27.87451341 | J86: 776.988498
A87: 0 | B87: 77 | C87: 122.4633582 | D87: -68.95164207 | E87: -206.6738296 | F87: -38.05872014 | G87: -32.99189241 | I87: -12.43766446 | J87: 154.6954972
A88: 2.4586 | B88: 78 | C88: 122.4427232 | D88: -52.80697742 | E88: -132.1142932 | F88: -15.98948224 | G88: -100.1021169 | I88: 33.20491494 | J88: 945.3358825
A89: 73.424 | B89: 79 | C89: 122.4220252 | D89: -33.08318448 | E89: -48.55138609 | F89: 7.175356975 | G89: -140.39006 | I89: 119.3478131 | J89: 2108.99661
A90: 250.18 | B90: 80 | C90: 122.4012642 | D90: -11.11709389 | E90: 38.32021775 | F90: 29.84853983 | G90: -143.0605999 | I90: 248.1673895 | J90: 4.050600992
A91: 451.26 | B91: 81 | C91: 122.3804402 | D91: =D$3*COS(D$2*$B91)+D$4*SIN(D$2*$B91) -> 11.60248625 | E91: 122.5803621 | F91: 50.47649702 | G91: -107.3981676 | I91: 411.4166795 | J91: 1587.490187
A92: 697.39 | B92: 82 | C92: 122.3595533 | D92: 33.53567813 | E92: 198.4868573 | F92: 67.64579834 | G92: -42.958483 | I92: 590.8444656 | J92: 11351.9509
A93: 791.78 | B93: 83 | C93: 122.3386035 | D93: 53.19590345 | E93: 260.8668012 | F93: 80.18000112 | G93: 32.99189241 | I93: 761.3482632 | J93: 926.0906058
A94: 1047.5 | B94: 84 | C94: 122.3175907 | D94: 69.25064001 | E94: 305.4691037 | F94: 87.22026023 | G94: 100.1021169 | I94: 896.1347731 | J94: 22911.43193
A95: 1109.4 | B95: 85 | C95: 122.2965149 | D95: 80.61173688 | E95: 329.2541916 | F95: 88.28417623 | G95: 140.39006 | I95: 972.6117412 | J95: 18711.02774
A96: 1088.1 | B96: 86 | C96: 122.2753763 | D96: 86.5091666 | E96: 330.6011505 | F96: 83.29884946 | G96: 143.0605999 | I96: 977.5202043 | J96: 12227.89122
A97: 1037.8 | B97: 87 | C97: 122.2541747 | D97: 86.54321574 | E97: 309.4181873 | F97: 72.60587515 | G97: 107.3981676 | I97: 909.994682 | J97: 16334.1993
A98: 913.83 | B98: 88 | C98: 122.2329103 | D98: 80.71157654 | E98: 267.148886 | F98: 56.93793722 | G98: 42.958483 | I98: 781.7648545 | J98: 17441.20265
A99: 740.25 | B99: 89 | C99: 122.2115829 | D99: 69.40950329 | E99: 206.6738296 | F99: 37.36860473 | G99: -32.99189241 | I99: 614.4466896 | J99: 15826.4729
A100: 528.48 | B100: 90 | C100: 122.1901927 | D100: 53.40302299 | E100: 132.1142932 | F100: 15.23877078 | G100: -100.1021169 | I100: 434.6192243 | J100: 8809.845211
A101: 289.94 | B101: 91 | C101: 122.1687397 | D101: 33.77701588 | E101: 48.55138609 | F101: -7.935225641 | G101: -140.39006 | I101: 267.9469175 | J101: 483.6956775
A102: 91.66 | B102: 92 | C102: 122.1472238 | D102: 11.86168491 | E102: -38.32021775 | F102: -30.56549941 | G102: -143.0605999 | I102: 133.8376531 | J102: 1778.954422
A103: 2.9225 | B103: 93 | C103: 122.125645 | D103: -10.85760216 | E103: -122.5803621 | F103: -51.10142135 | G103: -107.3981676 | I103: 41.96315333 | J103: 1524.172612
A104: 0 | B104: 94 | C104: 122.1040034 | D104: -32.84098741 | E104: -198.4868573 | F104: -68.13586753 | G104: -42.958483 | I104: -8.543130321 | J104: 72.98507568
A105: 0 | B105: 95 | C105: 122.082299 | D105: -52.59849053 | E105: -260.8668012 | F105: -80.50163556 | G105: 32.99189241 | I105: -27.11767438 | J105: 735.3682639
A106: 0 | B106: 96 | C106: 122.0605318 | D106: -68.7909961 | E106: -305.4691037 | F106: -87.35142149 | G106: 100.1021169 | I106: -27.67381111 | J106: 765.8398215
A107: 0 | B107: 97 | C107: 122.0387018 | D107: =D$3*COS(D$2*$B107)+D$4*SIN(D$2*$B107) -> -80.32101552 | E107: -329.2541916 | F107: -88.21587713 | G107: 140.39006 | I107: -23.58726098 | J107: 556.3588807
A108: 0 | B108: 98 | C108: 122.016809 | D108: -86.40707217 | E108: -330.6011505 | F108: -83.03576987 | G108: 143.0605999 | I108: -23.19152213 | J108: 537.8466986
A109: 0 | B109: 99 | C109: 121.9948534 | D109: -86.63666795 | E109: -309.4181873 | F109: -72.1660413 | G109: 107.3981676 | I109: -27.05281402 | J109: 731.8547467
A110: 0 | B110: 100 | C110: 121.9728351 | D110: -80.99424143 | E110: -267.148886 | F110: -56.35148659 | G110: 42.958483 | I110: -27.78823438 | J110: 772.1859697
A111: 0 | B111: 101 | C111: 121.950754 | D111: -69.86222252 | E111: -206.6738296 | F111: -36.67572098 | G111: -32.99189241 | I111: -12.47784994 | J111: 155.6967391
A112: 1.1933 | B112: 102 | C112: 121.9286102 | D112: -53.99511236 | E112: -132.1142932 | F112: -14.4869304 | G112: -100.1021169 | I112: 33.00521886 | J112: 1011.998182
A113: 74.372 | B113: 103 | C113: 121.9064037 | D113: -34.46834501 | E113: -48.55138609 | F113: 8.694506452 | G113: -140.39006 | I113: 118.9661805 | J113: 1988.640937
A114: 224.5 | B114: 104 | C114: 121.8841344 | D114: -12.6053972 | E114: 38.32021775 | F114: 31.28019464 | G114: -143.0605999 | I114: 247.5936112 | J114: 533.3148791
A115: 452.84 | B115: 105 | C115: 121.8618025 | D115: 10.11191373 | E115: 122.5803621 | F115: 51.72255999 | G115: -107.3981676 | I115: 410.6535322 | J115: 1779.698067
A116: 503.85 | B116: 106 | C116: 121.8394078 | D116: 32.14386377 | E116: 198.4868573 | F116: 68.62088909 | G116: -42.958483 | I116: 589.9075965 | J116: 7405.909911
A117: 538.11 | B117: 107 | C117: 121.8169505 | D117: 51.99718103 | E117: 260.8668012 | F117: 80.8173063 | G117: 32.99189241 | I117: 760.265193 | J117: 49352.92976
A118: 394.58 | B118: 108 | C118: 121.7944305 | D118: 68.32625603 | E118: 305.4691037 | F118: 87.47611161 | G118: 100.1021169 | I118: 894.9430803 | J118: 250363.2121
A119: 239.93 | B119: 109 | C119: 121.7718478 | D119: 80.02434383 | E119: 329.2541916 | F119: 88.14104285 | G119: 140.39006 | I119: 971.3565476 | J119: 534984.7946
A120: 809.28 | B120: 110 | C120: 121.7492025 | D120: 86.29857655 | E120: 330.6011505 | F120: 82.76653884 | G120: 143.0605999 | I120: 976.2511298 | J120: 27879.35819
A121: 590.5 | B121: 111 | C121: 121.7264945 | D121: 86.72370197 | E121: 309.4181873 | F121: 71.72086127 | G121: 107.3981676 | I121: 908.7624742 | J121: 101291.0025
A122: 902.72 | B122: 112 | C122: 121.703724 | D122: 81.27090613 | E122: 267.148886 | F122: 55.76086134 | G122: 42.958483 | I122: 780.6179219 | J122: 14908.91747
A123: 749.25 | B123: 113 | C123: 121.6808908 | D123: =D$3*COS(D$2*$B123)+D$4*SIN(D$2*$B123) -> 70.30976624 | E123: 206.6738296 | F123: 35.98012024 | G123: -32.99189241 | I123: 613.4277759 | J123: 18447.67655
A124: 517.81 | B124: 114 | C124: 121.657995 | D124: 54.58320168 | E124: 132.1142932 | F124: 13.73401681 | G124: -100.1021169 | I124: 433.7624513 | J124: 7063.99044
A125: 257.73 | B125: 115 | C125: 121.6350366 | D125: 35.15712066 | E125: 48.55138609 | F125: -9.453143159 | G125: -140.39006 | I125: 267.2754017 | J125: 91.11469444
A126: 81.7 | B126: 116 | C126: 121.6120157 | D126: 13.34817566 | E126: -38.32021775 | F126: -31.99257258 | G126: -143.0605999 | I126: 133.3618626 | J126: 2668.94805
A127: 2.2972 | B127: 117 | C127: 121.5889322 | D127: -9.365476183 | E127: -122.5803621 | F127: -52.33986694 | G127: -107.3981676 | I127: 41.6801209 | J127: 1551.014459
A128: 0 | B128: 118 | C128: 121.5657861 | D128: -31.44435886 | E128: -198.4868573 | F128: -69.10082709 | G128: -42.958483 | I128: -8.649678623 | J128: 74.81694027
A129: 0 | B129: 119 | C129: 121.5425775 | D129: -51.39201949 | E129: -260.8668012 | F129: -81.12698995 | G129: 32.99189241 | I129: -27.07627922 | J129: 733.1248962
A130: 0 | B130: 120 | C130: 121.5193064 | D130: -67.85645423 | E130: -305.4691037 | F130: -87.59432135 | G130: 100.1021169 | I130: -27.52339451 | J130: 757.5372454
A131: 0 | B131: 121 | C131: 121.4959727 | D131: -79.7217438 | E131: -329.2541916 | F131: -88.05967892 | G131: 140.39006 | I131: -23.37452011 | J131: 546.3681903
A132: 0 | B132: 122 | C132: 121.4725766 | D132: -86.18368778 | E132: -330.6011505 | F132: -82.49117632 | G132: 143.0605999 | I132: -22.9677766 | J132: 527.5187619
A133: 0 | B133: 123 | C133: 121.4491179 | D133: -86.80431134 | E133: -309.4181873 | F133: -71.27036802 | G133: 107.3981676 | I133: -26.87051963 | J133: 722.0248252
A134: 0 | B134: 124 | C134: 121.4255968 | D134: -81.54155013 | E134: -267.148886 | F134: -55.16610523 | G134: 42.958483 | I134: -27.69740002 | J134: 767.1459678
A135: 0 | B135: 125 | C135: 121.4020132 | D135: -70.75210129 | E135: -206.6738296 | F135: -35.28185402 | G135: -32.99189241 | I135: -12.52260257 | J135: 156.8155751
A136: 2.9083 | B136: 126 | C136: 121.3783672 | D136: -55.16724738 | E136: -132.1142932 | F136: -12.98008578 | G136: -100.1021169 | I136: 32.78968541 | J136: 892.8971939
A137: 72.465 | B137: 127 | C137: 121.3546587 | D137: -35.84329182 | E137: -48.55138609 | F137: 10.21107956 | G137: -140.39006 | I137: 118.5560618 | J137: 2124.385979
A138: 311.2 | B138: 128 | C138: 121.3308877 | D138: -14.08996526 | E138: 38.32021775 | F138: 32.70258045 | G138: -143.0605999 | I138: 246.9781823 | J138: 4124.441871
A139: 240.12 | B139: 129 | C139: =C$3*COS(C$2*$B139)+C$4*SIN(C$2*$B139) -> 121.3070544 | D139: =D$3*COS(D$2*$B139)+D$4*SIN(D$2*$B139) -> 8.618344827 | E139: 122.5803621 | F139: 52.95329646 | G139: -107.3981676 | I139: =B$3+SUM(C139:G139) -> 409.8359517 | J139: =(A139-I139)^2 -> 28803.50425
A140: 422.68 | B140: 130 | C140: 121.2831586 | D140: 30.74252449 | E140: 198.4868573 | F140: 69.57564598 | G140: -42.958483 | I140: 588.9047649 | J140: 27630.67247
A141: 455.18 | B141: 131 | C141: 121.2592005 | D141: 50.78305074 | E141: 260.8668012 | F141: 81.43066357 | G141: 32.99189241 | I141: 759.1066699 | J141: 92371.4207
A142: 683.2 | B142: 132 | C142: 121.2351799 | D142: 67.38162551 | E142: 305.4691037 | F142: 87.70604194 | G142: 100.1021169 | I142: 893.6691295 | J142: 44297.25449
A143: 820.66 | B143: 133 | C143: 121.211097 | D143: 79.41323784 | E143: 329.2541916 | F143: 87.97179138 | G143: 140.39006 | I143: 970.0154394 | J143: 22307.04729
A144: 1110.7 | B144: =B143+1 -> 134 | C144: 121.1869518 | D144: 86.06241437 | E144: 330.6011505 | F144: 82.2097027 | G144: 143.0605999 | I144: 974.8958808 | J144: 18442.7588
A145: 1042 | B145: 135 | C145: 121.1627442 | D145: 86.87849009 | E145: 309.4181873 | F145: 70.81459494 | G145: 107.3981676 | I145: 907.4472456 | J145: 18104.44371
A146: 917.86 | B146: 136 | C146: 121.1384742 | D146: 81.8061534 | E146: 267.148886 | F146: 54.56726231 | G146: 42.958483 | I146: 779.3943204 | J146: 19172.74442
A147: 711.55 | B147: 137 | C147: 121.114142 | D147: 71.1891949 | E147: 206.6738296 | F147: 34.58097406 | G147: -32.99189241 | I147: 612.3413096 | J147: 9842.364254
A148: 551.91 | B148: 138 | C148: 121.0897474 | D148: 55.74720619 | E148: 132.1142932 | F148: 12.22519316 | G148: -100.1021169 | I148: 432.8493845 | J148: 14175.43015
A149: 252.18 | B149: 139 | C149: 121.0652905 | D149: 36.52680764 | E149: 48.55138609 | F149: -10.96825951 | G149: -140.39006 | I149: 266.5602262 | J149: 206.790907
A150: 79.65 | B150: 140 | C150: 121.0407714 | D150: 14.83071105 | E150: -38.32021775 | F150: -33.41016566 | G150: -143.0605999 | I150: 132.8555606 | J150: 2830.83168
A151: 2.0903 | B151: 141 | C151: 121.0161899 | D151: -7.870575008 | E151: -122.5803621 | F151: -53.5628031 | G151: -107.3981676 | I151: 41.37934368 | J151: 1543.628953
A152: 0 | B152: 142 | C152: 120.9915463 | D152: -30.03841266 | E152: -198.4868573 | F152: -70.04531059 | G152: -42.958483 | I152: -8.762455782 | J152: 76.78063133
A153: 0 | B153: 143 | C153: 120.9668403 | D153: -50.17031988 | E153: -260.8668012 | F153: -81.72830467 | G153: 32.99189241 | I153: -27.0316315 | J153: 730.7091015
A154: 0 | B154: 144 | C154: 120.9420722 | D154: -66.90180504 | E154: -305.4691037 | F154: -87.81126511 | G154: 100.1021169 | I154: -27.36292328 | J154: 748.7295706
A155: 0 | B155: 145 | C155: 120.9172418 | D155: =D$3*COS(D$2*$B155)+D$4*SIN(D$2*$B155) -> -79.09884881 | E155: -329.2541916 | F155: -87.87738673 | G155: 140.39006 | I155: -23.14806386 | J155: 535.8328603
A156: 0 | B156: 146 | C156: 120.8923492 | D156: -85.9347653 | E156: -330.6011505 | F156: -81.92213885 | G156: 143.0605999 | I156: -22.73004401 | J156: 516.6549009
A157: 0 | B157: 147 | C157: 120.8673944 | D157: -86.94623274 | E157: -309.4181873 | F157: -70.3535758 | G157: 107.3981676 | I157: -26.67737229 | J157: 711.6821924
A158: 0 | B158: 148 | C158: 120.8423775 | D158: -82.06469631 | E158: -267.148886 | F158: -53.96437696 | G158: 42.958483 | I158: -27.60203726 | J158: 761.8724609
A159: 0 | B159: 149 | C159: 120.8172984 | D159: -71.62101468 | E159: -206.6738296 | F159: -33.87753228 | G159: -32.99189241 | I159: -12.57190908 | J159: 158.052898
A160: 2.2728 | B160: 150 | C160: 120.7921571 | D160: -56.32303515 | E160: -132.1142932 | F160: -11.46939487 | G160: -100.1021169 | I160: 32.55837845 | J160: 917.2162622
A161: 59.976 | B161: 151 | C161: 120.7669536 | D161: -37.20761749 | E161: -48.55138609 | F161: 11.72462691 | G161: -140.39006 | I161: 118.1175785 | J161: 3380.443147
A162: 167.08 | B162: 152 | C162: 120.7416881 | D162: -15.57035816 | E162: 38.32021775 | F162: 34.11527579 | G162: -143.0605999 | I162: 246.3212851 | J162: 6279.181259
A163: 349.59 | B163: 153 | C163: 120.7163604 | D163: 7.122222124 | E163: 122.5803621 | F163: 54.16834172 | G163: -107.3981676 | I163: 408.9641802 | J163: 3525.29328
A164: 709.42 | B164: 154 | C164: 120.6909706 | D164: 29.33207554 | E164: 198.4868573 | F164: 70.50978612 | G164: -42.958483 | I164: 587.8362681 | J164: 14782.60386
A165: 840.95 | B165: 155 | C165: 120.6655188 | D165: 49.55387232 | E165: 260.8668012 | F165: 82.01989118 | G165: 32.99189241 | I165: 757.8730374 | J165: 6901.781712
A166: 1030.3 | B166: 156 | C166: 120.6400048 | D166: 66.41702836 | E166: 305.4691037 | F166: 87.90998308 | G166: 100.1021169 | I166: 892.3132984 | J166: 19040.32982
A167: 1083.8 | B167: 157 | C167: 120.6144288 | D167: 78.7786 | E167: 329.2541916 | F167: 87.77647197 | G167: 140.39006 | I167: 968.5888139 | J167: 13273.61739
A168: 1098.9 | B168: 158 | C168: 120.5887907 | D168: 85.80075004 | E168: 330.6011505 | F168: 81.62850605 | G168: 143.0605999 | I168: 973.4548588 | J168: 15736.48346
A169: 992.36 | B169: 159 | C169: 120.5630906 | D169: 87.00753425 | E169: 309.4181873 | F169: 69.88734473 | G169: 107.3981676 | I169: 906.049386 | J169: 7449.522081
A170: 930.34 | B170: 160 | C170: 120.5373285 | D170: 82.31715973 | E170: 267.148886 | F170: 53.35749383 | G170: 42.958483 | I170: 778.0944126 | J170: 23178.71888
A171: 740.66 | B171: 161 | C171: 120.5115044 | D171: =D$3*COS(D$2*$B171)+D$4*SIN(D$2*$B171) -> 72.04752866 | E171: 206.6738296 | F171: 33.1715808 | G171: -32.99189241 | I171: 611.1876125 | J171: 16763.09912
A172: 401.94 | B172: 162 | C172: 120.4856183 | D172: 56.8946916 | E172: 132.1142932 | F172: 10.71274692 | G172: -100.1021169 | I172: 431.8802946 | J172: 896.4212398
A173: 195.29 | B173: 163 | C173: 120.4596701 | D173: 37.88567093 | E173: 48.55138609 | F173: -12.48012572 | G173: -140.39006 | I173: 265.8016029 | J173: 4971.88615
A174: 110.25 | B174: 164 | C174: 120.43366 | D174: 16.30885178 | E174: -38.32021775 | F174: -34.81785859 | G174: -143.0605999 | I174: 132.3188971 | J174: 487.0362192
A175: 3.4697 | B175: 165 | C175: 120.407588 | D175: -6.373341612 | E175: -122.5803621 | F175: -54.76986744 | G175: -107.3981676 | I175: 41.06091079 | J175: 1413.099128
A176: 0 | B176: 166 | C176: 120.381454 | D176: -28.62356544 | E176: -198.4868573 | F176: -70.96903815 | G176: -42.958483 | I176: -8.88142838 | J176: 78.87977007
A177: 0 | B177: 167 | C177: 120.3552581 | D177: -48.93375373 | E177: -260.8668012 | F177: -82.30540152 | G177: 32.99189241 | I177: -26.98374446 | J177: 728.1224649
A178: 0 | B178: 168 | C178: 120.3290002 | D178: -65.92733139 | E178: -305.4691037 | F178: -88.00218851 | G178: 100.1021169 | I178: -27.19244498 | J178: 739.4290639
A179: 0 | B179: 169 | C179: 120.3026805 | D179: -78.45251513 | E179: -329.2541916 | F179: -87.66905457 | G179: 140.39006 | I179: -22.90795933 | J179: 524.7746006
A180: 0 | B180: 170 | C180: 120.2762988 | D180: -85.6603785 | E180: -330.6011505 | F180: -81.32882608 | G180: 143.0605999 | I180: -22.47839482 | J180: 505.2782336
A181: 0 | B181: 171 | C181: 120.2498553 | D181: -87.06239009 | E181: -309.4181873 | F181: -69.41593629 | G181: 107.3981676 | I181: -26.47342924 | J181: 700.8424559
A182: 0 | B182: 172 | C182: 120.2233499 | D182: -82.56352495 | E182: -267.148886 | F182: -52.74665788 | G182: 42.958483 | I182: -27.50217435 | J182: 756.3695942
A183: 0 | B183: 173 | C183: 120.1967827 | D183: -72.46870523 | E183: -206.6738296 | F183: -32.4631719 | G183: -32.99189241 | I183: -12.62575487 | J183: 159.4096861
A184: 1.655 | B184: 174 | C184: 120.1701537 | D184: -57.46213319 | E184: -132.1142932 | F184: -9.955305339 | G184: -100.1021169 | I184: 32.31136653 | J184: 939.812809
A185: 94.218 | B185: 175 | C185: 120.1434628 | D185: -38.56091774 | E185: -48.55138609 | F185: 13.23469999 | G185: -140.39006 | I185: 117.6508604 | J185: 549.0989478
A186: 301.59 | B186: 176 | C186: 120.1167101 | D186: -17.04613722 | E186: 38.32021775 | F186: 35.51786202 | G186: -143.0605999 | I186: 245.6231142 | J186: 3132.292304
A187: 526.58 | B187: 177 | C187: 120.0898956 | D187: =D$3*COS(D$2*$B187)+D$4*SIN(D$2*$B187) -> 5.623988952 | E187: 122.5803621 | F187: 55.36733572 | G187: -107.3981676 | I187: 408.0384762 | J187: 14052.09285
A188: 740.58 | B188: 178 | C188: 120.0630193 | D188: 27.91293486 | E188: 198.4868573 | F188: 71.42303268 | G188: -42.958483 | I188: 586.7024226 | J188: 23678.30881
A189: 913.48 | B189: 179 | C189: 120.0360813 | D189: 48.31001003 | E189: 260.8668012 | F189: 82.58481452 | G189: 32.99189241 | I189: 756.564661 | J189: 24622.42363
A190: 1037.3 | B190: 180 | C190: 120.0090815 | D190: 65.43275041 | E190: 305.4691037 | F190: 88.08787458 | G190: 100.1021169 | I190: 890.8759886 | J190: 21439.99111
A191: 1101.2 | B191: 181 | C191: 119.9820199 | D191: 78.12061836 | E191: 329.2541916 | F191: 87.55514249 | G191: 140.39006 | I191: 967.0770939 | J191: 17988.95393
A192: 1101.8 | B192: 182 | C192: 119.9548967 | D192: 85.51366109 | E192: 330.6011505 | F192: 81.02312112 | G192: 143.0605999 | I192: 971.9284908 | J192: 16866.6089
A193: 1043 | B193: 183 | C193: 119.9277117 | D193: 87.11079619 | E193: 309.4181873 | F193: 68.93938539 | G193: 107.3981676 | I193: 904.5693097 | J193: 19163.05602
A194: 925.52 | B194: 184 | C194: 119.900465 | D194: 82.80377372 | E194: 267.148886 | F194: 52.13191437 | G194: 42.958483 | I194: 776.7185836 | J194: 22141.86152
A195: 750.47 | B195: 185 | C195: 119.8731567 | D195: 72.88451318 | E195: 206.6738296 | F195: 31.75235808 | G195: -32.99189241 | I195: 609.9670266 | J195: 19741.08554
A196: 541.59 | B196: 186 | C196: 119.8457866 | D196: 58.02531788 | E196: 132.1142932 | F196: 9.197126255 | G196: -100.1021169 | I196: 430.8554686 | J196: 12262.13645
A197: 312.79 | B197: 187 | C197: 119.818355 | D197: 39.23330789 | E197: 48.55138609 | F197: -13.98829381 | G197: -140.39006 | I197: 264.9997566 | J197: 2283.907361
A198: 99.787 | B198: 188 | C198: 119.7908616 | D198: 17.78215985 | E198: -38.32021775 | F198: -36.21523423 | G198: -143.0605999 | I198: 131.7520311 | J198: 1021.763214
A199: 3.1925 | B199: 189 | C199: 119.7633067 | D199: -4.874219658 | E199: -122.5803621 | F199: -55.96070229 | G199: -107.3981676 | I199: 40.72491658 | J199: 1408.682294
A200: 0 | B200: 190 | C200: 119.7356901 | D200: -27.20023643 | E200: -198.4868573 | F200: -71.87173606 | G200: -42.958483 | I200: -9.006561163 | J200: 81.11814399
... 8570 more rows

Sheet Q1-solar_2017(AR)
C1: 1/year | E1: 1/day | G1: 2/day | I1: n= | J1: 17520 | L1: AR coefficients | M1: Type | N1: Coef | O1: SE Coef | P1: T-Value | Q1: P-Value | T1: Error Metric | U1: MeAPE | V1: =_xlfn.AGGREGATE(12,1,R15:R17530) -> 8.378448548
A2: Frequency | C2: =2*PI()/J1 -> 0.0003586292984 | D2: =2*PI()*364/J1 -> 0.1305410646 | E2: =2*PI()*365/J1 -> 0.1308996939 | F2: =2*PI()*366/J1 -> 0.1312583232 | G2: =2*PI()*730/J1 -> 0.2617993878 | M2: AR 1 | N2: 0.87324 | O2: 0.00755 | P2: 115.68 | Q2: 0 | U2: MBE | V2: =SUBTOTAL(109, O15:O17530)/L7 -> 0.2284341018
A3: Mean | B3: =AVERAGE(A11:A17530) -> 171.0371663 | C3: -128.6900023 | D3: 87.08259904 | E3: -263.3470586 | F3: 90.51224742 | G3: 109.2062048 | M3: AR 2 | N3: 0.0654 | O3: 0.01 | P3: 6.53 | Q3: 0 | U3: NRMSE | V3: =SQRT(SUBTOTAL(109,Q15:Q17530)/L7)/T7 -> 0.1742318789
A4: Variance | B4: =STDEV(A11:A17530)^2 -> 67620.39466 | C4: 14.97017503 | D4: 1.911405374 | E4: 21.4323172 | F4: -17.01024437 | G4: -17.22104279 | M4: AR 3 | N4: -0.0197 | O4: 0.01 | P4: -1.97 | Q4: 0.049 | U4: NMAE | V4: =SUBTOTAL(109, P15:P17530)/(L7*T7) -> 0.106781018
B5: Contribution | C5: =(C3^2+C4^2)/2 -> 8392.611417 | D5: =(D3^2+D4^2)/2 -> 3793.516263 | E5: 34905.50876 | F5: 4240.907673 | G5: 6111.279744 | M5: AR 4 | N5: -0.04244 | O5: 0.00755 | P5: -5.62 | Q5: 0 | U5: NMBE | V5: =SUBTOTAL(109,O15:O17530)/(L7*T7) -> 0.0005657292293
B6: Variance Explained | C6: =C5/$B$4 -> 0.1241136119 | D6: =D5/$B$4 -> 0.05610017928 | E6: =E5/$B$4 -> 0.5161979449 | F6: =F5/$B$4 -> 0.06271639931 | G6: =G5/$B$4 -> 0.09037628033 | I6: Three | J6: OLS | U6: SS
I7: Cycle | K7: Valid_Count | L7: =SUBTOTAL(2,K15:K17530) -> 7266 | S7: Final Mean | T7: =SUBTOTAL(1,N15:N17530) -> 403.7869884
F8: Total | G8: =SUM(C6:G6) -> 0.8495044156 | I8: + | J8: =SUM(J11:J17530) -> 178226936.2
C9: Frequencies | I9: Beats
A10: Series | B10: Time | C10: 1 | D10: 364 | E10: 365 | F10: 366 | G10: 730 | H10: Elevation | I10: Model | J10: Diff^2 | K10: Valid_Elevation | L10: Residuals | M10: AR(4) | N10: Final Model | O10: Diff | P10: ABS(Diff) | Q10: Diff^2 | R10: Diff/yi
A11: 0 | B11: 1 | C11: =C$3*COS(C$2*$B11)+C$4*SIN(C$2*$B11) -> -128.6846253 | D11: 86.59047499 | E11: -258.2966093 | F11: 87.50732943 | G11: 101.0279598 | H11: 0 | I11: =B$3+SUM(C11:G11) -> 59.18169593 | J11: =(A11-I11)^2 -> 3502.473133 | K11: =IF(H11>=10,1,0) -> 0 | L11: =A11-I11 -> -59.18169593
A12: 0 | B12: =B11+1 -> 2 | C12: -128.6792317 | D12: 84.62485956 | E12: -248.8266333 | F12: 82.99693309 | G12: 85.96482624 | H12: 0 | I12: 47.11792012 | J12: =(A12-I12)^2 -> 2220.098397 | K12: =IF(H12>=10,1,0) -> 0 | L12: =A12-I12 -> -47.11792012
A13: 0 | B13: =B12+1 -> 3 | C13: -128.6738216 | D13: 81.21920119 | E13: -235.0991647 | F13: 77.05865538 | G13: 65.04333185 | H13: 0 | I13: 30.58536839 | J13: 935.4647598 | K13: 0 | L13: -30.58536839
A14: 0 | B14: =B13+1 -> 4 | C14: =C$3*COS(C$2*$B14)+C$4*SIN(C$2*$B14) -> -128.6683949 | D14: 76.43145324 | E14: -217.3490842 | F14: 69.79465857 | G14: 39.68924188 | H14: 0 | I14: =B$3+SUM(C14:G14) -> 10.93504085 | J14: =(A14-I14)^2 -> 119.5751184 | K14: 0 | L14: -10.93504085
A15: 0 | B15: 5 | C15: -128.6629517 | D15: 70.34308777 | E15: -195.8801006 | F15: 61.32991265 | G15: 11.63039567 | H15: 0 | I15: -10.20248991 | J15: 104.0908004 | K15: 0 | L15: 10.20248991 | M15: =$N$2*L14+$N$3*L13+$N$4*L12+$N$5*L11 -> -8.109303965 | N15: =I15+M15 -> -18.31179388 | O15: =(A15-N15) -> 18.31179388 | P15: =ABS(O15) -> 18.31179388 | Q15: =O15^2 -> 335.321795 | R15: =IF(A15=0,0,ABS(K15*P15/A15)*100) -> 0
A16: 0 | B16: 6 | C16: -128.6574919 | D16: 63.0577092 | E16: -171.0595541 | F16: 51.81004533 | G16: -17.22104279 | H16: 0 | I16: -31.03316805 | J16: 963.0575195 | K16: 0 | L16: 31.03316805 | M16: =$N$2*L15+$N$3*L14+$N$4*L13+$N$5*L12 -> 10.79628691 | N16: =I16+M16 -> -20.23688115 | O16: =(A16-N16) -> 20.23688115 | P16: =ABS(O16) -> 20.23688115 | Q16: =O16^2 -> 409.5313586 | R16: =IF(A16=0,0,ABS(K16*P16/A16)*100) -> 0
A17: 0 | B17: 7 | C17: -128.6520156 | D17: 54.69929123 | E17: -143.3121313 | F17: 41.39883666 | G17: -44.89889564 | H17: 0 | I17: -49.7277484 | J17: 2472.848961 | K17: 0 | L17: 49.7277484 | M17: 29.28010985 | N17: -20.44763855 | O17: 20.44763855 | P17: 20.44763855 | Q17: 418.1059223 | R17: 0
A18: 0 | B18: 8 | C18: -128.6465228 | D18: 45.41006724 | E18: -113.1125982 | F18: 30.27540133 | G18: -69.51696295 | H18: 0 | I18: -64.55344903 | J18: 4167.147781 | K18: 0 | L18: 64.55344903 | M18: 45.71692229 | N18: -18.83652674 | O18: 18.83652674 | P18: 18.83652674 | Q18: 354.8147396 | R18: 0
A19: 0 | B19: 9 | C19: -128.6410134 | D19: 35.34810996 | E19: -80.97767711 | F19: 18.63110722 | G19: -89.39756412 | H19: 0 | I19: -73.99987113 | J19: 5475.980927 | K19: 0 | L19: 73.99987113 | M19: 58.57850149 | N19: -15.42136964 | O19: 15.42136964 | P19: 15.42136964 | Q19: 237.8186414 | R19: 0
A20: 0 | B20: 10 | C20: -128.6354874 | D20: 24.68464154 | E20: -47.45720555 | F20: 6.666283053 | G20: -103.185869 | H20: 0 | I20: -76.89047111 | J20: 5912.144547 | K20: 0 | L20: 76.89047111 | M20: 66.54475873 | N20: -10.34571237 | O20: 10.34571237 | P20: 10.34571237 | Q20: 107.0337645 | R20: 0
A21: 0 | B21: 11 | C21: -128.6299449 | D21: 13.60111992 | E21: -13.12472804 | F21: -5.413228016 | G21: -109.9422275 | H21: 0 | I21: -72.47184226 | J21: 5252.167921 | K21: 0 | L21: 72.47184226 | M21: 68.60127797 | N21: -3.870564287 | O21: 3.870564287 | P21: 3.870564287 | Q21: 14.9812679 | R21: 0
A22: 0 | B22: 12 | C22: -128.6243859 | D22: 2.286150974 | E22: 21.4323172 | F22: -17.39960977 | G22: -109.2062048 | H22: 0 | I22: -60.47456602 | J22: 3657.173135 | K22: 0 | L22: 60.47456602 | M22: 64.11650251 | N22: 3.641936487 | O22: -3.641936487 | P22: 3.641936487 | Q22: 13.26370138 | R22: 0
A23: 0 | B23: 13 | C23: -128.6188103 | D23: -9.067720906 | E23: 55.62264955 | F23: -29.08664819 | G23: -101.0279598 | H23: 0 | I23: -41.14132334 | J23: 1692.608486 | K23: 0 | L23: 41.14132334 | M23: 52.8931717 | N23: 11.75184836 | O23: -11.75184836 | P23: 11.75184836 | Q23: 138.1059399 | R23: 0
A24: 0 | B24: 14 | C24: -128.6132182 | D24: -20.26728934 | E24: 88.86126295 | F24: -40.27327916 | G24: -85.96482624 | H24: 0 | I24: -15.22018368 | J24: 231.6539913 | K24: 0 | L24: 15.22018368 | M24: 35.19035893 | N24: 19.97017525 | O24: -19.97017525 | P24: 19.97017525 | Q24: 398.8078993 | R24: 0
A25: 13.94 | B25: 15 | C25: -128.6076095 | D25: -31.12197369 | E25: 120.5794355 | F25: -50.7670476 | G25: -65.04333185 | H25: 1.343066667 | I25: 16.07663913 | J25: 4.565226784 | K25: 0 | L25: -2.136639133 | M25: 11.71446181 | N25: 27.79110094 | O25: -13.85110094 | P25: 13.85110094 | Q25: 191.8529973 | R25: 0
A26: 72.63 | B26: 16 | C26: -128.6019843 | D26: -41.44706215 | E26: 150.2344605 | F26: -60.38741844 | G26: -39.68924188 | H26: 5.217633333 | I26: 51.14591998 | J26: 461.5656941 | K26: 0 | L26: 21.48408002 | M26: -4.247423395 | N26: 46.89849659 | O26: 25.73150341 | P26: 25.73150341 | Q26: 662.1102678 | R26: 0
A27: 125.0566667 | B27: 17 | C27: -128.5963426 | D27: -51.06685492 | E27: 177.3189322 | F27: -68.96888258 | G27: -11.63039567 | H27: 8.976633333 | I27: 88.09362275 | J27: 1366.266616 | K27: 0 | L27: 36.96304392 | M27: 16.57514645 | N27: 104.6687692 | O27: 20.38789747 | P27: 20.38789747 | Q27: 415.6663632 | R27: 0
A28: 172.26 | B28: 18 | C28: =C$3*COS(C$2*$B28)+C$4*SIN(C$2*$B28) -> -128.5906843 | D28: -59.81765406 | E28: 201.3694278 | F28: -76.36380428 | G28: 17.22104279 | H28: 12.37716667 | I28: 124.8554943 | J28: 2247.187164 | K28: 1 | L28: 47.40450574 | M28: 33.0788145 | N28: 157.9343088 | O28: 14.32569124 | P28: 14.32569124 | Q28: 205.2254294 | R28: 8.316319074
A29: 206.8833333 | B29: 19 | C29: -128.5850094 | D29: -67.55054912 | E29: 221.9744367 | F29: -82.44496113 | G29: 44.89889564 | H29: 15.33596667 | I29: 159.3299789 | J29: 2261.321517 | K29: 1 | L29: 47.55335442 | M29: 43.48033625 | N29: 202.8103152 | O29: 4.07301817 | P29: 4.07301817 | Q29: 16.58947701 | R29: 1.96875123
A30: 265.4933333 | B30: 20 | C30: -128.5793181 | D30: -74.13395109 | E30: 238.7814014 | F30: -87.10773273 | G30: 69.51696295 | H30: 17.78493333 | I30: 189.5145287 | J30: 5772.778749 | K30: 1 | L30: 75.9788046 | M30: 42.98578957 | N30: 232.5003183 | O30: 32.99301503 | P30: 32.99301503 | Q30: 1088.539041 | R30: 12.4270597
A31: 304.3466667 | B31: 21 | C31: -128.5736102 | D31: -79.45583164 | E31: 251.5027501 | F31: -90.27190066 | G31: 89.39756412 | H31: 19.66396667 | I31: 213.6361381 | J31: 8228.400001 | K31: 1 | L31: 90.71052861 | M31: 66.95514036 | N31: 280.5912784 | O31: 23.75538825 | P31: 23.75538825 | Q31: 564.3184707 | R31: 7.805371587
A32: 323.9466667 | B32: 22 | C32: -128.5678857 | D32: -83.4256295 | E32: 259.9208171 | F32: -91.88302847 | G32: 103.185869 | H32: 20.92246667 | I32: 230.2673087 | J32: 8775.822111 | K32: 1 | L32: 93.67935798 | M32: 81.23242752 | N32: 311.4997362 | O32: 12.44693046 | P32: 12.44693046 | Q32: 154.9260779 | R32: 3.842277677
A33: 331.11 | B33: 23 | C33: -128.5621448 | D33: -85.97579146 | E33: 263.8915668 | F33: -91.9133983 | G33: 109.9422275 | H33: 21.52403333 | I33: 238.419626 | J33: 8591.505424 | K33: 1 | L33: 92.69037395 | M33: 84.22208432 | N33: 322.6417104 | O33: 8.468289633 | P33: 8.468289633 | Q33: 71.71192931 | R33: 2.55754572
A34: 336.67 | B34: 24 | C34: -128.5563873 | D34: -87.06292197 | E34: 263.3470586 | F34: -90.36248764 | G34: 109.2062048 | H34: 21.4499 | I34: 237.6086329 | J34: 9813.154456 | K34: 1 | L34: 99.06136712 | M34: 82.05603428 | N34: 319.6646672 | O34: 17.00533284 | P34: 17.00533284 | Q34: 289.181345 | R34: 5.051038952
A35: 324.4933333 | B35: 25 | C35: -128.5506132 | D35: -86.66852156 | E35: 258.2966093 | F35: -87.25697842 | G35: 101.0279598 | H35: 20.7028 | I35: 227.8856222 | J35: 9333.04986 | K35: 1 | L35: 96.60771118 | M35: 86.8710605 | N35: 314.7566826 | O35: 9.736650685 | P35: 9.736650685 | Q35: 94.80236656 | R35: 3.000570331
A36: 307.2166667 | B36: 26 | C36: -128.5448226 | D36: -84.79930167 | E36: 248.8266333 | F36: -82.6502979 | G36: 85.96482624 | H36: 19.30493333 | I36: 209.8342037 | J36: 9483.344102 | K36: 1 | L36: 97.38246301 | M36: 85.0385788 | N36: 294.8727825 | O36: 12.34388421 | P36: 12.34388421 | Q36: 152.3714774 | R36: 4.017973485
A37: 266.8866667 | B37: 27 | C37: -128.5390155 | D37: -81.4870704 | E37: 235.0991647 | F37: -76.62169951 | G37: 65.04333185 | H37: 17.2967 | I37: 184.5318774 | J37: 6782.311316 | K37: 1 | L37: 82.35478927 | M37: 85.47111791 | N37: 270.0029953 | O37: -3.116328638 | P37: 3.116328638 | Q37: 9.711504183 | R37: 1.16765992
A38: 218.39 | B38: 28 | C38: -128.5331919 | D38: -76.78819127 | E38: 217.3490842 | F38: -69.27489943 | G38: 39.68924188 | H38: 14.73113333 | I38: 153.4792098 | J38: 4213.410691 | K38: 1 | L38: 64.91079025 | M38: 72.17697293 | N38: 225.6561827 | O38: -7.266182685 | P38: 7.266182685 | Q38: 52.79741082 | R38: 3.327159066
A39: 161.4766667 | B39: 29 | C39: -128.5273517 | D39: -70.78262411 | E39: 195.8801006 | F39: -60.73629219 | G39: 11.63039567 | H39: 11.66996667 | I39: 118.5013945 | J39: 1846.874017 | K39: 1 | L39: 42.97527216 | M39: 56.05023591 | N39: 174.5516304 | O39: -13.07496375 | P39: 13.07496375 | Q39: 170.9546771 | R39: 8.097122649
A40: 101.1233333 | B40: 30 | C40: -128.521495 | D40: -63.57256433 | E40: 171.0595541 | F40: -51.15277622 | G40: -17.22104279 | H40: 8.182933333 | I40: 81.62884206 | J40: 380.03519 | K40: 0 | L40: 19.49449127 | M40: 36.01759126 | N40: 117.6464333 | O40: -16.52309999 | P40: 16.52309999 | Q40: 273.0128334 | R40: 0
A41: 46.18 | B41: 31 | C41: -128.5156218 | D41: -55.28070398 | E41: 143.3121313 | F41: -40.68922656 | G41: -44.89889564 | H41: 4.3624 | I41: 44.96484962 | J41: 1.476590458 | K41: 0 | L41: 1.215150385 | M41: 15.06007253 | N41: 60.02492215 | O41: -13.84492215 | P41: 13.84492215 | Q41: 191.6818693 | R41: 0
A42: 6.976666667 | B42: 32 | C42: -128.509732 | D42: -46.04814384 | E42: 113.1125982 | F42: -29.5256584 | G42: -69.51696295 | H42: 0.7279333333 | I42: 10.54926722 | J42: 12.76347475 | K42: 0 | L42: -3.572600558 | M42: -1.265369148 | N42: 9.283898076 | O42: -2.30723141 | P42: 2.30723141 | Q42: 5.323316778 | R42: 0
A43: 0 | B43: 33 | C43: -128.5038257 | D43: -36.03199239 | E43: 80.97767711 | F43: -17.85413005 | G43: -89.39756412 | H43: 0 | I43: -19.77266892 | J43: 390.9584361 | K43: 0 | L43: 19.77266892 | M43: -5.248178905 | N43: -25.02084782 | O43: 25.02084782 | P43: 25.02084782 | Q43: 626.0428257 | R43: 0
A44: 0 | B44: 34 | C44: -128.4979029 | D44: -25.40269233 | E44: 47.45720555 | F44: -5.875438789 | G44: -103.185869 | H44: 0 | I44: -44.46753124 | J44: 1977.361335 | K44: 0 | L44: 44.46753124 | M44: 16.18135266 | N44: -28.28617859 | O44: 28.28617859 | P44: 28.28617859 | Q44: 800.107899 | R44: 0
A45: 0 | B45: 35 | C45: -128.4919636 | D45: -14.34112014 | E45: 13.12472804 | F45: 6.204333675 | G45: -109.9422275 | H45: 0 | I45: -62.40908321 | J45: 3894.893667 | K45: 0 | L45: 62.40908321 | M45: 40.14276878 | N45: -22.26631443 | O45: 22.26631443 | P45: 22.26631443 | Q45: 495.7887585 | R45: 0
A46: 0 | B46: 36 | C46: -128.4860077 | D46: -3.035508211 | E46: -21.4323172 | F46: 18.17736662 | G46: -109.2062048 | H46: 0 | I46: -72.94550505 | J46: 5321.046707 | K46: 0 | L46: 72.94550505 | M46: 57.16838396 | N46: -15.77712109 | O46: 15.77712109 | P46: 15.77712109 | Q46: 248.91755 | R46: 0
A47: 0 | B47: 37 | C47: -128.4800353 | D47: 8.321758303 | E47: -55.62264955 | F47: 29.83767568 | G47: -101.0279598 | H47: 0 | I47: -75.93404439 | J47: 5765.979097 | K47: 0 | L47: 75.93404439 | M47: 66.06532444 | N47: -9.868719948 | O47: 9.868719948 | P47: 9.868719948 | Q47: 97.39163342 | R47: 0
A48: 0 | B48: 38 | C48: -128.4740464 | D48: 19.53741526 | E48: -88.86126295 | F48: 40.98465661 | G48: -85.96482624 | H48: 0 | I48: -71.74089744 | J48: 5146.756366 | K48: 0 | L48: 71.74089744 | M48: 67.96261999 | N48: -3.778277458 | O48: 3.778277458 | P48: 3.778277458 | Q48: 14.27538055 | R48: 0
A49: 0 | B49: 39 | C49: -128.468041 | D49: 30.42060824 | E49: -120.5794355 | F49: 51.42653644 | G49: -65.04333185 | H49: 0 | I49: -61.20649735 | J49: 3746.235317 | K49: 0 | L49: 61.20649735 | M49: 63.52743985 | N49: 2.3209425 | O49: -2.3209425 | P49: 2.3209425 | Q49: 5.386774088 | R49: 0
A50: 0 | B50: 40 | C50: -128.462019 | D50: 40.78614031 | E50: -150.2344605 | F50: 60.98367281 | G50: -39.68924188 | H50: 0 | I50: -45.57874195 | J50: 2077.421717 | K50: 0 | L50: 45.57874195 | M50: 53.54810853 | N50: 7.969366579 | O50: -7.969366579 | P50: 7.969366579 | Q50: 63.51080367 | R50: 0
A51: 0 | B51: 41 | C51: -128.4559805 | D51: 50.45762345 | E51: -177.3189322 | F51: 69.4916445 | G51: -11.63039567 | H51: 0 | I51: -26.41887412 | J51: 697.9569097 | K51: 0 | L51: 26.41887412 | M51: 39.16814902 | N51: 12.7492749 | O51: -12.7492749 | P51: 12.7492749 | Q51: 162.5440105 | R51: 0
A52: 0 | B52: 42 | C52: -128.4499255 | D52: 59.27048013 | E52: -201.3694278 | F52: 76.80408014 | G52: 17.22104279 | H52: 0 | I52: -5.486583945 | J52: 30.10260339 | K52: 0 | L52: 5.486583945 | M52: 21.80041567 | N52: 16.31383173 | O52: -16.31383173 | P52: 16.31383173 | Q52: 266.1411057 | R52: 0
A53: 0 | B53: 43 | C53: -128.443854 | D53: 67.07474386 | E53: -221.9744367 | F53: 82.79517642 | G53: 44.89889564 | H53: 0 | I53: 15.38769156 | J53: 236.7810517 | K53: 0 | L53: -15.38769156 | M53: 3.023393968 | N53: 18.41108553 | O53: -18.41108553 | P53: 18.41108553 | Q53: 338.9680705 | R53: 0
A54: 0 | B54: 44 | C54: -128.4377659 | D54: 73.73761119 | E54: -238.7814014 | F54: 87.36186233 | G54: 69.51696295 | H54: 0 | I54: 34.43443545 | J54: 1185.730345 | K54: 0 | L54: -34.43443545 | M54: -15.53313882 | N54: 18.90129663 | O54: -18.90129663 | P54: 18.90129663 | Q54: 357.2590142 | R54: 0
A55: 0 | B55: 45 | C55: -128.4316613 | D55: 79.14570153 | E55: -251.5027501 | F55: 90.42557252 | G55: 89.39756412 | H55: 0 | I55: 50.07159297 | J55: 2507.164423 | K55: 0 | L55: -50.07159297 | M55: -32.30518416 | N55: 17.76640881 | O55: -17.76640881 | P55: 17.76640881 | Q55: 315.645282 | R55: 0
A56: 0 | B56: 46 | C56: -128.4255403 | D56: 83.20698658 | E56: -259.9208171 | F56: 91.93359882 | G56: 103.185869 | H56: 0 | I56: 61.01726337 | J56: 3723.106429 | K56: 0 | L56: -61.01726337 | M56: -45.90624302 | N56: 15.11102035 | O56: -15.11102035 | P56: 15.11102035 | Q56: 228.3429359 | R56: 0
A57: 0 | B57: 47 | C57: -128.4194027 | D57: 85.85235634 | E57: -263.8915668 | F57: 91.85999712 | G57: 109.9422275 | H57: 0 | I57: 66.38077778 | J57: 4406.407658 | K57: 0 | L57: -66.38077778 | M57: -55.22598524 | N57: 11.15479254 | O57: -11.15479254 | P57: 11.15479254 | Q57: 124.4293966 | R57: 0
A58: 0 | B58: 48 | C58: -128.4132485 | D58: 87.03679512 | E58: -263.3470586 | F58: 90.20603366 | G58: 109.2062048 | H58: 0 | I58: 65.72589272 | J58: 4319.892973 | K58: 0 | L58: -65.72589272 | M58: -59.50907159 | N58: 6.216821128 | O58: -6.216821128 | P58: 6.216821128 | Q58: 38.64886494 | R58: 0
A59: 0 | B59: 49 | C59: -128.4070779 | D59: 86.74014757 | E59: -258.2966093 | F59: 87.00016326 | G59: 101.0279598 | H59: 0 | I59: 59.10174972 | J59: 3493.01682 | K59: 0 | L59: -59.10174972 | M59: -58.40870293 | N59: 0.6930467935 | O59: -0.6930467935 | P59: 0.6930467935 | Q59: 0.4803138579 | R59: 0
A60: 0 | B60: 50 | C60: -128.4008907 | D60: 84.9674617 | E60: -248.8266333 | F60: 82.29753982 | G60: 85.96482624 | H60: 0 | I60: 47.03946995 | J60: 2212.711733 | K60: 0 | L60: -47.03946995 | M60: -52.01121133 | N60: -4.971741379 | O60: 4.971741379 | P60: 4.971741379 | Q60: 24.71821234 | R60: 0
A61: 0 | B61: 51 | C61: -128.3946871 | D61: 81.7489029 | E61: -235.0991647 | F61: 76.17906737 | G61: 65.04333185 | H61: 0 | I61: 30.51461662 | J61: 931.1418273 | K61: 0 | L61: -30.51461662 | M61: -40.83000088 | N61: -10.31538426 | O61: 10.31538426 | P61: 10.31538426 | Q61: 106.4071524 | R61: 0
A62: 0 | B62: 52 | C62: -128.3884669 | D62: 77.13924071 | E62: -217.3490842 | F62: 68.75000829 | G62: 39.68924188 | H62: 0 | I62: 10.87810607 | J62: 118.3331916 | K62: 0 | L62: -10.87810607 | M62: -25.76925379 | N62: -14.89114773 | O62: 14.89114773 | P62: 14.89114773 | Q62: 221.7462806 | R62: 0
A63: 0 | B63: 53 | C63: -128.3822302 | D63: 71.21691674 | E63: -195.8801006 | F63: 60.13817229 | G63: 11.63039567 | H63: 0 | I63: -10.23967981 | J63: 104.8510427 | K63: 0 | L63: 10.23967981 | M63: -8.059897453 | N63: -18.29957727 | O63: 18.29957727 | P63: 18.29957727 | Q63: 334.8745282 | R63: 0
A64: 0 | B64: 54 | C64: -128.375977 | D64: 64.08270989 | E64: -171.0595541 | F64: 50.49171762 | G64: -17.22104279 | H64: 0 | I64: -31.04498014 | J64: 963.7907919 | K64: 0 | L64: 31.04498014 | M64: 10.82776292 | N64: -20.21721722 | O64: 20.21721722 | P64: 20.21721722 | Q64: 408.7358722 | R64: 0
A65: 0 | B65: 55 | C65: =C$3*COS(C$2*$B65)+C$4*SIN(C$2*$B65) -> -128.3697073 | D65: 55.85802143 | E65: -143.3121313 | F65: 39.97660214 | G65: -44.89889564 | H65: 0 | I65: -49.70894438 | J65: 2470.979151 | K65: 0 | L65: 49.70894438 | M65: 29.28873254 | N65: -20.42021184 | O65: 20.42021184 | P65: 20.42021184 | Q65: 416.9850516 | R65: 0
A66: 0 | B66: 56 | C66: -128.3634211 | D66: 46.6828091 | E66: -113.1125982 | F66: 28.77372816 | G66: -69.51696295 | H66: 0 | I66: -64.49927863 | J66: 4160.156944 | K66: 0 | L66: 64.49927863 | M66: 45.69812542 | N66: -18.80115321 | O66: 18.80115321 | P66: 18.80115321 | Q66: 353.4833621 | R66: 0
A67: 0 | B67: 57 | C67: -128.3571183 | D67: 36.71320551 | E67: -80.97767711 | F67: 17.07583022 | G67: -89.39756412 | H67: 0 | I67: -73.90615754 | J67: 5462.120122 | K67: 0 | L67: 73.90615754 | M67: 58.52815691 | N67: -15.37800063 | O67: 15.37800063 | P67: 15.37800063 | Q67: 236.4829034 | R67: 0
A68: 0 | B68: 58 | C68: -128.3507991 | D68: 26.11886123 | E68: -47.45720555 | F68: 5.084159263 | G68: -103.185869 | H68: 0 | I68: -76.75368688 | J68: 5891.12845 | K68: 0 | L68: 76.75368688 | M68: 66.45925067 | N68: -10.29443621 | O68: 10.29443621 | P68: 10.29443621 | Q68: 105.9754169 | R68: 0
A69: 0 | B69: 59 | C69: -128.3444633 | D69: 15.08005795 | E69: -13.12472804 | F69: -6.994979706 | G69: -109.9422275 | H69: 0 | I69: -72.28917434 | J69: 5225.724727 | K69: 0 | L69: 72.28917434 | M69: 68.47756885 | N69: -3.811605492 | O69: 3.811605492 | P69: 3.811605492 | Q69: 14.52833643 | R69: 0
A70: 0 | B70: 60 | C70: -128.3381111 | D70: 3.784640573 | E70: 21.4323172 | F70: -18.95377686 | G70: -109.2062048 | H70: 0 | I70: -60.24396871 | J70: 3629.335766 | K70: 0 | L70: 60.24396871 | M70: 63.95218903 | N70: 3.708220321 | O70: -3.708220321 | P70: 3.708220321 | Q70: 13.75089795 | R70: 0
A71: 0 | B71: 61 | C71: -128.3317423 | D71: -7.575179209 | E71: 55.62264955 | F71: -30.58649275 | G71: -101.0279598 | H71: 0 | I71: -40.86155823 | J71: 1669.666941 | K71: 0 | L71: 40.86155823 | M71: 52.68653028 | N71: 11.82497206 | O71: -11.82497206 | P71: 11.82497206 | Q71: 139.8299641 | R71: 0
A72: 0 | B72: 62 | C72: -128.325357 | D72: -18.80609381 | E72: 88.86126295 | F72: -41.69299783 | G72: -85.96482624 | H72: 0 | I72: -14.89084569 | J72: 221.7372854 | K72: 0 | L72: 14.89084569 | M72: 34.94037945 | N72: 20.04953376 | O72: -20.04953376 | P72: 20.04953376 | Q72: 401.9838041 | R72: 0
A73: 7.85 | B73: 63 | C73: -128.3189553 | D73: -29.71698917 | E73: 120.5794355 | F73: -52.0822155 | G73: -65.04333185 | H73: 1.3448 | I73: 16.45510999 | J73: 74.04791796 | K73: 0 | L73: -8.605109991 | M73: 11.42086926 | N73: 27.87597925 | O73: -20.02597925 | P73: 20.02597925 | Q73: 401.0398448 | R73: 0
A74: 20.45666667 | B74: 64 | C74: -128.312537 | D74: -40.12219696 | E74: 150.2344605 | F74: -61.57540939 | G74: -39.68924188 | H74: 5.226933333 | I74: 51.57224154 | J74: 968.1789995 | K74: 0 | L74: -31.11557487 | M74: -9.90219167 | N74: 41.67004987 | O74: -21.2133832 | P74: 21.2133832 | Q74: 450.0076268 | R74: 0
A75: 41.52666667 | B75: 65 | C75: -128.3061022 | D75: -49.844654 | E75: 177.3189322 | F75: -70.00925835 | G75: -11.63039567 | H75: 8.9948 | I75: 88.56568824 | J75: 2212.669551 | K75: =IF(H75>=10,1,0) -> 0 | L75: -47.03902157 | M75: -29.76165298 | N75: 58.80403526 | O75: -17.27736859 | P75: 17.27736859 | Q75: 298.5074653 | R75: 0
A76: 62.35333333 | B76: 66 | C76: -128.2996509 | D76: -58.71891534 | E76: 201.3694278 | F76: -77.23866623 | G76: 17.22104279 | H76: 12.40546667 | I76: 125.3704044 | J76: 3971.151243 | K76: 1 | L76: =A76-I76 -> -63.01707105 | M76: -43.57376062 | N76: 81.79664376 | O76: -19.44331043 | P76: 19.44331043 | Q76: 378.0423204 | R76: 31.18247155
A77: 65.17 | B77: 67 | C77: -128.2931831 | D77: -66.59396959 | E77: 221.9744367 | F77: -83.13925809 | G77: 44.89889564 | H77: 15.37476667 | I77: 159.8840878 | J77: 8970.758422 | K77: 1 | L77: -94.71408777 | M77: -57.12720144 | N77: 102.7568863 | O77: -37.58688633 | P77: 37.58688633 | Q77: 1412.774024 | R77: 57.6751363
A78: 74.93666667 | B78: =B77+1 -> 68 | C78: -128.2866989 | D78: -73.33580867 | E78: 238.7814014 | F78: -87.60952002 | G78: 69.51696295 | H78: 17.83506667 | I78: =B$3+SUM(C78:G78) -> 190.1035031 | J78: =(A78-I78)^2 -> 13263.40021 | K78: 1 | L78: -115.1668364 | M78: -84.58223273 | N78: 105.5212704 | O78: -30.58460369 | P78: 30.58460369 | Q78: 935.4179827 | R78: 40.81393669
A79: 79.49333333 | B79: 69 | C79: -128.2801981 | D79: -78.82970815 | E79: 251.5027501 | F79: -90.5725455 | G79: 89.39756412 | H79: 19.726 | I79: 214.2550288 | J79: 18160.71457 | K79: 1 | L79: -134.7616955 | M79: -103.5248172 | N79: =I79+M79 -> 110.7302116 | O79: -31.23687828 | P79: 31.23687828 | Q79: 975.7425647 | R79: 39.29496597
A80: 100.9166667 | B80: 70 | C80: -128.2736808 | D80: -82.98217954 | E80: 259.9208171 | F80: -91.97735857 | G80: 103.185869 | H80: 20.99616667 | I80: 230.9106335 | J80: 16898.43141 | K80: 1 | L80: -129.9939668 | M80: =$N$2*L79+$N$3*L78+$N$4*L77+$N$5*L76 -> -120.670902 | N80: 110.2397315 | O80: =(A80-N80) -> -9.323064797 | P80: =ABS(O80) -> 9.323064797 | Q80: =O80^2 -> 86.91953721 | R80: =IF(A80=0,0,ABS(K80*P80/A80)*100) -> 9.23837965
A81: 135.11 | B81: 71 | C81: -128.267147 | D81: -85.72256113 | E81: 263.8915668 | F81: -91.79979079 | G81: 109.9422275 | H81: 21.609 | I81: 239.0814616 | J81: 10810.06484 | K81: 1 | L81: -103.9714616 | M81: -116.0408939 | N81: 123.0405677 | O81: 12.06943228 | P81: 12.06943228 | Q81: 145.6711955 | R81: 8.93304143
A82: 117.0666667 | B82: 72 | C82: -128.2605967 | D82: -87.00422043 | E82: 263.3470586 | F82: -90.04289705 | G82: 109.2062048 | H82: 21.54556667 | I82: 238.2827155 | J82: 14693.33051 | K82: 1 | L82: -121.2160489 | M82: -91.75115866 | N82: 146.5315569 | O82: -29.46489023 | P82: 29.46489023 | Q82: 868.179756 | R82: 25.16932536
A83: 163.85 | B83: 73 | C83: -128.25403 | D83: -86.80534772 | E83: 258.2966093 | F83: -86.73690298 | G83: 101.0279598 | H83: 20.808 | I83: 228.5654547 | J83: 4188.090077 | K83: 1 | L83: -64.7154547 | M83: -104.3702686 | N83: 124.1951861 | O83: 39.65481391 | P83: 39.65481391 | Q83: 1572.504266 | R83: 24.20190046
A84: 210.16 | B84: 74 | C84: -128.2474467 | D84: -85.12932719 | E84: 248.8266333 | F84: -81.93868499 | G84: 85.96482624 | H84: 19.41853333 | I84: 210.513167 | J84: 0.1247269291 | K84: 1 | L84: -0.3531669989 | M84: -56.87447152 | N84: 153.6386955 | O84: 56.52130452 | P84: 56.52130452 | Q84: 3194.657864 | R84: 26.89441593
A85: 175.3466667 | B85: 75 | C85: -128.2408469 | D85: -82.00467931 | E85: 235.0991647 | F85: -75.73079176 | G85: 65.04333185 | H85: 17.41716667 | I85: 185.2033449 | J85: 97.15410502 | K85: 1 | L85: -9.856678194 | M85: 2.259714707 | N85: 187.4630596 | O85: -12.1163929 | P85: 12.1163929 | Q85: 146.8069769 | R85: 6.909964775
A86: 191.7266667 | B86: 76 | C86: -128.2342307 | D86: -77.48457553 | E86: 217.3490842 | F86: -68.22002402 | G86: 39.68924188 | H86: 14.857 | I86: 154.1366621 | J86: 1413.00844 | K86: 1 | L86: 37.59000453 | M86: -2.211039216 | N86: 151.9256229 | O86: 39.80104374 | P86: 39.80104374 | Q86: 1584.123083 | R86: 20.7592634
A87: 152.4966667 | B87: 77 | C87: -128.2275979 | D87: -71.64593349 | E87: 195.8801006 | F87: -59.53559724 | G87: 11.63039567 | H87: 11.80003333 | I87: 119.1385339 | J87: 1112.765022 | K87: 1 | L87: 33.35813278 | M87: 34.93395009 | N87: 154.072484 | O87: -1.575817312 | P87: 1.575817312 | Q87: 2.483200201 | R87: 1.033345414
A88: 61.32333333 | B88: 78 | C88: -128.2209487 | D88: -64.58810809 | E88: 171.0595541 | F88: -49.8269185 | G88: -17.22104279 | H88: 8.315466667 | I88: 82.23970237 | J88: 437.4944936 | K88: 0 | L88: -20.91636903 | M88: 31.79720713 | N88: 114.0369095 | O88: -52.71357616 | P88: 52.71357616 | Q88: 2778.721112 | R88: 0
A89: 21.28333333 | B89: 79 | C89: -128.2142829 | D89: -56.43120083 | E89: 143.3121313 | F89: -39.26101617 | G89: -44.89889564 | H89: 4.4947 | I89: 45.543902 | J89: 588.5751922 | K89: 0 | L89: -24.26056867 | M89: -16.40559388 | N89: 29.13830813 | O89: -7.854974792 | P89: 7.854974792 | Q89: 61.70062898 | R89: 0
A90: 2.753333333 | B90: 80 | C90: -128.2076007 | D90: -47.31401603 | E90: 113.1125982 | F90: -28.01966631 | G90: -69.51696295 | H90: 0.8063 | I90: 11.09151844 | J90: 69.52533095 | K90: 0 | L90: -8.338185111 | M90: -24.80570453 | N90: -13.71418608 | O90: 16.46751942 | P90: 16.46751942 | Q90: 271.1791958 | R90: 0
A91: 0 | B91: 81 | C91: -128.200902 | D91: -37.39169884 | E91: 80.97767711 | F91: -16.29626539 | G91: -89.39756412 | H91: 0 | I91: -19.27158696 | J91: 371.3940638 | K91: 0 | L91: 19.27158696 | M91: -9.871544643 | N91: -29.1431316 | O91: 29.1431316 | P91: 29.1431316 | Q91: 849.3221194 | R91: 0
A92: 0 | B92: 82 | C92: -128.1941868 | D92: -26.83309521 | E92: 47.45720555 | F92: -4.292503093 | G92: -103.185869 | H92: 0 | I92: -44.0112823 | J92: 1936.992969 | K92: 0 | L92: 44.0112823 | M92: 17.64902719 | N92: -26.3622551 | O92: 26.3622551 | P92: 26.3622551 | Q92: 694.9684941 | R92: 0
A93: 0 | B93: 83 | C93: -128.1874551 | D93: -15.81787859 | E93: 13.12472804 | F93: 7.785107536 | G93: -109.9422275 | H93: 0 | I93: -62.00055933 | J93: 3844.069357 | K93: 0 | L93: 62.00055933 | M93: 40.88665472 | N93: -21.11390461 | O93: 21.11390461 | P93: 21.11390461 | Q93: 445.7969678 | R93: 0
A94: 0 | B94: 84 | C94: -128.1807069 | D94: -4.533492562 | E94: -21.4323172 | F94: 19.72878297 | G94: -109.2062048 | H94: 0 | I94: -72.58677226 | J94: 5268.839508 | K94: 0 | L94: 72.58677226 | M94: 56.9939286 | N94: -15.59284366 | O94: 15.59284366 | P94: 15.59284366 | Q94: 243.1367735 | R94: 0
A95: 0 | B95: 85 | C95: -128.1739423 | D95: 6.828038933 | E95: -55.62264955 | F95: 31.33304392 | G95: -101.0279598 | H95: 0 | I95: -75.62630247 | J95: 5719.337625 | K95: 0 | L95: 75.62630247 | M95: 65.75560118 | N95: -9.870701287 | O95: 9.870701287 | P95: 9.870701287 | Q95: 97.43074389 | R95: 0
A96: 0 | B96: 86 | C96: -128.1671611 | D96: 18.07337917 | E96: -88.86126295 | F96: 42.39825037 | G96: -85.96482624 | H96: 0 | I96: -71.48445448 | J96: 5110.027233 | K96: 0 | L96: 71.48445448 | M96: 67.69783743 | N96: -3.786617051 | O96: 3.786617051 | P96: 3.786617051 | Q96: 14.33846869 | R96: 0
A97: 0 | B97: 87 | C97: -128.1603635 | D97: 29.01116861 | E97: -120.5794355 | F97: 52.73403623 | G97: -65.04333185 | H97: 0 | I97: -61.00075971 | J97: 3721.092685 | K97: 0 | L97: 61.00075971 | M97: 63.30778206 | N97: 2.307022359 | O97: -2.307022359 | P97: 2.307022359 | Q97: 5.322352165 | R97: 0
A98: 0 | B98: 88 | C98: -128.1535494 | D98: 39.45528128 | E98: -150.2344605 | F98: 62.16258437 | G98: -39.68924188 | H98: 0 | I98: -45.4222198 | J98: 2063.178051 | K98: 0 | L98: 45.4222198 | M98: 53.37296595 | N98: 7.950746159 | O98: -7.950746159 | P98: 7.950746159 | Q98: 63.21436449 | R98: 0
A99: 0 | B99: 89 | C99: -128.1467188 | D99: 49.22799196 | E99: -177.3189322 | F99: 70.5216858 | G99: -11.63039567 | H99: 0 | I99: -26.30920258 | J99: 692.1741405 | K99: 0 | L99: 26.30920258 | M99: 39.03612487 | N99: 12.72692229 | O99: -12.72692229 | P99: 12.72692229 | Q99: 161.9745509 | R99: 0
A100: 0 | B100: 90 | C100: -128.1398717 | D100: 58.16300054 | E100: -201.3694278 | F100: 77.66753033 | G100: 17.22104279 | H100: 0 | I100: -5.420559544 | J100: 29.38246577 | K100: 0 | L100: 5.420559544 | M100: 21.70934602 | N100: 16.28878648 | O100: -16.28878648 | P100: 16.28878648 | Q100: 265.3245649 | R100: 0
A101: 0 | B101: 91 | C101: -128.1330081 | D101: 66.10826193 | E101: -221.9744367 | F101: 83.47718066 | G101: 44.89889564 | H101: 0 | I101: 15.41405971 | J101: 237.5932368 | K101: 0 | L101: -15.41405971 | M101: 2.970381293 | N101: 18.384441 | O101: -18.384441 | P101: 18.384441 | Q101: 337.987671 | R101: 0
A102: 0 | B102: 92 | C102: -128.1261281 | D102: 72.92857331 | E102: -238.7814014 | F102: 87.85068743 | G102: 69.51696295 | H102: 0 | I102: 34.42586049 | J102: 1185.139871 | K102: 0 | L102: -34.42586049 | M102: -15.55167921 | N102: 18.87418129 | O102: -18.87418129 | P102: 18.87418129 | Q102: 356.2347193 | R102: 0
A103: 0 | B103: 93 | C103: -128.1192316 | D103: 78.50787494 | E103: -251.5027501 | F103: 90.7128087 | G103: 89.39756412 | H103: 0 | I103: 50.03343234 | J103: 2503.344352 | K103: 0 | L103: -50.03343234 | M103: -32.2934655 | N103: 17.73996684 | O103: -17.73996684 | P103: 17.73996684 | Q103: 314.7064234 | R103: 0
A104: 0 | B104: 94 | C104: -128.1123186 | D104: 82.75122504 | E104: -259.9208171 | F104: 92.01430447 | G104: 103.185869 | H104: 0 | I104: 60.95542916 | J104: 3715.564344 | K104: 0 | L104: -60.95542916 | M104: -45.8690373 | N104: 15.08639186 | O104: -15.08639186 | P104: 15.08639186 | Q104: 227.5992193 | R104: 0
A105: 0 | B105: 95 | C105: -128.1053891 | D105: 85.58641543 | E105: -263.8915668 | F105: 91.73278378 | G105: 109.9422275 | H105: 0 | I105: 66.30163708 | J105: 4395.90708 | K105: 0 | L105: -66.30163708 | M105: -55.16854329 | N105: 11.13309379 | O105: -11.13309379 | P105: 11.13309379 | Q105: 123.9457774 | R105: 0
A106: 0 | B106: 96 | C106: -128.0984432 | D106: 86.96520031 | E106: -263.3470586 | F106: 89.8730899 | G106: 109.2062048 | H106: 0 | I106: 65.63615954 | J106: 4308.105439 | K106: 0 | L106: -65.63615954 | M106: -59.4370345 | N106: 6.19912504 | O106: -6.19912504 | P106: 6.19912504 | Q106: 38.42915126 | R106: 0
A107: 0 | B107: 97 | C107: -128.0914807 | D107: 86.86411718 | E107: -258.2966093 | F107: 86.46721707 | G107: 101.0279598 | H107: 0 | I107: 59.0083703 | J107: 3481.987766 | K107: 0 | L107: -59.0083703 | M107: -58.3280062 | N107: 0.6803641063 | O107: -0.6803641063 | P107: 0.6803641063 | Q107: 0.4628953172 | R107: 0
A108: 0 | B108: 98 | C108: -128.0845018 | D108: 85.28488615 | E108: -248.8266333 | F108: 81.57376 | G108: 85.96482624 | H108: 0 | I108: 46.94950351 | J108: 2204.25588 | K108: 0 | L108: -46.94950351 | M108: -51.92798345 | N108: -4.978479944 | O108: 4.978479944 | P108: 4.978479944 | Q108: 24.78526255 | R108: 0
A109: 0 | B109: 99 | C109: -128.0775065 | D109: 82.25438066 | E109: -235.0991647 | F109: 75.27690587 | G109: 65.04333185 | H109: 0 | I109: 30.43511349 | J109: 926.2961333 | K109: 0 | L109: -30.43511349 | M109: -40.75045804 | N109: -10.31534455 | O109: 10.31534455 | P109: 10.31534455 | Q109: 106.4063332 | R109: 0
A110: 0 | B110: 100 | C110: -128.0704946 | D110: 77.82417016 | E110: -217.3490842 | F110: 67.6849859 | G110: 39.68924188 | H110: 0 | I110: 10.81598543 | J110: 116.9855407 | K110: 0 | L110: -10.81598543 | M110: -25.69959253 | N110: -14.8836071 | O110: 14.8836071 | P110: 14.8836071 | Q110: 221.5217604 | R110: 0
A111: 0 | B111: 101 | C111: -128.0634663 | D111: 72.06964259 | E111: -195.8801006 | F111: 58.92861169 | G111: 11.63039567 | H111: 0 | I111: -10.27775064 | J111: 105.6321582 | K111: 0 | L111: 10.27775064 | M111: -8.00618708 | N111: -18.28393772 | O111: 18.28393772 | P111: 18.28393772 | Q111: 334.3023786 | R111: 0
A112: 0 | B112: 102 | C112: -128.0564215 | D112: 65.08872149 | E112: -171.0595541 | F112: 49.15842812 | G112: -17.22104279 | H112: 0 | I112: -31.05270253 | J112: 964.2703343 | K112: 0 | L112: 31.05270253 | M112: 10.85968619 | N112: -20.19301634 | O112: 20.19301634 | P112: 20.19301634 | Q112: 407.7579089 | R112: 0
A113: 0 | B113: 103 | C113: -128.0493602 | D113: 57.0001997 | E113: -143.3121313 | F113: 38.54252169 | G113: -44.89889564 | H113: 0 | I113: -49.6804995 | J113: 2468.152031 | K113: 0 | L113: 49.6804995 | M113: 29.29336798 | N113: -20.38713153 | O113: 20.38713153 | P113: 20.38713153 | Q113: 415.6351319 | R113: 0
A114: 0 | B114: 104 | C114: -128.0422825 | D114: 47.94171784 | E114: -113.1125982 | F114: 27.26352872 | G114: -69.51696295 | H114: 0 | I114: -64.42943078 | J114: 4151.151551 | K114: 0 | L114: 64.42943078 | M114: 45.67040487 | N114: -18.75902591 | O114: 18.75902591 | P114: 18.75902591 | Q114: 351.9010532 | R114: 0
A115: 0 | B115: 105 | C115: -128.0351883 | D115: 38.06742214 | E115: -80.97767711 | F115: 15.51549329 | G115: -89.39756412 | H115: 0 | I115: -73.79034782 | J115: 5445.015432 | K115: 0 | L115: 73.79034782 | M115: 58.46353482 | N115: -15.326813 | O115: 15.326813 | P115: 15.326813 | Q115: 234.9111968 | R115: 0
A116: 0 | B116: 106 | C116: =C$3*COS(C$2*$B116)+C$4*SIN(C$2*$B116) -> -128.0280777 | D116: 27.54534134 | E116: -47.45720555 | F116: 3.500528926 | G116: -103.185869 | H116: 0 | I116: -76.58811568 | J116: 5865.739463 | K116: 0 | L116: 76.58811568 | M116: 66.35378557 | N116: -10.2343301 | O116: 10.2343301 | P116: 10.2343301 | Q116: 104.7415127 | R116: 0
A117: 0 | B117: 107 | C117: -128.0209505 | D117: 16.55452743 | E117: -13.12472804 | F117: -8.574658632 | G117: -109.9422275 | H117: 0 | I117: -72.07087097 | J117: 5194.210442 | K117: 0 | L117: 72.07087097 | M117: 68.32799469 | N117: -3.742876275 | O117: 3.742876275 | P117: 3.742876275 | Q117: 14.00912281 | R117: 0
A118: 0 | B118: 108 | C118: -128.0138069 | D118: 5.282008702 | E118: 21.4323172 | F118: -20.50232754 | G118: -109.2062048 | H118: 0 | I118: -59.97084711 | J118: 3596.502503 | K118: 0 | L118: 59.97084711 | M118: 63.75597524 | N118: 3.785128124 | O118: -3.785128124 | P118: 3.785128124 | Q118: 14.32719491 | R118: 0
A119: 0 | B119: 109 | C119: -128.0066469 | D119: -6.080392823 | E119: 55.62264955 | F119: -32.07727388 | G119: -101.0279598 | H119: 0 | I119: -40.53245752 | J119: 1642.880113 | K119: 0 | L119: 40.53245752 | M119: 52.44192925 | N119: 11.90947173 | O119: -11.90947173 | P119: 11.90947173 | Q119: 141.835517 | R119: 0
A120: 0 | B120: 110 | C120: -127.9994703 | D120: -17.33932562 | E120: 88.86126295 | F120: -43.10036197 | G120: -85.96482624 | H120: 0 | I120: -14.50555494 | J120: 210.4111241 | K120: 0 | L120: 14.50555494 | M120: 34.64646082 | N120: 20.14090588 | O120: -20.14090588 | P120: 20.14090588 | Q120: 405.6560896 | R120: 0
A121: 15.09 | B121: 111 | C121: -127.9922774 | D121: -28.30319886 | E121: 120.5794355 | F121: -53.38195032 | G121: -65.04333185 | H121: 1.351533333 | I121: 16.89584339 | J121: 3.261070365 | K121: 0 | L121: -1.805843395 | M121: 11.07754007 | N121: 27.97338346 | O121: -12.88338346 | P121: 12.88338346 | Q121: 165.9815694 | R121: 0
A122: 59.01666667 | B122: 112 | C122: -127.9850679 | D122: -38.78544269 | E122: 150.2344605 | F122: -62.74515422 | G122: -39.68924188 | H122: 5.242766667 | I122: 52.06672006 | J122: 48.30175784 | K122: 0 | L122: 6.949946607 | M122: -3.971923557 | N122: 48.0947965 | O122: 10.92187016 | P122: 10.92187016 | Q122: 119.2872479 | R122: 0
A123: 108.3633333 | B123: 113 | C123: -127.977842 | D123: -48.60768302 | E123: 177.3189322 | F123: -71.02888887 | G123: -11.63039567 | H123: 9.020133333 | I123: 89.1112889 | J123: 370.6412148 | K123: 0 | L123: 19.25204443 | M123: 3.944912288 | N123: 93.05620119 | O123: 15.30713214 | P123: 15.30713214 | Q123: 234.3082945 | R123: 0
A124: 158.4266667 | B124: 114 | C124: -127.9705996 | D124: -57.60277693 | E124: 201.3694278 | F124: -78.09064069 | G124: 17.22104279 | H124: 12.44076667 | I124: 125.9636196 | J124: 1053.849423 | K124: 1 | L124: 32.46304705 | M124: 16.68614115 | N124: 142.6497608 | O124: 15.77690589 | P124: 15.77690589 | Q124: 248.9107596 | R124: 9.958491349
A125: 209.9233333 | B125: 115 | C125: -127.9633408 | D125: -65.61765684 | E125: 221.9744367 | F125: -83.8089191 | G125: 44.89889564 | H125: 15.42096667 | I125: 160.5205818 | J125: 2440.631854 | K125: 1 | L125: 49.40275148 | M125: 29.54684095 | N125: 190.0674228 | O125: 19.85591053 | P125: 19.85591053 | Q125: 394.257183 | R125: 9.458648649
A126: 255.64 | B126: 116 | C126: -127.9560655 | D126: -72.51593528 | E126: 238.7814014 | F126: -88.08534671 | G126: 69.51696295 | H126: 17.89273333 | I126: 190.7781831 | J126: 4207.055289 | K126: 1 | L126: 64.86181688 | M126: 44.58932097 | N126: 235.3675041 | O126: 20.2724959 | P126: 20.2724959 | Q126: 410.9740902 | R126: 7.930095409
A127: 291.8733333 | B127: 117 | C127: -127.9487738 | D127: -78.18022572 | E127: 251.5027501 | F127: -90.84635174 | G127: 89.39756412 | H127: 19.7953 | I127: 214.9621293 | J127: 5915.333307 | K127: 1 | L127: 76.91120404 | M127: 58.41429412 | N127: 273.3764234 | O127: 18.49690991 | P127: 18.49690991 | Q127: 342.1356763 | R127: 6.33730725
A128: 317.29 | B128: 118 | C128: -127.9414656 | D128: -82.51414017 | E128: 259.9208171 | F128: -92.04443379 | G128: 103.185869 | H128: 21.07743333 | I128: 231.6438129 | J128: 7335.269373 | K128: 1 | L128: 85.64618715 | M128: 69.05293672 | N128: 300.6967496 | O128: 16.59325043 | P128: 16.59325043 | Q128: 275.3359598 | R128: 5.229679608
A129: 334.3966667 | B129: 119 | C129: -127.9341409 | D129: -85.44392935 | E129: 263.8915668 | F129: -91.65898103 | G129: 109.9422275 | H129: 21.70156667 | I129: 239.8339093 | J129: 8942.115087 | K129: 1 | L129: 94.5627574 | M129: 76.44523864 | N129: 316.2791479 | O129: 18.11751876 | P129: 18.11751876 | Q129: 328.244486 | R129: 5.417972296
A130: 328.7133333 | B130: 120 | C130: -127.9267998 | D130: -86.91973765 | E130: 263.3470586 | F130: -89.6966248 | G130: 109.2062048 | H130: 21.64856667 | I130: 239.0472675 | J130: 8040.003365 | K130: 1 | L130: 89.66606585 | M130: 83.90935669 | N130: 322.9566242 | O130: 5.756709165 | P130: 5.756709165 | Q130: 33.13970041 | R130: 1.751285567
A131: 315.48 | B131: 121 | C131: -127.9194423 | D131: -86.91645158 | E131: 258.2966093 | F131: -86.19112552 | G131: 101.0279598 | H131: 20.92043333 | I131: 229.334716 | J131: 7421.009954 | K131: 1 | L131: 86.14528399 | M131: 79.53305829 | N131: 308.8677743 | O131: 6.612225703 | P131: 6.612225703 | Q131: 43.72152875 | R131: 2.09592548
A132: 299.03 | B132: 122 | C132: -127.9120682 | D132: -85.43412705 | E132: 248.8266333 | F132: -81.20279189 | G132: 85.96482624 | H132: 19.53896667 | I132: 211.2796387 | J132: 7700.125911 | K132: 1 | L132: 87.75036131 | M132: 75.591958 | N132: 286.8715967 | O132: 12.15840332 | P132: 12.15840332 | Q132: 147.8267712 | R132: 4.065947669
A133: 261.2833333 | B133: 123 | C133: -127.9046778 | D133: -82.49798846 | E133: 235.0991647 | F133: -74.81744333 | G133: 65.04333185 | H133: 17.5442 | I133: 185.9595533 | J133: 5673.671842 | K133: 1 | L133: 75.32378005 | M133: 76.48136216 | N133: 262.4409154 | O133: -1.157582112 | P133: 1.157582112 | Q133: 1.339996345 | R133: 0.4430371034
A134: 209.96 | B134: 124 | C134: -127.8972709 | D134: -78.15799943 | E134: 217.3490842 | F134: -67.14493355 | G134: 39.68924188 | H134: 14.9893 | I134: 154.8752885 | J134: 3034.32544 | K134: 1 | L134: 55.08471149 | M134: 66.01212139 | N134: 220.8874099 | O134: -10.92740991 | P134: 10.92740991 | Q134: 119.4082872 | R134: 5.204519863
A135: 156.7333333 | B135: 125 | C135: -127.8898475 | D135: -72.48801264 | E135: 195.8801006 | F135: -58.3172606 | G135: 11.63039567 | H135: 11.93613333 | I135: 119.8525418 | J135: 1360.192784 | K135: 1 | L135: 36.88079154 | M135: 47.64366071 | N135: 167.4962025 | O135: -10.76286917 | P135: 10.76286917 | Q135: 115.8393528 | R135: 6.866994367
A136: 101.2633333 | B136: 126 | C136: -127.8824077 | D136: -65.58451301 | E136: 171.0595541 | F136: -48.48629599 | G136: -17.22104279 | H136: 8.4537 | I136: 82.92246095 | J136: 336.3875998 | K136: 0 | L136: 18.34087238 | M136: 30.60031873 | N136: 113.5227797 | O136: -12.25944635 | P136: 12.25944635 | Q136: 150.2940248 | R136: 0
A137: 49.38666667 | B137: 127 | C137: -127.8749514 | D137: -57.5649759 | E137: 143.3121313 | F137: -37.8211719 | G137: -44.89889564 | H137: 4.632366667 | I137: 46.18930272 | J137: 10.2231362 | K137: 0 | L137: 3.197363945 | M137: 14.14607712 | N137: 60.33537985 | O137: -10.94871318 | P137: 10.94871318 | Q137: 119.8743203 | R137: 0
A138: 7.846666667 | B138: 128 | C138: -127.8674787 | D138: -48.56586805 | E138: 113.1125982 | F138: -26.50537139 | G138: -69.51696295 | H138: 0.8917333333 | I138: 11.69408334 | J138: 14.80261506 | K138: 0 | L138: -3.847416673 | M138: 0.9272123967 | N138: 12.62129574 | O138: -4.77462907 | P138: 4.77462907 | Q138: 22.79708275 | R138: 0
A139: 0 | B139: 129 | C139: -127.8599896 | D139: -38.74032533 | E139: 80.97767711 | F139: -14.73357179 | G139: -89.39756412 | H139: 0 | I139: -18.7166074 | J139: 350.3113926 | K139: =IF(H139>=10,1,0) -> 0 | L139: 18.7166074 | M139: -5.077146512 | N139: -23.79375391 | O139: 23.79375391 | P139: 23.79375391 | Q139: 566.1427253 | R139: 0
A140: 0 | B140: 130 | C140: -127.852484 | D140: -28.25554686 | E140: 47.45720555 | F140: -2.708295435 | G140: -103.185869 | H140: 0 | I140: -43.50782346 | J140: 1892.930702 | K140: 0 | L140: =A140-I140 -> 43.50782346 | M140: 15.2510945 | N140: -28.25672896 | O140: 28.25672896 | P140: 28.25672896 | Q140: 798.4427313 | R140: 0
A141: 0 | B141: 131 | C141: -127.8449619 | D141: -17.28994987 | E141: 13.12472804 | F141: 9.363574502 | G141: -109.9422275 | H141: 0 | I141: -61.55167045 | J141: 3788.608135 | K141: 0 | L141: 61.55167045 | M141: 39.15693586 | N141: -22.39473459 | O141: 22.39473459 | P141: 22.39473459 | Q141: 501.5241372 | R141: 0
A142: 0 | B142: =B141+1 -> 132 | C142: -127.8374234 | D142: -6.030133542 | E142: -21.4323172 | F142: 21.27435326 | G142: -109.2062048 | H142: 0 | I142: =B$3+SUM(C142:G142) -> -72.19455946 | J142: =(A142-I142)^2 -> 5212.054416 | K142: 0 | L142: 72.19455946 | M142: 56.38935956 | N142: -15.8051999 | O142: 15.8051999 | P142: 15.8051999 | Q142: 249.804344 | R142: 0
A143: 0 | B143: 133 | C143: -127.8298685 | D143: 5.332296267 | E143: -55.62264955 | F143: 32.8191275 | G143: -101.0279598 | H143: 0 | I143: -75.2918878 | J143: 5668.868368 | K143: 0 | L143: 75.2918878 | M143: 65.41721941 | N143: =I143+M143 -> -9.874668385 | O143: 9.874668385 | P143: 9.874668385 | Q143: 97.50907571 | R143: 0
A144: 0 | B144: 134 | C144: -127.8222971 | D144: 16.60398754 | E144: -88.86126295 | F144: 43.79928062 | G144: -85.96482624 | H144: 0 | I144: -71.20795188 | J144: 5070.572411 | K144: 0 | L144: 71.20795188 | M144: =$N$2*L143+$N$3*L142+$N$4*L141+$N$5*L140 -> 67.41037235 | N144: -3.797579528 | O144: =(A144-N144) -> 3.797579528 | P144: =ABS(O144) -> 3.797579528 | Q144: =O144^2 -> 14.42161027 | R144: =IF(A144=0,0,ABS(K144*P144/A144)*100) -> 0
A145: 0 | B145: 135 | C145: -127.8147093 | D145: 27.59313235 | E145: -120.5794355 | F145: 54.02590979 | G145: -65.04333185 | H145: 0 | I145: -60.78126825 | J145: 3694.36257 | K145: 0 | L145: 60.78126825 | M145: 63.07123565 | N145: 2.289967394 | O145: -2.289967394 | P145: 2.289967394 | Q145: 5.243950665 | R145: 0
A146: 0 | B146: 136 | C146: -127.8071051 | D146: 38.1127308 | E146: -150.2344605 | F146: 63.32307581 | G146: -39.68924188 | H146: 0 | I146: -45.25783455 | J146: 2048.271588 | K146: 0 | L146: 45.25783455 | M146: 53.18644745 | N146: 7.9286129 | O146: -7.9286129 | P146: 7.9286129 | Q146: 62.86290251 | R146: 0
A147: 0 | B147: 137 | C147: -127.7994844 | D147: 47.98377315 | E147: -177.3189322 | F147: 71.53083 | G147: -11.63039567 | H147: 0 | I147: -26.19704282 | J147: 686.2850524 | K147: 0 | L147: 26.19704282 | M147: 38.89786201 | N147: 12.7008192 | O147: -12.7008192 | P147: 12.7008192 | Q147: 161.3108083 | R147: 0
A148: 0 | B148: 138 | C148: -127.7918473 | D148: 57.038286 | E148: -201.3694278 | F148: 78.50796595 | G148: 17.22104279 | H148: 0 | I148: -5.356814051 | J148: 28.69545677 | K148: 0 | L148: 5.356814051 | M148: 21.61671159 | N148: 16.25989754 | O148: -16.25989754 | P148: 16.25989754 | Q148: 264.3842679 | R148: 0
A149: 0 | B149: 139 | C149: -127.7841937 | D149: 65.12219068 | E149: -221.9744367 | F149: 84.13444882 | G149: 44.89889564 | H149: 0 | I149: 15.43407104 | J149: 238.2105488 | K149: 0 | L149: -15.43407104 | M149: 2.919934537 | N149: 18.35400557 | O149: -18.35400557 | P149: 18.35400557 | Q149: 336.8695206 | R149: 0
A150: 0 | B150: 140 | C150: -127.7765237 | D150: 72.09792513 | E150: -238.7814014 | F150: 88.31348047 | G150: 69.51696295 | H150: 0 | I150: 34.40760971 | J150: 1183.883606 | K150: 0 | L150: -34.40760971 | M150: -15.5641368 | N150: 18.84347292 | O150: -18.84347292 | P150: 18.84347292 | Q150: 355.0764716 | R150: 0
A151: 0 | B151: 141 | C151: -127.7688373 | D151: 77.84678477 | E151: -251.5027501 | F151: 90.97316472 | G151: 89.39756412 | H151: 0 | I151: 49.98309246 | J151: 2498.309532 | K151: 0 | L151: -49.98309246 | M151: -32.27282108 | N151: 17.71027138 | O151: -17.71027138 | P151: 17.71027138 | Q151: 313.6537123 | R151: 0
A152: 0 | B152: 142 | C152: -127.7611344 | D152: 82.27094252 | E152: -259.9208171 | F152: 92.0677443 | G152: 103.185869 | H152: 0 | I152: 60.8797706 | J152: 3706.346468 | K152: 0 | L152: -60.8797706 | M152: -45.82078533 | N152: 15.05898527 | O152: -15.05898527 | P152: 15.05898527 | Q152: 226.7730374 | R152: 0
A153: 0 | B153: 143 | C153: -127.7534152 | D153: 85.29511342 | E153: -263.8915668 | F153: 91.57838803 | G153: 109.9422275 | H153: 0 | I153: 66.20791327 | J153: 4383.48778 | K153: 0 | L153: -66.20791327 | M153: -55.09869324 | N153: 11.10922004 | O153: -11.10922004 | P153: 11.10922004 | Q153: 123.4147698 | R153: 0
A154: 0 | B154: 144 | C154: -127.7456794 | D154: 86.86783583 | E154: -263.3470586 | F154: 89.51351481 | G154: 109.2062048 | H154: 0 | I154: 65.53198369 | J154: 4294.440886 | K154: 0 | L154: -65.53198369 | M154: -59.35200931 | N154: 6.179974382 | O154: -6.179974382 | P154: 6.179974382 | Q154: 38.19208336 | R154: 0
A155: 0 | B155: 145 | C155: -127.7379273 | D155: 86.96234707 | E155: -258.2966093 | F155: 85.90864877 | G155: 101.0279598 | H155: 0 | I155: 58.90158534 | J155: 3469.396755 | K155: 0 | L155: -58.90158534 | M155: -58.23453304 | N155: 0.6670522988 | O155: -0.6670522988 | P155: 0.6670522988 | Q155: 0.4449587694 | R155: 0
A156: 0 | B156: 146 | C156: -127.7301587 | D156: 85.57703884 | E156: -248.8266333 | F156: 80.82580812 | G156: 85.96482624 | H156: 0 | I156: 46.84804745 | J156: 2194.73955 | K156: 0 | L156: -46.84804745 | M156: -51.83297876 | N156: -4.984931309 | O156: 4.984931309 | P156: 4.984931309 | Q156: 24.84954015 | R156: 0
A157: 0 | B157: 147 | C157: -127.7223737 | D157: 82.73548466 | E157: -235.0991647 | F157: 74.35243819 | G157: 65.04333185 | H157: 0 | I157: 30.34688258 | J157: 920.9332821 | K157: 0 | L157: -30.34688258 | M157: -40.66090872 | N157: -10.31402614 | O157: 10.31402614 | P157: 10.31402614 | Q157: 106.3791352 | R157: 0
A158: 0 | B158: 148 | C158: -127.7145723 | D158: 78.48603863 | E158: -217.3490842 | F158: 66.59990699 | G158: 39.68924188 | H158: 0 | I158: 10.74869733 | J158: 115.5344943 | K158: 0 | L158: -10.74869733 | M158: -25.62243543 | N158: -14.87373809 | O158: 14.87373809 | P158: 14.87373809 | Q158: 221.2280849 | R158: 0
A159: 0 | B159: 149 | C159: -127.7067544 | D159: 72.90101265 | E159: -195.8801006 | F159: 57.70158927 | G159: 11.63039567 | H159: 0 | I159: -10.31669111 | J159: 106.4341154 | K159: 0 | L159: 10.31669111 | M159: -7.948188761 | N159: -18.26487987 | O159: 18.26487987 | P159: 18.26487987 | Q159: 333.6058366 | R159: 0
A160: 0 | B160: 150 | C160: -127.6989201 | D160: 66.0754459 | E160: -171.0595541 | F160: 47.81057192 | G160: -17.22104279 | H160: 0 | I160: -31.05633293 | J160: 964.4958151 | K160: 0 | L160: 31.05633293 | M160: 10.89204726 | N160: -20.16428567 | O160: 20.16428567 | P160: 20.16428567 | Q160: 406.5984167 | R160: 0
A161: 0 | B161: 151 | C161: -127.6910694 | D161: 58.12548759 | E161: -143.3121313 | F161: 37.09702026 | G161: -44.89889564 | H161: 0 | I161: -49.64242221 | J161: 2464.370083 | K161: 0 | L161: 49.64242221 | M161: 29.2940148 | N161: -20.34840741 | O161: 20.34840741 | P161: 20.34840741 | Q161: 414.0576842 | R161: 0
A162: 0 | B162: 152 | C162: -127.6832023 | D162: 49.18642042 | E162: -113.1125982 | F162: 25.7452505 | G162: -69.51696295 | H162: 0 | I162: -64.34392618 | J162: 4140.140836 | K162: 0 | L162: 64.34392618 | M162: 45.63376885 | N162: -18.71015733 | O162: 18.71015733 | P162: 18.71015733 | Q162: 350.0699873 | R162: 0
A163: 0 | B163: 153 | C163: -127.6753187 | D163: 39.41035857 | E163: -80.97767711 | F163: 13.95055879 | G163: -89.39756412 | H163: 0 | I163: -73.65247629 | J163: 5424.687264 | K163: 0 | L163: 73.65247629 | M163: 58.38465438 | N163: -15.26782192 | O163: 15.26782192 | P163: 15.26782192 | Q163: 233.1063861 | R163: 0
A164: 0 | B164: 154 | C164: -127.6674187 | D164: 28.96365917 | E164: -47.45720555 | F164: 1.915861308 | G164: -103.185869 | H164: 0 | I164: -76.39380655 | J164: 5836.013679 | K164: 0 | L164: 76.39380655 | M164: 66.22839468 | N164: -10.16541186 | O164: 10.16541186 | P164: 10.16541186 | Q164: 103.3355984 | R164: 0
A165: 0 | B165: 155 | C165: -127.6595023 | D165: 18.02409145 | E165: -13.12472804 | F165: -10.1517967 | G165: -109.9422275 | H165: 0 | I165: -71.81699684 | J165: 5157.681034 | K165: 0 | L165: 71.81699684 | M165: 68.15259983 | N165: -3.664397001 | O165: 3.664397001 | P165: 3.664397001 | Q165: 13.42780538 | R165: 0
A166: 0 | B166: 156 | C166: -127.6515695 | D166: 6.777811658 | E166: 21.4323172 | F166: -22.04480294 | G166: -109.2062048 | H166: 0 | I166: -59.65528215 | J166: 3558.752688 | K166: 0 | L166: 59.65528215 | M166: 63.52791925 | N166: 3.872637107 | O166: -3.872637107 | P166: 3.872637107 | Q166: 14.99731816 | R166: 0
A167: 0 | B167: 157 | C167: =C$3*COS(C$2*$B167)+C$4*SIN(C$2*$B167) -> -127.6436203 | D167: -4.583804685 | E167: 55.62264955 | F167: -33.55854982 | G167: -101.0279598 | H167: 0 | I167: -40.15411874 | J167: 1612.353252 | K167: 0 | L167: 40.15411874 | M167: 52.15944109 | N167: 12.00532235 | O167: -12.00532235 | P167: 12.00532235 | Q167: 144.1277648 | R167: 0
A168: 0 | B168: 158 | C168: -127.6356546 | D168: -15.86741942 | E168: 88.86126295 | F168: -44.49495454 | G168: -85.96482624 | H168: 0 | I168: -14.0644256 | J168: 197.8080675 | K168: 0 | L168: 14.0644256 | M168: 34.30869011 | N168: 20.24426451 | O168: -20.24426451 | P168: 20.24426451 | Q168: 409.8302457 | R168: 0
A169: 11.96333333 | B169: 159 | C169: -127.6276726 | D169: -26.8810217 | E169: 120.5794355 | F169: -54.66586692 | G169: -65.04333185 | H169: 1.3633 | I169: 17.39870874 | J169: 29.54330586 | K169: 0 | L169: -5.435375411 | M169: 10.68457597 | N169: 28.08328472 | O169: -16.11995138 | P169: 16.11995138 | Q169: 259.8528327 | R169: 0
A170: 49.80333333 | B170: 160 | C170: -127.6196741 | D170: -37.43719545 | E170: 150.2344605 | F170: -63.89630631 | G170: -39.68924188 | H170: 5.265466667 | I170: 52.62920903 | J170: 7.985573435 | K170: 0 | L170: -2.825875694 | M170: -7.149380104 | N170: 45.47982892 | O170: 4.32350441 | P170: 4.32350441 | Q170: 18.69269038 | R170: 0
A171: 110.7233333 | B171: 161 | C171: -127.6116592 | D171: -47.35630855 | E171: 177.3189322 | F171: -72.027472 | G171: -11.63039567 | H171: 9.0523 | I171: 89.73026306 | J171: 440.7089996 | K171: 0 | L171: 20.99307028 | M171: -4.804351226 | N171: 84.92591183 | O171: 25.7974215 | P171: 25.7974215 | Q171: 665.5069562 | R171: 0
A172: 171.6366667 | B172: 162 | C172: -127.6036279 | D172: -56.46956958 | E172: 201.3694278 | F172: -78.9194752 | G172: 17.22104279 | H172: 12.48316667 | I172: 126.6349642 | J172: 2025.153225 | K172: 1 | L172: 45.00170247 | M172: 17.65735909 | N172: 144.2923233 | O172: 27.34434338 | P172: 27.34434338 | Q172: 747.7131147 | R172: 15.93152786
A173: 226.32 | B173: 163 | C173: -127.5955802 | D173: -64.62190016 | E173: 221.9744367 | F173: -84.45374572 | G173: 44.89889564 | H173: 15.4743 | I173: 161.2392725 | J173: 4235.501086 | K173: 1 | L173: 65.08072745 | M173: 40.95658054 | N173: 202.1958531 | O173: 24.12414691 | P173: 24.12414691 | Q173: 581.9744641 | R173: 10.65930846
A174: 272.4733333 | B174: 164 | C174: -127.587516 | D174: -71.67457384 | E174: 238.7814014 | F174: -88.53507181 | G174: 69.51696295 | H174: 17.95773333 | I174: 191.5383689 | J174: 6550.468462 | K174: 1 | L174: 80.9349644 | M174: 59.48057246 | N174: 251.0189414 | O174: 21.45439194 | P174: 21.45439194 | Q174: 460.2909334 | R174: 7.873941892
A175: 309.7066667 | B175: 165 | C175: -127.5794355 | D175: -77.5075768 | E175: 251.5027501 | F175: -91.09323825 | G175: 89.39756412 | H175: 19.87216667 | I175: 215.75723 | J175: 8826.496652 | K175: 1 | L175: 93.94943668 | M175: 73.15444845 | N175: 288.9116784 | O175: 20.79498823 | P175: 20.79498823 | Q175: 432.4315356 | R175: 6.714414144
A176: 337.7766667 | B176: 166 | C176: -127.5713385 | D176: -82.02165008 | E176: 259.9208171 | F176: -92.08423427 | G176: 103.185869 | H176: 21.16593333 | I176: 232.4666295 | J176: 11090.20393 | K176: 1 | L176: 105.3100372 | M176: 84.14159017 | N176: 316.6082197 | O176: 21.16844699 | P176: 21.16844699 | Q176: 448.1031481 | R176: 6.266995054
A177: 353.99 | B177: 167 | C177: -127.5632252 | D177: -85.13997869 | E177: 263.8915668 | F177: -91.49101074 | G177: 109.9422275 | H177: 21.8014 | I177: 240.6767459 | J177: 12839.89354 | K177: 1 | L177: 113.3132541 | M177: 93.74878514 | N177: 334.4255311 | O177: 19.56446891 | P177: 19.56446891 | Q177: 382.7684437 | R177: 5.526842258
A178: 351.2433333 | B178: 168 | C178: -127.5550954 | D178: -86.80949869 | E178: 263.3470586 | F178: -89.3237735 | G178: 109.2062048 | H178: 21.75903333 | I178: 239.9020621 | J178: 12396.87867 | K178: 1 | L178: 111.3412712 | M178: 100.5512586 | N178: 340.4533207 | O178: 10.7900126 | P178: 10.7900126 | Q178: 116.4243718 | R178: 3.071948012
A179: 339.42 | B179: 169 | C179: -127.5469493 | D179: -87.00180022 | E179: 258.2966093 | F179: -85.61980776 | G179: 101.0279598 | H179: 21.04 | I179: 230.1931781 | J179: 11930.49862 | K179: 1 | L179: 109.2268219 | M179: 98.57651666 | N179: 328.7696948 | O179: 10.65030523 | P179: 10.65030523 | Q179: 113.4290016 | R179: 3.137795425
A180: 317.7066667 | B180: 170 | C180: -127.5387867 | D180: -85.71361094 | E180: 248.8266333 | F180: -80.44283664 | G180: 85.96482624 | H180: 19.6663 | I180: 212.1333916 | J180: 11145.71641 | K180: 1 | L180: 105.5732751 | M180: 95.96132 | N180: 308.0947116 | O180: 9.61195507 | P180: 9.61195507 | Q180: 92.38968026 | R180: 3.025418122
A181: 279.5066667 | B181: 171 | C181: -127.5306077 | D181: -82.96685167 | E181: 235.0991647 | F181: -73.88192488 | G181: 65.04333185 | H181: 17.67783333 | I181: 186.8002786 | J181: 8594.474393 | K181: 1 | L181: 92.70638809 | M181: 92.33180333 | N181: 279.1320819 | O181: 0.3745847641 | P181: 0.3745847641 | Q181: 0.1403137455 | R181: 0.134016397
A182: 230.57 | B182: 172 | C182: -127.5224123 | D182: -78.80826344 | E182: 217.3490842 | F182: -66.04994658 | G182: 39.68924188 | H182: 15.12773333 | I182: 155.69487 | J182: 5606.285092 | K182: 1 | L182: 74.87513 | M182: 80.98232659 | N182: 236.6771966 | O182: -6.107196587 | P182: 6.107196587 | Q182: 37.29785016 | R182: 2.648738599
A183: 173.62 | B183: 173 | C183: -127.5142006 | D183: -73.30861202 | E183: 195.8801006 | F183: -57.0816433 | G183: 11.63039567 | H183: 12.0778 | I183: 120.6432067 | J183: 2806.540633 | K183: 1 | L183: 52.97679335 | M183: 64.73157646 | N183: 185.3747831 | O183: -11.75478312 | P183: 11.75478312 | Q183: 138.1749261 | R183: 6.77040843
A184: 117.03 | B184: 174 | C184: -127.5059724 | D184: -66.56148381 | E184: 171.0595541 | F184: -47.13130595 | G184: -17.22104279 | H184: 8.5975 | I184: 83.67691549 | J184: 1112.428246 | K184: 0 | L184: 33.35308451 | M184: 44.85144288 | N184: 128.5283584 | O184: -11.49835838 | P184: 11.49835838 | Q184: 132.2122454 | R184: 0
A185: 59.70333333 | B185: 175 | C185: -127.4977278 | D185: -58.68169323 | E185: 143.3121313 | F185: -36.3701204 | G185: -44.89889564 | H185: 4.775133333 | I185: 46.90086052 | J185: 163.9033101 | K185: 0 | L185: 12.80247281 | M185: 27.18043063 | N185: 74.08129115 | O185: -14.37795781 | P185: 14.37795781 | Q185: 206.7256709 | R185: 0
A186: 10.94 | B186: 176 | C186: -127.4894668 | D186: -49.80332896 | E186: 113.1125982 | F186: -24.98322236 | G186: -69.51696295 | H186: 0.9848 | I186: 12.35678336 | J186: 2.00727508 | K186: 0 | L186: -1.416783357 | M186: 9.13957974 | N186: 21.4963631 | O186: -10.5563631 | P186: 10.5563631 | Q186: 111.4368018 | R186: 0
A187: 0 | B187: 177 | C187: -127.4811894 | D187: -40.07747222 | E187: 80.97767711 | F187: -13.16651231 | G187: -89.39756412 | H187: 0 | I187: -18.1078947 | J187: 327.8958505 | K187: 0 | L187: 18.1078947 | M187: -3.305301051 | N187: -21.41319575 | O187: 21.41319575 | P187: 21.41319575 | Q187: 458.5249524 | R187: 0
A188: 0 | B188: 178 | C188: -127.4728957 | D188: -29.66962579 | E188: 47.45720555 | F188: -1.123285251 | G188: -103.185869 | H188: 0 | I188: -42.95730392 | J188: 1845.32996 | K188: 0 | L188: 42.95730392 | M188: 14.05216672 | N188: -28.9051372 | O188: 28.9051372 | P188: 28.9051372 | Q188: 835.5069566 | R188: 0
A189: 0 | B189: 179 | C189: -127.4645855 | D189: -18.75689776 | E189: 13.12472804 | F189: 10.93926684 | G189: -109.9422275 | H189: 0 | I189: -61.0625496 | J189: 3728.634963 | K189: 0 | L189: 61.0625496 | M189: 38.18086607 | N189: -22.88168353 | O189: 22.88168353 | P189: 22.88168353 | Q189: 523.571441 | R189: 0
A190: 0 | B190: 180 | C190: -127.456259 | D190: -7.524987662 | E190: -21.4323172 | F190: 22.8136195 | G190: -109.2062048 | H190: 0 | I190: -71.76898286 | J190: 5150.786901 | K190: 0 | L190: 71.76898286 | M190: 55.83507125 | N190: -15.93391161 | O190: 15.93391161 | P190: 15.93391161 | Q190: 253.8895393 | R190: 0
A191: 0 | B191: 181 | C191: -127.447916 | D191: 3.834973527 | E191: -55.62264955 | F191: 34.29548606 | G191: -101.0279598 | H191: 0 | I191: -74.93089947 | J191: 5614.639695 | K191: 0 | L191: 74.93089947 | M191: 65.0502794 | N191: -9.880620066 | O191: 9.880620066 | P191: 9.880620066 | Q191: 97.62665289 | R191: 0
A192: 0 | B192: 182 | C192: -127.4395567 | D192: 15.1296758 | E192: -88.86126295 | F192: 45.1873322 | G192: -85.96482624 | H192: 0 | I192: -70.91147156 | J192: 5028.436799 | K192: 0 | L192: 70.91147156 | M192: 67.10030992 | N192: -3.811161638 | O192: 3.811161638 | P192: 3.811161638 | Q192: 14.52495303 | R192: 0
A193: 0 | B193: 183 | C193: -127.4311809 | D193: 26.16691965 | E193: -120.5794355 | F193: 55.3017743 | G193: -65.04333185 | H193: 0 | I193: -60.54808803 | J193: 3666.070964 | K193: 0 | L193: 60.54808803 | M193: 62.81787068 | N193: 2.269782658 | O193: -2.269782658 | P193: 2.269782658 | Q193: 5.151913314 | R193: 0
A194: 0 | B194: 184 | C194: -127.4227888 | D194: 36.75888669 | E194: -150.2344605 | F194: 64.46480326 | G194: -39.68924188 | H194: 0 | I194: -45.08563492 | J194: 2032.714476 | K194: 0 | L194: 45.08563492 | M194: 52.98860828 | N194: 7.902973359 | O194: -7.902973359 | P194: 7.902973359 | Q194: 62.45698791 | R194: 0
A195: 0 | B195: 185 | C195: -127.4143803 | D195: 46.72533571 | E195: -177.3189322 | F195: 72.51877808 | G195: -11.63039567 | H195: 0 | I195: -26.08242807 | J195: 680.2930539 | K195: 0 | L195: 26.08242807 | M195: 38.75340143 | N195: 12.67097336 | O195: -12.67097336 | P195: 12.67097336 | Q195: 160.5535659 | R195: 0
A196: 0 | B196: 186 | C196: -127.4059554 | D196: 55.89666979 | E196: -201.3694278 | F196: 79.32513796 | G196: 17.22104279 | H196: 0 | I196: -5.295366355 | J196: 28.04090483 | K196: 0 | L196: 5.295366355 | M196: 21.52253982 | N196: 16.22717347 | O196: -16.22717347 | P196: 16.22717347 | Q196: 263.3211587 | R196: 0
A197: 0 | B197: 187 | C197: -127.3975141 | D197: 64.11682233 | E197: -221.9744367 | F197: 84.76678613 | G197: 44.89889564 | H197: 0 | I197: 15.44771961 | J197: 238.6320413 | K197: 0 | L197: -15.44771961 | M197: 2.872068648 | N197: 18.31978826 | O197: -18.31978826 | P197: 18.31978826 | Q197: 335.614642 | R197: 0
A198: 0 | B198: 188 | C198: -127.3890564 | D198: 71.24591277 | E198: -238.7814014 | F198: 88.75010432 | G198: 69.51696295 | H198: 0 | I198: 34.37968851 | J198: 1181.962982 | K198: 0 | L198: -34.37968851 | M198: -15.5705079 | N198: 18.80918061 | O198: -18.80918061 | P198: 18.80918061 | Q198: 353.7852754 | R198: 0
A199: 0 | B199: 189 | C199: -127.3805824 | D199: 77.16262693 | E199: -251.5027501 | F199: 91.20656343 | G199: 89.39756412 | H199: 0 | I199: 49.92058825 | J199: 2492.065132 | K199: 0 | L199: -49.92058825 | M199: -32.24325702 | N199: 17.67733123 | O199: -17.67733123 | P199: 17.67733123 | Q199: 312.4880395 | R199: 0
A200: 0 | B200: 190 | C200: -127.3720919 | D200: 81.76628134 | E200: -259.9208171 | F200: 92.09390247 | G200: 103.185869 | H200: 0 | I200: 60.7903101 | J200: 3695.461802 | K200: 0 | L200: -60.7903101 | M200: -45.76150139 | N200: 15.02880871 | O200: -15.02880871 | P200: 15.02880871 | Q200: 225.8650914 | R200: 0
... 4300 more rows

Sheet Q1-solar_2017(ARMA)
C1: 1/year | E1: 1/day | G1: 2/day | I1: n= | J1: 17520 | L1: AR coefficients | M1: Type | N1: Coef | O1: SE Coef | P1: T-Value | Q1: P-Value | T1: Error Metric | U1: MeAPE | V1: =_xlfn.AGGREGATE(12,1,R15:R17530) -> 34.03054109
A2: Frequency | C2: =2*PI()/J1 -> 0.0003586292984 | D2: =2*PI()*364/J1 -> 0.1305410646 | E2: =2*PI()*365/J1 -> 0.1308996939 | F2: =2*PI()*366/J1 -> 0.1312583232 | G2: =2*PI()*730/J1 -> 0.2617993878 | M2: AR 1 | N2: -0.6005 | O2: 0.0165 | P2: -36.5 | Q2: 0 | U2: MBE | V2: =SUBTOTAL(109, O15:O17530)/L7 -> 3.470019558
A3: Mean | B3: =AVERAGE(A11:A17530) -> 171.0371663 | C3: -128.6900023 | D3: 87.08259904 | E3: -263.3470586 | F3: 90.51224742 | G3: 109.2062048 | M3: AR 2 | N3: 0.5818 | O3: 0.0293 | P3: 19.83 | Q3: 0 | U3: NRMSE | V3: =SQRT(SUBTOTAL(109,Q15:Q17530)/L7)/T7 -> 0.5505052612
A4: Variance | B4: =STDEV(A11:A17530)^2 -> 67620.39466 | C4: 14.97017503 | D4: 1.911405374 | E4: 21.4323172 | F4: -17.01024437 | G4: -17.22104279 | M4: AR 3 | N4: 0.6669 | O4: 0.0314 | P4: 21.24 | Q4: 0 | U4: NMAE | V4: =SUBTOTAL(109, P15:P17530)/(L7*T7) -> 0.3762699001
B5: Contribution | C5: =(C3^2+C4^2)/2 -> 8392.611417 | D5: =(D3^2+D4^2)/2 -> 3793.516263 | E5: 34905.50876 | F5: 4240.907673 | G5: 6111.279744 | M5: MA 1 | N5: -1.4588 | O5: 0.0184 | P5: -79.34 | Q5: 0 | U5: NMBE | V5: =SUBTOTAL(109,O15:O17530)/(L7*T7) -> 0.008663236507
B6: Variance Explained | C6: =C5/$B$4 -> 0.1241136119 | D6: =D5/$B$4 -> 0.05610017928 | E6: =E5/$B$4 -> 0.5161979449 | F6: =F5/$B$4 -> 0.06271639931 | G6: =G5/$B$4 -> 0.09037628033 | I6: Three | J6: OLS | M6: MA 2 | N6: -0.7126 | O6: 0.0395 | P6: -18.04 | Q6: 0 | U6: SS
I7: Cycle | K7: Valid_Count | L7: =SUBTOTAL(2,K15:K17530) -> 7266 | S7: Final Mean | T7: =SUBTOTAL(1,N15:N17530) -> 400.545403
F8: Total | G8: =SUM(C6:G6) -> 0.8495044156 | I8: + | J8: =SUM(J11:J17530) -> 178226936.2
C9: Frequencies | I9: Beats
A10: Series | B10: Time | C10: 1 | D10: 364 | E10: 365 | F10: 366 | G10: 730 | H10: Elevation | I10: Model | J10: Diff^2 | K10: Valid_Elevation | L10: Residuals | M10: ARMA(3,2) | N10: Final Model | O10: Diff | P10: ABS(Diff) | Q10: Diff^2 | R10: Diff/yi
A11: 0 | B11: 1 | C11: =C$3*COS(C$2*$B11)+C$4*SIN(C$2*$B11) -> -128.6846253 | D11: 86.59047499 | E11: -258.2966093 | F11: 87.50732943 | G11: 101.0279598 | H11: 0 | I11: =B$3+SUM(C11:G11) -> 59.18169593 | J11: =(A11-I11)^2 -> 3502.473133 | K11: =IF(H11>=10,1,0) -> 0 | L11: =A11-I11 -> -59.18169593
A12: 0 | B12: =B11+1 -> 2 | C12: -128.6792317 | D12: 84.62485956 | E12: -248.8266333 | F12: 82.99693309 | G12: 85.96482624 | H12: 0 | I12: 47.11792012 | J12: =(A12-I12)^2 -> 2220.098397 | K12: =IF(H12>=10,1,0) -> 0 | L12: =A12-I12 -> -47.11792012
A13: 0 | B13: =B12+1 -> 3 | C13: -128.6738216 | D13: 81.21920119 | E13: -235.0991647 | F13: 77.05865538 | G13: 65.04333185 | H13: 0 | I13: 30.58536839 | J13: 935.4647598 | K13: 0 | L13: -30.58536839
A14: 0 | B14: =B13+1 -> 4 | C14: -128.6683949 | D14: 76.43145324 | E14: -217.3490842 | F14: 69.79465857 | G14: 39.68924188 | H14: 0 | I14: 10.93504085 | J14: 119.5751184 | K14: 0 | L14: -10.93504085 | M14: =$N$2*L13+$N$3*L12+$N$4*L11+$N$5*(L14-L13)+$N$6*(L13-L12) -> -88.9619594
A15: 0 | B15: 5 | C15: -128.6629517 | D15: 70.34308777 | E15: -195.8801006 | F15: 61.32991265 | G15: 11.63039567 | H15: 0 | I15: -10.20248991 | J15: 104.0908004 | K15: 0 | L15: 10.20248991 | M15: =$N$2*L14+$N$3*L13+$N$4*L12+$N$5*(L15-L14)+$N$6*(L14-L13) -> -87.48926951 | N15: =I15+M15 -> -97.69175942 | O15: =(A15-N15) -> 97.69175942 | P15: =ABS(O15) -> 97.69175942 | Q15: =O15^2 -> 9543.679859 | R15: =IF(A15=0,0,ABS(K15*P15/A15)*100) -> 0
A16: 0 | B16: 6 | C16: -128.6574919 | D16: 63.0577092 | E16: -171.0595541 | F16: 51.81004533 | G16: -17.22104279 | H16: 0 | I16: -31.03316805 | J16: 963.0575195 | K16: 0 | L16: 31.03316805 | M16: -78.33638184 | N16: =I16+M16 -> -109.3695499 | O16: =(A16-N16) -> 109.3695499 | P16: =ABS(O16) -> 109.3695499 | Q16: =O16^2 -> 11961.69844 | R16: =IF(A16=0,0,ABS(K16*P16/A16)*100) -> 0
A17: 0 | B17: 7 | C17: -128.6520156 | D17: 54.69929123 | E17: -143.3121313 | F17: 41.39883666 | G17: -44.89889564 | H17: 0 | I17: -49.7277484 | J17: 2472.848961 | K17: 0 | L17: 49.7277484 | M17: -62.10778258 | N17: -111.835531 | O17: 111.835531 | P17: 111.835531 | Q17: 12507.18599 | R17: 0
A18: 0 | B18: 8 | C18: -128.6465228 | D18: 45.41006724 | E18: -113.1125982 | F18: 30.27540133 | G18: -69.51696295 | H18: 0 | I18: -64.55344903 | J18: 4167.147781 | K18: 0 | L18: 64.55344903 | M18: -39.95186524 | N18: -104.5053143 | O18: 104.5053143 | P18: 104.5053143 | Q18: 10921.36071 | R18: 0
A19: 0 | B19: 9 | C19: -128.6410134 | D19: 35.34810996 | E19: -80.97767711 | F19: 18.63110722 | G19: -89.39756412 | H19: 0 | I19: -73.99987113 | J19: 5475.980927 | K19: 0 | L19: 73.99987113 | M19: -13.48195717 | N19: -87.48182829 | O19: 87.48182829 | P19: 87.48182829 | Q19: 7653.070282 | R19: 0
A20: 0 | B20: 10 | C20: -128.6354874 | D20: 24.68464154 | E20: -47.45720555 | F20: 6.666283053 | G20: -103.185869 | H20: 0 | I20: -76.89047111 | J20: 5912.144547 | K20: 0 | L20: 76.89047111 | M20: 15.3353818 | N20: -61.55508931 | O20: 61.55508931 | P20: 61.55508931 | Q20: 3789.02902 | R20: 0
A21: 0 | B21: 11 | C21: -128.6299449 | D21: 13.60111992 | E21: -13.12472804 | F21: -5.413228016 | G21: -109.9422275 | H21: 0 | I21: -72.47184226 | J21: 5252.167921 | K21: 0 | L21: 72.47184226 | M21: 44.31714649 | N21: -28.15469577 | O21: 28.15469577 | P21: 28.15469577 | Q21: 792.6868939 | R21: 0
A22: 0 | B22: 12 | C22: -128.6243859 | D22: 2.286150974 | E22: 21.4323172 | F22: -17.39960977 | G22: -109.2062048 | H22: 0 | I22: -60.47456602 | J22: 3657.173135 | K22: 0 | L22: 60.47456602 | M22: 71.21639036 | N22: 10.74182434 | O22: -10.74182434 | P22: 10.74182434 | Q22: 115.3867901 | R22: 0
A23: 0 | B23: 13 | C23: -128.6188103 | D23: -9.067720906 | E23: 55.62264955 | F23: -29.08664819 | G23: -101.0279598 | H23: 0 | I23: -41.14132334 | J23: 1692.608486 | K23: 0 | L23: 41.14132334 | M23: 93.87998958 | N23: 52.73866624 | O23: -52.73866624 | P23: 52.73866624 | Q23: 2781.366917 | R23: 0
A24: 0 | B24: 14 | C24: -128.6132182 | D24: -20.26728934 | E24: 88.86126295 | F24: -40.27327916 | G24: -85.96482624 | H24: 0 | I24: -15.22018368 | J24: 231.6539913 | K24: 0 | L24: 15.22018368 | M24: 110.4008367 | N24: 95.18065304 | O24: -95.18065304 | P24: 95.18065304 | Q24: 9059.356712 | R24: 0
A25: 13.94 | B25: 15 | C25: -128.6076095 | D25: -31.12197369 | E25: 120.5794355 | F25: -50.7670476 | G25: -65.04333185 | H25: 1.343066667 | I25: 16.07663913 | J25: 4.565226784 | K25: 0 | L25: -2.136639133 | M25: 98.91832694 | N25: 114.9949661 | O25: -101.0549661 | P25: 101.0549661 | Q25: 10212.10617 | R25: 0
A26: 72.63 | B26: 16 | C26: -128.6019843 | D26: -41.44706215 | E26: 150.2344605 | F26: -60.38741844 | G26: -39.68924188 | H26: 5.217633333 | I26: 51.14591998 | J26: 461.5656941 | K26: 0 | L26: 21.48408002 | M26: 15.48587004 | N26: 66.63179003 | O26: 5.998209971 | P26: 5.998209971 | Q26: 35.97852286 | R26: 0
A27: 125.0566667 | B27: 17 | C27: =C$3*COS(C$2*$B27)+C$4*SIN(C$2*$B27) -> -128.5963426 | D27: -51.06685492 | E27: 177.3189322 | F27: -68.96888258 | G27: -11.63039567 | H27: 8.976633333 | I27: 88.09362275 | J27: 1366.266616 | K27: 0 | L27: 36.96304392 | M27: -43.40678321 | N27: 44.68683954 | O27: 80.36982713 | P27: 80.36982713 | Q27: 6459.309113 | R27: 0
A28: 172.26 | B28: 18 | C28: =C$3*COS(C$2*$B28)+C$4*SIN(C$2*$B28) -> -128.5906843 | D28: -59.81765406 | E28: 201.3694278 | F28: -76.36380428 | G28: 17.22104279 | H28: 12.37716667 | I28: 124.8554943 | J28: 2247.187164 | K28: 1 | L28: 47.40450574 | M28: -37.38410894 | N28: 87.47138533 | O28: 84.78861467 | P28: 84.78861467 | Q28: 7189.109178 | R28: 49.22130191
A29: 206.8833333 | B29: 19 | C29: -128.5850094 | D29: -67.55054912 | E29: 221.9744367 | F29: -82.44496113 | G29: 44.89889564 | H29: 15.33596667 | I29: 159.3299789 | J29: 2261.321517 | K29: 1 | L29: 47.55335442 | M29: -0.2912999309 | N29: 159.038679 | O29: 47.84465435 | P29: 47.84465435 | Q29: 2289.11095 | R29: 23.12639379
A30: 265.4933333 | B30: 20 | C30: -128.5793181 | D30: -74.13395109 | E30: 238.7814014 | F30: -87.10773273 | G30: 69.51696295 | H30: 17.78493333 | I30: 189.5145287 | J30: 5772.778749 | K30: 1 | L30: 75.9788046 | M30: -17.8983102 | N30: 171.6162185 | O30: 93.8771148 | P30: 93.8771148 | Q30: 8812.912684 | R30: 35.35949985
A31: 304.3466667 | B31: 21 | C31: -128.5736102 | D31: -79.45583164 | E31: 251.5027501 | F31: -90.27190066 | G31: 89.39756412 | H31: 19.66396667 | I31: 213.6361381 | J31: 8228.400001 | K31: 1 | L31: 90.71052861 | M31: -28.09128047 | N31: 185.5448576 | O31: 118.8018091 | P31: 118.8018091 | Q31: 14113.86984 | R31: 39.03502883
A32: 323.9466667 | B32: 22 | C32: -128.5678857 | D32: -83.4256295 | E32: 259.9208171 | F32: -91.88302847 | G32: 103.185869 | H32: 20.92246667 | I32: 230.2673087 | J32: 8775.822111 | K32: 1 | L32: 93.67935798 | M32: 6.61737334 | N32: 236.884682 | O32: 87.06198464 | P32: 87.06198464 | Q32: 7579.789169 | R32: 26.87540685
A33: 331.11 | B33: 23 | C33: -128.5621448 | D33: -85.97579146 | E33: 263.8915668 | F33: -91.9133983 | G33: 109.9422275 | H33: 21.52403333 | I33: 238.419626 | J33: 8591.505424 | K33: 1 | L33: 92.69037395 | M33: 46.51833796 | N33: 284.937964 | O33: 46.172036 | P33: 46.172036 | Q33: 2131.856908 | R33: 13.94462142
A34: 336.67 | B34: 24 | C34: -128.5563873 | D34: -87.06292197 | E34: 263.3470586 | F34: -90.36248764 | G34: 109.2062048 | H34: 21.4499 | I34: 237.6086329 | J34: 9813.154456 | K34: 1 | L34: 99.06136712 | M34: 50.74767763 | N34: 288.3563105 | O34: 48.3136895 | P34: 48.3136895 | Q34: 2334.212593 | R34: 14.35045876
A35: 324.4933333 | B35: 25 | C35: -128.5506132 | D35: -86.66852156 | E35: 258.2966093 | F35: -87.25697842 | G35: 101.0279598 | H35: 20.7028 | I35: 227.8856222 | J35: 9333.04986 | K35: 1 | L35: 96.60771118 | M35: 55.955096 | N35: 283.8407182 | O35: 40.65261518 | P35: 40.65261518 | Q35: 1652.635121 | R35: 12.52802785
A36: 307.2166667 | B36: 26 | C36: -128.5448226 | D36: -84.79930167 | E36: 248.8266333 | F36: -82.6502979 | G36: 85.96482624 | H36: 19.30493333 | I36: 209.8342037 | J36: 9483.344102 | K36: 1 | L36: 97.38246301 | M36: 62.05445047 | N36: 271.8886541 | O36: 35.32801254 | P36: 35.32801254 | Q36: 1248.06847 | R36: 11.4993802
A37: 266.8866667 | B37: 27 | C37: -128.5390155 | D37: -81.4870704 | E37: 235.0991647 | F37: -76.62169951 | G37: 65.04333185 | H37: 17.2967 | I37: 184.5318774 | J37: 6782.311316 | K37: 1 | L37: 82.35478927 | M37: 85.16250536 | N37: 269.6943828 | O37: -2.80771609 | P37: 2.80771609 | Q37: 7.883269642 | R37: 1.052025613
A38: 218.39 | B38: 28 | C38: -128.5331919 | D38: -76.78819127 | E38: 217.3490842 | F38: -69.27489943 | G38: 39.68924188 | H38: 14.73113333 | I38: 153.4792098 | J38: 4213.410691 | K38: 1 | L38: 64.91079025 | M38: 107.7867747 | N38: 261.2659844 | O38: -42.87598445 | P38: 42.87598445 | Q38: 1838.350042 | R38: 19.63275995
A39: 161.4766667 | B39: 29 | C39: -128.5273517 | D39: -70.78262411 | E39: 195.8801006 | F39: -60.73629219 | G39: 11.63039567 | H39: 11.66996667 | I39: 118.5013945 | J39: 1846.874017 | K39: 1 | L39: 42.97527216 | M39: 118.3095789 | N39: 236.8109734 | O39: -75.33430677 | P39: 75.33430677 | Q39: 5675.257776 | R39: 46.65337
A40: 101.1233333 | B40: 30 | C40: -128.521495 | D40: -63.57256433 | E40: 171.0595541 | F40: -51.15277622 | G40: -17.22104279 | H40: 8.182933333 | I40: 81.62884206 | J40: 380.03519 | K40: 0 | L40: 19.49449127 | M40: 116.7658691 | N40: 198.3947112 | O40: -97.27137787 | P40: 97.27137787 | Q40: 9461.720954 | R40: 0
A41: 46.18 | B41: 31 | C41: -128.5156218 | D41: -55.28070398 | E41: 143.3121313 | F41: -40.68922656 | G41: -44.89889564 | H41: 4.3624 | I41: 44.96484962 | J41: 1.476590458 | K41: 0 | L41: 1.215150385 | M41: 99.9838843 | N41: 144.9487339 | O41: -98.76873391 | P41: 98.76873391 | Q41: 9755.262799 | R41: 0
A42: 6.976666667 | B42: 32 | C42: -128.509732 | D42: -46.04814384 | E42: 113.1125982 | F42: -29.5256584 | G42: -69.51696295 | H42: 0.7279333333 | I42: 10.54926722 | J42: 12.76347475 | K42: 0 | L42: -3.572600558 | M42: 59.28263561 | N42: 69.83190284 | O42: -62.85523617 | P42: 62.85523617 | Q42: 3950.780714 | R42: 0
A43: 0 | B43: 33 | C43: -128.5038257 | D43: -36.03199239 | E43: 80.97767711 | F43: -17.85413005 | G43: -89.39756412 | H43: 0 | I43: -19.77266892 | J43: 390.9584361 | K43: 0 | L43: 19.77266892 | M43: -14.79113043 | N43: -34.56379934 | O43: 34.56379934 | P43: 34.56379934 | Q43: 1194.656225 | R43: 0
A44: 0 | B44: 34 | C44: -128.4979029 | D44: -25.40269233 | E44: 47.45720555 | F44: -5.875438789 | G44: -103.185869 | H44: 0 | I44: -44.46753124 | J44: 1977.361335 | K44: 0 | L44: 44.46753124 | M44: -65.80234708 | N44: -110.2698783 | O44: 110.2698783 | P44: 110.2698783 | Q44: 12159.44607 | R44: 0
A45: 0 | B45: 35 | C45: -128.4919636 | D45: -14.34112014 | E45: 13.12472804 | F45: 6.204333675 | G45: -109.9422275 | H45: 0 | I45: -62.40908321 | J45: 3894.893667 | K45: 0 | L45: 62.40908321 | M45: -61.35227595 | N45: -123.7613592 | O45: 123.7613592 | P45: 123.7613592 | Q45: 15316.87402 | R45: 0
A46: 0 | B46: 36 | C46: -128.4860077 | D46: -3.035508211 | E46: -21.4323172 | F46: 18.17736662 | G46: -109.2062048 | H46: 0 | I46: -72.94550505 | J46: 5321.046707 | K46: 0 | L46: 72.94550505 | M46: -26.57473401 | N46: -99.52023906 | O46: 99.52023906 | P46: 99.52023906 | Q46: 9904.277982 | R46: 0
A47: 0 | B47: 37 | C47: -128.4800353 | D47: 8.321758303 | E47: -55.62264955 | F47: 29.83767568 | G47: -101.0279598 | H47: 0 | I47: -75.93404439 | J47: 5765.979097 | K47: 0 | L47: 75.93404439 | M47: 10.29329003 | N47: -65.64075436 | O47: 65.64075436 | P47: 65.64075436 | Q47: 4308.708633 | R47: 0
A48: 0 | B48: 38 | C48: -128.4740464 | D48: 19.53741526 | E48: -88.86126295 | F48: 40.98465661 | G48: -85.96482624 | H48: 0 | I48: -71.74089744 | J48: 5146.756366 | K48: 0 | L48: 71.74089744 | M48: 42.44924841 | N48: -29.29164904 | O48: 29.29164904 | P48: 29.29164904 | Q48: 858.0007032 | R48: 0
A49: 0 | B49: 39 | C49: -128.468041 | D49: 30.42060824 | E49: -120.5794355 | F49: 51.42653644 | G49: -65.04333185 | H49: 0 | I49: -61.20649735 | J49: 3746.235317 | K49: 0 | L49: 61.20649735 | M49: 68.1009948 | N49: 6.894497457 | O49: -6.894497457 | P49: 6.894497457 | Q49: 47.53409519 | R49: 0
A50: 0 | B50: 40 | C50: -128.462019 | D50: 40.78614031 | E50: -150.2344605 | F50: 60.98367281 | G50: -39.68924188 | H50: 0 | I50: -45.57874195 | J50: 2077.421717 | K50: 0 | L50: 45.57874195 | M50: 85.92934976 | N50: 40.35060782 | O50: -40.35060782 | P50: 40.35060782 | Q50: 1628.171551 | R50: 0
A51: 0 | B51: 41 | C51: -128.4559805 | D51: 50.45762345 | E51: -177.3189322 | F51: 69.4916445 | G51: -11.63039567 | H51: 0 | I51: -26.41887412 | J51: 697.9569097 | K51: 0 | L51: 26.41887412 | M51: 95.1706638 | N51: 68.75178969 | O51: -68.75178969 | P51: 68.75178969 | Q51: 4726.808585 | R51: 0
A52: 0 | B52: 42 | C52: -128.4499255 | D52: 59.27048013 | E52: -201.3694278 | F52: 76.80408014 | G52: 17.22104279 | H52: 0 | I52: -5.486583945 | J52: 30.10260339 | K52: 0 | L52: 5.486583945 | M52: 95.66113796 | N52: 90.17455401 | O52: -90.17455401 | P52: 90.17455401 | Q52: 8131.450191 | R52: 0
A53: 0 | B53: 43 | C53: -128.443854 | D53: 67.07474386 | E53: -221.9744367 | F53: 82.79517642 | G53: 44.89889564 | H53: 0 | I53: 15.38769156 | J53: 236.7810517 | K53: 0 | L53: -15.38769156 | M53: 87.8400134 | N53: 103.227705 | O53: -103.227705 | P53: 103.227705 | Q53: 10655.95907 | R53: 0
A54: 0 | B54: 44 | C54: -128.4377659 | D54: 73.73761119 | E54: -238.7814014 | F54: 87.36186233 | G54: 69.51696295 | H54: 0 | I54: 34.43443545 | J54: 1185.730345 | K54: 0 | L54: -34.43443545 | M54: 72.71154918 | N54: 107.1459846 | O54: -107.1459846 | P54: 107.1459846 | Q54: 11480.26202 | R54: 0
A55: 0 | B55: 45 | C55: -128.4316613 | D55: 79.14570153 | E55: -251.5027501 | F55: 90.42557252 | G55: 89.39756412 | H55: 0 | I55: 50.07159297 | J55: 2507.164423 | K55: 0 | L55: -50.07159297 | M55: 51.76851745 | N55: 101.8401104 | O55: -101.8401104 | P55: 101.8401104 | Q55: 10371.40809 | R55: 0
A56: 0 | B56: 46 | C56: -128.4255403 | D56: 83.20698658 | E56: -259.9208171 | F56: 91.93359882 | G56: 103.185869 | H56: 0 | I56: 61.01726337 | J56: 3723.106429 | K56: 0 | L56: -61.01726337 | M56: 26.88256796 | N56: 87.89983133 | O56: -87.89983133 | P56: 87.89983133 | Q56: 7726.380348 | R56: 0
A57: 0 | B57: 47 | C57: -128.4194027 | D57: 85.85235634 | E57: -263.8915668 | F57: 91.85999712 | G57: 109.9422275 | H57: 0 | I57: 66.38077778 | J57: 4406.407658 | K57: 0 | L57: -66.38077778 | M57: 0.1690684069 | N57: 66.54984618 | O57: -66.54984618 | P57: 66.54984618 | Q57: 4428.882027 | R57: 0
A58: 0 | B58: 48 | C58: -128.4132485 | D58: 87.03679512 | E58: -263.3470586 | F58: 90.20603366 | G58: 109.2062048 | H58: 0 | I58: 65.72589272 | J58: 4319.892973 | K58: 0 | L58: -65.72589272 | M58: -26.16423809 | N58: 39.56165463 | O58: -39.56165463 | P58: 39.56165463 | Q58: 1565.124517 | R58: 0
A59: 0 | B59: 49 | C59: -128.4070779 | D59: 86.74014757 | E59: -258.2966093 | F59: 87.00016326 | G59: 101.0279598 | H59: 0 | I59: 59.10174972 | J59: 3493.01682 | K59: 0 | L59: -59.10174972 | M59: -49.97432177 | N59: 9.127427952 | O59: -9.127427952 | P59: 9.127427952 | Q59: 83.30994101 | R59: 0
A60: 0 | B60: 50 | C60: -128.4008907 | D60: 84.9674617 | E60: -248.8266333 | F60: 82.29753982 | G60: 85.96482624 | H60: 0 | I60: 47.03946995 | J60: 2212.711733 | K60: 0 | L60: -47.03946995 | M60: -69.3348824 | N60: -22.29541245 | O60: 22.29541245 | P60: 22.29541245 | Q60: 497.0854163 | R60: 0
A61: 0 | B61: 51 | C61: -128.3946871 | D61: 81.7489029 | E61: -235.0991647 | F61: 76.17906737 | G61: 65.04333185 | H61: 0 | I61: 30.51461662 | J61: 931.1418273 | K61: 0 | L61: -30.51461662 | M61: -82.67283074 | N61: -52.15821413 | O61: 52.15821413 | P61: 52.15821413 | Q61: 2720.479301 | R61: 0
A62: 0 | B62: 52 | C62: -128.3884669 | D62: 77.13924071 | E62: -217.3490842 | F62: 68.75000829 | G62: 39.68924188 | H62: 0 | I62: 10.87810607 | J62: 118.3331916 | K62: 0 | L62: -10.87810607 | M62: -88.8798453 | N62: -78.00173924 | O62: 78.00173924 | P62: 78.00173924 | Q62: 6084.271324 | R62: 0
A63: 0 | B63: 53 | C63: -128.3822302 | D63: 71.21691674 | E63: -195.8801006 | F63: 60.13817229 | G63: 11.63039567 | H63: 0 | I63: -10.23967981 | J63: 104.8510427 | K63: 0 | L63: 10.23967981 | M63: -87.39132723 | N63: -97.63100704 | O63: 97.63100704 | P63: 97.63100704 | Q63: 9531.813536 | R63: 0
A64: 0 | B64: 54 | C64: -128.375977 | D64: 64.08270989 | E64: -171.0595541 | F64: 50.49171762 | G64: -17.22104279 | H64: 0 | I64: -31.04498014 | J64: 963.7907919 | K64: 0 | L64: 31.04498014 | M64: -78.227314 | N64: -109.2722941 | O64: 109.2722941 | P64: 109.2722941 | Q64: 11940.43427 | R64: 0
A65: 0 | B65: 55 | C65: -128.3697073 | D65: 55.85802143 | E65: -143.3121313 | F65: 39.97660214 | G65: -44.89889564 | H65: 0 | I65: -49.70894438 | J65: 2470.979151 | K65: 0 | L65: 49.70894438 | M65: -61.99252183 | N65: -111.7014662 | O65: 111.7014662 | P65: 111.7014662 | Q65: 12477.21755 | R65: 0
A66: 0 | B66: 56 | C66: -128.3634211 | D66: 46.6828091 | E66: -113.1125982 | F66: 28.77372816 | G66: -69.51696295 | H66: 0 | I66: -64.49927863 | J66: 4160.156944 | K66: 0 | L66: 64.49927863 | M66: -39.83548971 | N66: -104.3347683 | O66: 104.3347683 | P66: 104.3347683 | Q66: 10885.74388 | R66: 0
A67: 0 | B67: 57 | C67: -128.3571183 | D67: 36.71320551 | E67: -80.97767711 | F67: 17.07583022 | G67: -89.39756412 | H67: 0 | I67: -73.90615754 | J67: 5462.120122 | K67: 0 | L67: 73.90615754 | M67: -13.36960287 | N67: -87.27576041 | O67: 87.27576041 | P67: 87.27576041 | Q67: 7617.058355 | R67: 0
A68: 0 | B68: 58 | C68: -128.3507991 | D68: 26.11886123 | E68: -47.45720555 | F68: 5.084159263 | G68: -103.185869 | H68: 0 | I68: -76.75368688 | J68: 5891.12845 | K68: 0 | L68: 76.75368688 | M68: 15.43860999 | N68: -61.31507689 | O68: 61.31507689 | P68: 61.31507689 | Q68: 3759.538654 | R68: 0
A69: 0 | B69: 59 | C69: -128.3444633 | D69: 15.08005795 | E69: -13.12472804 | F69: -6.994979706 | G69: -109.9422275 | H69: 0 | I69: -72.28917434 | J69: 5225.724727 | K69: 0 | L69: 72.28917434 | M69: 44.40626389 | N69: -27.88291045 | O69: 27.88291045 | P69: 27.88291045 | Q69: 777.4566952 | R69: 0
A70: 0 | B70: 60 | C70: -128.3381111 | D70: 3.784640573 | E70: 21.4323172 | F70: -18.95377686 | G70: -109.2062048 | H70: 0 | I70: -60.24396871 | J70: 3629.335766 | K70: 0 | L70: 60.24396871 | M70: 71.28661991 | N70: 11.04265119 | O70: -11.04265119 | P70: 11.04265119 | Q70: 121.9401454 | R70: 0
A71: 0 | B71: 61 | C71: -128.3317423 | D71: -7.575179209 | E71: 55.62264955 | F71: -30.58649275 | G71: -101.0279598 | H71: 0 | I71: -40.86155823 | J71: 1669.666941 | K71: 0 | L71: 40.86155823 | M71: 93.92684615 | N71: 53.06528792 | O71: -53.06528792 | P71: 53.06528792 | Q71: 2815.924782 | R71: 0
A72: 0 | B72: 62 | C72: -128.325357 | D72: -18.80609381 | E72: 88.86126295 | F72: -41.69299783 | G72: -85.96482624 | H72: 0 | I72: -14.89084569 | J72: 221.7372854 | K72: 0 | L72: 14.89084569 | M72: 110.4202068 | N72: 95.52936112 | O72: -95.52936112 | P72: 95.52936112 | Q72: 9125.858836 | R72: 0
A73: 7.85 | B73: 63 | C73: -128.3189553 | D73: -29.71698917 | E73: 120.5794355 | F73: -52.0822155 | G73: -65.04333185 | H73: 1.3448 | I73: 16.45510999 | J73: 74.04791796 | K73: 0 | L73: -8.605109991 | M73: 107.7906344 | N73: 124.2457444 | O73: -116.3957444 | P73: 116.3957444 | Q73: 13547.96931 | R73: 0
A74: 20.45666667 | B74: 64 | C74: -128.312537 | D74: -40.12219696 | E74: 150.2344605 | F74: -61.57540939 | G74: -39.68924188 | H74: 5.226933333 | I74: 51.57224154 | J74: 968.1789995 | K74: 0 | L74: -31.11557487 | M74: 90.66291994 | N74: 142.2351615 | O74: -121.7784948 | P74: 121.7784948 | Q74: 14830.0018 | R74: 0
A75: 41.52666667 | B75: 65 | C75: -128.3061022 | D75: -49.844654 | E75: 177.3189322 | F75: -70.00925835 | G75: -11.63039567 | H75: 8.9948 | I75: =B$3+SUM(C75:G75) -> 88.56568824 | J75: 2212.669551 | K75: 0 | L75: -47.03902157 | M75: 62.87923603 | N75: 151.4449243 | O75: -109.9182576 | P75: 109.9182576 | Q75: 12082.02335 | R75: 0
A76: 62.35333333 | B76: 66 | C76: -128.2996509 | D76: -58.71891534 | E76: 201.3694278 | F76: -77.23866623 | G76: 17.22104279 | H76: 12.40546667 | I76: 125.3704044 | J76: =(A76-I76)^2 -> 3971.151243 | K76: =IF(H76>=10,1,0) -> 1 | L76: =A76-I76 -> -63.01707105 | M76: 39.06096984 | N76: 164.4313742 | O76: -102.0780409 | P76: 102.0780409 | Q76: 10419.92643 | R76: 163.709036
A77: 65.17 | B77: 67 | C77: -128.2931831 | D77: -66.59396959 | E77: 221.9744367 | F77: -83.13925809 | G77: 44.89889564 | H77: 15.37476667 | I77: 159.8840878 | J77: 8970.758422 | K77: 1 | L77: -94.71408777 | M77: 47.34903758 | N77: 207.2331253 | O77: -142.0631253 | P77: 142.0631253 | Q77: 20181.93158 | R77: 217.9885305
A78: 74.93666667 | B78: =B77+1 -> 68 | C78: =C$3*COS(C$2*$B78)+C$4*SIN(C$2*$B78) -> -128.2866989 | D78: -73.33580867 | E78: 238.7814014 | F78: -87.60952002 | G78: 69.51696295 | H78: 17.83506667 | I78: =B$3+SUM(C78:G78) -> 190.1035031 | J78: 13263.40021 | K78: 1 | L78: -115.1668364 | M78: 41.26591812 | N78: 231.3694212 | O78: -156.4327545 | P78: 156.4327545 | Q78: 24471.20669 | R78: 208.7532866
A79: 79.49333333 | B79: 69 | C79: -128.2801981 | D79: -78.82970815 | E79: 251.5027501 | F79: -90.5725455 | G79: 89.39756412 | H79: 19.726 | I79: 214.2550288 | J79: 18160.71457 | K79: 1 | L79: -134.7616955 | M79: =$N$2*L78+$N$3*L77+$N$4*L76+$N$5*(L79-L78)+$N$6*(L78-L77) -> 15.18655341 | N79: 229.4415822 | O79: -149.9482489 | P79: 149.9482489 | Q79: 22484.47734 | R79: 188.6299676
A80: 100.9166667 | B80: 70 | C80: -128.2736808 | D80: -82.98217954 | E80: 259.9208171 | F80: -91.97735857 | G80: 103.185869 | H80: 20.99616667 | I80: 230.9106335 | J80: 16898.43141 | K80: 1 | L80: -129.9939668 | M80: -42.2363584 | N80: =I80+M80 -> 188.6742751 | O80: =(A80-N80) -> -87.75760843 | P80: =ABS(O80) -> 87.75760843 | Q80: =O80^2 -> 7701.397837 | R80: =IF(A80=0,0,ABS(K80*P80/A80)*100) -> 86.96047078
A81: 135.11 | B81: 71 | C81: -128.267147 | D81: -85.72256113 | E81: 263.8915668 | F81: -91.79979079 | G81: 109.9422275 | H81: 21.609 | I81: 239.0814616 | J81: 10810.06484 | K81: 1 | L81: -103.9714616 | M81: -118.5068546 | N81: 120.5746071 | O81: 14.53539291 | P81: 14.53539291 | Q81: 211.2776471 | R81: 10.75819178
A82: 117.0666667 | B82: 72 | C82: -128.2605967 | D82: -87.00422043 | E82: 263.3470586 | F82: -90.04289705 | G82: 109.2062048 | H82: 21.54556667 | I82: 238.2827155 | J82: 14693.33051 | K82: 1 | L82: -121.2160489 | M82: -96.45543523 | N82: 141.8272803 | O82: -24.76061365 | P82: 24.76061365 | Q82: 613.0879884 | R82: 21.15086587
A83: 163.85 | B83: 73 | C83: -128.25403 | D83: -86.80534772 | E83: 258.2966093 | F83: -86.73690298 | G83: 101.0279598 | H83: 20.808 | I83: 228.5654547 | J83: 4188.090077 | K83: 1 | L83: -64.7154547 | M83: -144.5279094 | N83: 84.03754527 | O83: 79.81245473 | P83: 79.81245473 | Q83: 6370.027929 | R83: 48.71068338
A84: 210.16 | B84: 74 | C84: -128.2474467 | D84: -85.12932719 | E84: 248.8266333 | F84: -81.93868499 | G84: 85.96482624 | H84: 19.41853333 | I84: 210.513167 | J84: 0.1247269291 | K84: 1 | L84: -0.3531669989 | M84: -235.1544632 | N84: -24.64129617 | O84: 234.8012962 | P84: 234.8012962 | Q84: 55131.64869 | R84: 111.7250172
A85: 175.3466667 | B85: 75 | C85: -128.2408469 | D85: -82.00467931 | E85: 235.0991647 | F85: -75.73079176 | G85: 65.04333185 | H85: 17.41716667 | I85: 185.2033449 | J85: 97.15410502 | K85: 1 | L85: -9.856678194 | M85: -150.2792018 | N85: 34.92414301 | O85: 140.4225237 | P85: 140.4225237 | Q85: 19718.48515 | R85: 80.08280187
A86: 191.7266667 | B86: 76 | C86: -128.2342307 | D86: -77.48457553 | E86: 217.3490842 | F86: -68.22002402 | G86: 39.68924188 | H86: 14.857 | I86: 154.1366621 | J86: 1413.00844 | K86: 1 | L86: 37.59000453 | M86: -99.88829272 | N86: 54.24836941 | O86: 137.4782973 | P86: 137.4782973 | Q86: 18900.28222 | R86: 71.70536037
A87: 152.4966667 | B87: 77 | C87: -128.2275979 | D87: -71.64593349 | E87: 195.8801006 | F87: -59.53559724 | G87: 11.63039567 | H87: 11.80003333 | I87: 119.1385339 | J87: 1112.765022 | K87: 1 | L87: 33.35813278 | M87: -56.17999176 | N87: 62.95854213 | O87: 89.53812454 | P87: 89.53812454 | Q87: 8017.075745 | R87: 58.71480767
A88: 61.32333333 | B88: 78 | C88: -128.2209487 | D88: -64.58810809 | E88: 171.0595541 | F88: -49.8269185 | G88: -17.22104279 | H88: 8.315466667 | I88: 82.23970237 | J88: 437.4944936 | K88: 0 | L88: -20.91636903 | M88: 77.45616227 | N88: 159.6958646 | O88: -98.3725313 | P88: 98.3725313 | Q88: 9677.154915 | R88: 0
A89: 21.28333333 | B89: 79 | C89: -128.2142829 | D89: -56.43120083 | E89: 143.3121313 | F89: -39.26101617 | G89: -44.89889564 | H89: 4.4947 | I89: 45.543902 | J89: 588.5751922 | K89: 0 | L89: -24.26056867 | M89: 100.5913437 | N89: 146.1352457 | O89: -124.8519124 | P89: 124.8519124 | Q89: 15588.00002 | R89: 0
A90: 2.753333333 | B90: 80 | C90: -128.2076007 | D90: -47.31401603 | E90: 113.1125982 | F90: -28.01966631 | G90: -69.51696295 | H90: 0.8063 | I90: 11.09151844 | J90: 69.52533095 | K90: 0 | L90: -8.338185111 | M90: 3.801370255 | N90: 14.8928887 | O90: -12.13955537 | P90: 12.13955537 | Q90: 147.3688045 | R90: 0
A91: 0 | B91: 81 | C91: -128.200902 | D91: -37.39169884 | E91: 80.97767711 | F91: -16.29626539 | G91: -89.39756412 | H91: 0 | I91: -19.27158696 | J91: 371.3940638 | K91: 0 | L91: 19.27158696 | M91: -74.68027122 | N91: -93.95185818 | O91: 93.95185818 | P91: 93.95185818 | Q91: 8826.951655 | R91: 0
A92: 0 | B92: 82 | C92: -128.1941868 | D92: -26.83309521 | E92: 47.45720555 | F92: -4.292503093 | G92: -103.185869 | H92: 0 | I92: -44.0112823 | J92: 1936.992969 | K92: 0 | L92: 44.0112823 | M92: -88.36810845 | N92: -132.3793907 | O92: 132.3793907 | P92: 132.3793907 | Q92: 17524.30309 | R92: 0
A93: 0 | B93: 83 | C93: -128.1874551 | D93: -15.81787859 | E93: 13.12472804 | F93: 7.785107536 | G93: -109.9422275 | H93: 0 | I93: -62.00055933 | J93: 3844.069357 | K93: 0 | L93: 62.00055933 | M93: -64.64956561 | N93: -126.6501249 | O93: 126.6501249 | P93: 126.6501249 | Q93: 16040.25415 | R93: 0
A94: 0 | B94: 84 | C94: -128.1807069 | D94: -4.533492562 | E94: -21.4323172 | F94: 19.72878297 | G94: -109.2062048 | H94: 0 | I94: -72.58677226 | J94: 5268.839508 | K94: 0 | L94: 72.58677226 | M94: -27.03567674 | N94: -99.622449 | O94: 99.622449 | P94: 99.622449 | Q94: 9924.632346 | R94: 0
A95: 0 | B95: 85 | C95: -128.1739423 | D95: 6.828038933 | E95: -55.62264955 | F95: 31.33304392 | G95: -101.0279598 | H95: 0 | I95: -75.62630247 | J95: 5719.337625 | K95: 0 | L95: 75.62630247 | M95: 9.856890836 | N95: -65.76941163 | O95: 65.76941163 | P95: 65.76941163 | Q95: 4325.615506 | R95: 0
A96: 0 | B96: 86 | C96: -128.1671611 | D96: 18.07337917 | E96: -88.86126295 | F96: 42.39825037 | G96: -85.96482624 | H96: 0 | I96: -71.48445448 | J96: 5110.027233 | K96: 0 | L96: 71.48445448 | M96: 42.0417211 | N96: -29.44273338 | O96: 29.44273338 | P96: 29.44273338 | Q96: 866.8745491 | R96: 0
A97: 0 | B97: 87 | C97: -128.1603635 | D97: 29.01116861 | E97: -120.5794355 | F97: 52.73403623 | G97: -65.04333185 | H97: 0 | I97: -61.00075971 | J97: 3721.092685 | K97: 0 | L97: 61.00075971 | M97: 67.7261811 | N97: 6.725421392 | O97: -6.725421392 | P97: 6.725421392 | Q97: 45.2312929 | R97: 0
A98: 0 | B98: 88 | C98: -128.1535494 | D98: 39.45528128 | E98: -150.2344605 | F98: 62.16258437 | G98: -39.68924188 | H98: 0 | I98: -45.4222198 | J98: 2063.178051 | K98: 0 | L98: 45.4222198 | M98: 85.59053545 | N98: 40.16831566 | O98: -40.16831566 | P98: 40.16831566 | Q98: 1613.493583 | R98: 0
A99: 0 | B99: 89 | C99: -128.1467188 | D99: 49.22799196 | E99: -177.3189322 | F99: 70.5216858 | G99: -11.63039567 | H99: 0 | I99: -26.30920258 | J99: 692.1741405 | K99: 0 | L99: 26.30920258 | M99: 94.87051876 | N99: 68.56131618 | O99: -68.56131618 | P99: 68.56131618 | Q99: 4700.654076 | R99: 0
A100: 0 | B100: 90 | C100: -128.1398717 | D100: 58.16300054 | E100: -201.3694278 | F100: 77.66753033 | G100: 17.22104279 | H100: 0 | I100: -5.420559544 | J100: 29.38246577 | K100: 0 | L100: 5.420559544 | M100: 95.4016665 | N100: 89.98110696 | O100: -89.98110696 | P100: 89.98110696 | Q100: 8096.59961 | R100: 0
A101: 0 | B101: 91 | C101: -128.1330081 | D101: 66.10826193 | E101: -221.9744367 | F101: 83.47718066 | G101: 44.89889564 | H101: 0 | I101: 15.41405971 | J101: 237.5932368 | K101: 0 | L101: -15.41405971 | M101: 87.62251603 | N101: 103.0365757 | O101: -103.0365757 | P101: 103.0365757 | Q101: 10616.53594 | R101: 0
A102: 0 | B102: 92 | C102: -128.1261281 | D102: 72.92857331 | E102: -238.7814014 | F102: 87.85068743 | G102: 69.51696295 | H102: 0 | I102: 34.42586049 | J102: 1185.139871 | K102: 0 | L102: -34.42586049 | M102: 72.53659626 | N102: 106.9624568 | O102: -106.9624568 | P102: 106.9624568 | Q102: 11440.96716 | R102: 0
A103: 0 | B103: 93 | C103: -128.1192316 | D103: 78.50787494 | E103: -251.5027501 | F103: 90.7128087 | G103: 89.39756412 | H103: 0 | I103: 50.03343234 | J103: 2503.344352 | K103: 0 | L103: -50.03343234 | M103: 51.63593549 | N103: 101.6693678 | O103: -101.6693678 | P103: 101.6693678 | Q103: 10336.66036 | R103: 0
A104: 0 | B104: 94 | C104: -128.1123186 | D104: 82.75122504 | E104: -259.9208171 | F104: 92.01430447 | G104: 103.185869 | H104: 0 | I104: 60.95542916 | J104: 3715.564344 | K104: 0 | L104: -60.95542916 | M104: 26.79143872 | N104: 87.74686788 | O104: -87.74686788 | P104: 87.74686788 | Q104: 7699.512823 | R104: 0
A105: 0 | B105: 95 | C105: -128.1053891 | D105: 85.58641543 | E105: -263.8915668 | F105: 91.73278378 | G105: 109.9422275 | H105: 0 | I105: 66.30163708 | J105: 4395.90708 | K105: 0 | L105: -66.30163708 | M105: 0.1177409624 | N105: 66.41937804 | O105: -66.41937804 | P105: 66.41937804 | Q105: 4411.53378 | R105: 0
A106: 0 | B106: 96 | C106: -128.0984432 | D106: 86.96520031 | E106: -263.3470586 | F106: 89.8730899 | G106: 109.2062048 | H106: 0 | I106: 65.63615954 | J106: 4308.105439 | K106: 0 | L106: -65.63615954 | M106: -26.17812252 | N106: 39.45803701 | O106: -39.45803701 | P106: 39.45803701 | Q106: 1556.936685 | R106: 0
A107: 0 | B107: 97 | C107: -128.0914807 | D107: 86.86411718 | E107: -258.2966093 | F107: 86.46721707 | G107: 101.0279598 | H107: 0 | I107: 59.0083703 | J107: 3481.987766 | K107: 0 | L107: -59.0083703 | M107: -49.95379259 | N107: 9.054577708 | O107: -9.054577708 | P107: 9.054577708 | Q107: 81.98537747 | R107: 0
A108: 0 | B108: 98 | C108: -128.0845018 | D108: 85.28488615 | E108: -248.8266333 | F108: 81.57376 | G108: 85.96482624 | H108: 0 | I108: 46.94950351 | J108: 2204.25588 | K108: 0 | L108: -46.94950351 | M108: -69.28359051 | N108: -22.334087 | O108: 22.334087 | P108: 22.334087 | Q108: 498.8114422 | R108: 0
A109: 0 | B109: 99 | C109: -128.0775065 | D109: 82.25438066 | E109: -235.0991647 | F109: 75.27690587 | G109: 65.04333185 | H109: 0 | I109: 30.43511349 | J109: 926.2961333 | K109: 0 | L109: -30.43511349 | M109: -82.59498841 | N109: -52.15987492 | O109: 52.15987492 | P109: 52.15987492 | Q109: 2720.652552 | R109: 0
A110: 0 | B110: 100 | C110: -128.0704946 | D110: 77.82417016 | E110: -217.3490842 | F110: 67.6849859 | G110: 39.68924188 | H110: 0 | I110: 10.81598543 | J110: 116.9855407 | K110: 0 | L110: -10.81598543 | M110: -88.78015599 | N110: -77.96417057 | O110: 77.96417057 | P110: 77.96417057 | Q110: 6078.411892 | R110: 0
A111: 0 | B111: 101 | C111: -128.0634663 | D111: 72.06964259 | E111: -195.8801006 | F111: 58.92861169 | G111: 11.63039567 | H111: 0 | I111: -10.27775064 | J111: 105.6321582 | K111: 0 | L111: 10.27775064 | M111: -87.2749065 | N111: -97.55265714 | O111: 97.55265714 | P111: 97.55265714 | Q111: 9516.520916 | R111: 0
A112: 0 | B112: 102 | C112: -128.0564215 | D112: 65.08872149 | E112: -171.0595541 | F112: 49.15842812 | G112: -17.22104279 | H112: 0 | I112: -31.05270253 | J112: 964.2703343 | K112: 0 | L112: 31.05270253 | M112: -78.0996029 | N112: -109.1523054 | O112: 109.1523054 | P112: 109.1523054 | Q112: 11914.22578 | R112: 0
A113: 0 | B113: 103 | C113: -128.0493602 | D113: 57.0001997 | E113: -143.3121313 | F113: 38.54252169 | G113: -44.89889564 | H113: 0 | I113: -49.6804995 | J113: 2468.152031 | K113: 0 | L113: 49.6804995 | M113: -61.85919417 | N113: -111.5396937 | O113: 111.5396937 | P113: 111.5396937 | Q113: 12441.10326 | R113: 0
A114: 0 | B114: 104 | C114: -128.0422825 | D114: 47.94171784 | E114: -113.1125982 | F114: 27.26352872 | G114: -69.51696295 | H114: 0 | I114: -64.42943078 | J114: 4151.151551 | K114: 0 | L114: 64.42943078 | M114: -39.70235479 | N114: -104.1317856 | O114: 104.1317856 | P114: 104.1317856 | Q114: 10843.42877 | R114: 0
A115: 0 | B115: 105 | C115: -128.0351883 | D115: 38.06742214 | E115: -80.97767711 | F115: 15.51549329 | G115: -89.39756412 | H115: 0 | I115: -73.79034782 | J115: 5445.015432 | K115: 0 | L115: 73.79034782 | M115: -13.24250547 | N115: -87.03285329 | O115: 87.03285329 | P115: 87.03285329 | Q115: 7574.717553 | R115: 0
A116: 0 | B116: 106 | C116: -128.0280777 | D116: 27.54534134 | E116: -47.45720555 | F116: 3.500528926 | G116: -103.185869 | H116: 0 | I116: -76.58811568 | J116: 5865.739463 | K116: 0 | L116: 76.58811568 | M116: 15.55389085 | N116: -61.03422482 | O116: 61.03422482 | P116: 61.03422482 | Q116: 3725.1766 | R116: 0
A117: 0 | B117: 107 | C117: -128.0209505 | D117: 16.55452743 | E117: -13.12472804 | F117: -8.574658632 | G117: -109.9422275 | H117: 0 | I117: -72.07087097 | J117: 5194.210442 | K117: 0 | L117: 72.07087097 | M117: 44.50411549 | N117: -27.56675547 | O117: 27.56675547 | P117: 27.56675547 | Q117: 759.9260074 | R117: 0
A118: 0 | B118: 108 | C118: -128.0138069 | D118: 5.282008702 | E118: 21.4323172 | F118: -20.50232754 | G118: -109.2062048 | H118: 0 | I118: -59.97084711 | J118: 3596.502503 | K118: 0 | L118: 59.97084711 | M118: 71.36169403 | N118: 11.39084691 | O118: -11.39084691 | P118: 11.39084691 | Q118: 129.7513934 | R118: 0
A119: 0 | B119: 109 | C119: -128.0066469 | D119: -6.080392823 | E119: 55.62264955 | F119: -32.07727388 | G119: -101.0279598 | H119: 0 | I119: -40.53245752 | J119: 1642.880113 | K119: 0 | L119: 40.53245752 | M119: 93.97415312 | N119: 53.4416956 | O119: -53.4416956 | P119: 53.4416956 | Q119: 2856.014829 | R119: 0
A120: 0 | B120: 110 | C120: -127.9994703 | D120: -17.33932562 | E120: 88.86126295 | F120: -43.10036197 | G120: -85.96482624 | H120: 0 | I120: -14.50555494 | J120: 210.4111241 | K120: 0 | L120: 14.50555494 | M120: 110.4352039 | N120: 95.92964892 | O120: -95.92964892 | P120: 95.92964892 | Q120: 9202.497543 | R120: 0
A121: 15.09 | B121: 111 | C121: -127.9922774 | D121: -28.30319886 | E121: 120.5794355 | F121: -53.38195032 | G121: -65.04333185 | H121: 1.351533333 | I121: 16.89584339 | J121: 3.261070365 | K121: 0 | L121: -1.805843395 | M121: 97.20759465 | N121: 114.103438 | O121: -99.01343805 | P121: 99.01343805 | Q121: 9803.660914 | R121: 0
A122: 59.01666667 | B122: 112 | C122: -127.9850679 | D122: -38.78544269 | E122: 150.2344605 | F122: -62.74515422 | G122: -39.68924188 | H122: 5.242766667 | I122: 52.06672006 | J122: 48.30175784 | K122: 0 | L122: 6.949946607 | M122: 35.40539274 | N122: 87.4721128 | O122: -28.45544613 | P122: 28.45544613 | Q122: 809.7124147 | R122: 0
A123: 108.3633333 | B123: 113 | C123: -127.977842 | D123: -48.60768302 | E123: 177.3189322 | F123: -71.02888887 | G123: -11.63039567 | H123: 9.020133333 | I123: 89.1112889 | J123: 370.6412148 | K123: 0 | L123: 19.25204443 | M123: -19.7360043 | N123: 69.3752846 | O123: 38.98804873 | P123: 38.98804873 | Q123: 1520.067944 | R123: 0
A124: 158.4266667 | B124: 114 | C124: -127.9705996 | D124: -57.60277693 | E124: 201.3694278 | F124: -78.09064069 | G124: 17.22104279 | H124: 12.44076667 | I124: 125.9636196 | J124: 1053.849423 | K124: 1 | L124: 32.46304705 | M124: -36.76037623 | N124: 89.20324339 | O124: 69.22342327 | P124: 69.22342327 | Q124: 4791.88233 | R124: 43.69430016
A125: 209.9233333 | B125: 115 | C125: -127.9633408 | D125: -65.61765684 | E125: 221.9744367 | F125: -83.8089191 | G125: 44.89889564 | H125: 15.42096667 | I125: 160.5205818 | J125: 2440.631854 | K125: 1 | L125: 49.40275148 | M125: -37.78410221 | N125: 122.7364796 | O125: 87.18685369 | P125: 87.18685369 | Q125: 7601.547456 | R125: 41.53271211
A126: 255.64 | B126: 116 | C126: -127.9560655 | D126: -72.51593528 | E126: 238.7814014 | F126: -88.08534671 | G126: 69.51696295 | H126: 17.89273333 | I126: 190.7781831 | J126: 4207.055289 | K126: 1 | L126: 64.86181688 | M126: -32.56308104 | N126: 158.2151021 | O126: 97.42489792 | P126: 97.42489792 | Q126: 9491.610735 | R126: 38.11019321
A127: 291.8733333 | B127: 117 | C127: -127.9487738 | D127: -78.18022572 | E127: 251.5027501 | F127: -90.84635174 | G127: 89.39756412 | H127: 19.7953 | I127: 214.9621293 | J127: 5915.333307 | K127: 1 | L127: 76.91120404 | M127: -17.15117013 | N127: 197.8109592 | O127: 94.06237417 | P127: 94.06237417 | Q127: 8847.730235 | R127: 32.22712164
A128: 317.29 | B128: 118 | C128: -127.9414656 | D128: -82.51414017 | E128: 259.9208171 | F128: -92.04443379 | G128: 103.185869 | H128: 21.07743333 | I128: 231.6438129 | J128: 7335.269373 | K128: 1 | L128: 85.64618715 | M128: 3.169135352 | N128: 234.8129482 | O128: 82.47705179 | P128: 82.47705179 | Q128: 6802.464073 | R128: 25.99421721
A129: 334.3966667 | B129: 119 | C129: =C$3*COS(C$2*$B129)+C$4*SIN(C$2*$B129) -> -127.9341409 | D129: -85.44392935 | E129: 263.8915668 | F129: -91.65898103 | G129: 109.9422275 | H129: 21.70156667 | I129: 239.8339093 | J129: 8942.115087 | K129: 1 | L129: 94.5627574 | M129: 17.34070715 | N129: 257.1746164 | O129: 77.22205025 | P129: 77.22205025 | Q129: 5963.245045 | R129: 23.09294857
A130: 328.7133333 | B130: 120 | C130: -127.9267998 | D130: -86.91973765 | E130: 263.3470586 | F130: -89.6966248 | G130: 109.2062048 | H130: 21.64856667 | I130: 239.0472675 | J130: 8040.003365 | K130: 1 | L130: 89.66606585 | M130: 45.12544351 | N130: 284.172711 | O130: 44.54062234 | P130: 44.54062234 | Q130: 1983.867039 | R130: 13.54998956
A131: 315.48 | B131: 121 | C131: -127.9194423 | D131: -86.91645158 | E131: 258.2966093 | F131: -86.19112552 | G131: 101.0279598 | H131: 20.92043333 | I131: 229.334716 | J131: 7421.009954 | K131: 1 | L131: 86.14528399 | M131: 66.91508089 | N131: 296.2497969 | O131: 19.2302031 | P131: 19.2302031 | Q131: 369.8007113 | R131: 6.095537943
A132: 299.03 | B132: 122 | C132: -127.9120682 | D132: -85.43412705 | E132: 248.8266333 | F132: -81.20279189 | G132: 85.96482624 | H132: 19.53896667 | I132: 211.2796387 | J132: 7700.125911 | K132: 1 | L132: 87.75036131 | M132: 63.66879934 | N132: 274.948438 | O132: 24.08156197 | P132: 24.08156197 | Q132: 579.921627 | R132: 8.053226088
A133: 261.2833333 | B133: 123 | C133: -127.9046778 | D133: -82.49798846 | E133: 235.0991647 | F133: -74.81744333 | G133: 65.04333185 | H133: 17.5442 | I133: 185.9595533 | J133: 5673.671842 | K133: 1 | L133: 75.32378005 | M133: 74.20765222 | N133: 260.1672055 | O133: 1.116127835 | P133: 1.116127835 | Q133: 1.245741344 | R133: 0.427171462
A134: 209.96 | B134: 124 | C134: -127.8972709 | D134: -78.15799943 | E134: 217.3490842 | F134: -67.14493355 | G134: 39.68924188 | H134: 14.9893 | I134: 154.8752885 | J134: 3034.32544 | K134: 1 | L134: 55.08471149 | M134: 101.6514552 | N134: 256.5267437 | O134: -46.56674372 | P134: 46.56674372 | Q134: 2168.461621 | R134: 22.17886441
A135: 156.7333333 | B135: 125 | C135: -127.8898475 | D135: -72.48801264 | E135: 195.8801006 | F135: -58.3172606 | G135: 11.63039567 | H135: 11.93613333 | I135: 119.8525418 | J135: 1360.192784 | K135: 1 | L135: 36.88079154 | M135: 110.2439606 | N135: 230.0965024 | O135: -73.3631691 | P135: 73.3631691 | Q135: 5382.15458 | R135: 46.8076366
A136: 101.2633333 | B136: 126 | C136: -127.8824077 | D136: -65.58451301 | E136: 171.0595541 | F136: -48.48629599 | G136: -17.22104279 | H136: 8.4537 | I136: 82.92246095 | J136: 336.3875998 | K136: 0 | L136: 18.34087238 | M136: 100.1529462 | N136: 183.0754071 | O136: -81.81207378 | P136: 81.81207378 | Q136: 6693.215416 | R136: 0
A137: 49.38666667 | B137: 127 | C137: -127.8749514 | D137: -57.5649759 | E137: 143.3121313 | F137: -37.8211719 | G137: -44.89889564 | H137: 4.632366667 | I137: 46.18930272 | J137: 10.2231362 | K137: 0 | L137: 3.197363945 | M137: 82.48244124 | N137: 128.671744 | O137: -79.28507729 | P137: 79.28507729 | Q137: 6286.123481 | R137: 0
A138: 7.846666667 | B138: 128 | C138: -127.8674787 | D138: -48.56586805 | E138: 113.1125982 | F138: -26.50537139 | G138: -69.51696295 | H138: 0.8917333333 | I138: 11.69408334 | J138: 14.80261506 | K138: 0 | L138: -3.847416673 | M138: 54.41469246 | N138: 66.1087758 | O138: -58.26210913 | P138: 58.26210913 | Q138: 3394.47336 | R138: 0
A139: 0 | B139: 129 | C139: -127.8599896 | D139: -38.74032533 | E139: 80.97767711 | F139: -14.73357179 | G139: -89.39756412 | H139: 0 | I139: -18.7166074 | J139: 350.3113926 | K139: 0 | L139: 18.7166074 | M139: -11.4941598 | N139: -30.21076721 | O139: 30.21076721 | P139: 30.21076721 | Q139: 912.6904551 | R139: 0
A140: 0 | B140: 130 | C140: -127.852484 | D140: -28.25554686 | E140: 47.45720555 | F140: -2.708295435 | G140: -103.185869 | H140: 0 | I140: -43.50782346 | J140: =(A140-I140)^2 -> 1892.930702 | K140: =IF(H140>=10,1,0) -> 0 | L140: =A140-I140 -> 43.50782346 | M140: -63.58997729 | N140: -107.0978008 | O140: 107.0978008 | P140: 107.0978008 | Q140: 11469.93893 | R140: 0
A141: 0 | B141: 131 | C141: -127.8449619 | D141: -17.28994987 | E141: 13.12472804 | F141: 9.363574502 | G141: -109.9422275 | H141: 0 | I141: -61.55167045 | J141: 3788.608135 | K141: 0 | L141: 61.55167045 | M141: -61.79155254 | N141: -123.343223 | O141: 123.343223 | P141: 123.343223 | Q141: 15213.55066 | R141: 0
A142: 0 | B142: =B141+1 -> 132 | C142: -127.8374234 | D142: -6.030133542 | E142: -21.4323172 | F142: 21.27435326 | G142: -109.2062048 | H142: 0 | I142: =B$3+SUM(C142:G142) -> -72.19455946 | J142: 5212.054416 | K142: 0 | L142: 72.19455946 | M142: -27.55071279 | N142: -99.74527226 | O142: 99.74527226 | P142: 99.74527226 | Q142: 9949.119337 | R142: 0
A143: 0 | B143: 133 | C143: -127.8298685 | D143: 5.332296267 | E143: -55.62264955 | F143: 32.8191275 | G143: -101.0279598 | H143: 0 | I143: -75.2918878 | J143: 5668.868368 | K143: 0 | L143: 75.2918878 | M143: =$N$2*L142+$N$3*L141+$N$4*L140+$N$5*(L143-L142)+$N$6*(L142-L141) -> 9.370791095 | N143: -65.9210967 | O143: 65.9210967 | P143: 65.9210967 | Q143: 4345.59099 | R143: 0
A144: 0 | B144: 134 | C144: -127.8222971 | D144: 16.60398754 | E144: -88.86126295 | F144: 43.79928062 | G144: -85.96482624 | H144: 0 | I144: -71.20795188 | J144: 5070.572411 | K144: 0 | L144: 71.20795188 | M144: 41.58931464 | N144: =I144+M144 -> -29.61863724 | O144: =(A144-N144) -> 29.61863724 | P144: =ABS(O144) -> 29.61863724 | Q144: =O144^2 -> 877.2636719 | R144: =IF(A144=0,0,ABS(K144*P144/A144)*100) -> 0
A145: 0 | B145: 135 | C145: -127.8147093 | D145: 27.59313235 | E145: -120.5794355 | F145: 54.02590979 | G145: -65.04333185 | H145: 0 | I145: -60.78126825 | J145: 3694.36257 | K145: 0 | L145: 60.78126825 | M145: 67.31165573 | N145: 6.530387478 | O145: -6.530387478 | P145: 6.530387478 | Q145: 42.64596061 | R145: 0
A146: 0 | B146: 136 | C146: -127.8071051 | D146: 38.1127308 | E146: -150.2344605 | F146: 63.32307581 | G146: -39.68924188 | H146: 0 | I146: -45.25783455 | J146: 2048.271588 | K146: 0 | L146: 45.25783455 | M146: 85.21743463 | N146: 39.95960008 | O146: -39.95960008 | P146: 39.95960008 | Q146: 1596.769639 | R146: 0
A147: 0 | B147: 137 | C147: -127.7994844 | D147: 47.98377315 | E147: -177.3189322 | F147: 71.53083 | G147: -11.63039567 | H147: 0 | I147: -26.19704282 | J147: 686.2850524 | K147: 0 | L147: 26.19704282 | M147: 94.54167716 | N147: 68.34463435 | O147: -68.34463435 | P147: 68.34463435 | Q147: 4670.989044 | R147: 0
A148: 0 | B148: 138 | C148: -127.7918473 | D148: 57.038286 | E148: -201.3694278 | F148: 78.50796595 | G148: 17.22104279 | H148: 0 | I148: -5.356814051 | J148: 28.69545677 | K148: 0 | L148: 5.356814051 | M148: 95.11915764 | N148: 89.76234359 | O148: -89.76234359 | P148: 89.76234359 | Q148: 8057.278326 | R148: 0
A149: 0 | B149: 139 | C149: -127.7841937 | D149: 65.12219068 | E149: -221.9744367 | F149: 84.13444882 | G149: 44.89889564 | H149: 0 | I149: 15.43407104 | J149: 238.2105488 | K149: 0 | L149: -15.43407104 | M149: 87.38761272 | N149: 102.8216838 | O149: -102.8216838 | P149: 102.8216838 | Q149: 10572.29865 | R149: 0
A150: 0 | B150: 140 | C150: -127.7765237 | D150: 72.09792513 | E150: -238.7814014 | F150: 88.31348047 | G150: 69.51696295 | H150: 0 | I150: 34.40760971 | J150: 1183.883606 | K150: 0 | L150: -34.40760971 | M150: 72.34974486 | N150: 106.7573546 | O150: -106.7573546 | P150: 106.7573546 | Q150: 11397.13276 | R150: 0
A151: 0 | B151: 141 | C151: -127.7688373 | D151: 77.84678477 | E151: -251.5027501 | F151: 90.97316472 | G151: 89.39756412 | H151: 0 | I151: 49.98309246 | J151: 2498.309532 | K151: 0 | L151: -49.98309246 | M151: 51.49674429 | N151: 101.4798368 | O151: -101.4798368 | P151: 101.4798368 | Q151: 10298.15727 | R151: 0
A152: 0 | B152: 142 | C152: -127.7611344 | D152: 82.27094252 | E152: -259.9208171 | F152: 92.0677443 | G152: 103.185869 | H152: 0 | I152: 60.8797706 | J152: 3706.346468 | K152: 0 | L152: -60.8797706 | M152: 26.69868079 | N152: 87.57845139 | O152: -87.57845139 | P152: 87.57845139 | Q152: 7669.985148 | R152: 0
A153: 0 | B153: 143 | C153: -127.7534152 | D153: 85.29511342 | E153: -263.8915668 | F153: 91.57838803 | G153: 109.9422275 | H153: 0 | I153: 66.20791327 | J153: 4383.48778 | K153: 0 | L153: -66.20791327 | M153: 0.06937150678 | N153: 66.27728478 | O153: -66.27728478 | P153: 66.27728478 | Q153: 4392.678478 | R153: 0
A154: 0 | B154: 144 | C154: -127.7456794 | D154: 86.86783583 | E154: -263.3470586 | F154: 89.51351481 | G154: 109.2062048 | H154: 0 | I154: 65.53198369 | J154: 4294.440886 | K154: 0 | L154: -65.53198369 | M154: -26.18493459 | N154: 39.3470491 | O154: -39.3470491 | P154: 39.3470491 | Q154: 1548.190273 | R154: 0
A155: 0 | B155: 145 | C155: -127.7379273 | D155: 86.96234707 | E155: -258.2966093 | F155: 85.90864877 | G155: 101.0279598 | H155: 0 | I155: 58.90158534 | J155: 3469.396755 | K155: 0 | L155: -58.90158534 | M155: -49.92261929 | N155: 8.978966052 | O155: -8.978966052 | P155: 8.978966052 | Q155: 80.62183136 | R155: 0
A156: 0 | B156: 146 | C156: -127.7301587 | D156: 85.57703884 | E156: -248.8266333 | F156: 80.82580812 | G156: 85.96482624 | H156: 0 | I156: 46.84804745 | J156: 2194.73955 | K156: 0 | L156: -46.84804745 | M156: -69.21868641 | N156: -22.37063896 | O156: 22.37063896 | P156: 22.37063896 | Q156: 500.4454877 | R156: 0
A157: 0 | B157: 147 | C157: -127.7223737 | D157: 82.73548466 | E157: -235.0991647 | F157: 74.35243819 | G157: 65.04333185 | H157: 0 | I157: 30.34688258 | J157: 920.9332821 | K157: 0 | L157: -30.34688258 | M157: -82.50122019 | N157: -52.15433762 | O157: 52.15433762 | P157: 52.15433762 | Q157: 2720.074932 | R157: 0
A158: 0 | B158: 148 | C158: -127.7145723 | D158: 78.48603863 | E158: -217.3490842 | F158: 66.59990699 | G158: 39.68924188 | H158: 0 | I158: 10.74869733 | J158: 115.5344943 | K158: 0 | L158: -10.74869733 | M158: -88.662921 | N158: -77.91422367 | O158: 77.91422367 | P158: 77.91422367 | Q158: 6070.626251 | R158: 0
A159: 0 | B159: 149 | C159: -127.7067544 | D159: 72.90101265 | E159: -195.8801006 | F159: 57.70158927 | G159: 11.63039567 | H159: 0 | I159: -10.31669111 | J159: 106.4341154 | K159: 0 | L159: 10.31669111 | M159: -87.14004184 | N159: -97.45673294 | O159: 97.45673294 | P159: 97.45673294 | Q159: 9497.814796 | R159: 0
A160: 0 | B160: 150 | C160: -127.6989201 | D160: 66.0754459 | E160: -171.0595541 | F160: 47.81057192 | G160: -17.22104279 | H160: 0 | I160: -31.05633293 | J160: 964.4958151 | K160: 0 | L160: 31.05633293 | M160: -77.9532864 | N160: -109.0096193 | O160: 109.0096193 | P160: 109.0096193 | Q160: 11883.09711 | R160: 0
A161: 0 | B161: 151 | C161: -127.6910694 | D161: 58.12548759 | E161: -143.3121313 | F161: 37.09702026 | G161: -44.89889564 | H161: 0 | I161: -49.64242221 | J161: 2464.370083 | K161: 0 | L161: 49.64242221 | M161: -61.7078391 | N161: -111.3502613 | O161: 111.3502613 | P161: 111.3502613 | Q161: 12398.88069 | R161: 0
A162: 0 | B162: 152 | C162: -127.6832023 | D162: 49.18642042 | E162: -113.1125982 | F162: 25.7452505 | G162: -69.51696295 | H162: 0 | I162: -64.34392618 | J162: 4140.140836 | K162: 0 | L162: 64.34392618 | M162: -39.55249995 | N162: -103.8964261 | O162: 103.8964261 | P162: 103.8964261 | Q162: 10794.46736 | R162: 0
A163: 0 | B163: 153 | C163: -127.6753187 | D163: 39.41035857 | E163: -80.97767711 | F163: 13.95055879 | G163: -89.39756412 | H163: 0 | I163: -73.65247629 | J163: 5424.687264 | K163: 0 | L163: 73.65247629 | M163: -13.10070263 | N163: -86.75317892 | O163: 86.75317892 | P163: 86.75317892 | Q163: 7526.114053 | R163: 0
A164: 0 | B164: 154 | C164: -127.6674187 | D164: 28.96365917 | E164: -47.45720555 | F164: 1.915861308 | G164: -103.185869 | H164: 0 | I164: -76.39380655 | J164: 5836.013679 | K164: 0 | L164: 76.39380655 | M164: 15.68119022 | N164: -60.71261632 | O164: 60.71261632 | P164: 60.71261632 | Q164: 3686.021781 | R164: 0
A165: 0 | B165: 155 | C165: -127.6595023 | D165: 18.02409145 | E165: -13.12472804 | F165: -10.1517967 | G165: -109.9422275 | H165: 0 | I165: -71.81699684 | J165: 5157.681034 | K165: 0 | L165: 71.81699684 | M165: 44.61067231 | N165: -27.20632452 | O165: 27.20632452 | P165: 27.20632452 | Q165: 740.1840941 | R165: 0
A166: 0 | B166: 156 | C166: -127.6515695 | D166: 6.777811658 | E166: 21.4323172 | F166: -22.04480294 | G166: -109.2062048 | H166: 0 | I166: -59.65528215 | J166: 3558.752688 | K166: 0 | L166: 59.65528215 | M166: 71.44159047 | N166: 11.78630833 | O166: -11.78630833 | P166: 11.78630833 | Q166: 138.917064 | R166: 0
A167: 0 | B167: 157 | C167: -127.6436203 | D167: -4.583804685 | E167: 55.62264955 | F167: -33.55854982 | G167: -101.0279598 | H167: 0 | I167: -40.15411874 | J167: 1612.353252 | K167: 0 | L167: 40.15411874 | M167: 94.02189648 | N167: 53.86777774 | O167: -53.86777774 | P167: 53.86777774 | Q167: 2901.737478 | R167: 0
A168: 0 | B168: 158 | C168: -127.6356546 | D168: -15.86741942 | E168: 88.86126295 | F168: -44.49495454 | G168: -85.96482624 | H168: 0 | I168: -14.0644256 | J168: 197.8080675 | K168: 0 | L168: 14.0644256 | M168: 110.4458234 | N168: 96.38139783 | O168: -96.38139783 | P168: 96.38139783 | Q168: 9289.373849 | R168: 0
A169: 11.96333333 | B169: 159 | C169: -127.6276726 | D169: -26.8810217 | E169: 120.5794355 | F169: -54.66586692 | G169: -65.04333185 | H169: 1.3633 | I169: 17.39870874 | J169: 29.54330586 | K169: 0 | L169: -5.435375411 | M169: 101.7379114 | N169: 119.1366202 | O169: -107.1732868 | P169: 107.1732868 | Q169: 11486.11341 | R169: 0
A170: 49.80333333 | B170: 160 | C170: -127.6196741 | D170: -37.43719545 | E170: 150.2344605 | F170: -63.89630631 | G170: -39.68924188 | H170: 5.265466667 | I170: 52.62920903 | J170: 7.985573435 | K170: 0 | L170: -2.825875694 | M170: 48.31422755 | N170: 100.9434366 | O170: -51.14010324 | P170: 51.14010324 | Q170: 2615.31016 | R170: 0
A171: 110.7233333 | B171: 161 | C171: -127.6116592 | D171: -47.35630855 | E171: 177.3189322 | F171: -72.027472 | G171: -11.63039567 | H171: 9.0523 | I171: 89.73026306 | J171: 440.7089996 | K171: 0 | L171: 20.99307028 | M171: -28.69240551 | N171: 61.03785755 | O171: 49.68547578 | P171: 49.68547578 | Q171: 2468.646504 | R171: 0
A172: 171.6366667 | B172: 162 | C172: -127.6036279 | D172: -56.46956958 | E172: 201.3694278 | F172: -78.9194752 | G172: 17.22104279 | H172: 12.48316667 | I172: 126.6349642 | J172: 2025.153225 | K172: 1 | L172: 45.00170247 | M172: -69.87245858 | N172: 56.76250562 | O172: 114.874161 | P172: 114.874161 | Q172: 13196.07288 | R172: 66.92868329
A173: 226.32 | B173: 163 | C173: -127.5955802 | D173: -64.62190016 | E173: 221.9744367 | F173: -84.45374572 | G173: 44.89889564 | H173: 15.4743 | I173: 161.2392725 | J173: 4235.501086 | K173: 1 | L173: 65.08072745 | M173: -63.09416349 | N173: 98.14510906 | O173: 128.1748909 | P173: 128.1748909 | Q173: 16428.80267 | R173: 56.63436327
A174: 272.4733333 | B174: 164 | C174: -127.587516 | D174: -71.67457384 | E174: 238.7814014 | F174: -88.53507181 | G174: 69.51696295 | H174: 17.95773333 | I174: 191.5383689 | J174: 6550.468462 | K174: 1 | L174: 80.9349644 | M174: -36.33518183 | N174: 155.2031871 | O174: 117.2701462 | P174: 117.2701462 | Q174: 13752.2872 | R174: 43.03912783
A175: 309.7066667 | B175: 165 | C175: -127.5794355 | D175: -77.5075768 | E175: 251.5027501 | F175: -91.09323825 | G175: 89.39756412 | H175: 19.87216667 | I175: 215.75723 | J175: 8826.496652 | K175: 1 | L175: 93.94943668 | M175: -11.00908492 | N175: 204.7481451 | O175: 104.9585216 | P175: 104.9585216 | Q175: 11016.29126 | R175: 33.88965524
A176: 337.7766667 | B176: 166 | C176: -127.5713385 | D176: -82.02165008 | E176: 259.9208171 | F176: -92.08423427 | G176: 103.185869 | H176: 21.16593333 | I176: 232.4666295 | J176: 11090.20393 | K176: 1 | L176: 105.3100372 | M176: 8.226705763 | N176: 240.6933353 | O176: 97.0833314 | P176: 97.0833314 | Q176: 9425.173236 | R176: 28.74187029
A177: 353.99 | B177: 167 | C177: -127.5632252 | D177: -85.13997869 | E177: 263.8915668 | F177: -91.49101074 | G177: 109.9422275 | H177: 21.8014 | I177: 240.6767459 | J177: 12839.89354 | K177: 1 | L177: 113.3132541 | M177: 25.625976 | N177: 266.302722 | O177: 87.68727805 | P177: 87.68727805 | Q177: 7689.058732 | R177: 24.77111728
A178: 351.2433333 | B178: 168 | C178: -127.5550954 | D178: -86.80949869 | E178: 263.3470586 | F178: -89.3237735 | G178: 109.2062048 | H178: 21.75903333 | I178: 239.9020621 | J178: 12396.87867 | K178: 1 | L178: 111.3412712 | M178: 53.05328611 | N178: 292.9553482 | O178: 58.28798509 | P178: 58.28798509 | Q178: 3397.489206 | R178: 16.59475912
A179: 339.42 | B179: 169 | C179: -127.5469493 | D179: -87.00180022 | E179: 258.2966093 | F179: -85.61980776 | G179: 101.0279598 | H179: 21.04 | I179: 230.1931781 | J179: 11930.49862 | K179: 1 | L179: 109.2268219 | M179: 73.78627527 | N179: 303.9794534 | O179: 35.44054662 | P179: 35.44054662 | Q179: 1256.032345 | R179: 10.44150216
A180: 317.7066667 | B180: 170 | C180: =C$3*COS(C$2*$B180)+C$4*SIN(C$2*$B180) -> -127.5387867 | D180: -85.71361094 | E180: 248.8266333 | F180: -80.44283664 | G180: 85.96482624 | H180: 19.6663 | I180: 212.1333916 | J180: 11145.71641 | K180: 1 | L180: 105.5732751 | M180: 81.59280485 | N180: 293.7261964 | O180: 23.98047022 | P180: 23.98047022 | Q180: 575.0629521 | R180: 7.547990879
A181: 279.5066667 | B181: 171 | C181: -127.5306077 | D181: -82.96685167 | E181: 235.0991647 | F181: -73.88192488 | G181: 65.04333185 | H181: 17.67783333 | I181: 186.8002786 | J181: 8594.474393 | K181: 1 | L181: 92.70638809 | M181: 95.77863924 | N181: 282.5789178 | O181: -3.072251152 | P181: 3.072251152 | Q181: 9.438727139 | R181: 1.099169186
A182: 230.57 | B182: 172 | C182: -127.5224123 | D182: -78.80826344 | E182: 217.3490842 | F182: -66.04994658 | G182: 39.68924188 | H182: 15.12773333 | I182: 155.69487 | J182: 5606.285092 | K182: 1 | L182: 74.87513 | M182: 113.7768959 | N182: 269.4717659 | O182: -38.90176587 | P182: 38.90176587 | Q182: 1513.347388 | R182: 16.87199804
A183: 173.62 | B183: 173 | C183: -127.5142006 | D183: -73.30861202 | E183: 195.8801006 | F183: -57.0816433 | G183: 11.63039567 | H183: 12.0778 | I183: 120.6432067 | J183: 2806.540633 | K183: 1 | L183: 52.97679335 | M183: 124.0327262 | N183: 244.6759329 | O183: -71.05593285 | P183: 71.05593285 | Q183: 5048.945593 | R183: 40.92612191
A184: 117.03 | B184: 174 | C184: -127.5059724 | D184: -66.56148381 | E184: 171.0595541 | F184: -47.13130595 | G184: -17.22104279 | H184: 8.5975 | I184: 83.67691549 | J184: 1112.428246 | K184: 0 | L184: 33.35308451 | M184: 117.8074976 | N184: 201.4844131 | O184: -84.4544131 | P184: 84.4544131 | Q184: 7132.547892 | R184: 0
A185: 59.70333333 | B185: 175 | C185: -127.4977278 | D185: -58.68169323 | E185: 143.3121313 | F185: -36.3701204 | G185: -44.89889564 | H185: 4.775133333 | I185: 46.90086052 | J185: 163.9033101 | K185: 0 | L185: 12.80247281 | M185: 104.6906826 | N185: 151.5915431 | O185: -91.88820976 | P185: 91.88820976 | Q185: 8443.443094 | R185: 0
A186: 10.94 | B186: 176 | C186: -127.4894668 | D186: -49.80332896 | E186: 113.1125982 | F186: -24.98322236 | G186: -69.51696295 | H186: 0.9848 | I186: 12.35678336 | J186: 2.00727508 | K186: 0 | L186: -1.416783357 | M186: 82.43457992 | N186: 94.79136327 | O186: -83.85136327 | P186: 83.85136327 | Q186: 7031.051123 | R186: 0
A187: 0 | B187: 177 | C187: -127.4811894 | D187: -40.07747222 | E187: 80.97767711 | F187: -13.16651231 | G187: -89.39756412 | H187: 0 | I187: -18.1078947 | J187: 327.8958505 | K187: 0 | L187: 18.1078947 | M187: 12.19247074 | N187: -5.915423962 | O187: 5.915423962 | P187: 5.915423962 | Q187: 34.99224065 | R187: 0
A188: 0 | B188: 178 | C188: -127.4728957 | D188: -29.66962579 | E188: 47.45720555 | F188: -1.123285251 | G188: -103.185869 | H188: 0 | I188: -42.95730392 | J188: 1845.32996 | K188: 0 | L188: 42.95730392 | M188: -53.32370996 | N188: -96.28101387 | O188: 96.28101387 | P188: 96.28101387 | Q188: 9270.033633 | R188: 0
A189: 0 | B189: 179 | C189: -127.4645855 | D189: -18.75689776 | E189: 13.12472804 | F189: 10.93926684 | G189: -109.9422275 | H189: 0 | I189: -61.0625496 | J189: 3728.634963 | K189: 0 | L189: 61.0625496 | M189: -60.32516209 | N189: -121.3877117 | O189: 121.3877117 | P189: 121.3877117 | Q189: 14734.97655 | R189: 0
A190: 0 | B190: 180 | C190: -127.456259 | D190: -7.524987662 | E190: -21.4323172 | F190: 22.8136195 | G190: -109.2062048 | H190: 0 | I190: -71.76898286 | J190: 5150.786901 | K190: 0 | L190: 71.76898286 | M190: -28.11968955 | N190: -99.88867241 | O190: 99.88867241 | P190: 99.88867241 | Q190: 9977.746877 | R190: 0
A191: 0 | B191: 181 | C191: -127.447916 | D191: 3.834973527 | E191: -55.62264955 | F191: 34.29548606 | G191: -101.0279598 | H191: 0 | I191: -74.93089947 | J191: 5614.639695 | K191: 0 | L191: 74.93089947 | M191: 8.835134846 | N191: -66.09576462 | O191: 66.09576462 | P191: 66.09576462 | Q191: 4368.650101 | R191: 0
A192: 0 | B192: 182 | C192: -127.4395567 | D192: 15.1296758 | E192: -88.86126295 | F192: 45.1873322 | G192: -85.96482624 | H192: 0 | I192: -70.91147156 | J192: 5028.436799 | K192: 0 | L192: 70.91147156 | M192: 41.09216308 | N192: -29.81930848 | O192: 29.81930848 | P192: 29.81930848 | Q192: 889.1911582 | R192: 0
A193: 0 | B193: 183 | C193: -127.4311809 | D193: 26.16691965 | E193: -120.5794355 | F193: 55.3017743 | G193: -65.04333185 | H193: 0 | I193: -60.54808803 | J193: 3666.070964 | K193: 0 | L193: 60.54808803 | M193: 66.85754153 | N193: 6.309453506 | O193: -6.309453506 | P193: 6.309453506 | Q193: 39.80920355 | R193: 0
A194: 0 | B194: 184 | C194: -127.4227888 | D194: 36.75888669 | E194: -150.2344605 | F194: 64.46480326 | G194: -39.68924188 | H194: 0 | I194: -45.08563492 | J194: 2032.714476 | K194: 0 | L194: 45.08563492 | M194: 84.81015785 | N194: 39.72452293 | O194: -39.72452293 | P194: 39.72452293 | Q194: 1578.037722 | R194: 0
A195: 0 | B195: 185 | C195: -127.4143803 | D195: 46.72533571 | E195: -177.3189322 | F195: 72.51877808 | G195: -11.63039567 | H195: 0 | I195: -26.08242807 | J195: 680.2930539 | K195: 0 | L195: 26.08242807 | M195: 94.18423647 | N195: 68.1018084 | O195: -68.1018084 | P195: 68.1018084 | Q195: 4637.856307 | R195: 0
A196: 0 | B196: 186 | C196: -127.4059554 | D196: 55.89666979 | E196: -201.3694278 | F196: 79.32513796 | G196: 17.22104279 | H196: 0 | I196: -5.295366355 | J196: 28.04090483 | K196: 0 | L196: 5.295366355 | M196: 94.81369507 | N196: 89.51832872 | O196: -89.51832872 | P196: 89.51832872 | Q196: 8013.531176 | R196: 0
A197: 0 | B197: 187 | C197: -127.3975141 | D197: 64.11682233 | E197: -221.9744367 | F197: 84.76678613 | G197: 44.89889564 | H197: 0 | I197: 15.44771961 | J197: 238.6320413 | K197: 0 | L197: -15.44771961 | M197: 87.13537307 | N197: 102.5830927 | O197: -102.5830927 | P197: 102.5830927 | Q197: 10523.2909 | R197: 0
A198: 0 | B198: 188 | C198: -127.3890564 | D198: 71.24591277 | E198: -238.7814014 | F198: 88.75010432 | G198: 69.51696295 | H198: 0 | I198: 34.37968851 | J198: 1181.962982 | K198: 0 | L198: -34.37968851 | M198: 72.15105034 | N198: 106.5307388 | O198: -106.5307388 | P198: 106.5307388 | Q198: 11348.79832 | R198: 0
A199: 0 | B199: 189 | C199: -127.3805824 | D199: 77.16262693 | E199: -251.5027501 | F199: 91.20656343 | G199: 89.39756412 | H199: 0 | I199: 49.92058825 | J199: 2492.065132 | K199: 0 | L199: -49.92058825 | M199: 51.35098508 | N199: 101.2715733 | O199: -101.2715733 | P199: 101.2715733 | Q199: 10255.93157 | R199: 0
A200: 0 | B200: 190 | C200: -127.3720919 | D200: 81.76628134 | E200: -259.9208171 | F200: 92.09390247 | G200: 103.185869 | H200: 0 | I200: 60.7903101 | J200: 3695.461802 | K200: 0 | L200: -60.7903101 | M200: 26.60432165 | N200: 87.39463175 | O200: -87.39463175 | P200: 87.39463175 | Q200: 7637.821659 | R200: 0
... 4300 more rows

Sheet Q1-solar_2018(ARMA from 2017)
C1: 1/year | E1: 1/day | G1: 2/day | I1: n= | J1: 17520 | L1: AR coefficients | M1: Type | N1: Coef | O1: SE Coef | P1: T-Value | Q1: P-Value | T1: Error Metric | U1: MeAPE | V1: =_xlfn.AGGREGATE(12,1,R15:R17530) -> 0
A2: Frequency | C2: =2*PI()/J1 -> 0.0003586292984 | D2: =2*PI()*364/J1 -> 0.1305410646 | E2: =2*PI()*365/J1 -> 0.1308996939 | F2: =2*PI()*366/J1 -> 0.1312583232 | G2: =2*PI()*730/J1 -> 0.2617993878 | M2: AR 1 | N2: -0.6005 | O2: 0.0165 | P2: -36.5 | Q2: 0 | U2: MBE | V2: =SUBTOTAL(109, O15:O17530)/L7 -> -0.00898989632
A3: Mean | B3: =AVERAGE(A11:A17530) -> 160.9223154 | C3: -128.6900023 | D3: 87.08259904 | E3: -263.3470586 | F3: 90.51224742 | G3: 109.2062048 | M3: AR 2 | N3: 0.5818 | O3: 0.0293 | P3: 19.83 | Q3: 0 | U3: NRMSE | V3: =SQRT(SUBTOTAL(109,Q15:Q17530)/L7)/T7 -> 0.9972179693
A4: Variance | B4: =STDEV(A11:A17530)^2 -> 63923.64921 | C4: 14.97017503 | D4: 1.911405374 | E4: 21.4323172 | F4: -17.01024437 | G4: -17.22104279 | M4: AR 3 | N4: 0.6669 | O4: 0.0314 | P4: 21.24 | Q4: 0 | U4: NMAE | V4: =SUBTOTAL(109, P15:P17530)/(L7*T7) -> 0.6234971038
B5: Contribution | C5: =(C3^2+C4^2)/2 -> 8392.611417 | D5: =(D3^2+D4^2)/2 -> 3793.516263 | E5: 34905.50876 | F5: 4240.907673 | G5: 6111.279744 | M5: MA 1 | N5: -1.4588 | O5: 0.0184 | P5: -79.34 | Q5: 0 | U5: NMBE | V5: =SUBTOTAL(109,O15:O17530)/(L7*T7) -> -5.584894703e-05
B6: Variance Explained | C6: =C5/$B$4 -> 0.1312911813 | D6: =D5/$B$4 -> 0.05934448847 | E6: =E5/$B$4 -> 0.5460500017 | F6: =F5/$B$4 -> 0.06634332873 | G6: =G5/$B$4 -> 0.09560279834 | I6: Three | J6: OLS | M6: MA 2 | N6: -0.7126 | O6: 0.0395 | P6: -18.04 | Q6: 0 | U6: SS
I7: Cycle | K7: Valid_Count | L7: =SUBTOTAL(2,K15:K17530) -> 17516 | S7: Final Mean | T7: =SUBTOTAL(1,N15:N17530) -> 160.968054
F8: Total | G8: =SUM(C6:G6) -> 0.8986317985 | I8: + | J8: =SUM(J11:J17530) -> 186127028.3
C9: Frequencies | I9: Beats
A10: Series | B10: Time | C10: 1 | D10: 364 | E10: 365 | F10: 366 | G10: 730 | H10: Elevation | I10: Model | J10: Diff^2 | K10: Valid_Elevation | L10: Residuals | M10: ARMA(3,2) | N10: Final Model | O10: Diff | P10: ABS(Diff) | Q10: Diff^2 | R10: Diff/yi
A11: 0 | B11: 1 | C11: =C$3*COS(C$2*$B11)+C$4*SIN(C$2*$B11) -> -128.6846253 | D11: 86.59047499 | E11: -258.2966093 | F11: 87.50732943 | G11: 101.0279598 | H11: 0 | I11: =B$3+SUM(C11:G11) -> 49.06684509 | J11: =(A11-I11)^2 -> 2407.555287 | K11: =IF(H11>=10,1,0) -> 0 | L11: =A11-I11 -> -49.06684509
A12: 0 | B12: =B11+1 -> 2 | C12: -128.6792317 | D12: 84.62485956 | E12: -248.8266333 | F12: 82.99693309 | G12: 85.96482624 | H12: 0 | I12: 37.00306928 | J12: =(A12-I12)^2 -> 1369.227136 | K12: =IF(H12>=10,1,0) -> 0 | L12: =A12-I12 -> -37.00306928
A13: 0 | B13: =B12+1 -> 3 | C13: -128.6738216 | D13: 81.21920119 | E13: -235.0991647 | F13: 77.05865538 | G13: 65.04333185 | H13: 0 | I13: 20.47051756 | J13: 419.042089 | K13: 0 | L13: -20.47051756
A14: 0 | B14: =B13+1 -> 4 | C14: -128.6683949 | D14: 76.43145324 | E14: -217.3490842 | F14: 69.79465857 | G14: 39.68924188 | H14: 0 | I14: 0.8201900145 | J14: 0.6727116598 | K14: 0 | L14: -0.8201900145 | M14: =$N$2*L13+$N$3*L12+$N$4*L11+$N$5*(L14-L13)+$N$6*(L13-L12) -> -82.40551309
A15: 0 | B15: 5 | C15: -128.6629517 | D15: 70.34308777 | E15: -195.8801006 | F15: 61.32991265 | G15: 11.63039567 | H15: 0 | I15: -20.31734075 | J15: 412.7943351 | K15: 0 | L15: 20.31734075 | M15: =$N$2*L14+$N$3*L13+$N$4*L12+$N$5*(L15-L14)+$N$6*(L14-L13) -> -80.9328232 | N15: =I15+M15 -> -101.2501639 | O15: =(A15-N15) -> 101.2501639 | P15: =ABS(O15) -> 101.2501639 | Q15: =O15^2 -> 10251.5957 | R15: =IF(A15=0,0,ABS(K15*P15/A15)*100) -> 0
A16: 0 | B16: 6 | C16: -128.6574919 | D16: 63.0577092 | E16: -171.0595541 | F16: 51.81004533 | G16: -17.22104279 | H16: 0 | I16: -41.14801889 | J16: 1693.159459 | K16: 0 | L16: 41.14801889 | M16: -71.77993552 | N16: =I16+M16 -> -112.9279544 | O16: =(A16-N16) -> 112.9279544 | P16: =ABS(O16) -> 112.9279544 | Q16: =O16^2 -> 12752.72289 | R16: =IF(A16=0,0,ABS(K16*P16/A16)*100) -> 0
A17: 0 | B17: 7 | C17: -128.6520156 | D17: 54.69929123 | E17: -143.3121313 | F17: 41.39883666 | G17: -44.89889564 | H17: 0 | I17: -59.84259924 | J17: 3581.136684 | K17: 0 | L17: 59.84259924 | M17: -55.55133627 | N17: -115.3939355 | O17: 115.3939355 | P17: 115.3939355 | Q17: 13315.76035 | R17: 0
A18: 0 | B18: 8 | C18: -128.6465228 | D18: 45.41006724 | E18: -113.1125982 | F18: 30.27540133 | G18: -69.51696295 | H18: 0 | I18: -74.66829986 | J18: 5575.355004 | K18: 0 | L18: 74.66829986 | M18: -33.39541893 | N18: -108.0637188 | O18: 108.0637188 | P18: 108.0637188 | Q18: 11677.76732 | R18: 0
A19: 0 | B19: 9 | C19: -128.6410134 | D19: 35.34810996 | E19: -80.97767711 | F19: 18.63110722 | G19: -89.39756412 | H19: 0 | I19: -84.11472196 | J19: 7075.286451 | K19: 0 | L19: 84.11472196 | M19: -6.925510856 | N19: -91.04023282 | O19: 91.04023282 | P19: 91.04023282 | Q19: 8288.323992 | R19: 0
A20: 0 | B20: 10 | C20: -128.6354874 | D20: 24.68464154 | E20: -47.45720555 | F20: 6.666283053 | G20: -103.185869 | H20: 0 | I20: -87.00532194 | J20: 7569.926047 | K20: 0 | L20: 87.00532194 | M20: 21.89182811 | N20: -65.11349383 | O20: 65.11349383 | P20: 65.11349383 | Q20: 4239.767079 | R20: 0
A21: 0 | B21: 11 | C21: -128.6299449 | D21: 13.60111992 | E21: -13.12472804 | F21: -5.413228016 | G21: -109.9422275 | H21: 0 | I21: -82.5866931 | J21: 6820.561877 | K21: 0 | L21: 82.5866931 | M21: 50.8735928 | N21: -31.71310029 | O21: 31.71310029 | P21: 31.71310029 | Q21: 1005.72073 | R21: 0
A22: 0 | B22: 12 | C22: -128.6243859 | D22: 2.286150974 | E22: 21.4323172 | F22: -17.39960977 | G22: -109.2062048 | H22: 0 | I22: -70.58941686 | J22: 4982.865772 | K22: 0 | L22: 70.58941686 | M22: 77.77283667 | N22: 7.183419815 | O22: -7.183419815 | P22: 7.183419815 | Q22: 51.60152024 | R22: 0
A23: 0 | B23: 13 | C23: -128.6188103 | D23: -9.067720906 | E23: 55.62264955 | F23: -29.08664819 | G23: -101.0279598 | H23: 0 | I23: -51.25617418 | J23: 2627.195391 | K23: 0 | L23: 51.25617418 | M23: 100.4364359 | N23: 49.18026172 | O23: -49.18026172 | P23: 49.18026172 | Q23: 2418.698142 | R23: 0
A24: 0 | B24: 14 | C24: -128.6132182 | D24: -20.26728934 | E24: 88.86126295 | F24: -40.27327916 | G24: -85.96482624 | H24: 0 | I24: -25.33503452 | J24: 641.863974 | K24: 0 | L24: 25.33503452 | M24: 116.957283 | N24: 91.62224851 | O24: -91.62224851 | P24: 91.62224851 | Q24: 8394.636422 | R24: 0
A25: 0.3933333333 | B25: 15 | C25: -128.6076095 | D25: -31.12197369 | E25: 120.5794355 | F25: -50.7670476 | G25: -65.04333185 | H25: 1.342933333 | I25: 5.961788296 | J25: 31.00769067 | K25: 0 | L25: -5.568454962 | M25: 125.2366506 | N25: 131.1984389 | O25: -130.8051056 | P25: 130.8051056 | Q25: 17109.97564 | R25: 0
A26: 8.44 | B26: 16 | C26: -128.6019843 | D26: -41.44706215 | E26: 150.2344605 | F26: -60.38741844 | G26: -39.68924188 | H26: 5.215633333 | I26: 41.03106915 | J26: 1062.177788 | K26: 0 | L26: -32.59106915 | M26: 113.708939 | N26: 154.7400082 | O26: -146.3000082 | P26: 146.3000082 | Q26: 21403.69239 | R26: 0
A27: 24.57 | B27: 17 | C27: =C$3*COS(C$2*$B27)+C$4*SIN(C$2*$B27) -> -128.5963426 | D27: -51.06685492 | E27: 177.3189322 | F27: -68.96888258 | G27: -11.63039567 | H27: 8.972633333 | I27: 77.97877191 | J27: 2852.496917 | K27: 0 | L27: -53.40877191 | M27: 82.8523241 | N27: 160.831096 | O27: -136.261096 | P27: 136.261096 | Q27: 18567.08629 | R27: 0
A28: 30.02 | B28: 18 | C28: =C$3*COS(C$2*$B28)+C$4*SIN(C$2*$B28) -> -128.5906843 | D28: -59.81765406 | E28: 201.3694278 | F28: -76.36380428 | G28: 17.22104279 | H28: 12.37103333 | I28: 114.7406434 | J28: 7177.587422 | K28: 1 | L28: -84.72064343 | M28: 69.90933404 | N28: 184.6499775 | O28: -154.6299775 | P28: 154.6299775 | Q28: 23910.42993 | R28: 515.089865
A29: 14.91666667 | B29: 19 | C29: -128.5850094 | D29: -67.55054912 | E29: 221.9744367 | F29: -82.44496113 | G29: 44.89889564 | H29: 15.32696667 | I29: 149.2151281 | J29: 18036.07674 | K29: 1 | L29: -134.2984614 | M29: 92.70349938 | N29: 241.9186275 | O29: -227.0019608 | P29: 227.0019608 | Q29: 51529.8902 | R29: 1521.800854
A30: 14.9 | B30: 20 | C30: -128.5793181 | D30: -74.13395109 | E30: 238.7814014 | F30: -87.10773273 | G30: 69.51696295 | H30: 17.77336667 | I30: 179.3996779 | J30: 27060.14403 | K30: 1 | L30: -164.4996779 | M30: 75.12413345 | N30: 254.5238113 | O30: -239.6238113 | P30: 239.6238113 | Q30: 57419.57096 | R30: 1608.213499
A31: 35.27 | B31: 21 | C31: -128.5736102 | D31: -79.45583164 | E31: 251.5027501 | F31: -90.27190066 | G31: 89.39756412 | H31: 19.64953333 | I31: 203.5212872 | J31: 28308.49565 | K31: 1 | L31: -168.2512872 | M31: -8.858750821 | N31: 194.6625364 | O31: -159.3925364 | P31: 159.3925364 | Q31: 25405.98066 | R31: 451.9209991
A32: 47.32 | B32: 22 | C32: -128.5678857 | D32: -83.4256295 | E32: 259.9208171 | F32: -91.88302847 | G32: 103.185869 | H32: 20.9053 | I32: 220.1524579 | J32: 29871.05849 | K32: 1 | L32: -172.8324579 | M32: -74.87825001 | N32: 145.2742078 | O32: -97.95420784 | P32: 97.95420784 | Q32: 9595.026833 | R32: 207.0038204
A33: 83.1 | B33: 23 | C33: -128.5621448 | D33: -85.97579146 | E33: 263.8915668 | F33: -91.9133983 | G33: 109.9422275 | H33: 21.50406667 | I33: 228.3047752 | J33: 21084.42674 | K33: 1 | L33: -145.2047752 | M33: -140.8462644 | N33: 87.45851081 | O33: -4.358510812 | P33: 4.358510812 | Q33: 18.9966165 | R33: 5.244898691
A34: 76.52333333 | B34: 24 | C34: -128.5563873 | D34: -87.06292197 | E34: 263.3470586 | F34: -90.36248764 | G34: 109.2062048 | H34: 21.42746667 | I34: 227.493782 | J34: 22792.07638 | K34: 1 | L34: -150.9704487 | M34: -136.8417621 | N34: 90.65201998 | O34: -14.12868665 | P34: 14.12868665 | Q34: 199.6197863 | R34: 18.46323994
A35: 77.45666667 | B35: 25 | C35: -128.5506132 | D35: -86.66852156 | E35: 258.2966093 | F35: -87.25697842 | G35: 101.0279598 | H35: 20.67793333 | I35: 217.7707713 | J35: 19688.04796 | K35: 1 | L35: -140.3141046 | M35: -120.5212057 | N35: 97.24956563 | O35: -19.79289896 | P35: 19.79289896 | Q35: 391.7588493 | R35: 25.55351245
A36: 70.36 | B36: 26 | C36: -128.5448226 | D36: -84.79930167 | E36: 248.8266333 | F36: -82.6502979 | G36: 85.96482624 | H36: 19.2782 | I36: 199.7193528 | J36: 16733.84216 | K36: 1 | L36: -129.3593528 | M36: -123.9875545 | N36: 75.73179827 | O36: -5.371798268 | P36: 5.371798268 | Q36: 28.85621663 | R36: 7.634733183
A37: 51.99 | B37: 27 | C37: -128.5390155 | D37: -81.4870704 | E37: 235.0991647 | F37: -76.62169951 | G37: 65.04333185 | H37: 17.2682 | I37: 174.4170266 | J37: 14988.37683 | K37: 1 | L37: -122.4270266 | M37: -122.5558807 | N37: 51.8611459 | O37: 0.1288541011 | P37: 0.1288541011 | Q37: 0.01660337938 | R37: 0.2478440107
A38: 35.74333333 | B38: 28 | C38: -128.5331919 | D38: -76.78819127 | E38: 217.3490842 | F38: -69.27489943 | G38: 39.68924188 | H38: 14.70123333 | I38: 143.3643589 | J38: 11582.28515 | K38: 1 | L38: -107.6210256 | M38: -121.8582883 | N38: 21.50607059 | O38: 14.23726274 | P38: 14.23726274 | Q38: 202.6996505 | R38: 39.83193904
A39: 26.69333333 | B39: 29 | C39: -128.5273517 | D39: -70.78262411 | E39: 195.8801006 | F39: -60.73629219 | G39: 11.63039567 | H39: 11.63923333 | I39: 108.3865437 | J39: 6673.780615 | K39: 1 | L39: -81.69321034 | M39: -141.2456238 | N39: -32.85908009 | O39: 59.55241343 | P39: 59.55241343 | Q39: 3546.489945 | R39: 223.0984519
A40: 21.04 | B40: 30 | C40: -128.521495 | D40: -63.57256433 | E40: 171.0595541 | F40: -51.15277622 | G40: -17.22104279 | H40: 8.151333333 | I40: 71.51399122 | J40: 2547.62379 | K40: 0 | L40: -50.47399122 | M40: -159.2224819 | N40: -87.70849065 | O40: 108.7484907 | P40: 108.7484907 | Q40: 11826.23422 | R40: 0
A41: 15.32666667 | B41: 31 | C41: -128.5156218 | D41: -55.28070398 | E41: 143.3121313 | F41: -40.68922656 | G41: -44.89889564 | H41: 4.331166667 | I41: 34.84999878 | J41: 381.1604967 | K41: 0 | L41: -19.52333211 | M41: -156.3895771 | N41: -121.5395783 | O41: 136.8662449 | P41: 136.8662449 | Q41: 18732.36901 | R41: 0
A42: 1.61 | B42: 32 | C42: -128.509732 | D42: -46.04814384 | E42: 113.1125982 | F42: -29.5256584 | G42: -69.51696295 | H42: 0.7100333333 | I42: 0.4344163875 | J42: 1.38199683 | K42: 0 | L42: 1.175583612 | M42: -124.3742271 | N42: -123.9398107 | O42: 125.5498107 | P42: 125.5498107 | Q42: 15762.75496 | R42: 0
A43: 0 | B43: 33 | C43: -128.5038257 | D43: -36.03199239 | E43: 80.97767711 | F43: -17.85413005 | G43: -89.39756412 | H43: 0 | I43: -29.88751975 | J43: 893.263837 | K43: 0 | L43: 29.88751975 | M43: -102.3607371 | N43: -132.2482569 | O43: 132.2482569 | P43: 132.2482569 | Q43: 17489.60144 | R43: 0
A44: 0 | B44: 34 | C44: -128.4979029 | D44: -25.40269233 | E44: 47.45720555 | F44: -5.875438789 | G44: -103.185869 | H44: 0 | I44: -54.58238208 | J44: 2979.236433 | K44: 0 | L44: 54.58238208 | M44: -86.7686021 | N44: -141.3509842 | O44: 141.3509842 | P44: 141.3509842 | Q44: 19980.10073 | R44: 0
A45: 0 | B45: 35 | C45: -128.4919636 | D45: -14.34112014 | E45: 13.12472804 | F45: 6.204333675 | G45: -109.9422275 | H45: 0 | I45: -72.52393405 | J45: 5259.72101 | K45: 0 | L45: 72.52393405 | M45: -58.37485964 | N45: -130.8987937 | O45: 130.8987937 | P45: 130.8987937 | Q45: 17134.49419 | R45: 0
A46: 0 | B46: 36 | C46: -128.4860077 | D46: -3.035508211 | E46: -21.4323172 | F46: 18.17736662 | G46: -109.2062048 | H46: 0 | I46: -83.06035589 | J46: 6899.02272 | K46: 0 | L46: 83.06035589 | M46: -20.01828769 | N46: -103.0786436 | O46: 103.0786436 | P46: 103.0786436 | Q46: 10625.20676 | R46: 0
A47: 0 | B47: 37 | C47: -128.4800353 | D47: 8.321758303 | E47: -55.62264955 | F47: 29.83767568 | G47: -101.0279598 | H47: 0 | I47: -86.04889522 | J47: 7404.412369 | K47: 0 | L47: 86.04889522 | M47: 16.84973634 | N47: -69.19915888 | O47: 69.19915888 | P47: 69.19915888 | Q47: 4788.52359 | R47: 0
A48: 0 | B48: 38 | C48: -128.4740464 | D48: 19.53741526 | E48: -88.86126295 | F48: 40.98465661 | G48: -85.96482624 | H48: 0 | I48: -81.85574828 | J48: 6700.363527 | K48: 0 | L48: 81.85574828 | M48: 49.00569472 | N48: -32.85005356 | O48: 32.85005356 | P48: 32.85005356 | Q48: 1079.126019 | R48: 0
A49: 0 | B49: 39 | C49: -128.468041 | D49: 30.42060824 | E49: -120.5794355 | F49: 51.42653644 | G49: -65.04333185 | H49: 0 | I49: -71.32134818 | J49: 5086.734707 | K49: 0 | L49: 71.32134818 | M49: 74.65744112 | N49: 3.336092933 | O49: -3.336092933 | P49: 3.336092933 | Q49: 11.12951606 | R49: 0
A50: 0 | B50: 40 | C50: -128.462019 | D50: 40.78614031 | E50: -150.2344605 | F50: 60.98367281 | G50: -39.68924188 | H50: 0 | I50: -55.69359278 | J50: 3101.776277 | K50: 0 | L50: 55.69359278 | M50: 92.48579608 | N50: 36.79220329 | O50: -36.79220329 | P50: 36.79220329 | Q50: 1353.666223 | R50: 0
A51: 0 | B51: 41 | C51: -128.4559805 | D51: 50.45762345 | E51: -177.3189322 | F51: 69.4916445 | G51: -11.63039567 | H51: 0 | I51: -36.53372496 | J51: 1334.713059 | K51: 0 | L51: 36.53372496 | M51: 101.7271101 | N51: 65.19338516 | O51: -65.19338516 | P51: 65.19338516 | Q51: 4250.177469 | R51: 0
A52: 0 | B52: 42 | C52: -128.4499255 | D52: 59.27048013 | E52: -201.3694278 | F52: 76.80408014 | G52: 17.22104279 | H52: 0 | I52: -15.60143478 | J52: 243.4047673 | K52: 0 | L52: 15.60143478 | M52: 102.2175843 | N52: 86.61614949 | O52: -86.61614949 | P52: 86.61614949 | Q52: 7502.357352 | R52: 0
A53: 0 | B53: 43 | C53: -128.443854 | D53: 67.07474386 | E53: -221.9744367 | F53: 82.79517642 | G53: 44.89889564 | H53: 0 | I53: 5.272840727 | J53: 27.80284933 | K53: 0 | L53: -5.272840727 | M53: 94.39645971 | N53: 99.66930044 | O53: -99.66930044 | P53: 99.66930044 | Q53: 9933.96945 | R53: 0
A54: 0 | B54: 44 | C54: -128.4377659 | D54: 73.73761119 | E54: -238.7814014 | F54: 87.36186233 | G54: 69.51696295 | H54: 0 | I54: 24.31958461 | J54: 591.4421956 | K54: 0 | L54: -24.31958461 | M54: 79.26799549 | N54: 103.5875801 | O54: -103.5875801 | P54: 103.5875801 | Q54: 10730.38675 | R54: 0
A55: 0 | B55: 45 | C55: -128.4316613 | D55: 79.14570153 | E55: -251.5027501 | F55: 90.42557252 | G55: 89.39756412 | H55: 0 | I55: 39.95674213 | J55: 1596.541242 | K55: 0 | L55: -39.95674213 | M55: 58.32496377 | N55: 98.2817059 | O55: -98.2817059 | P55: 98.2817059 | Q55: 9659.293715 | R55: 0
A56: 0 | B56: 46 | C56: -128.4255403 | D56: 83.20698658 | E56: -259.9208171 | F56: 91.93359882 | G56: 103.185869 | H56: 0 | I56: 50.90241253 | J56: 2591.055602 | K56: 0 | L56: -50.90241253 | M56: 33.43901427 | N56: 84.34142681 | O56: -84.34142681 | P56: 84.34142681 | Q56: 7113.476276 | R56: 0
A57: 0 | B57: 47 | C57: -128.4194027 | D57: 85.85235634 | E57: -263.8915668 | F57: 91.85999712 | G57: 109.9422275 | H57: 0 | I57: 56.26592694 | J57: 3165.854534 | K57: 0 | L57: -56.26592694 | M57: 6.725514719 | N57: 62.99144166 | O57: -62.99144166 | P57: 62.99144166 | Q57: 3967.921722 | R57: 0
A58: 0 | B58: 48 | C58: -128.4132485 | D58: 87.03679512 | E58: -263.3470586 | F58: 90.20603366 | G58: 109.2062048 | H58: 0 | I58: 55.61104188 | J58: 3092.587979 | K58: 0 | L58: -55.61104188 | M58: -19.60779177 | N58: 36.00325011 | O58: -36.00325011 | P58: 36.00325011 | Q58: 1296.234018 | R58: 0
A59: 0 | B59: 49 | C59: -128.4070779 | D59: 86.74014757 | E59: -258.2966093 | F59: 87.00016326 | G59: 101.0279598 | H59: 0 | I59: 48.98689888 | J59: 2399.716262 | K59: 0 | L59: -48.98689888 | M59: -43.41787546 | N59: 5.569023427 | O59: -5.569023427 | P59: 5.569023427 | Q59: 31.01402193 | R59: 0
A60: 0 | B60: 50 | C60: -128.4008907 | D60: 84.9674617 | E60: -248.8266333 | F60: 82.29753982 | G60: 85.96482624 | H60: 0 | I60: 36.92461911 | J60: 1363.427497 | K60: 0 | L60: -36.92461911 | M60: -62.77843609 | N60: -25.85381697 | O60: 25.85381697 | P60: 25.85381697 | Q60: 668.4198521 | R60: 0
A61: 0 | B61: 51 | C61: -128.3946871 | D61: 81.7489029 | E61: -235.0991647 | F61: 76.17906737 | G61: 65.04333185 | H61: 0 | I61: 20.39976578 | J61: 416.1504439 | K61: 0 | L61: -20.39976578 | M61: -76.11638443 | N61: -55.71661865 | O61: 55.71661865 | P61: 55.71661865 | Q61: 3104.341594 | R61: 0
A62: 0 | B62: 52 | C62: -128.3884669 | D62: 77.13924071 | E62: -217.3490842 | F62: 68.75000829 | G62: 39.68924188 | H62: 0 | I62: 0.763255231 | J62: 0.5825585476 | K62: 0 | L62: -0.763255231 | M62: -82.32339899 | N62: -81.56014376 | O62: 81.56014376 | P62: 81.56014376 | Q62: 6652.05705 | R62: 0
A63: 0 | B63: 53 | C63: -128.3822302 | D63: 71.21691674 | E63: -195.8801006 | F63: 60.13817229 | G63: 11.63039567 | H63: 0 | I63: -20.35453065 | J63: 414.3069181 | K63: 0 | L63: 20.35453065 | M63: -80.83488092 | N63: -101.1894116 | O63: 101.1894116 | P63: 101.1894116 | Q63: 10239.29701 | R63: 0
A64: 0 | B64: 54 | C64: -128.375977 | D64: 64.08270989 | E64: -171.0595541 | F64: 50.49171762 | G64: -17.22104279 | H64: 0 | I64: -41.15983098 | J64: 1694.131686 | K64: 0 | L64: 41.15983098 | M64: -71.67086768 | N64: -112.8306987 | O64: 112.8306987 | P64: 112.8306987 | Q64: 12730.76656 | R64: 0
A65: 0 | B65: 55 | C65: -128.3697073 | D65: 55.85802143 | E65: -143.3121313 | F65: 39.97660214 | G65: -44.89889564 | H65: 0 | I65: -59.82379521 | J65: 3578.886474 | K65: 0 | L65: 59.82379521 | M65: -55.43607552 | N65: -115.2598707 | O65: 115.2598707 | P65: 115.2598707 | Q65: 13284.8378 | R65: 0
A66: 0 | B66: 56 | C66: -128.3634211 | D66: 46.6828091 | E66: -113.1125982 | F66: 28.77372816 | G66: -69.51696295 | H66: 0 | I66: -74.61412947 | J66: 5567.268316 | K66: 0 | L66: 74.61412947 | M66: -33.27904339 | N66: -107.8931729 | O66: 107.8931729 | P66: 107.8931729 | Q66: 11640.93675 | R66: 0
A67: 0 | B67: 57 | C67: -128.3571183 | D67: 36.71320551 | E67: -80.97767711 | F67: 17.07583022 | G67: -89.39756412 | H67: 0 | I67: -84.02100838 | J67: 7059.529849 | K67: 0 | L67: 84.02100838 | M67: -6.813156557 | N67: -90.83416494 | O67: 90.83416494 | P67: 90.83416494 | Q67: 8250.845519 | R67: 0
A68: 0 | B68: 58 | C68: -128.3507991 | D68: 26.11886123 | E68: -47.45720555 | F68: 5.084159263 | G68: -103.185869 | H68: 0 | I68: -86.86853772 | J68: 7546.142846 | K68: 0 | L68: 86.86853772 | M68: 21.9950563 | N68: -64.87348142 | O68: 64.87348142 | P68: 64.87348142 | Q68: 4208.568591 | R68: 0
A69: 0 | B69: 59 | C69: -128.3444633 | D69: 15.08005795 | E69: -13.12472804 | F69: -6.994979706 | G69: -109.9422275 | H69: 0 | I69: -82.40402518 | J69: 6790.423365 | K69: 0 | L69: 82.40402518 | M69: 50.9627102 | N69: -31.44131498 | O69: 31.44131498 | P69: 31.44131498 | Q69: 988.5562874 | R69: 0
A70: 0 | B70: 60 | C70: -128.3381111 | D70: 3.784640573 | E70: 21.4323172 | F70: -18.95377686 | G70: -109.2062048 | H70: 0 | I70: -70.35881955 | J70: 4950.363489 | K70: 0 | L70: 70.35881955 | M70: 77.84306622 | N70: 7.484246669 | O70: -7.484246669 | P70: 7.484246669 | Q70: 56.0139482 | R70: 0
A71: 0 | B71: 61 | C71: -128.3317423 | D71: -7.575179209 | E71: 55.62264955 | F71: -30.58649275 | G71: -101.0279598 | H71: 0 | I71: -50.97640906 | J71: 2598.594281 | K71: 0 | L71: 50.97640906 | M71: 100.4832925 | N71: 49.5068834 | O71: -49.5068834 | P71: 49.5068834 | Q71: 2450.931504 | R71: 0
A72: 0 | B72: 62 | C72: -128.325357 | D72: -18.80609381 | E72: 88.86126295 | F72: -41.69299783 | G72: -85.96482624 | H72: 0 | I72: -25.00569653 | J72: 625.2848588 | K72: 0 | L72: 25.00569653 | M72: 116.9766531 | N72: 91.9709566 | O72: -91.9709566 | P72: 91.9709566 | Q72: 8458.656857 | R72: 0
A73: 12.55333333 | B73: 63 | C73: -128.3189553 | D73: -29.71698917 | E73: 120.5794355 | F73: -52.0822155 | G73: -65.04333185 | H73: 1.343833333 | I73: 6.340259154 | J73: 38.60229076 | K73: 0 | L73: 6.21307418 | M73: 107.485858 | N73: 113.8261172 | O73: -101.2727838 | P73: 101.2727838 | Q73: 10256.17675 | R73: 0
A74: 65.64666667 | B74: 64 | C74: -128.312537 | D74: -40.12219696 | E74: 150.2344605 | F74: -61.57540939 | G74: -39.68924188 | H74: 5.223766667 | I74: 41.4573907 | J74: 585.1210718 | K74: 0 | L74: 24.18927597 | M74: 31.98146992 | N74: 73.43886062 | O74: -7.792193951 | P74: 7.792193951 | Q74: 60.71828657 | R74: 0
A75: 131.5733333 | B75: 65 | C75: -128.3061022 | D75: -49.844654 | E75: 177.3189322 | F75: -70.00925835 | G75: -11.63039567 | H75: 8.9896 | I75: =B$3+SUM(C75:G75) -> 78.4508374 | J75: 2821.999574 | K75: 0 | L75: 53.12249593 | M75: -49.25221732 | N75: 29.19862008 | O75: 102.3747133 | P75: 102.3747133 | Q75: 10480.58191 | R75: 0
A76: 195.31 | B76: 66 | C76: -128.2996509 | D76: -58.71891534 | E76: 201.3694278 | F76: -77.23866623 | G76: 17.22104279 | H76: 12.3977 | I76: 115.2555535 | J76: =(A76-I76)^2 -> 6408.714397 | K76: =IF(H76>=10,1,0) -> 1 | L76: =A76-I76 -> 80.05444646 | M76: -73.58938085 | N76: 41.66617269 | O76: 153.6438273 | P76: 153.6438273 | Q76: 23606.42567 | R76: 78.66664651
A77: 252.5066667 | B77: 67 | C77: -128.2931831 | D77: -66.59396959 | E77: 221.9744367 | F77: -83.13925809 | G77: 44.89889564 | H77: 15.3644 | I77: 149.7692369 | J77: 10554.97947 | K77: 1 | L77: 102.7374297 | M77: -53.31584278 | N77: 96.45339415 | O77: 156.0532725 | P77: 156.0532725 | Q77: 24352.62386 | R77: 61.80164452
A78: 299.76 | B78: =B77+1 -> 68 | C78: =C$3*COS(C$2*$B78)+C$4*SIN(C$2*$B78) -> -128.2866989 | D78: -73.33580867 | E78: 238.7814014 | F78: -87.60952002 | G78: 69.51696295 | H78: 17.82213333 | I78: =B$3+SUM(C78:G78) -> 179.9886522 | J78: 14345.17574 | K78: 1 | L78: 119.7713478 | M78: -20.70373057 | N78: 159.2849217 | O78: 140.4750783 | P78: 140.4750783 | Q78: 19733.24763 | R78: 46.86251612
A79: 333.65 | B79: 69 | C79: -128.2801981 | D79: -78.82970815 | E79: 251.5027501 | F79: -90.5725455 | G79: 89.39756412 | H79: 19.7098 | I79: 204.140178 | J79: 16772.794 | K79: 1 | L79: 129.509822 | M79: =$N$2*L78+$N$3*L77+$N$4*L76+$N$5*(L79-L78)+$N$6*(L78-L77) -> 14.89339638 | N79: 219.0335744 | O79: 114.6164256 | P79: 114.6164256 | Q79: 13136.92503 | R79: 34.35229301
A80: 355.6733333 | B80: 70 | C80: -128.2736808 | D80: -82.98217954 | E80: 259.9208171 | F80: -91.97735857 | G80: 103.185869 | H80: 20.97736667 | I80: 220.7957827 | J80: 18191.95368 | K80: 1 | L80: 134.8775507 | M80: 45.65783458 | N80: =I80+M80 -> 266.4536172 | O80: =(A80-N80) -> 89.2197161 | P80: =ABS(O80) -> 89.2197161 | Q80: =O80^2 -> 7960.157741 | R80: =IF(A80=0,0,ABS(K80*P80/A80)*100) -> 25.08473583
A81: 364.8433333 | B81: 71 | C81: -128.267147 | D81: -85.72256113 | E81: 263.8915668 | F81: -91.79979079 | G81: 109.9422275 | H81: 21.58736667 | I81: 228.9666108 | J81: 18462.48373 | K81: 1 | L81: 135.8767225 | M81: 68.94772176 | N81: 297.9143326 | O81: 66.92900077 | P81: 66.92900077 | Q81: 4479.491144 | R81: 18.34458647
A82: 359.2833333 | B82: 72 | C82: -128.2605967 | D82: -87.00422043 | E82: 263.3470586 | F82: -90.04289705 | G82: 109.2062048 | H82: 21.5213 | I82: 228.1678647 | J82: 17191.26611 | K82: 1 | L82: 131.1154686 | M82: 89.48159475 | N82: 317.6494595 | O82: 41.63387387 | P82: 41.63387387 | Q82: 1733.379454 | R82: 11.58803374
A83: 342.22 | B83: 73 | C83: -128.25403 | D83: -86.80534772 | E83: 258.2966093 | F83: -86.73690298 | G83: 101.0279598 | H83: 20.78133333 | I83: 218.4506039 | J83: 15318.86342 | K83: 1 | L83: 123.7693961 | M83: 104.3773969 | N83: 322.8280008 | O83: 19.39199925 | P83: 19.39199925 | Q83: 376.0496349 | R83: 5.666530083
A84: 323.04 | B84: 74 | C84: -128.2474467 | D84: -85.12932719 | E84: 248.8266333 | F84: -81.93868499 | G84: 85.96482624 | H84: 19.38986667 | I84: 200.3983162 | J84: 15040.98261 | K84: 1 | L84: 122.6416838 | M84: 99.45556147 | N84: 299.8538776 | O84: 23.18612237 | P84: 23.18612237 | Q84: 537.5962703 | R84: 7.177477206
A85: 290.04 | B85: 75 | C85: -128.2408469 | D85: -82.00467931 | E85: 235.0991647 | F85: -75.73079176 | G85: 65.04333185 | H85: 17.38683333 | I85: 175.088494 | J85: 13213.84873 | K85: 1 | L85: 114.951506 | M85: 97.8256488 | N85: 272.9141428 | O85: 17.12585718 | P85: 17.12585718 | Q85: 293.2949841 | R85: 5.904653558
A86: 242.49 | B86: 76 | C86: -128.2342307 | D86: -77.48457553 | E86: 217.3490842 | F86: -68.22002402 | G86: 39.68924188 | H86: 14.82533333 | I86: 144.0218113 | J86: 9695.984186 | K86: 1 | L86: 98.4681887 | M86: 114.3922466 | N86: 258.4140579 | O86: -15.92405789 | P86: 15.92405789 | Q86: 253.5756197 | R86: 6.56689261
A87: 185.28 | B87: 77 | C87: -128.2275979 | D87: -71.64593349 | E87: 195.8801006 | F87: -59.53559724 | G87: 11.63039567 | H87: 11.76736667 | I87: 109.0236831 | J87: 5815.025874 | K87: 1 | L87: 76.25631695 | M87: 133.6870682 | N87: 242.7107513 | O87: -57.43075127 | P87: 57.43075127 | Q87: 3298.291192 | R87: 30.99673536
A88: 119.8833333 | B88: 78 | C88: -128.2209487 | D88: -64.58810809 | E88: 171.0595541 | F88: -49.8269185 | G88: -17.22104279 | H88: 8.282266667 | I88: 72.12485153 | J88: 2280.872584 | K88: 0 | L88: 47.7584818 | M88: 145.5588549 | N88: 217.6837064 | O88: -97.80037311 | P88: 97.80037311 | Q88: 9564.912981 | R88: 0
A89: 49.98666667 | B89: 79 | C89: -128.2142829 | D89: -56.43120083 | E89: 143.3121313 | F89: -39.26101617 | G89: -44.89889564 | H89: 4.461666667 | I89: 35.42905117 | J89: 211.924169 | K89: 0 | L89: 14.5576155 | M89: 150.096373 | N89: 185.5254242 | O89: -135.5387575 | P89: 135.5387575 | Q89: 18370.75479 | R89: 0
A90: 4.646666667 | B90: 80 | C90: -128.2076007 | D90: -47.31401603 | E90: 113.1125982 | F90: -28.01966631 | G90: -69.51696295 | H90: 0.7865 | I90: 0.9766676076 | J90: 13.46889309 | K90: 0 | L90: 3.669999059 | M90: 109.4411666 | N90: 110.4178342 | O90: -105.7711675 | P90: 105.7711675 | Q90: 11187.53988 | R90: 0
A91: 0 | B91: 81 | C91: -128.200902 | D91: -37.39169884 | E91: 80.97767711 | F91: -16.29626539 | G91: -89.39756412 | H91: 0 | I91: -29.38643779 | J91: 863.5627262 | K91: 0 | L91: 29.38643779 | M91: 8.359292426 | N91: -21.02714537 | O91: 21.02714537 | P91: 21.02714537 | Q91: 442.1408423 | R91: 0
A92: 0 | B92: 82 | C92: -128.1941868 | D92: -26.83309521 | E92: 47.45720555 | F92: -4.292503093 | G92: -103.185869 | H92: 0 | I92: -54.12613313 | J92: 2929.638288 | K92: 0 | L92: 54.12613313 | M92: -60.21867847 | N92: -114.3448116 | O92: 114.3448116 | P92: 114.3448116 | Q92: 13074.73594 | R92: 0
A93: 0 | B93: 83 | C93: -128.1874551 | D93: -15.81787859 | E93: 13.12472804 | F93: 7.785107536 | G93: -109.9422275 | H93: 0 | I93: -72.11541016 | J93: 5200.632383 | K93: 0 | L93: 72.11541016 | M93: -56.8304553 | N93: -128.9458655 | O93: 128.9458655 | P93: 128.9458655 | Q93: 16627.03622 | R93: 0
A94: 0 | B94: 84 | C94: -128.1807069 | D94: -4.533492562 | E94: -21.4323172 | F94: 19.72878297 | G94: -109.2062048 | H94: 0 | I94: -82.7016231 | J94: 6839.558464 | K94: 0 | L94: 82.7016231 | M94: -20.47923043 | N94: -103.1808535 | O94: 103.1808535 | P94: 103.1808535 | Q94: 10646.28854 | R94: 0
A95: 0 | B95: 85 | C95: -128.1739423 | D95: 6.828038933 | E95: -55.62264955 | F95: 31.33304392 | G95: -101.0279598 | H95: 0 | I95: -85.7411533 | J95: 7351.54537 | K95: 0 | L95: 85.7411533 | M95: 16.41333715 | N95: -69.32781616 | O95: 69.32781616 | P95: 69.32781616 | Q95: 4806.346093 | R95: 0
A96: 0 | B96: 86 | C96: -128.1671611 | D96: 18.07337917 | E96: -88.86126295 | F96: 42.39825037 | G96: -85.96482624 | H96: 0 | I96: -81.59930532 | J96: 6658.446629 | K96: 0 | L96: 81.59930532 | M96: 48.59816741 | N96: -33.00113791 | O96: 33.00113791 | P96: 33.00113791 | Q96: 1089.075103 | R96: 0
A97: 0 | B97: 87 | C97: -128.1603635 | D97: 29.01116861 | E97: -120.5794355 | F97: 52.73403623 | G97: -65.04333185 | H97: 0 | I97: -71.11561054 | J97: 5057.430063 | K97: 0 | L97: 71.11561054 | M97: 74.28262741 | N97: 3.167016868 | O97: -3.167016868 | P97: 3.167016868 | Q97: 10.02999584 | R97: 0
A98: 0 | B98: 88 | C98: -128.1535494 | D98: 39.45528128 | E98: -150.2344605 | F98: 62.16258437 | G98: -39.68924188 | H98: 0 | I98: -55.53707063 | J98: 3084.366214 | K98: 0 | L98: 55.53707063 | M98: 92.14698176 | N98: 36.60991113 | O98: -36.60991113 | P98: 36.60991113 | Q98: 1340.285593 | R98: 0
A99: 0 | B99: 89 | C99: -128.1467188 | D99: 49.22799196 | E99: -177.3189322 | F99: 70.5216858 | G99: -11.63039567 | H99: 0 | I99: -36.42405342 | J99: 1326.711667 | K99: 0 | L99: 36.42405342 | M99: 101.4269651 | N99: 65.00291165 | O99: -65.00291165 | P99: 65.00291165 | Q99: 4225.378523 | R99: 0
A100: 0 | B100: 90 | C100: -128.1398717 | D100: 58.16300054 | E100: -201.3694278 | F100: 77.66753033 | G100: 17.22104279 | H100: 0 | I100: -15.53541038 | J100: 241.3489757 | K100: 0 | L100: 15.53541038 | M100: 101.9581128 | N100: 86.42270244 | O100: -86.42270244 | P100: 86.42270244 | Q100: 7468.883496 | R100: 0
A101: 0 | B101: 91 | C101: -128.1330081 | D101: 66.10826193 | E101: -221.9744367 | F101: 83.47718066 | G101: 44.89889564 | H101: 0 | I101: 5.299208873 | J101: 28.08161468 | K101: 0 | L101: -5.299208873 | M101: 94.17896235 | N101: 99.47817122 | O101: -99.47817122 | P101: 99.47817122 | Q101: 9895.906549 | R101: 0
A102: 0 | B102: 92 | C102: -128.1261281 | D102: 72.92857331 | E102: -238.7814014 | F102: 87.85068743 | G102: 69.51696295 | H102: 0 | I102: 24.31100966 | J102: 591.0251905 | K102: 0 | L102: -24.31100966 | M102: 79.09304258 | N102: 103.4040522 | O102: -103.4040522 | P102: 103.4040522 | Q102: 10692.39802 | R102: 0
A103: 0 | B103: 93 | C103: -128.1192316 | D103: 78.50787494 | E103: -251.5027501 | F103: 90.7128087 | G103: 89.39756412 | H103: 0 | I103: 39.9185815 | J103: 1593.493149 | K103: 0 | L103: -39.9185815 | M103: 58.19238181 | N103: 98.11096331 | O103: -98.11096331 | P103: 98.11096331 | Q103: 9625.761122 | R103: 0
A104: 0 | B104: 94 | C104: -128.1123186 | D104: 82.75122504 | E104: -259.9208171 | F104: 92.01430447 | G104: 103.185869 | H104: 0 | I104: 50.84057832 | J104: 2584.764404 | K104: 0 | L104: -50.84057832 | M104: 33.34788504 | N104: 84.18846336 | O104: -84.18846336 | P104: 84.18846336 | Q104: 7087.697363 | R104: 0
A105: 0 | B105: 95 | C105: -128.1053891 | D105: 85.58641543 | E105: -263.8915668 | F105: 91.73278378 | G105: 109.9422275 | H105: 0 | I105: 56.18678624 | J105: 3156.954949 | K105: 0 | L105: -56.18678624 | M105: 6.674187275 | N105: 62.86097352 | O105: -62.86097352 | P105: 62.86097352 | Q105: 3951.501992 | R105: 0
A106: 0 | B106: 96 | C106: -128.0984432 | D106: 86.96520031 | E106: -263.3470586 | F106: 89.8730899 | G106: 109.2062048 | H106: 0 | I106: 55.5213087 | J106: 3082.61572 | K106: 0 | L106: -55.5213087 | M106: -19.62167621 | N106: 35.89963249 | O106: -35.89963249 | P106: 35.89963249 | Q106: 1288.783613 | R106: 0
A107: 0 | B107: 97 | C107: -128.0914807 | D107: 86.86411718 | E107: -258.2966093 | F107: 86.46721707 | G107: 101.0279598 | H107: 0 | I107: 48.89351946 | J107: 2390.576246 | K107: 0 | L107: -48.89351946 | M107: -43.39734628 | N107: 5.496173184 | O107: -5.496173184 | P107: 5.496173184 | Q107: 30.20791967 | R107: 0
A108: 0 | B108: 98 | C108: -128.0845018 | D108: 85.28488615 | E108: -248.8266333 | F108: 81.57376 | G108: 85.96482624 | H108: 0 | I108: 36.83465267 | J108: 1356.791637 | K108: 0 | L108: -36.83465267 | M108: -62.7271442 | N108: -25.89249153 | O108: 25.89249153 | P108: 25.89249153 | Q108: 670.4211174 | R108: 0
A109: 0 | B109: 99 | C109: -128.0775065 | D109: 82.25438066 | E109: -235.0991647 | F109: 75.27690587 | G109: 65.04333185 | H109: 0 | I109: 20.32026266 | J109: 412.9130744 | K109: 0 | L109: -20.32026266 | M109: -76.0385421 | N109: -55.71827944 | O109: 55.71827944 | P109: 55.71827944 | Q109: 3104.526664 | R109: 0
A110: 0 | B110: 100 | C110: -128.0704946 | D110: 77.82417016 | E110: -217.3490842 | F110: 67.6849859 | G110: 39.68924188 | H110: 0 | I110: 0.7011345881 | J110: 0.4915897106 | K110: 0 | L110: -0.7011345881 | M110: -82.22370968 | N110: -81.52257509 | O110: 81.52257509 | P110: 81.52257509 | Q110: 6645.93025 | R110: 0
A111: 0 | B111: 101 | C111: -128.0634663 | D111: 72.06964259 | E111: -195.8801006 | F111: 58.92861169 | G111: 11.63039567 | H111: 0 | I111: -20.39260148 | J111: 415.858195 | K111: 0 | L111: 20.39260148 | M111: -80.71846019 | N111: -101.1110617 | O111: 101.1110617 | P111: 101.1110617 | Q111: 10223.44679 | R111: 0
A112: 0 | B112: 102 | C112: -128.0564215 | D112: 65.08872149 | E112: -171.0595541 | F112: 49.15842812 | G112: -17.22104279 | H112: 0 | I112: -41.16755336 | J112: 1694.76745 | K112: 0 | L112: 41.16755336 | M112: -71.54315659 | N112: -112.71071 | O112: 112.71071 | P112: 112.71071 | Q112: 12703.70414 | R112: 0
A113: 0 | B113: 103 | C113: -128.0493602 | D113: 57.0001997 | E113: -143.3121313 | F113: 38.54252169 | G113: -44.89889564 | H113: 0 | I113: -59.79535034 | J113: 3575.483922 | K113: 0 | L113: 59.79535034 | M113: -55.30274786 | N113: -115.0980982 | O113: 115.0980982 | P113: 115.0980982 | Q113: 13247.57221 | R113: 0
A114: 0 | B114: 104 | C114: -128.0422825 | D114: 47.94171784 | E114: -113.1125982 | F114: 27.26352872 | G114: -69.51696295 | H114: 0 | I114: -74.54428162 | J114: 5556.849922 | K114: 0 | L114: 74.54428162 | M114: -33.14590848 | N114: -107.6901901 | O114: 107.6901901 | P114: 107.6901901 | Q114: 11597.17704 | R114: 0
A115: 0 | B115: 105 | C115: -128.0351883 | D115: 38.06742214 | E115: -80.97767711 | F115: 15.51549329 | G115: -89.39756412 | H115: 0 | I115: -83.90519866 | J115: 7040.082362 | K115: 0 | L115: 83.90519866 | M115: -6.686059157 | N115: -90.59125782 | O115: 90.59125782 | P115: 90.59125782 | Q115: 8206.775993 | R115: 0
A116: 0 | B116: 106 | C116: -128.0280777 | D116: 27.54534134 | E116: -47.45720555 | F116: 3.500528926 | G116: -103.185869 | H116: 0 | I116: -86.70296651 | J116: 7517.404402 | K116: 0 | L116: 86.70296651 | M116: 22.11033716 | N116: -64.59262935 | O116: 64.59262935 | P116: 64.59262935 | Q116: 4172.207766 | R116: 0
A117: 0 | B117: 107 | C117: -128.0209505 | D117: 16.55452743 | E117: -13.12472804 | F117: -8.574658632 | G117: -109.9422275 | H117: 0 | I117: -82.18572181 | J117: 6754.492869 | K117: 0 | L117: 82.18572181 | M117: 51.06056181 | N117: -31.12516 | O117: 31.12516 | P117: 31.12516 | Q117: 968.775585 | R117: 0
A118: 0 | B118: 108 | C118: -128.0138069 | D118: 5.282008702 | E118: 21.4323172 | F118: -20.50232754 | G118: -109.2062048 | H118: 0 | I118: -70.08569795 | J118: 4912.005057 | K118: 0 | L118: 70.08569795 | M118: 77.91814034 | N118: 7.83244239 | O118: -7.83244239 | P118: 7.83244239 | Q118: 61.3471538 | R118: 0
A119: 0 | B119: 109 | C119: -128.0066469 | D119: -6.080392823 | E119: 55.62264955 | F119: -32.07727388 | G119: -101.0279598 | H119: 0 | I119: -50.64730836 | J119: 2565.149844 | K119: 0 | L119: 50.64730836 | M119: 100.5305994 | N119: 49.88329108 | O119: -49.88329108 | P119: 49.88329108 | Q119: 2488.342728 | R119: 0
A120: 0 | B120: 110 | C120: -127.9994703 | D120: -17.33932562 | E120: 88.86126295 | F120: -43.10036197 | G120: -85.96482624 | H120: 0 | I120: -24.62040578 | J120: 606.1643806 | K120: 0 | L120: 24.62040578 | M120: 116.9916502 | N120: 92.3712444 | O120: -92.3712444 | P120: 92.3712444 | Q120: 8532.446792 | R120: 0
A121: 13.46666667 | B121: 111 | C121: -127.9922774 | D121: -28.30319886 | E121: 120.5794355 | F121: -53.38195032 | G121: -65.04333185 | H121: 1.349666667 | I121: 6.780992557 | J121: 44.6982383 | K121: 0 | L121: 6.685674109 | M121: 106.1321596 | N121: 112.9131522 | O121: -99.44648552 | P121: 99.44648552 | Q121: 9889.603483 | R121: 0
A122: 64.38333333 | B122: 112 | C122: -127.9850679 | D122: -38.78544269 | E122: 150.2344605 | F122: -62.74515422 | G122: -39.68924188 | H122: 5.238466667 | I122: 41.95186922 | J122: 503.1705822 | K122: 0 | L122: 22.43146411 | M122: 33.89642605 | N122: 75.84829528 | O122: -11.46496194 | P122: 11.46496194 | Q122: 131.4453524 | R122: 0
A123: 139.6466667 | B123: 113 | C123: -127.977842 | D123: -48.60768302 | E123: 177.3189322 | F123: -71.02888887 | G123: -11.63039567 | H123: 9.013433333 | I123: 78.99643806 | J123: 3678.45023 | K123: 0 | L123: 60.6502286 | M123: -60.13500399 | N123: 18.86143408 | O123: 120.7852326 | P123: 120.7852326 | Q123: 14589.07241 | R123: 0
A124: 158.3966667 | B124: 114 | C124: -127.9705996 | D124: -57.60277693 | E124: 201.3694278 | F124: -78.09064069 | G124: 17.22104279 | H124: 12.43163333 | I124: 115.8487688 | J124: 1810.323614 | K124: 1 | L124: 42.54789788 | M124: -19.73817192 | N124: 96.11059687 | O124: 62.2860698 | P124: 62.2860698 | Q124: 3879.554491 | R124: 39.32284126
A125: 180.5233333 | B125: 115 | C125: -127.9633408 | D125: -65.61765684 | E125: 221.9744367 | F125: -83.8089191 | G125: 44.89889564 | H125: 15.40903333 | I125: 150.405731 | J125: 907.0699696 | K125: 1 | L125: 30.11760232 | M125: 55.72886977 | N125: 206.1346008 | O125: -25.61126745 | P125: 25.61126745 | Q125: 655.9370205 | R125: 14.18723385
A126: 167.7766667 | B126: 116 | C126: -127.9560655 | D126: -72.51593528 | E126: 238.7814014 | F126: -88.08534671 | G126: 69.51696295 | H126: 17.8781 | I126: 180.6633323 | J126: 166.0661508 | K126: 1 | L126: -12.88666562 | M126: 118.7088389 | N126: 299.3721712 | O126: -131.5955046 | P126: 131.5955046 | Q126: 17317.37682 | R126: 78.43492613
A127: 292.2366667 | B127: 117 | C127: -127.9487738 | D127: -78.18022572 | E127: 251.5027501 | F127: -90.84635174 | G127: 89.39756412 | H127: 19.77763333 | I127: 204.8472785 | J127: 7636.905171 | K127: 1 | L127: 87.38938821 | M127: -62.00180916 | N127: 142.8454693 | O127: 149.3911974 | P127: 149.3911974 | Q127: 22317.72985 | R127: 51.11993614
A128: 80.77 | B128: 118 | C128: -127.9414656 | D128: -82.51414017 | E128: 259.9208171 | F128: -92.04443379 | G128: 103.185869 | H128: 21.05676667 | I128: 221.528962 | J128: 19813.08539 | K128: 1 | L128: -140.758962 | M128: 221.4767367 | N128: 443.0056987 | O128: -362.2356987 | P128: 362.2356987 | Q128: 131214.7014 | R128: 448.4780224
A129: 268.7566667 | B129: 119 | C129: =C$3*COS(C$2*$B129)+C$4*SIN(C$2*$B129) -> -127.9341409 | D129: -85.44392935 | E129: 263.8915668 | F129: -91.65898103 | G129: 109.9422275 | H129: 21.67803333 | I129: 229.7190584 | J129: 1523.934857 | K129: 1 | L129: 39.03760824 | M129: 27.06606313 | N129: 256.7851216 | O129: 11.97154511 | P129: 11.97154511 | Q129: 143.3178923 | R129: 4.454417915
A130: 473.95 | B130: 120 | C130: -127.9267998 | D130: -86.91973765 | E130: 263.3470586 | F130: -89.6966248 | G130: 109.2062048 | H130: 21.6226 | I130: 228.9324166 | J130: 60033.61615 | K130: 1 | L130: 245.0175834 | M130: -475.6622885 | N130: -246.7298719 | O130: 720.6798719 | P130: 720.6798719 | Q130: 519379.4777 | R130: 152.058207
A131: 90.89 | B131: 121 | C131: -127.9194423 | D131: -86.91645158 | E131: 258.2966093 | F131: -86.19112552 | G131: 101.0279598 | H131: 20.89196667 | I131: 219.2198652 | J131: 16468.55429 | K131: 1 | L131: -128.3298652 | M131: 179.5647975 | N131: 398.7846627 | O131: -307.8946627 | P131: 307.8946627 | Q131: 94799.12332 | R131: 338.7552676
A132: 34.42333333 | B132: 122 | C132: -127.9120682 | D132: -85.43412705 | E132: 248.8266333 | F132: -81.20279189 | G132: 85.96482624 | H132: 19.50846667 | I132: 201.1647878 | J132: 27802.71265 | K132: 1 | L132: -166.7414545 | M132: 567.7297133 | N132: 768.8945012 | O132: -734.4711678 | P132: 734.4711678 | Q132: 539447.8964 | R132: 2133.643365
A133: 82.72333333 | B133: 123 | C133: -127.9046778 | D133: -82.49798846 | E133: 235.0991647 | F133: -74.81744333 | G133: 65.04333185 | H133: 17.51226667 | I133: 175.8447024 | J133: 8671.589385 | K133: 1 | L133: -93.12136911 | M133: 108.8432722 | N133: 284.6879746 | O133: -201.9646413 | P133: 201.9646413 | Q133: 40789.71634 | R133: 244.1447088
A134: 145.0233333 | B134: 124 | C134: -127.8972709 | D134: -78.15799943 | E134: 217.3490842 | F134: -67.14493355 | G134: 39.68924188 | H134: 14.95596667 | I134: 144.7604377 | J134: 0.06911412778 | K134: 1 | L134: 0.2628956595 | M134: -315.3646215 | N134: -170.6041838 | O134: 315.6275171 | P134: 315.6275171 | Q134: 99620.72957 | R134: 217.6391274
A135: 28.57 | B135: 125 | C135: -127.8898475 | D135: -72.48801264 | E135: 195.8801006 | F135: -58.3172606 | G135: 11.63039567 | H135: 11.90166667 | I135: 109.737691 | J135: 6588.194056 | K135: 1 | L135: -81.16769096 | M135: -113.2904447 | N135: -3.55275376 | O135: 32.12275376 | P135: 32.12275376 | Q135: 1031.871309 | R135: 112.4352599
A136: 7.486666667 | B136: 126 | C136: -127.8824077 | D136: -65.58451301 | E136: 171.0595541 | F136: -48.48629599 | G136: -17.22104279 | H136: 8.418833333 | I136: 72.80761011 | J136: 4266.825653 | K136: 0 | L136: -65.32094345 | M136: 21.70171081 | N136: 94.50932092 | O136: -87.02265426 | P136: 87.02265426 | Q136: 7572.942354 | R136: 0
A137: 3.553333333 | B137: 127 | C137: -127.8749514 | D137: -57.5649759 | E137: 143.3121313 | F137: -37.8211719 | G137: -44.89889564 | H137: 4.597633333 | I137: 36.07445188 | J137: 1057.623152 | K137: 0 | L137: -32.52111855 | M137: -66.96358778 | N137: -30.8891359 | O137: 34.44246923 | P137: 34.44246923 | Q137: 1186.283687 | R137: 0
A138: 0.1733333333 | B138: 128 | C138: -127.8674787 | D138: -48.56586805 | E138: 113.1125982 | F138: -26.50537139 | G138: -69.51696295 | H138: 0.8701 | I138: 1.579232503 | J138: 1.976552474 | K138: 0 | L138: -1.405899169 | M138: -141.3695636 | N138: -139.7903311 | O138: 139.9636644 | P138: 139.9636644 | Q138: 19589.82735 | R138: 0
A139: 0 | B139: 129 | C139: -127.8599896 | D139: -38.74032533 | E139: 80.97767711 | F139: -14.73357179 | G139: -89.39756412 | H139: 0 | I139: -28.83145824 | J139: 831.2529842 | K139: 0 | L139: 28.83145824 | M139: -127.9220438 | N139: -156.7535021 | O139: 156.7535021 | P139: 156.7535021 | Q139: 24571.66041 | R139: 0
A140: 0 | B140: 130 | C140: -127.852484 | D140: -28.25554686 | E140: 47.45720555 | F140: -2.708295435 | G140: -103.185869 | H140: 0 | I140: -53.6226743 | J140: =(A140-I140)^2 -> 2875.391199 | K140: =IF(H140>=10,1,0) -> 0 | L140: =A140-I140 -> 53.6226743 | M140: -97.53214364 | N140: -151.1548179 | O140: 151.1548179 | P140: 151.1548179 | Q140: 22847.77899 | R140: 0
A141: 0 | B141: 131 | C141: -127.8449619 | D141: -17.28994987 | E141: 13.12472804 | F141: 9.363574502 | G141: -109.9422275 | H141: 0 | I141: -71.66652129 | J141: 5136.090274 | K141: 0 | L141: 71.66652129 | M141: -60.35245222 | N141: -132.0189735 | O141: 132.0189735 | P141: 132.0189735 | Q141: 17429.00937 | R141: 0
A142: 0 | B142: =B141+1 -> 132 | C142: -127.8374234 | D142: -6.030133542 | E142: -21.4323172 | F142: 21.27435326 | G142: -109.2062048 | H142: 0 | I142: =B$3+SUM(C142:G142) -> -82.3094103 | J142: 6774.839024 | K142: 0 | L142: 82.3094103 | M142: -20.99426648 | N142: -103.3036768 | O142: 103.3036768 | P142: 103.3036768 | Q142: 10671.64964 | R142: 0
A143: 0 | B143: 133 | C143: -127.8298685 | D143: 5.332296267 | E143: -55.62264955 | F143: 32.8191275 | G143: -101.0279598 | H143: 0 | I143: -85.40673863 | J143: 7294.311004 | K143: 0 | L143: 85.40673863 | M143: =$N$2*L142+$N$3*L141+$N$4*L140+$N$5*(L143-L142)+$N$6*(L142-L141) -> 15.92723741 | N143: -69.47950123 | O143: 69.47950123 | P143: 69.47950123 | Q143: 4827.40109 | R143: 0
A144: 0 | B144: 134 | C144: -127.8222971 | D144: 16.60398754 | E144: -88.86126295 | F144: 43.79928062 | G144: -85.96482624 | H144: 0 | I144: -81.32280272 | J144: 6613.398242 | K144: 0 | L144: 81.32280272 | M144: 48.14576095 | N144: =I144+M144 -> -33.17704176 | O144: =(A144-N144) -> 33.17704176 | P144: =ABS(O144) -> 33.17704176 | Q144: =O144^2 -> 1100.7161 | R144: =IF(A144=0,0,ABS(K144*P144/A144)*100) -> 0
A145: 0 | B145: 135 | C145: -127.8147093 | D145: 27.59313235 | E145: -120.5794355 | F145: 54.02590979 | G145: -65.04333185 | H145: 0 | I145: -70.89611909 | J145: 5026.259702 | K145: 0 | L145: 70.89611909 | M145: 73.86810204 | N145: 2.971982953 | O145: -2.971982953 | P145: 2.971982953 | Q145: 8.832682674 | R145: 0
A146: 0 | B146: 136 | C146: -127.8071051 | D146: 38.1127308 | E146: -150.2344605 | F146: 63.32307581 | G146: -39.68924188 | H146: 0 | I146: -55.37268539 | J146: 3066.134287 | K146: 0 | L146: 55.37268539 | M146: 91.77388094 | N146: 36.40119556 | O146: -36.40119556 | P146: 36.40119556 | Q146: 1325.047038 | R146: 0
A147: 0 | B147: 137 | C147: -127.7994844 | D147: 47.98377315 | E147: -177.3189322 | F147: 71.53083 | G147: -11.63039567 | H147: 0 | I147: -36.31189366 | J147: 1318.553621 | K147: 0 | L147: 36.31189366 | M147: 101.0981235 | N147: 64.78622982 | O147: -64.78622982 | P147: 64.78622982 | Q147: 4197.255574 | R147: 0
A148: 0 | B148: 138 | C148: -127.7918473 | D148: 57.038286 | E148: -201.3694278 | F148: 78.50796595 | G148: 17.22104279 | H148: 0 | I148: -15.47166489 | J148: 239.3724144 | K148: 0 | L148: 15.47166489 | M148: 101.675604 | N148: 86.20393906 | O148: -86.20393906 | P148: 86.20393906 | Q148: 7431.11911 | R148: 0
A149: 0 | B149: 139 | C149: -127.7841937 | D149: 65.12219068 | E149: -221.9744367 | F149: 84.13444882 | G149: 44.89889564 | H149: 0 | I149: 5.3192202 | J149: 28.29410354 | K149: 0 | L149: -5.3192202 | M149: 93.94405903 | N149: 99.26327923 | O149: -99.26327923 | P149: 99.26327923 | Q149: 9853.198604 | R149: 0
A150: 0 | B150: 140 | C150: -127.7765237 | D150: 72.09792513 | E150: -238.7814014 | F150: 88.31348047 | G150: 69.51696295 | H150: 0 | I150: 24.29275887 | J150: 590.1381337 | K150: 0 | L150: -24.29275887 | M150: 78.90619117 | N150: 103.19895 | O150: -103.19895 | P150: 103.19895 | Q150: 10650.02329 | R150: 0
A151: 0 | B151: 141 | C151: -127.7688373 | D151: 77.84678477 | E151: -251.5027501 | F151: 90.97316472 | G151: 89.39756412 | H151: 0 | I151: 39.86824162 | J151: 1589.47669 | K151: 0 | L151: -39.86824162 | M151: 58.0531906 | N151: 97.92143223 | O151: -97.92143223 | P151: 97.92143223 | Q151: 9588.606889 | R151: 0
A152: 0 | B152: 142 | C152: -127.7611344 | D152: 82.27094252 | E152: -259.9208171 | F152: 92.0677443 | G152: 103.185869 | H152: 0 | I152: 50.76491976 | J152: 2577.077078 | K152: 0 | L152: -50.76491976 | M152: 33.2551271 | N152: 84.02004686 | O152: -84.02004686 | P152: 84.02004686 | Q152: 7059.368275 | R152: 0
A153: 0 | B153: 143 | C153: -127.7534152 | D153: 85.29511342 | E153: -263.8915668 | F153: 91.57838803 | G153: 109.9422275 | H153: 0 | I153: 56.09306244 | J153: 3146.431653 | K153: 0 | L153: -56.09306244 | M153: 6.625817819 | N153: 62.71888026 | O153: -62.71888026 | P153: 62.71888026 | Q153: 3933.65794 | R153: 0
A154: 0 | B154: 144 | C154: -127.7456794 | D154: 86.86783583 | E154: -263.3470586 | F154: 89.51351481 | G154: 109.2062048 | H154: 0 | I154: 55.41713285 | J154: 3071.058613 | K154: 0 | L154: -55.41713285 | M154: -19.62848827 | N154: 35.78864458 | O154: -35.78864458 | P154: 35.78864458 | Q154: 1280.827081 | R154: 0
A155: 0 | B155: 145 | C155: -127.7379273 | D155: 86.96234707 | E155: -258.2966093 | F155: 85.90864877 | G155: 101.0279598 | H155: 0 | I155: 48.7867345 | J155: 2380.145463 | K155: 0 | L155: -48.7867345 | M155: -43.36617297 | N155: 5.420561527 | O155: -5.420561527 | P155: 5.420561527 | Q155: 29.38248727 | R155: 0
A156: 0 | B156: 146 | C156: -127.7301587 | D156: 85.57703884 | E156: -248.8266333 | F156: 80.82580812 | G156: 85.96482624 | H156: 0 | I156: 36.73319661 | J156: 1349.327733 | K156: 0 | L156: -36.73319661 | M156: -62.6622401 | N156: -25.92904349 | O156: 25.92904349 | P156: 25.92904349 | Q156: 672.3152962 | R156: 0
A157: 0 | B157: 147 | C157: -127.7223737 | D157: 82.73548466 | E157: -235.0991647 | F157: 74.35243819 | G157: 65.04333185 | H157: 0 | I157: 20.23203174 | J157: 409.3351083 | K157: 0 | L157: -20.23203174 | M157: -75.94477388 | N157: -55.71274214 | O157: 55.71274214 | P157: 55.71274214 | Q157: 3103.909637 | R157: 0
A158: 0 | B158: 148 | C158: -127.7145723 | D158: 78.48603863 | E158: -217.3490842 | F158: 66.59990699 | G158: 39.68924188 | H158: 0 | I158: 0.6338464934 | J158: 0.4017613772 | K158: 0 | L158: -0.6338464934 | M158: -82.10647469 | N158: -81.4726282 | O158: 81.4726282 | P158: 81.4726282 | Q158: 6637.789146 | R158: 0
A159: 0 | B159: 149 | C159: -127.7067544 | D159: 72.90101265 | E159: -195.8801006 | F159: 57.70158927 | G159: 11.63039567 | H159: 0 | I159: -20.43154194 | J159: 417.4479062 | K159: 0 | L159: 20.43154194 | M159: -80.58359552 | N159: -101.0151375 | O159: 101.0151375 | P159: 101.0151375 | Q159: 10204.058 | R159: 0
A160: 0 | B160: 150 | C160: -127.6989201 | D160: 66.0754459 | E160: -171.0595541 | F160: 47.81057192 | G160: -17.22104279 | H160: 0 | I160: -41.17118377 | J160: 1695.066373 | K160: 0 | L160: 41.17118377 | M160: -71.39684009 | N160: -112.5680239 | O160: 112.5680239 | P160: 112.5680239 | Q160: 12671.55999 | R160: 0
A161: 0 | B161: 151 | C161: -127.6910694 | D161: 58.12548759 | E161: -143.3121313 | F161: 37.09702026 | G161: -44.89889564 | H161: 0 | I161: -59.75727305 | J161: 3570.931682 | K161: 0 | L161: 59.75727305 | M161: -55.15139278 | N161: -114.9086658 | O161: 114.9086658 | P161: 114.9086658 | Q161: 13204.00148 | R161: 0
A162: 0 | B162: 152 | C162: -127.6832023 | D162: 49.18642042 | E162: -113.1125982 | F162: 25.7452505 | G162: -69.51696295 | H162: 0 | I162: -74.45877701 | J162: 5544.109474 | K162: 0 | L162: 74.45877701 | M162: -32.99605363 | N162: -107.4548306 | O162: 107.4548306 | P162: 107.4548306 | Q162: 11546.54063 | R162: 0
A163: 0 | B163: 153 | C163: -127.6753187 | D163: 39.41035857 | E163: -80.97767711 | F163: 13.95055879 | G163: -89.39756412 | H163: 0 | I163: -83.76732713 | J163: 7016.965095 | K163: 0 | L163: 83.76732713 | M163: -6.544256318 | N163: -90.31158345 | O163: 90.31158345 | P163: 90.31158345 | Q163: 8156.182105 | R163: 0
A164: 0 | B164: 154 | C164: -127.6674187 | D164: 28.96365917 | E164: -47.45720555 | F164: 1.915861308 | G164: -103.185869 | H164: 0 | I164: -86.50865738 | J164: 7483.747802 | K164: 0 | L164: 86.50865738 | M164: 22.23763653 | N164: -64.27102085 | O164: 64.27102085 | P164: 64.27102085 | Q164: 4130.764121 | R164: 0
A165: 0 | B165: 155 | C165: -127.6595023 | D165: 18.02409145 | E165: -13.12472804 | F165: -10.1517967 | G165: -109.9422275 | H165: 0 | I165: -81.93184767 | J165: 6712.827663 | K165: 0 | L165: 81.93184767 | M165: 51.16711862 | N165: -30.76472905 | O165: 30.76472905 | P165: 30.76472905 | Q165: 946.4685534 | R165: 0
A166: 0 | B166: 156 | C166: -127.6515695 | D166: 6.777811658 | E166: 21.4323172 | F166: -22.04480294 | G166: -109.2062048 | H166: 0 | I166: -69.77013299 | J166: 4867.871457 | K166: 0 | L166: 69.77013299 | M166: 77.99803679 | N166: 8.227903802 | O166: -8.227903802 | P166: 8.227903802 | Q166: 67.69840098 | R166: 0
A167: 0 | B167: 157 | C167: -127.6436203 | D167: -4.583804685 | E167: 55.62264955 | F167: -33.55854982 | G167: -101.0279598 | H167: 0 | I167: -50.26896958 | J167: 2526.969303 | K167: 0 | L167: 50.26896958 | M167: 100.5783428 | N167: 50.30937321 | O167: -50.30937321 | P167: 50.30937321 | Q167: 2531.033033 | R167: 0
A168: 0 | B168: 158 | C168: -127.6356546 | D168: -15.86741942 | E168: 88.86126295 | F168: -44.49495454 | G168: -85.96482624 | H168: 0 | I168: -24.17927644 | J168: 584.6374091 | K168: 0 | L168: 24.17927644 | M168: 117.0022697 | N168: 92.82299331 | O168: -92.82299331 | P168: 92.82299331 | Q168: 8616.108087 | R168: 0
A169: 7.743333333 | B169: 159 | C169: -127.6276726 | D169: -26.8810217 | E169: 120.5794355 | F169: -54.66586692 | G169: -65.04333185 | H169: 1.360433333 | I169: 7.283857908 | J169: 0.2111176668 | K169: 0 | L169: 0.4594754257 | M169: 114.4504937 | N169: 121.7343516 | O169: -113.9910183 | P169: 113.9910183 | Q169: 12993.95226 | R169: 0
A170: 61.29 | B170: 160 | C170: -127.6196741 | D170: -37.43719545 | E170: 150.2344605 | F170: -63.89630631 | G170: -39.68924188 | H170: 5.259833333 | I170: 42.51435819 | J170: 352.5247254 | K170: 0 | L170: 18.77564181 | M170: 37.49907053 | N170: 80.01342872 | O170: -18.72342872 | P170: 18.72342872 | Q170: 350.566783 | R170: 0
A171: 129.9733333 | B171: 161 | C171: -127.6116592 | D171: -47.35630855 | E171: 177.3189322 | F171: -72.027472 | G171: -11.63039567 | H171: 9.0441 | I171: 79.61541222 | J171: 2535.920219 | K171: 0 | L171: 50.35792111 | M171: -54.00661986 | N171: 25.60879236 | O171: 104.364541 | P171: 104.364541 | Q171: 10891.95741 | R171: 0
A172: 217.4766667 | B172: 162 | C172: -127.6036279 | D172: -56.46956958 | E172: 201.3694278 | F172: -78.9194752 | G172: 17.22104279 | H172: 12.47256667 | I172: 116.5201134 | J172: 10192.22566 | K172: 1 | L172: 100.9565533 | M172: -115.3286559 | N172: 1.19145743 | O172: 216.2852092 | P172: 216.2852092 | Q172: 46779.29173 | R172: 99.45214471
A173: 252.5166667 | B173: 163 | C173: -127.5955802 | D173: -64.62190016 | E173: 221.9744367 | F173: -84.45374572 | G173: 44.89889564 | H173: 15.4609 | I173: 151.1244217 | J173: 10280.38734 | K173: 1 | L173: 101.392245 | M173: -55.49686851 | N173: 95.6275532 | O173: 156.8891135 | P173: 156.8891135 | Q173: 24614.19392 | R173: 62.13020136
A174: 281.6633333 | B174: 164 | C174: -127.587516 | D174: -71.67457384 | E174: 238.7814014 | F174: -88.53507181 | G174: 69.51696295 | H174: 17.94143333 | I174: 181.4235181 | J174: 10048.02056 | K174: 1 | L174: 100.2398152 | M174: 32.80486781 | N174: 214.2283859 | O174: 67.43494743 | P174: 67.43494743 | Q174: 4547.472134 | R174: 23.94168479
A175: 331.2366667 | B175: 165 | C175: -127.5794355 | D175: -77.5075768 | E175: 251.5027501 | F175: -91.09323825 | G175: 89.39756412 | H175: 19.85276667 | I175: 205.6423792 | J175: 15773.92506 | K175: 1 | L175: 125.5942875 | M175: 29.95804172 | N175: 235.6004209 | O175: 95.63624579 | P175: 95.63624579 | Q175: 9146.29151 | R175: 28.87248165
A176: 343.7566667 | B176: 166 | C176: -127.5713385 | D176: -82.02165008 | E176: 259.9208171 | F176: -92.08423427 | G176: 103.185869 | H176: 21.14366667 | I176: 222.3517787 | J176: 14739.14683 | K176: 1 | L176: 121.404888 | M176: 38.56254208 | N176: 260.9143207 | O176: 82.84234593 | P176: 82.84234593 | Q176: 6862.854279 | R176: 24.09912417
A177: 333.8666667 | B177: 167 | C177: -127.5632252 | D177: -85.13997869 | E177: 263.8915668 | F177: -91.49101074 | G177: 109.9422275 | H177: 21.77613333 | I177: 230.5618951 | J177: 10671.87583 | K177: 1 | L177: 103.3047716 | M177: 96.40686998 | N177: 326.9687651 | O177: 6.897901574 | P177: 6.897901574 | Q177: 47.58104613 | R177: 2.066064769
A178: 327.62 | B178: 168 | C178: -127.5550954 | D178: -86.80949869 | E178: 263.3470586 | F178: -89.3237735 | G178: 109.2062048 | H178: 21.73116667 | I178: 229.7872113 | J178: 9571.254546 | K178: 1 | L178: 97.83278871 | M178: 113.2383504 | N178: 343.0255617 | O178: -15.40556172 | P178: 15.40556172 | Q178: 237.3313318 | R178: 4.702265343
A179: 315.3366667 | B179: 169 | C179: -127.5469493 | D179: -87.00180022 | E179: 258.2966093 | F179: -85.61980776 | G179: 101.0279598 | H179: 21.00966667 | I179: 220.0783273 | J179: 9074.151224 | K179: 1 | L179: 95.25833939 | M179: 89.97398792 | N179: 310.0523152 | O179: 5.284351475 | P179: 5.284351475 | Q179: 27.92437051 | R179: 1.675780851
A180: 293.74 | B180: 170 | C180: =C$3*COS(C$2*$B180)+C$4*SIN(C$2*$B180) -> -127.5387867 | D180: -85.71361094 | E180: 248.8266333 | F180: -80.44283664 | G180: 85.96482624 | H180: 19.63403333 | I180: 202.0185408 | J180: 8412.826085 | K180: 1 | L180: 91.72145924 | M180: 75.60458916 | N180: 277.6231299 | O180: 16.11687008 | P180: 16.11687008 | Q180: 259.7535012 | R180: 5.486780854
A181: 265.8066667 | B181: 171 | C181: -127.5306077 | D181: -82.96685167 | E181: 235.0991647 | F181: -73.88192488 | G181: 65.04333185 | H181: 17.64393333 | I181: 176.6854277 | J181: 7942.595228 | K181: 1 | L181: 89.12123893 | M181: 71.90083456 | N181: 248.5862623 | O181: 17.22040437 | P181: 17.22040437 | Q181: 296.5423268 | R181: 6.478544947
A182: 214.1666667 | B182: 172 | C182: -127.5224123 | D182: -78.80826344 | E182: 217.3490842 | F182: -66.04994658 | G182: 39.68924188 | H182: 15.0925 | I182: 145.5800192 | J182: 4704.128216 | K182: 1 | L182: 68.5866475 | M182: 95.18280652 | N182: 240.7628257 | O182: -26.59615901 | P182: 26.59615901 | Q182: 707.3556742 | R182: 12.41844001
A183: 137.19 | B183: 173 | C183: -127.5142006 | D183: -73.30861202 | E183: 195.8801006 | F183: -57.0816433 | G183: 11.63039567 | H183: 12.04186667 | I183: 110.5283558 | J183: 710.8432706 | K183: 1 | L183: 26.66164418 | M183: 147.6266408 | N183: 258.1549967 | O183: -120.9649967 | P183: 120.9649967 | Q183: 14632.53042 | R183: 88.17333382
A184: 93.52 | B184: 174 | C184: -127.5059724 | D184: -66.56148381 | E184: 171.0595541 | F184: -47.13130595 | G184: -17.22104279 | H184: 8.560966667 | I184: 73.56206466 | J184: 398.3191832 | K184: 0 | L184: 19.95793534 | M184: 122.9834762 | N184: 196.5455409 | O184: -103.0255409 | P184: 103.0255409 | Q184: 10614.26208 | R184: 0
A185: 34.23666667 | B185: 175 | C185: -127.4977278 | D185: -58.68169323 | E185: 143.3121313 | F185: -36.3701204 | G185: -44.89889564 | H185: 4.738766667 | I185: 36.78600968 | J185: 6.499149816 | K185: 0 | L185: -2.549343017 | M185: 86.87812022 | N185: 123.6641299 | O185: -89.42746324 | P185: 89.42746324 | Q185: 7997.271182 | R185: 0
A186: 7.776666667 | B186: 176 | C186: -127.4894668 | D186: -49.80332896 | E186: 113.1125982 | F186: -24.98322236 | G186: -69.51696295 | H186: 0.9611 | I186: 2.24193252 | J186: 30.63328208 | K186: 0 | L186: 5.534734147 | M186: 35.16869256 | N186: 37.41062508 | O186: -29.63395842 | P186: 29.63395842 | Q186: 878.1714914 | R186: 0
A187: 0 | B187: 177 | C187: -127.4811894 | D187: -40.07747222 | E187: 80.97767711 | F187: -13.16651231 | G187: -89.39756412 | H187: 0 | I187: -28.22274554 | J187: 796.5233658 | K187: 0 | L187: 28.22274554 | M187: -30.35485295 | N187: -58.57759849 | O187: 58.57759849 | P187: 58.57759849 | Q187: 3431.335044 | R187: 0
A188: 0 | B188: 178 | C188: -127.4728957 | D188: -29.66962579 | E188: 47.45720555 | F188: -1.123285251 | G188: -103.185869 | H188: 0 | I188: -53.07215476 | J188: 2816.65361 | K188: 0 | L188: 53.07215476 | M188: -67.84560231 | N188: -120.9177571 | O188: 120.9177571 | P188: 120.9177571 | Q188: 14621.10397 | R188: 0
A189: 0 | B189: 179 | C189: -127.4645855 | D189: -18.75689776 | E189: 13.12472804 | F189: 10.93926684 | G189: -109.9422275 | H189: 0 | I189: -71.17740044 | J189: 5066.222333 | K189: 0 | L189: 71.17740044 | M189: -55.87834278 | N189: -127.0557432 | O189: 127.0557432 | P189: 127.0557432 | Q189: 16143.16188 | R189: 0
A190: 0 | B190: 180 | C190: -127.456259 | D190: -7.524987662 | E190: -21.4323172 | F190: 22.8136195 | G190: -109.2062048 | H190: 0 | I190: -81.8838337 | J190: 6704.962221 | K190: 0 | L190: 81.8838337 | M190: -21.56324324 | N190: -103.4470769 | O190: 103.4470769 | P190: 103.4470769 | Q190: 10701.29773 | R190: 0
A191: 0 | B191: 181 | C191: -127.447916 | D191: 3.834973527 | E191: -55.62264955 | F191: 34.29548606 | G191: -101.0279598 | H191: 0 | I191: -85.0457503 | J191: 7232.779644 | K191: 0 | L191: 85.0457503 | M191: 15.39158116 | N191: -69.65416914 | O191: 69.65416914 | P191: 69.65416914 | Q191: 4851.703279 | R191: 0
A192: 0 | B192: 182 | C192: -127.4395567 | D192: 15.1296758 | E192: -88.86126295 | F192: 45.1873322 | G192: -85.96482624 | H192: 0 | I192: -81.0263224 | J192: 6565.264921 | K192: 0 | L192: 81.0263224 | M192: 47.64860939 | N192: -33.377713 | O192: 33.377713 | P192: 33.377713 | Q192: 1114.071725 | R192: 0
A193: 0 | B193: 183 | C193: -127.4311809 | D193: 26.16691965 | E193: -120.5794355 | F193: 55.3017743 | G193: -65.04333185 | H193: 0 | I193: -70.66293886 | J193: 4993.250929 | K193: 0 | L193: 70.66293886 | M193: 73.41398784 | N193: 2.751048982 | O193: -2.751048982 | P193: 2.751048982 | Q193: 7.5682705 | R193: 0
A194: 0 | B194: 184 | C194: -127.4227888 | D194: 36.75888669 | E194: -150.2344605 | F194: 64.46480326 | G194: -39.68924188 | H194: 0 | I194: -55.20048575 | J194: 3047.093627 | K194: 0 | L194: 55.20048575 | M194: 91.36660416 | N194: 36.16611841 | O194: -36.16611841 | P194: 36.16611841 | Q194: 1307.988121 | R194: 0
A195: 0 | B195: 185 | C195: -127.4143803 | D195: 46.72533571 | E195: -177.3189322 | F195: 72.51877808 | G195: -11.63039567 | H195: 0 | I195: -36.1972789 | J195: 1310.243 | K195: 0 | L195: 36.1972789 | M195: 100.7406828 | N195: 64.54340388 | O195: -64.54340388 | P195: 64.54340388 | Q195: 4165.850984 | R195: 0
A196: 0 | B196: 186 | C196: -127.4059554 | D196: 55.89666979 | E196: -201.3694278 | F196: 79.32513796 | G196: 17.22104279 | H196: 0 | I196: -15.41021719 | J196: 237.4747939 | K196: 0 | L196: 15.41021719 | M196: 101.3701414 | N196: 85.95992419 | O196: -85.95992419 | P196: 85.95992419 | Q196: 7389.108567 | R196: 0
A197: 0 | B197: 187 | C197: -127.3975141 | D197: 64.11682233 | E197: -221.9744367 | F197: 84.76678613 | G197: 44.89889564 | H197: 0 | I197: 5.332868778 | J197: 28.4394894 | K197: 0 | L197: -5.332868778 | M197: 93.69181938 | N197: 99.02468816 | O197: -99.02468816 | P197: 99.02468816 | Q197: 9805.888865 | R197: 0
A198: 0 | B198: 188 | C198: -127.3890564 | D198: 71.24591277 | E198: -238.7814014 | F198: 88.75010432 | G198: 69.51696295 | H198: 0 | I198: 24.26483767 | J198: 588.7823473 | K198: 0 | L198: -24.26483767 | M198: 78.70749665 | N198: 102.9723343 | O198: -102.9723343 | P198: 102.9723343 | Q198: 10603.30164 | R198: 0
A199: 0 | B199: 189 | C199: -127.3805824 | D199: 77.16262693 | E199: -251.5027501 | F199: 91.20656343 | G199: 89.39756412 | H199: 0 | I199: 39.80573742 | J199: 1584.496731 | K199: 0 | L199: -39.80573742 | M199: 57.90743139 | N199: 97.71316881 | O199: -97.71316881 | P199: 97.71316881 | Q199: 9547.863359 | R199: 0
A200: 0 | B200: 190 | C200: -127.3720919 | D200: 81.76628134 | E200: -259.9208171 | F200: 92.09390247 | G200: 103.185869 | H200: 0 | I200: 50.67545926 | J200: 2568.002172 | K200: 0 | L200: -50.67545926 | M200: 33.16076796 | N200: 83.83622722 | O200: -83.83622722 | P200: 83.83622722 | Q200: 7028.512995 | R200: 0
... 4300 more rows

Sheet Q1-solar_2018(AR from 2017)
C1: 1/year | E1: 1/day | G1: 2/day | I1: n= | J1: 17520 | L1: AR coefficients | M1: Type | N1: Coef | O1: SE Coef | P1: T-Value | Q1: P-Value | T1: Error Metric | U1: MeAPE | V1: =_xlfn.AGGREGATE(12,1,R15:R17530) -> 0
A2: Frequency | C2: =2*PI()/J1 -> 0.0003586292984 | D2: =2*PI()*364/J1 -> 0.1305410646 | E2: =2*PI()*365/J1 -> 0.1308996939 | F2: =2*PI()*366/J1 -> 0.1312583232 | G2: =2*PI()*730/J1 -> 0.2617993878 | M2: AR 1 | N2: 0.87324 | O2: 0.00755 | P2: 115.68 | Q2: 0 | U2: MBE | V2: =SUBTOTAL(109, O15:O17530)/L7 -> -0.001967735802
A3: Mean | B3: =AVERAGE(A11:A17530) -> 160.9223154 | C3: -128.6900023 | D3: 87.08259904 | E3: -263.3470586 | F3: 90.51224742 | G3: 109.2062048 | M3: AR 2 | N3: 0.0654 | O3: 0.01 | P3: 6.53 | Q3: 0 | U3: NRMSE | V3: =SQRT(SUBTOTAL(109,Q15:Q17530)/L7)/T7 -> 0.3027001995
A4: Variance | B4: =STDEV(A11:A17530)^2 -> 63923.64921 | C4: 14.97017503 | D4: 1.911405374 | E4: 21.4323172 | F4: -17.01024437 | G4: -17.22104279 | M4: AR 3 | N4: -0.0197 | O4: 0.01 | P4: -1.97 | Q4: 0.049 | U4: NMAE | V4: =SUBTOTAL(109, P15:P17530)/(L7*T7) -> 0.1581838477
B5: Contribution | C5: =(C3^2+C4^2)/2 -> 8392.611417 | D5: =(D3^2+D4^2)/2 -> 3793.516263 | E5: 34905.50876 | F5: 4240.907673 | G5: 6111.279744 | M5: AR 4 | N5: -0.04244 | O5: 0.00755 | P5: -5.62 | Q5: 0 | U5: NMBE | V5: =SUBTOTAL(109,O15:O17530)/(L7*T7) -> -1.22249204e-05
B6: Variance Explained | C6: =C5/$B$4 -> 0.1312911813 | D6: =D5/$B$4 -> 0.05934448847 | E6: =E5/$B$4 -> 0.5460500017 | F6: =F5/$B$4 -> 0.06634332873 | G6: =G5/$B$4 -> 0.09560279834 | I6: Three | J6: OLS | U6: SS
I7: Cycle | K7: Valid_Count | L7: =SUBTOTAL(2,K15:K17530) -> 17516 | S7: Final Mean | T7: =SUBTOTAL(1,N15:N17530) -> 160.9610318
F8: Total | G8: =SUM(C6:G6) -> 0.8986317985 | I8: + | J8: =SUM(J11:J17530) -> 186127028.3
C9: Frequencies | I9: Beats
A10: Series | B10: Time | C10: 1 | D10: 364 | E10: 365 | F10: 366 | G10: 730 | H10: Elevation | I10: Model | J10: Diff^2 | K10: Valid_Elevation | L10: Residuals | M10: AR(4) | N10: Final Model | O10: Diff | P10: ABS(Diff) | Q10: Diff^2 | R10: Diff/yi
A11: 0 | B11: 1 | C11: =C$3*COS(C$2*$B11)+C$4*SIN(C$2*$B11) -> -128.6846253 | D11: 86.59047499 | E11: -258.2966093 | F11: 87.50732943 | G11: 101.0279598 | H11: 0 | I11: =B$3+SUM(C11:G11) -> 49.06684509 | J11: =(A11-I11)^2 -> 2407.555287 | K11: =IF(H11>=10,1,0) -> 0 | L11: =A11-I11 -> -49.06684509
A12: 0 | B12: =B11+1 -> 2 | C12: -128.6792317 | D12: 84.62485956 | E12: -248.8266333 | F12: 82.99693309 | G12: 85.96482624 | H12: 0 | I12: 37.00306928 | J12: =(A12-I12)^2 -> 1369.227136 | K12: 0 | L12: =A12-I12 -> -37.00306928
A13: 0 | B13: =B12+1 -> 3 | C13: -128.6738216 | D13: 81.21920119 | E13: -235.0991647 | F13: 77.05865538 | G13: 65.04333185 | H13: 0 | I13: 20.47051756 | J13: 419.042089 | K13: 0 | L13: -20.47051756
A14: 0 | B14: =B13+1 -> 4 | C14: -128.6683949 | D14: 76.43145324 | E14: -217.3490842 | F14: 69.79465857 | G14: 39.68924188 | H14: 0 | I14: 0.8201900145 | J14: 0.6727116598 | K14: 0 | L14: -0.8201900145
A15: 0 | B15: 5 | C15: -128.6629517 | D15: 70.34308777 | E15: -195.8801006 | F15: 61.32991265 | G15: 11.63039567 | H15: 0 | I15: -20.31734075 | J15: 412.7943351 | K15: 0 | L15: 20.31734075 | M15: =$N$2*L14+$N$3*L13+$N$4*L12+$N$5*L11 -> 0.7563627941 | N15: =I15+M15 -> -19.56097795 | O15: =(A15-N15) -> 19.56097795 | P15: =ABS(O15) -> 19.56097795 | Q15: =O15^2 -> 382.6318586 | R15: =IF(A15=0,0,ABS(K15*P15/A15)*100) -> 0
A16: 0 | B16: 6 | C16: -128.6574919 | D16: 63.0577092 | E16: -171.0595541 | F16: 51.81004533 | G16: -17.22104279 | H16: 0 | I16: -41.14801889 | J16: 1693.159459 | K16: 0 | L16: 41.14801889 | M16: =$N$2*L15+$N$3*L14+$N$4*L13+$N$5*L12 -> 19.66195366 | N16: -21.48606523 | O16: =(A16-N16) -> 21.48606523 | P16: =ABS(O16) -> 21.48606523 | Q16: =O16^2 -> 461.6509989 | R16: =IF(A16=0,0,ABS(K16*P16/A16)*100) -> 0
A17: 0 | B17: 7 | C17: -128.6520156 | D17: 54.69929123 | E17: -143.3121313 | F17: 41.39883666 | G17: -44.89889564 | H17: 0 | I17: -59.84259924 | J17: 3581.136684 | K17: 0 | L17: 59.84259924 | M17: 38.14577661 | N17: -21.69682263 | O17: 21.69682263 | P17: 21.69682263 | Q17: 470.7521122 | R17: 0
A18: 0 | B18: 8 | C18: -128.6465228 | D18: 45.41006724 | E18: -113.1125982 | F18: 30.27540133 | G18: -69.51696295 | H18: 0 | I18: -74.66829986 | J18: 5575.355004 | K18: 0 | L18: 74.66829986 | M18: 54.58258905 | N18: -20.08571082 | O18: 20.08571082 | P18: 20.08571082 | Q18: 403.435779 | R18: 0
A19: 0 | B19: 9 | C19: -128.6410134 | D19: 35.34810996 | E19: -80.97767711 | F19: 18.63110722 | G19: -89.39756412 | H19: 0 | I19: -84.11472196 | J19: 7075.286451 | K19: 0 | L19: 84.11472196 | M19: 67.44416825 | N19: -16.67055371 | O19: 16.67055371 | P19: 16.67055371 | Q19: 277.9073611 | R19: 0
A20: 0 | B20: 10 | C20: -128.6354874 | D20: 24.68464154 | E20: -47.45720555 | F20: 6.666283053 | G20: -103.185869 | H20: 0 | I20: -87.00532194 | J20: 7569.926047 | K20: 0 | L20: 87.00532194 | M20: 75.41042549 | N20: -11.59489645 | O20: 11.59489645 | P20: 11.59489645 | Q20: 134.4416238 | R20: 0
A21: 0 | B21: 11 | C21: -128.6299449 | D21: 13.60111992 | E21: -13.12472804 | F21: -5.413228016 | G21: -109.9422275 | H21: 0 | I21: -82.5866931 | J21: 6820.561877 | K21: 0 | L21: 82.5866931 | M21: 77.46694473 | N21: -5.119748366 | O21: 5.119748366 | P21: 5.119748366 | Q21: 26.21182333 | R21: 0
A22: 0 | B22: 12 | C22: -128.6243859 | D22: 2.286150974 | E22: 21.4323172 | F22: -17.39960977 | G22: -109.2062048 | H22: 0 | I22: -70.58941686 | J22: 4982.865772 | K22: 0 | L22: 70.58941686 | M22: 72.98216927 | N22: 2.392752409 | O22: -2.392752409 | P22: 2.392752409 | Q22: 5.72526409 | R22: 0
A23: 0 | B23: 13 | C23: -128.6188103 | D23: -9.067720906 | E23: 55.62264955 | F23: -29.08664819 | G23: -101.0279598 | H23: 0 | I23: -51.25617418 | J23: 2627.195391 | K23: 0 | L23: 51.25617418 | M23: 61.75883846 | N23: 10.50266428 | O23: -10.50266428 | P23: 10.50266428 | Q23: 110.3059571 | R23: 0
A24: 0 | B24: 14 | C24: -128.6132182 | D24: -20.26728934 | E24: 88.86126295 | F24: -40.27327916 | G24: -85.96482624 | H24: 0 | I24: -25.33503452 | J24: 641.863974 | K24: 0 | L24: 25.33503452 | M24: 44.05602568 | N24: 18.72099117 | O24: -18.72099117 | P24: 18.72099117 | Q24: 350.4755103 | R24: 0
A25: 0.3933333333 | B25: 15 | C25: -128.6076095 | D25: -31.12197369 | E25: 120.5794355 | F25: -50.7670476 | G25: -65.04333185 | H25: 1.342933333 | I25: 5.961788296 | J25: 31.00769067 | K25: 0 | L25: -5.568454962 | M25: 20.58012857 | N25: 26.54191686 | O25: -26.14858353 | P25: 26.14858353 | Q25: 683.7484206 | R25: 0
A26: 8.44 | B26: 16 | C26: -128.6019843 | D26: -41.44706215 | E26: 150.2344605 | F26: -60.38741844 | G26: -39.68924188 | H26: 5.215633333 | I26: 41.03106915 | J26: 1062.177788 | K26: 0 | L26: -32.59106915 | M26: -7.211247837 | N26: 33.81982131 | O26: -25.37982131 | P26: 25.37982131 | Q26: 644.1353297 | R26: 0
A27: 24.57 | B27: 17 | C27: =C$3*COS(C$2*$B27)+C$4*SIN(C$2*$B27) -> -128.5963426 | D27: -51.06685492 | E27: 177.3189322 | F27: -68.96888258 | G27: -11.63039567 | H27: 8.972633333 | I27: 77.97877191 | J27: 2852.496917 | K27: 0 | L27: -53.40877191 | M27: -31.49841439 | N27: 46.48035752 | O27: -21.91035752 | P27: 21.91035752 | Q27: 480.0637667 | R27: 0
A28: 30.02 | B28: 18 | C28: -128.5906843 | D28: -59.81765406 | E28: 201.3694278 | F28: -76.36380428 | G28: 17.22104279 | H28: 12.37103333 | I28: 114.7406434 | J28: 7177.587422 | K28: 1 | L28: -84.72064343 | M28: -49.73565221 | N28: 65.00499122 | O28: -34.98499122 | P28: 34.98499122 | Q28: 1223.949611 | R28: 116.5389448
A29: 14.91666667 | B29: 19 | C29: -128.5850094 | D29: -67.55054912 | E29: 221.9744367 | F29: -82.44496113 | G29: 44.89889564 | H29: 15.32696667 | I29: 149.2151281 | J29: 18036.07674 | K29: 1 | L29: -134.2984614 | M29: -76.59601906 | N29: 72.61910902 | O29: -57.70244235 | P29: 57.70244235 | Q29: 3329.571853 | R29: 386.8320158
A30: 14.9 | B30: 20 | C30: -128.5793181 | D30: -74.13395109 | E30: 238.7814014 | F30: -87.10773273 | G30: 69.51696295 | H30: 17.77336667 | I30: 179.3996779 | J30: 27060.14403 | K30: 1 | L30: -164.4996779 | M30: -120.3802007 | N30: 59.01947715 | O30: -44.11947715 | P30: 44.11947715 | Q30: 1946.528264 | R30: 296.1038735
A31: 35.27 | B31: 21 | C31: -128.5736102 | D31: -79.45583164 | E31: 251.5027501 | F31: -90.27190066 | G31: 89.39756412 | H31: 19.64953333 | I31: 203.5212872 | J31: 28308.49565 | K31: 1 | L31: -168.2512872 | M31: -148.4951531 | N31: 55.02613407 | O31: -19.75613407 | P31: 19.75613407 | Q31: 390.3048336 | R31: 56.01398944
A32: 47.32 | B32: 22 | C32: -128.5678857 | D32: -83.4256295 | E32: 259.9208171 | F32: -91.88302847 | G32: 103.185869 | H32: 20.9053 | I32: 220.1524579 | J32: 29871.05849 | K32: 1 | L32: -172.8324579 | M32: -151.4408092 | N32: 68.71164866 | O32: -21.39164866 | P32: 21.39164866 | Q32: 457.6026325 | R32: 45.20635812
A33: 83.1 | B33: 23 | C33: -128.5621448 | D33: -85.97579146 | E33: 263.8915668 | F33: -91.9133983 | G33: 109.9422275 | H33: 21.50406667 | I33: 228.3047752 | J33: 21084.42674 | K33: 1 | L33: -145.2047752 | M33: -152.9875793 | N33: 75.31719589 | O33: 7.782804112 | P33: 7.782804112 | Q33: 60.57203984 | R33: 9.365588582
A34: 76.52333333 | B34: 24 | C34: -128.5563873 | D34: -87.06292197 | E34: 263.3470586 | F34: -90.36248764 | G34: 109.2062048 | H34: 21.42746667 | I34: 227.493782 | J34: 22792.07638 | K34: 1 | L34: -150.9704487 | M34: -127.805944 | N34: 99.68783808 | O34: -23.16450475 | P34: 23.16450475 | Q34: 536.5942802 | R34: 30.27116533
A35: 77.45666667 | B35: 25 | C35: -128.5506132 | D35: -86.66852156 | E35: 258.2966093 | F35: -87.25697842 | G35: 101.0279598 | H35: 20.67793333 | I35: 217.7707713 | J35: 19688.04796 | K35: 1 | L35: -140.3141046 | M35: -130.7844429 | N35: 86.98632844 | O35: -9.52966177 | P35: 9.52966177 | Q35: 90.81445345 | R35: 12.30321699
A36: 70.36 | B36: 26 | C36: -128.5448226 | D36: -84.79930167 | E36: 248.8266333 | F36: -82.6502979 | G36: 85.96482624 | H36: 19.2782 | I36: 199.7193528 | J36: 16733.84216 | K36: 1 | L36: -129.3593528 | M36: -122.2058125 | N36: 77.51354031 | O36: -7.153540312 | P36: 7.153540312 | Q36: 51.173139 | R36: 10.16705559
A37: 51.99 | B37: 27 | C37: -128.5390155 | D37: -81.4870704 | E37: 235.0991647 | F37: -76.62169951 | G37: 65.04333185 | H37: 17.2682 | I37: 174.4170266 | J37: 14988.37683 | K37: 1 | L37: -122.4270266 | M37: -113.0016952 | N37: 61.41533136 | O37: -9.42533136 | P37: 9.42533136 | Q37: 88.83687125 | R37: 18.1291236
A38: 35.74333333 | B38: 28 | C38: -128.5331919 | D38: -76.78819127 | E38: 217.3490842 | F38: -69.27489943 | G38: 39.68924188 | H38: 14.70123333 | I38: 143.3643589 | J38: 11582.28515 | K38: 1 | L38: -107.6210256 | M38: -106.1969046 | N38: 37.16745427 | O38: -1.42412094 | P38: 1.42412094 | Q38: 2.028120452 | R38: 3.98429807
A39: 26.69333333 | B39: 29 | C39: -128.5273517 | D39: -70.78262411 | E39: 195.8801006 | F39: -60.73629219 | G39: 11.63039567 | H39: 11.63923333 | I39: 108.3865437 | J39: 6673.780615 | K39: 1 | L39: -81.69321034 | M39: -93.48240206 | N39: 14.9041416 | O39: 11.78919173 | P39: 11.78919173 | Q39: 138.9850416 | R39: 44.16530368
A40: 21.04 | B40: 30 | C40: -128.521495 | D40: -63.57256433 | E40: 171.0595541 | F40: -51.15277622 | G40: -17.22104279 | H40: 8.151333333 | I40: 71.51399122 | J40: 2547.62379 | K40: 0 | L40: -50.47399122 | M40: -70.47437071 | N40: 1.039620514 | O40: 20.00037949 | P40: 20.00037949 | Q40: 400.0151796 | R40: 0
A41: 15.32666667 | B41: 31 | C41: -128.5156218 | D41: -55.28070398 | E41: 143.3121313 | F41: -40.68922656 | G41: -44.89889564 | H41: 4.331166667 | I41: 34.84999878 | J41: 381.1604967 | K41: 0 | L41: -19.52333211 | M41: -42.10270684 | N41: -7.252708063 | O41: 22.57937473 | P41: 22.57937473 | Q41: 509.8281632 | R41: 0
A42: 1.61 | B42: 32 | C42: -128.509732 | D42: -46.04814384 | E42: 113.1125982 | F42: -29.5256584 | G42: -69.51696295 | H42: 0.7100333333 | I42: 0.4344163875 | J42: 1.38199683 | K42: 0 | L42: 1.175583612 | M42: -14.17276099 | N42: -13.7383446 | O42: 15.3483446 | P42: 15.3483446 | Q42: 235.571682 | R42: 0
A43: 0 | B43: 33 | C43: -128.5038257 | D43: -36.03199239 | E43: 80.97767711 | F43: -17.85413005 | G43: -89.39756412 | H43: 0 | I43: -29.88751975 | J43: 893.263837 | K43: 0 | L43: 29.88751975 | M43: 4.211138187 | N43: -25.67638157 | O43: 25.67638157 | P43: 25.67638157 | Q43: 659.2765703 | R43: 0
A44: 0 | B44: 34 | C44: -128.4979029 | D44: -25.40269233 | E44: 47.45720555 | F44: -5.875438789 | G44: -103.185869 | H44: 0 | I44: -54.58238208 | J44: 2979.236433 | K44: 0 | L44: 54.58238208 | M44: 28.70258675 | N44: -25.87979533 | O44: 25.87979533 | P44: 25.87979533 | Q44: 669.7638064 | R44: 0
A45: 0 | B45: 35 | C45: -128.4919636 | D45: -14.34112014 | E45: 13.12472804 | F45: 6.204333675 | G45: -109.9422275 | H45: 0 | I45: -72.52393405 | J45: 5259.72101 | K45: 0 | L45: 72.52393405 | M45: 50.42357434 | N45: -22.10035971 | O45: 22.10035971 | P45: 22.10035971 | Q45: 488.4258994 | R45: 0
A46: 0 | B46: 36 | C46: -128.4860077 | D46: -3.035508211 | E46: -21.4323172 | F46: 18.17736662 | G46: -109.2062048 | H46: 0 | I46: -83.06035589 | J46: 6899.02272 | K46: 0 | L46: 83.06035589 | M46: 66.26181205 | N46: -16.79854384 | O46: 16.79854384 | P46: 16.79854384 | Q46: 282.1910751 | R46: 0
A47: 0 | B47: 37 | C47: -128.4800353 | D47: 8.321758303 | E47: -55.62264955 | F47: 29.83767568 | G47: -101.0279598 | H47: 0 | I47: -86.04889522 | J47: 7404.412369 | K47: 0 | L47: 86.04889522 | M47: 74.9309912 | N47: -11.11790403 | O47: 11.11790403 | P47: 11.11790403 | Q47: 123.6077899 | R47: 0
A48: 0 | B48: 38 | C48: -128.4740464 | D48: 19.53741526 | E48: -88.86126295 | F48: 40.98465661 | G48: -85.96482624 | H48: 0 | I48: -81.85574828 | J48: 6700.363527 | K48: 0 | L48: 81.85574828 | M48: 76.82828674 | N48: -5.027461536 | O48: 5.027461536 | P48: 5.027461536 | Q48: 25.2753695 | R48: 0
A49: 0 | B49: 39 | C49: -128.468041 | D49: 30.42060824 | E49: -120.5794355 | F49: 51.42653644 | G49: -65.04333185 | H49: 0 | I49: -71.32134818 | J49: 5086.734707 | K49: 0 | L49: 71.32134818 | M49: 72.3931066 | N49: 1.071758422 | O49: -1.071758422 | P49: 1.071758422 | Q49: 1.148666114 | R49: 0
A50: 0 | B50: 40 | C50: -128.462019 | D50: 40.78614031 | E50: -150.2344605 | F50: 60.98367281 | G50: -39.68924188 | H50: 0 | I50: -55.69359278 | J50: 3101.776277 | K50: 0 | L50: 55.69359278 | M50: 62.41377528 | N50: 6.720182501 | O50: -6.720182501 | P50: 6.720182501 | Q50: 45.16085284 | R50: 0
A51: 0 | B51: 41 | C51: -128.4559805 | D51: 50.45762345 | E51: -177.3189322 | F51: 69.4916445 | G51: -11.63039567 | H51: 0 | I51: -36.53372496 | J51: 1334.713059 | K51: 0 | L51: 36.53372496 | M51: 48.03381578 | N51: 11.50009082 | O51: -11.50009082 | P51: 11.50009082 | Q51: 132.2520889 | R51: 0
A52: 0 | B52: 42 | C52: -128.4499255 | D52: 59.27048013 | E52: -201.3694278 | F52: 76.80408014 | G52: 17.22104279 | H52: 0 | I52: -15.60143478 | J52: 243.4047673 | K52: 0 | L52: 15.60143478 | M52: 30.66608243 | N52: 15.06464765 | O52: -15.06464765 | P52: 15.06464765 | Q52: 226.9436088 | R52: 0
A53: 0 | B53: 43 | C53: -128.443854 | D53: 67.07474386 | E53: -221.9744367 | F53: 82.79517642 | G53: 44.89889564 | H53: 0 | I53: 5.272840727 | J53: 27.80284933 | K53: 0 | L53: -5.272840727 | M53: 11.88906073 | N53: 17.16190145 | O53: -17.16190145 | P53: 17.16190145 | Q53: 294.5308615 | R53: 0
A54: 0 | B54: 44 | C54: -128.4377659 | D54: 73.73761119 | E54: -238.7814014 | F54: 87.36186233 | G54: 69.51696295 | H54: 0 | I54: 24.31958461 | J54: 591.4421956 | K54: 0 | L54: -24.31958461 | M54: -6.667472061 | N54: 17.65211255 | O54: -17.65211255 | P54: 17.65211255 | Q54: 311.5970774 | R54: 0
A55: 0 | B55: 45 | C55: -128.4316613 | D55: 79.14570153 | E55: -251.5027501 | F55: 90.42557252 | G55: 89.39756412 | H55: 0 | I55: 39.95674213 | J55: 1596.541242 | K55: 0 | L55: -39.95674213 | M55: -23.4395174 | N55: 16.51722473 | O55: -16.51722473 | P55: 16.51722473 | Q55: 272.8187129 | R55: 0
A56: 0 | B56: 46 | C56: -128.4255403 | D56: 83.20698658 | E56: -259.9208171 | F56: 91.93359882 | G56: 103.185869 | H56: 0 | I56: 50.90241253 | J56: 2591.055602 | K56: 0 | L56: -50.90241253 | M56: -37.04057626 | N56: 13.86183627 | O56: -13.86183627 | P56: 13.86183627 | Q56: 192.1505047 | R56: 0
A57: 0 | B57: 47 | C57: -128.4194027 | D57: 85.85235634 | E57: -263.8915668 | F57: 91.85999712 | G57: 109.9422275 | H57: 0 | I57: 56.26592694 | J57: 3165.854534 | K57: 0 | L57: -56.26592694 | M57: -46.36031848 | N57: 9.905608461 | O57: -9.905608461 | P57: 9.905608461 | Q57: 98.12107899 | R57: 0
A58: 0 | B58: 48 | C58: -128.4132485 | D58: 87.03679512 | E58: -263.3470586 | F58: 90.20603366 | G58: 109.2062048 | H58: 0 | I58: 55.61104188 | J58: 3092.587979 | K58: 0 | L58: -55.61104188 | M58: -50.64340483 | N58: 4.96763705 | O58: -4.96763705 | P58: 4.96763705 | Q58: 24.67741786 | R58: 0
A59: 0 | B59: 49 | C59: -128.4070779 | D59: 86.74014757 | E59: -258.2966093 | F59: 87.00016326 | G59: 101.0279598 | H59: 0 | I59: 48.98689888 | J59: 2399.716262 | K59: 0 | L59: -48.98689888 | M59: -49.54303617 | N59: -0.5561372849 | O59: 0.5561372849 | P59: 0.5561372849 | Q59: 0.3092886797 | R59: 0
A60: 0 | B60: 50 | C60: -128.4008907 | D60: 84.9674617 | E60: -248.8266333 | F60: 82.29753982 | G60: 85.96482624 | H60: 0 | I60: 36.92461911 | J60: 1363.427497 | K60: 0 | L60: -36.92461911 | M60: -43.14554457 | N60: -6.220925458 | O60: 6.220925458 | P60: 6.220925458 | Q60: 38.69991355 | R60: 0
A61: 0 | B61: 51 | C61: -128.3946871 | D61: 81.7489029 | E61: -235.0991647 | F61: 76.17906737 | G61: 65.04333185 | H61: 0 | I61: 20.39976578 | J61: 416.1504439 | K61: 0 | L61: -20.39976578 | M61: -31.96433412 | N61: -11.56456834 | O61: 11.56456834 | P61: 11.56456834 | Q61: 133.7392409 | R61: 0
A62: 0 | B62: 52 | C62: -128.3884669 | D62: 77.13924071 | E62: -217.3490842 | F62: 68.75000829 | G62: 39.68924188 | H62: 0 | I62: 0.763255231 | J62: 0.5825585476 | K62: 0 | L62: -0.763255231 | M62: -16.90358703 | N62: -16.1403318 | O62: 16.1403318 | P62: 16.1403318 | Q62: 260.5103107 | R62: 0
A63: 0 | B63: 53 | C63: -128.3822302 | D63: 71.21691674 | E63: -195.8801006 | F63: 60.13817229 | G63: 11.63039567 | H63: 0 | I63: -20.35453065 | J63: 414.3069181 | K63: 0 | L63: 20.35453065 | M63: 0.8057693053 | N63: -19.54876135 | O63: 19.54876135 | P63: 19.54876135 | Q63: 382.1540702 | R63: 0
A64: 0 | B64: 54 | C64: -128.375977 | D64: 64.08270989 | E64: -171.0595541 | F64: 50.49171762 | G64: -17.22104279 | H64: 0 | I64: -41.15983098 | J64: 1694.131686 | K64: 0 | L64: 41.15983098 | M64: 19.69342968 | N64: -21.4664013 | O64: 21.4664013 | P64: 21.4664013 | Q64: 460.8063848 | R64: 0
A65: 0 | B65: 55 | C65: -128.3697073 | D65: 55.85802143 | E65: -143.3121313 | F65: 39.97660214 | G65: -44.89889564 | H65: 0 | I65: -59.82379521 | J65: 3578.886474 | K65: 0 | L65: 59.82379521 | M65: 38.15439929 | N65: -21.66939592 | O65: 21.66939592 | P65: 21.66939592 | Q65: 469.5627195 | R65: 0
A66: 0 | B66: 56 | C66: -128.3634211 | D66: 46.6828091 | E66: -113.1125982 | F66: 28.77372816 | G66: -69.51696295 | H66: 0 | I66: -74.61412947 | J66: 5567.268316 | K66: 0 | L66: 74.61412947 | M66: 54.56379218 | N66: -20.05033729 | O66: 20.05033729 | P66: 20.05033729 | Q66: 402.0160254 | R66: 0
A67: 0 | B67: 57 | C67: -128.3571183 | D67: 36.71320551 | E67: -80.97767711 | F67: 17.07583022 | G67: -89.39756412 | H67: 0 | I67: -84.02100838 | J67: 7059.529849 | K67: 0 | L67: 84.02100838 | M67: 67.39382367 | N67: -16.62718471 | O67: 16.62718471 | P67: 16.62718471 | Q67: 276.4632713 | R67: 0
A68: 0 | B68: 58 | C68: -128.3507991 | D68: 26.11886123 | E68: -47.45720555 | F68: 5.084159263 | G68: -103.185869 | H68: 0 | I68: -86.86853772 | J68: 7546.142846 | K68: 0 | L68: 86.86853772 | M68: 75.32491743 | N68: -11.54362029 | O68: 11.54362029 | P68: 11.54362029 | Q68: 133.2551694 | R68: 0
A69: 0 | B69: 59 | C69: -128.3444633 | D69: 15.08005795 | E69: -13.12472804 | F69: -6.994979706 | G69: -109.9422275 | H69: 0 | I69: -82.40402518 | J69: 6790.423365 | K69: 0 | L69: 82.40402518 | M69: 77.34323561 | N69: -5.06078957 | O69: 5.06078957 | P69: 5.06078957 | Q69: 25.61159108 | R69: 0
A70: 0 | B70: 60 | C70: -128.3381111 | D70: 3.784640573 | E70: 21.4323172 | F70: -18.95377686 | G70: -109.2062048 | H70: 0 | I70: -70.35881955 | J70: 4950.363489 | K70: 0 | L70: 70.35881955 | M70: 72.81785579 | N70: 2.459036242 | O70: -2.459036242 | P70: 2.459036242 | Q70: 6.046859242 | R70: 0
A71: 0 | B71: 61 | C71: -128.3317423 | D71: -7.575179209 | E71: 55.62264955 | F71: -30.58649275 | G71: -101.0279598 | H71: 0 | I71: -50.97640906 | J71: 2598.594281 | K71: 0 | L71: 50.97640906 | M71: 61.55219704 | N71: 10.57578798 | O71: -10.57578798 | P71: 10.57578798 | Q71: 111.8472914 | R71: 0
A72: 0 | B72: 62 | C72: -128.325357 | D72: -18.80609381 | E72: 88.86126295 | F72: -41.69299783 | G72: -85.96482624 | H72: 0 | I72: -25.00569653 | J72: 625.2848588 | K72: 0 | L72: 25.00569653 | M72: 43.80604621 | N72: 18.80034969 | O72: -18.80034969 | P72: 18.80034969 | Q72: 353.4531483 | R72: 0
A73: 12.55333333 | B73: 63 | C73: -128.3189553 | D73: -29.71698917 | E73: 120.5794355 | F73: -52.0822155 | G73: -65.04333185 | H73: 1.343833333 | I73: 6.340259154 | J73: 38.60229076 | K73: 0 | L73: 6.21307418 | M73: 20.28653601 | N73: 26.62679517 | O73: -14.07346184 | P73: 14.07346184 | Q73: 198.062328 | R73: 0
A74: 65.64666667 | B74: 64 | C74: -128.312537 | D74: -40.12219696 | E74: 150.2344605 | F74: -61.57540939 | G74: -39.68924188 | H74: 5.223766667 | I74: 41.4573907 | J74: 585.1210718 | K74: 0 | L74: 24.18927597 | M74: 3.070613889 | N74: 44.52800459 | O74: 21.11866208 | P74: 21.11866208 | Q74: 445.9978879 | R74: 0
A75: 131.5733333 | B75: 65 | C75: -128.3061022 | D75: -49.844654 | E75: 177.3189322 | F75: -70.00925835 | G75: -11.63039567 | H75: 8.9896 | I75: =B$3+SUM(C75:G75) -> 78.4508374 | J75: 2821.999574 | K75: =IF(H75>=10,1,0) -> 0 | L75: 53.12249593 | M75: 18.87332737 | N75: 97.32416478 | O75: 34.24916856 | P75: 34.24916856 | Q75: 1173.005547 | R75: 0
A76: 195.31 | B76: 66 | C76: -128.2996509 | D76: -58.71891534 | E76: 201.3694278 | F76: -77.23866623 | G76: 17.22104279 | H76: 12.3977 | I76: 115.2555535 | J76: =(A76-I76)^2 -> 6408.714397 | K76: 1 | L76: =A76-I76 -> 80.05444646 | M76: 46.78702767 | N76: 162.0425812 | O76: 33.26741878 | P76: 33.26741878 | Q76: 1106.721152 | R76: 17.03313644
A77: 252.5066667 | B77: 67 | C77: -128.2931831 | D77: -66.59396959 | E77: 221.9744367 | F77: -83.13925809 | G77: 44.89889564 | H77: 15.3644 | I77: 149.7692369 | J77: 10554.97947 | K77: 1 | L77: 102.7374297 | M77: 72.64074445 | N77: 222.4099814 | O77: 30.09668528 | P77: 30.09668528 | Q77: 905.8104651 | R77: 11.91916462
A78: 299.76 | B78: =B77+1 -> 68 | C78: =C$3*COS(C$2*$B78)+C$4*SIN(C$2*$B78) -> -128.2866989 | D78: -73.33580867 | E78: 238.7814014 | F78: -87.60952002 | G78: 69.51696295 | H78: 17.82213333 | I78: =B$3+SUM(C78:G78) -> 179.9886522 | J78: 14345.17574 | K78: 1 | L78: 119.7713478 | M78: 92.8768879 | N78: 272.8655401 | O78: 26.89445986 | P78: 26.89445986 | Q78: 723.311971 | R78: 8.971997551
A79: 333.65 | B79: 69 | C79: -128.2801981 | D79: -78.82970815 | E79: 251.5027501 | F79: -90.5725455 | G79: 89.39756412 | H79: 19.7098 | I79: 204.140178 | J79: 16772.794 | K79: 1 | L79: 129.509822 | M79: 107.4765683 | N79: =I79+M79 -> 311.6167463 | O79: 22.03325373 | P79: 22.03325373 | Q79: 485.46427 | R79: 6.603702602
A80: 355.6733333 | B80: 70 | C80: -128.2736808 | D80: -82.98217954 | E80: 259.9208171 | F80: -91.97735857 | G80: 103.185869 | H80: 20.97736667 | I80: 220.7957827 | J80: 18191.95368 | K80: 1 | L80: 134.8775507 | M80: =$N$2*L79+$N$3*L78+$N$4*L77+$N$5*L76 -> 115.5047651 | N80: 336.3005477 | O80: =(A80-N80) -> 19.37278561 | P80: =ABS(O80) -> 19.37278561 | Q80: =O80^2 -> 375.3048225 | R80: =IF(A80=0,0,ABS(K80*P80/A80)*100) -> 5.446791704
A81: 364.8433333 | B81: 71 | C81: -128.267147 | D81: -85.72256113 | E81: 263.8915668 | F81: -91.79979079 | G81: 109.9422275 | H81: 21.58736667 | I81: 228.9666108 | J81: 18462.48373 | K81: 1 | L81: 135.8767225 | M81: 119.5307426 | N81: 348.4973534 | O81: 16.34597989 | P81: 16.34597989 | Q81: 267.1910585 | R81: 4.480273694
A82: 359.2833333 | B82: 72 | C82: -128.2605967 | D82: -87.00422043 | E82: 263.3470586 | F82: -90.04289705 | G82: 109.2062048 | H82: 21.5213 | I82: 228.1678647 | J82: 17191.26611 | K82: 1 | L82: 131.1154686 | M82: 119.8395415 | N82: 348.0074062 | O82: 11.27592712 | P82: 11.27592712 | Q82: 127.1465324 | R82: 3.138449818
A83: 342.22 | B83: 73 | C83: -128.25403 | D83: -86.80534772 | E83: 258.2966093 | F83: -86.73690298 | G83: 101.0279598 | H83: 20.78133333 | I83: 218.4506039 | J83: 15318.86342 | K83: 1 | L83: 123.7693961 | M83: 115.2281249 | N83: 333.6787287 | O83: 8.541271256 | P83: 8.541271256 | Q83: 72.95331466 | R83: 2.495842223
A84: 323.04 | B84: 74 | C84: -128.2474467 | D84: -85.12932719 | E84: 248.8266333 | F84: -81.93868499 | G84: 85.96482624 | H84: 19.38986667 | I84: 200.3983162 | J84: 15040.98261 | K84: 1 | L84: 122.6416838 | M84: 108.2543644 | N84: 308.6526806 | O84: 14.38731939 | P84: 14.38731939 | Q84: 206.9949594 | R84: 4.453726905
A85: 290.04 | B85: 75 | C85: -128.2408469 | D85: -82.00467931 | E85: 235.0991647 | F85: -75.73079176 | G85: 65.04333185 | H85: 17.38683333 | I85: 175.088494 | J85: 13213.84873 | K85: 1 | L85: 114.951506 | M85: 106.8405597 | N85: 281.9290537 | O85: 8.11094631 | P85: 8.11094631 | Q85: 65.78745005 | R85: 2.796492315
A86: 242.49 | B86: 76 | C86: -128.2342307 | D86: -77.48457553 | E86: 217.3490842 | F86: -68.22002402 | G86: 39.68924188 | H86: 14.82533333 | I86: 144.0218113 | J86: 9695.984186 | K86: 1 | L86: 98.4681887 | M86: 100.3982216 | N86: 244.4200329 | O86: -1.930032911 | P86: 1.930032911 | Q86: 3.725027036 | R86: 0.7959226816
A87: 185.28 | B87: 77 | C87: -128.2275979 | D87: -71.64593349 | E87: 195.8801006 | F87: -59.53559724 | G87: 11.63039567 | H87: 11.76736667 | I87: 109.0236831 | J87: 5815.025874 | K87: 1 | L87: 76.25631695 | M87: 85.83537525 | N87: 194.8590583 | O87: -9.5790583 | P87: 9.5790583 | Q87: 91.75835792 | R87: 5.170044419
A88: 119.8833333 | B88: 78 | C88: -128.2209487 | D88: -64.58810809 | E88: 171.0595541 | F88: -49.8269185 | G88: -17.22104279 | H88: 8.282266667 | I88: 72.12485153 | J88: 2280.872584 | K88: 0 | L88: 47.7584818 | M88: 65.56042802 | N88: 137.6852796 | O88: -17.80194622 | P88: 17.80194622 | Q88: 316.9092892 | R88: 0
A89: 49.98666667 | B89: 79 | C89: -128.2142829 | D89: -56.43120083 | E89: 143.3121313 | F89: -39.26101617 | G89: -44.89889564 | H89: 4.461666667 | I89: 35.42905117 | J89: 211.924169 | K89: 0 | L89: 14.5576155 | M89: 39.87341455 | N89: 75.30246571 | O89: -25.31579905 | P89: 25.31579905 | Q89: 640.8896814 | R89: 0
A90: 4.646666667 | B90: 80 | C90: -128.2076007 | D90: -47.31401603 | E90: 113.1125982 | F90: -28.01966631 | G90: -69.51696295 | H90: 0.7865 | I90: 0.9766676076 | J90: 13.46889309 | K90: 0 | L90: 3.669999059 | M90: 10.1544575 | N90: 11.1311251 | O90: -6.484458438 | P90: 6.484458438 | Q90: 42.04820123 | R90: 0
A91: 0 | B91: 81 | C91: -128.200902 | D91: -37.39169884 | E91: 80.97767711 | F91: -16.29626539 | G91: -89.39756412 | H91: 0 | I91: -29.38643779 | J91: 863.5627262 | K91: 0 | L91: 29.38643779 | M91: -0.02030215069 | N91: -29.40673994 | O91: 29.40673994 | P91: 29.40673994 | Q91: 864.7563542 | R91: 0
A92: 0 | B92: 82 | C92: -128.1941868 | D92: -26.83309521 | E92: 47.45720555 | F92: -4.292503093 | G92: -103.185869 | H92: 0 | I92: -54.12613313 | J92: 2929.638288 | K92: 0 | L92: 54.12613313 | M92: 23.58777588 | N92: -30.53835725 | O92: 30.53835725 | P92: 30.53835725 | Q92: 932.5912634 | R92: 0
A93: 0 | B93: 83 | C93: -128.1874551 | D93: -15.81787859 | E93: 13.12472804 | F93: 7.785107536 | G93: -109.9422275 | H93: 0 | I93: -72.11541016 | J93: 5200.632383 | K93: 0 | L93: 72.11541016 | M93: 48.49685335 | N93: -23.61855682 | O93: 23.61855682 | P93: 23.61855682 | Q93: 557.8362262 | R93: 0
A94: 0 | B94: 84 | C94: -128.1807069 | D94: -4.533492562 | E94: -21.4323172 | F94: 19.72878297 | G94: -109.2062048 | H94: 0 | I94: -82.7016231 | J94: 6839.558464 | K94: 0 | L94: 82.7016231 | M94: 65.77924229 | N94: -16.92238081 | O94: 16.92238081 | P94: 16.92238081 | Q94: 286.3669722 | R94: 0
A95: 0 | B95: 85 | C95: -128.1739423 | D95: 6.828038933 | E95: -55.62264955 | F95: 31.33304392 | G95: -101.0279598 | H95: 0 | I95: -85.7411533 | J95: 7351.54537 | K95: 0 | L95: 85.7411533 | M95: 74.62126794 | N95: -11.11988537 | O95: 11.11988537 | P95: 11.11988537 | Q95: 123.6518505 | R95: 0
A96: 0 | B96: 86 | C96: -128.1671611 | D96: 18.07337917 | E96: -88.86126295 | F96: 42.39825037 | G96: -85.96482624 | H96: 0 | I96: -81.59930532 | J96: 6658.446629 | K96: 0 | L96: 81.59930532 | M96: 76.56350419 | N96: -5.03580113 | O96: 5.03580113 | P96: 5.03580113 | Q96: 25.35929302 | R96: 0
A97: 0 | B97: 87 | C97: -128.1603635 | D97: 29.01116861 | E97: -120.5794355 | F97: 52.73403623 | G97: -65.04333185 | H97: 0 | I97: -71.11561054 | J97: 5057.430063 | K97: 0 | L97: 71.11561054 | M97: 72.17344882 | N97: 1.057838281 | O97: -1.057838281 | P97: 1.057838281 | Q97: 1.119021828 | R97: 0
A98: 0 | B98: 88 | C98: -128.1535494 | D98: 39.45528128 | E98: -150.2344605 | F98: 62.16258437 | G98: -39.68924188 | H98: 0 | I98: -55.53707063 | J98: 3084.366214 | K98: 0 | L98: 55.53707063 | M98: 62.23863271 | N98: 6.701562081 | O98: -6.701562081 | P98: 6.701562081 | Q98: 44.91093432 | R98: 0
A99: 0 | B99: 89 | C99: -128.1467188 | D99: 49.22799196 | E99: -177.3189322 | F99: 70.5216858 | G99: -11.63039567 | H99: 0 | I99: -36.42405342 | J99: 1326.711667 | K99: 0 | L99: 36.42405342 | M99: 47.90179163 | N99: 11.47773821 | O99: -11.47773821 | P99: 11.47773821 | Q99: 131.7384744 | R99: 0
A100: 0 | B100: 90 | C100: -128.1398717 | D100: 58.16300054 | E100: -201.3694278 | F100: 77.66753033 | G100: 17.22104279 | H100: 0 | I100: -15.53541038 | J100: 241.3489757 | K100: 0 | L100: 15.53541038 | M100: 30.57501278 | N100: 15.0396024 | O100: -15.0396024 | P100: 15.0396024 | Q100: 226.1896404 | R100: 0
A101: 0 | B101: 91 | C101: -128.1330081 | D101: 66.10826193 | E101: -221.9744367 | F101: 83.47718066 | G101: 44.89889564 | H101: 0 | I101: 5.299208873 | J101: 28.08161468 | K101: 0 | L101: -5.299208873 | M101: 11.83604805 | N101: 17.13525692 | O101: -17.13525692 | P101: 17.13525692 | Q101: 293.6170299 | R101: 0
A102: 0 | B102: 92 | C102: -128.1261281 | D102: 72.92857331 | E102: -238.7814014 | F102: 87.85068743 | G102: 69.51696295 | H102: 0 | I102: 24.31100966 | J102: 591.0251905 | K102: 0 | L102: -24.31100966 | M102: -6.686012448 | N102: 17.62499721 | O102: -17.62499721 | P102: 17.62499721 | Q102: 310.6405266 | R102: 0
A103: 0 | B103: 93 | C103: -128.1192316 | D103: 78.50787494 | E103: -251.5027501 | F103: 90.7128087 | G103: 89.39756412 | H103: 0 | I103: 39.9185815 | J103: 1593.493149 | K103: 0 | L103: -39.9185815 | M103: -23.42779874 | N103: 16.49078276 | O103: -16.49078276 | P103: 16.49078276 | Q103: 271.945916 | R103: 0
A104: 0 | B104: 94 | C104: -128.1123186 | D104: 82.75122504 | E104: -259.9208171 | F104: 92.01430447 | G104: 103.185869 | H104: 0 | I104: 50.84057832 | J104: 2584.764404 | K104: 0 | L104: -50.84057832 | M104: -37.00337054 | N104: 13.83720778 | O104: -13.83720778 | P104: 13.83720778 | Q104: 191.4683191 | R104: 0
A105: 0 | B105: 95 | C105: -128.1053891 | D105: 85.58641543 | E105: -263.8915668 | F105: 91.73278378 | G105: 109.9422275 | H105: 0 | I105: 56.18678624 | J105: 3156.954949 | K105: 0 | L105: -56.18678624 | M105: -46.30287653 | N105: 9.883909714 | O105: -9.883909714 | P105: 9.883909714 | Q105: 97.69167124 | R105: 0
A106: 0 | B106: 96 | C106: -128.0984432 | D106: 86.96520031 | E106: -263.3470586 | F106: 89.8730899 | G106: 109.2062048 | H106: 0 | I106: 55.5213087 | J106: 3082.61572 | K106: 0 | L106: -55.5213087 | M106: -50.57136774 | N106: 4.949940962 | O106: -4.949940962 | P106: 4.949940962 | Q106: 24.50191553 | R106: 0
A107: 0 | B107: 97 | C107: -128.0914807 | D107: 86.86411718 | E107: -258.2966093 | F107: 86.46721707 | G107: 101.0279598 | H107: 0 | I107: 48.89351946 | J107: 2390.576246 | K107: 0 | L107: -48.89351946 | M107: -49.46233944 | N107: -0.568819972 | O107: 0.568819972 | P107: 0.568819972 | Q107: 0.3235561606 | R107: 0
A108: 0 | B108: 98 | C108: -128.0845018 | D108: 85.28488615 | E108: -248.8266333 | F108: 81.57376 | G108: 85.96482624 | H108: 0 | I108: 36.83465267 | J108: 1356.791637 | K108: 0 | L108: -36.83465267 | M108: -43.06231669 | N108: -6.227664022 | O108: 6.227664022 | P108: 6.227664022 | Q108: 38.78379918 | R108: 0
A109: 0 | B109: 99 | C109: -128.0775065 | D109: 82.25438066 | E109: -235.0991647 | F109: 75.27690587 | G109: 65.04333185 | H109: 0 | I109: 20.32026266 | J109: 412.9130744 | K109: 0 | L109: -20.32026266 | M109: -31.88479128 | N109: -11.56452863 | O109: 11.56452863 | P109: 11.56452863 | Q109: 133.7383224 | R109: 0
A110: 0 | B110: 100 | C110: -128.0704946 | D110: 77.82417016 | E110: -217.3490842 | F110: 67.6849859 | G110: 39.68924188 | H110: 0 | I110: 0.7011345881 | J110: 0.4915897106 | K110: 0 | L110: -0.7011345881 | M110: -16.83392577 | N110: -16.13279118 | O110: 16.13279118 | P110: 16.13279118 | Q110: 260.2669514 | R110: 0
A111: 0 | B111: 101 | C111: -128.0634663 | D111: 72.06964259 | E111: -195.8801006 | F111: 58.92861169 | G111: 11.63039567 | H111: 0 | I111: -20.39260148 | J111: 415.858195 | K111: 0 | L111: 20.39260148 | M111: 0.8594796784 | N111: -19.5331218 | O111: 19.5331218 | P111: 19.5331218 | Q111: 381.5428472 | R111: 0
A112: 0 | B112: 102 | C112: -128.0564215 | D112: 65.08872149 | E112: -171.0595541 | F112: 49.15842812 | G112: -17.22104279 | H112: 0 | I112: -41.16755336 | J112: 1694.76745 | K112: 0 | L112: 41.16755336 | M112: 19.72535295 | N112: -21.44220042 | O112: 21.44220042 | P112: 21.44220042 | Q112: 459.7679588 | R112: 0
A113: 0 | B113: 103 | C113: -128.0493602 | D113: 57.0001997 | E113: -143.3121313 | F113: 38.54252169 | G113: -44.89889564 | H113: 0 | I113: -59.79535034 | J113: 3575.483922 | K113: 0 | L113: 59.79535034 | M113: 38.15903474 | N113: -21.6363156 | O113: 21.6363156 | P113: 21.6363156 | Q113: 468.130153 | R113: 0
A114: 0 | B114: 104 | C114: -128.0422825 | D114: 47.94171784 | E114: -113.1125982 | F114: 27.26352872 | G114: -69.51696295 | H114: 0 | I114: -74.54428162 | J114: 5556.849922 | K114: 0 | L114: 74.54428162 | M114: 54.53607162 | N114: -20.00820999 | O114: 20.00820999 | P114: 20.00820999 | Q114: 400.3284671 | R114: 0
A115: 0 | B115: 105 | C115: -128.0351883 | D115: 38.06742214 | E115: -80.97767711 | F115: 15.51549329 | G115: -89.39756412 | H115: 0 | I115: -83.90519866 | J115: 7040.082362 | K115: 0 | L115: 83.90519866 | M115: 67.32920158 | N115: -16.57599708 | O115: 16.57599708 | P115: 16.57599708 | Q115: 274.7636792 | R115: 0
A116: 0 | B116: 106 | C116: -128.0280777 | D116: 27.54534134 | E116: -47.45720555 | F116: 3.500528926 | G116: -103.185869 | H116: 0 | I116: -86.70296651 | J116: 7517.404402 | K116: 0 | L116: 86.70296651 | M116: 75.21945233 | N116: -11.48351418 | O116: 11.48351418 | P116: 11.48351418 | Q116: 131.871098 | R116: 0
A117: 0 | B117: 107 | C117: -128.0209505 | D117: 16.55452743 | E117: -13.12472804 | F117: -8.574658632 | G117: -109.9422275 | H117: 0 | I117: -82.18572181 | J117: 6754.492869 | K117: 0 | L117: 82.18572181 | M117: 77.19366145 | N117: -4.992060353 | O117: 4.992060353 | P117: 4.992060353 | Q117: 24.92066657 | R117: 0
A118: 0 | B118: 108 | C118: -128.0138069 | D118: 5.282008702 | E118: 21.4323172 | F118: -20.50232754 | G118: -109.2062048 | H118: 0 | I118: -70.08569795 | J118: 4912.005057 | K118: 0 | L118: 70.08569795 | M118: 72.62164199 | N118: 2.535944045 | O118: -2.535944045 | P118: 2.535944045 | Q118: 6.431012202 | R118: 0
A119: 0 | B119: 109 | C119: -128.0066469 | D119: -6.080392823 | E119: 55.62264955 | F119: -32.07727388 | G119: -101.0279598 | H119: 0 | I119: -50.64730836 | J119: 2565.149844 | K119: 0 | L119: 50.64730836 | M119: 61.30759601 | N119: 10.66028765 | O119: -10.66028765 | P119: 10.66028765 | Q119: 113.6417329 | R119: 0
A120: 0 | B120: 110 | C120: -127.9994703 | D120: -17.33932562 | E120: 88.86126295 | F120: -43.10036197 | G120: -85.96482624 | H120: 0 | I120: -24.62040578 | J120: 606.1643806 | K120: 0 | L120: 24.62040578 | M120: 43.51212758 | N120: 18.8917218 | O120: -18.8917218 | P120: 18.8917218 | Q120: 356.8971526 | R120: 0
A121: 13.46666667 | B121: 111 | C121: -127.9922774 | D121: -28.30319886 | E121: 120.5794355 | F121: -53.38195032 | G121: -65.04333185 | H121: 1.349666667 | I121: 6.780992557 | J121: 44.6982383 | K121: 0 | L121: 6.685674109 | M121: 19.94320682 | N121: 26.72419938 | O121: -13.25753272 | P121: 13.25753272 | Q121: 175.7621737 | R121: 0
A122: 64.38333333 | B122: 112 | C122: -127.9850679 | D122: -38.78544269 | E122: 150.2344605 | F122: -62.74515422 | G122: -39.68924188 | H122: 5.238466667 | I122: 41.95186922 | J122: 503.1705822 | K122: 0 | L122: 22.43146411 | M122: 3.476183601 | N122: 45.42805282 | O122: 18.95528051 | P122: 18.95528051 | Q122: 359.3026592 | R122: 0
A123: 139.6466667 | B123: 113 | C123: -127.977842 | D123: -48.60768302 | E123: 177.3189322 | F123: -71.02888887 | G123: -11.63039567 | H123: 9.013433333 | I123: 78.99643806 | J123: 3678.45023 | K123: 0 | L123: 60.6502286 | M123: 17.39080105 | N123: 96.38723911 | O123: 43.25942756 | P123: 43.25942756 | Q123: 1871.378073 | R123: 0
A124: 158.3966667 | B124: 114 | C124: -127.9705996 | D124: -57.60277693 | E124: 201.3694278 | F124: -78.09064069 | G124: 17.22104279 | H124: 12.43163333 | I124: 115.8487688 | J124: 1810.323614 | K124: 1 | L124: 42.54789788 | M124: 53.25262558 | N124: 169.1013944 | O124: -10.70472769 | P124: 10.70472769 | Q124: 114.591195 | R124: 6.758177378
A125: 180.5233333 | B125: 115 | C125: -127.9633408 | D125: -65.61765684 | E125: 221.9744367 | F125: -83.8089191 | G125: 44.89889564 | H125: 15.40903333 | I125: 150.405731 | J125: 907.0699696 | K125: 1 | L125: 30.11760232 | M125: 40.39541145 | N125: 190.8011425 | O125: -10.27780912 | P125: 10.27780912 | Q125: 105.6333604 | R125: 5.693341095
A126: 167.7766667 | B126: 116 | C126: -127.9560655 | D126: -72.51593528 | E126: 238.7814014 | F126: -88.08534671 | G126: 69.51696295 | H126: 17.8781 | I126: 180.6633323 | J126: 166.0661508 | K126: 1 | L126: -12.88666562 | M126: 26.93572673 | N126: 207.599059 | O126: -39.82239235 | P126: 39.82239235 | Q126: 1585.822933 | R126: 23.73535793
A127: 292.2366667 | B127: 117 | C127: -127.9487738 | D127: -78.18022572 | E127: 251.5027501 | F127: -90.84635174 | G127: 89.39756412 | H127: 19.77763333 | I127: 204.8472785 | J127: 7636.905171 | K127: 1 | L127: 87.38938821 | M127: -12.69564998 | N127: 192.1516285 | O127: 100.0850382 | P127: 100.0850382 | Q127: 10017.01487 | R127: 34.24793998
A128: 80.77 | B128: 118 | C128: -127.9414656 | D128: -82.51414017 | E128: 259.9208171 | F128: -92.04443379 | G128: 103.185869 | H128: 21.05676667 | I128: 221.528962 | J128: 19813.08539 | K128: 1 | L128: -140.758962 | M128: 73.07007188 | N128: 294.5990339 | O128: -213.8290339 | P128: 213.8290339 | Q128: 45722.85574 | R128: 264.7381873
A129: 268.7566667 | B129: 119 | C129: =C$3*COS(C$2*$B129)+C$4*SIN(C$2*$B129) -> -127.9341409 | D129: -85.44392935 | E129: 263.8915668 | F129: -91.65898103 | G129: 109.9422275 | H129: 21.67803333 | I129: 229.7190584 | J129: 1523.934857 | K129: 1 | L129: 39.03760824 | M129: -118.2254137 | N129: 111.4936447 | O129: 157.263022 | P129: 157.263022 | Q129: 24731.65808 | R129: 58.51502176
A130: 473.95 | B130: 120 | C130: -127.9267998 | D130: -86.91973765 | E130: 263.3470586 | F130: -89.6966248 | G130: 109.2062048 | H130: 21.6226 | I130: 228.9324166 | J130: 60033.61615 | K130: 1 | L130: 245.0175834 | M130: 23.70890404 | N130: 252.6413207 | O130: 221.3086793 | P130: 221.3086793 | Q130: 48977.53154 | R130: 46.69452037
A131: 90.89 | B131: 121 | C131: -127.9194423 | D131: -86.91645158 | E131: 258.2966093 | F131: -86.19112552 | G131: 101.0279598 | H131: 20.89196667 | I131: 219.2198652 | J131: 16468.55429 | K131: 1 | L131: -128.3298652 | M131: 215.57636 | N131: 434.7962252 | O131: -343.9062252 | P131: 343.9062252 | Q131: 118271.4917 | R131: 378.3763067
A132: 34.42333333 | B132: 122 | C132: -127.9120682 | D132: -85.43412705 | E132: 248.8266333 | F132: -81.20279189 | G132: 85.96482624 | H132: 19.50846667 | I132: 201.1647878 | J132: 27802.71265 | K132: 1 | L132: -166.7414545 | M132: -90.83385204 | N132: 110.3309358 | O132: -75.90760247 | P132: 75.90760247 | Q132: 5761.964113 | R132: 220.512063
A133: 82.72333333 | B133: 123 | C133: -127.9046778 | D133: -82.49798846 | E133: 235.0991647 | F133: -74.81744333 | G133: 65.04333185 | H133: 17.51226667 | I133: 175.8447024 | J133: 8671.589385 | K133: 1 | L133: -93.12136911 | M133: -160.4816834 | N133: 15.36301903 | O133: 67.3603143 | P133: 67.3603143 | Q133: 4537.411943 | R133: 81.42843329
A134: 145.0233333 | B134: 124 | C134: -127.8972709 | D134: -78.15799943 | E134: 217.3490842 | F134: -67.14493355 | G134: 39.68924188 | H134: 14.95596667 | I134: 144.7604377 | J134: 0.06911412778 | K134: 1 | L134: 0.2628956595 | M134: -100.0926434 | N134: 44.66779429 | O134: 100.355539 | P134: 100.355539 | Q134: 10071.23422 | R134: 69.19958101
A135: 28.57 | B135: 125 | C135: -127.8898475 | D135: -72.48801264 | E135: 195.8801006 | F135: -58.3172606 | G135: 11.63039567 | H135: 11.90166667 | I135: 109.737691 | J135: 6588.194056 | K135: 1 | L135: -81.16769096 | M135: 2.870559598 | N135: 112.6082506 | O135: -84.03825056 | P135: 84.03825056 | Q135: 7062.427557 | R135: 294.1485844
A136: 7.486666667 | B136: 126 | C136: -127.8824077 | D136: -65.58451301 | E136: 171.0595541 | F136: -48.48629599 | G136: -17.22104279 | H136: 8.418833333 | I136: 72.80761011 | J136: 4266.825653 | K136: 0 | L136: -65.32094345 | M136: -61.95068278 | N136: 10.85692734 | O136: -3.370260669 | P136: 3.370260669 | Q136: 11.35865698 | R136: 0
A137: 3.553333333 | B137: 127 | C137: -127.8749514 | D137: -57.5649759 | E137: 143.3121313 | F137: -37.8211719 | G137: -44.89889564 | H137: 4.597633333 | I137: 36.07445188 | J137: 1057.623152 | K137: 0 | L137: -32.52111855 | M137: -58.40233578 | N137: -22.3278839 | O137: 25.88121723 | P137: 25.88121723 | Q137: 669.8374055 | R137: 0
A138: 0.1733333333 | B138: 128 | C138: -127.8674787 | D138: -48.56586805 | E138: 113.1125982 | F138: -26.50537139 | G138: -69.51696295 | H138: 0.8701 | I138: 1.579232503 | J138: 1.976552474 | K138: 0 | L138: -1.405899169 | M138: -31.08288504 | N138: -29.50365254 | O138: 29.67698588 | P138: 29.67698588 | Q138: 880.7234906 | R138: 0
A139: 0 | B139: 129 | C139: -127.8599896 | D139: -38.74032533 | E139: 80.97767711 | F139: -14.73357179 | G139: -89.39756412 | H139: 0 | I139: -28.83145824 | J139: 831.2529842 | K139: =IF(H139>=10,1,0) -> 0 | L139: 28.83145824 | M139: 1.377010846 | N139: -27.45444739 | O139: 27.45444739 | P139: 27.45444739 | Q139: 753.7466816 | R139: 0
A140: 0 | B140: 130 | C140: -127.852484 | D140: -28.25554686 | E140: 47.45720555 | F140: -2.708295435 | G140: -103.185869 | H140: 0 | I140: -53.6226743 | J140: =(A140-I140)^2 -> 2875.391199 | K140: 0 | L140: =A140-I140 -> 53.6226743 | M140: 28.49772366 | N140: -25.12495063 | O140: 25.12495063 | P140: 25.12495063 | Q140: 631.2631444 | R140: 0
A141: 0 | B141: 131 | C141: -127.8449619 | D141: -17.28994987 | E141: 13.12472804 | F141: 9.363574502 | G141: -109.9422275 | H141: 0 | I141: -71.66652129 | J141: 5136.090274 | K141: 0 | L141: 71.66652129 | M141: 50.11893396 | N141: -21.54758733 | O141: 21.54758733 | P141: 21.54758733 | Q141: 464.2985198 | R141: 0
A142: 0 | B142: =B141+1 -> 132 | C142: -127.8374234 | D142: -6.030133542 | E142: -21.4323172 | F142: 21.27435326 | G142: -109.2062048 | H142: 0 | I142: =B$3+SUM(C142:G142) -> -82.3094103 | J142: 6774.839024 | K142: 0 | L142: 82.3094103 | M142: 65.58068258 | N142: -16.72872772 | O142: 16.72872772 | P142: 16.72872772 | Q142: 279.850331 | R142: 0
A143: 0 | B143: 133 | C143: -127.8298685 | D143: 5.332296267 | E143: -55.62264955 | F143: 32.8191275 | G143: -101.0279598 | H143: 0 | I143: -85.40673863 | J143: 7294.311004 | K143: 0 | L143: 85.40673863 | M143: 74.28288617 | N143: =I143+M143 -> -11.12385246 | O143: 11.12385246 | P143: 11.12385246 | Q143: 123.7400936 | R143: 0
A144: 0 | B144: 134 | C144: -127.8222971 | D144: 16.60398754 | E144: -88.86126295 | F144: 43.79928062 | G144: -85.96482624 | H144: 0 | I144: -81.32280272 | J144: 6613.398242 | K144: 0 | L144: 81.32280272 | M144: =$N$2*L143+$N$3*L142+$N$4*L141+$N$5*L140 -> 76.27603911 | N144: -5.046763606 | O144: =(A144-N144) -> 5.046763606 | P144: =ABS(O144) -> 5.046763606 | Q144: =O144^2 -> 25.4698229 | R144: =IF(A144=0,0,ABS(K144*P144/A144)*100) -> 0
A145: 0 | B145: 135 | C145: -127.8147093 | D145: 27.59313235 | E145: -120.5794355 | F145: 54.02590979 | G145: -65.04333185 | H145: 0 | I145: -70.89611909 | J145: 5026.259702 | K145: 0 | L145: 70.89611909 | M145: 71.9369024 | N145: 1.040783315 | O145: -1.040783315 | P145: 1.040783315 | Q145: 1.08322991 | R145: 0
A146: 0 | B146: 136 | C146: -127.8071051 | D146: 38.1127308 | E146: -150.2344605 | F146: 63.32307581 | G146: -39.68924188 | H146: 0 | I146: -55.37268539 | J146: 3066.134287 | K146: 0 | L146: 55.37268539 | M146: 62.05211421 | N146: 6.679428821 | O146: -6.679428821 | P146: 6.679428821 | Q146: 44.61476938 | R146: 0
A147: 0 | B147: 137 | C147: -127.7994844 | D147: 47.98377315 | E147: -177.3189322 | F147: 71.53083 | G147: -11.63039567 | H147: 0 | I147: -36.31189366 | J147: 1318.553621 | K147: 0 | L147: 36.31189366 | M147: 47.76352877 | N147: 11.45163512 | O147: -11.45163512 | P147: 11.45163512 | Q147: 131.1399469 | R147: 0
A148: 0 | B148: 138 | C148: -127.7918473 | D148: 57.038286 | E148: -201.3694278 | F148: 78.50796595 | G148: 17.22104279 | H148: 0 | I148: -15.47166489 | J148: 239.3724144 | K148: 0 | L148: 15.47166489 | M148: 30.48237835 | N148: 15.01071346 | O148: -15.01071346 | P148: 15.01071346 | Q148: 225.3215186 | R148: 0
A149: 0 | B149: 139 | C149: -127.7841937 | D149: 65.12219068 | E149: -221.9744367 | F149: 84.13444882 | G149: 44.89889564 | H149: 0 | I149: 5.3192202 | J149: 28.29410354 | K149: 0 | L149: -5.3192202 | M149: 11.7856013 | N149: 17.1048215 | O149: -17.1048215 | P149: 17.1048215 | Q149: 292.5749184 | R149: 0
A150: 0 | B150: 140 | C150: -127.7765237 | D150: 72.09792513 | E150: -238.7814014 | F150: 88.31348047 | G150: 69.51696295 | H150: 0 | I150: 24.29275887 | J150: 590.1381337 | K150: 0 | L150: -24.29275887 | M150: -6.698470037 | N150: 17.59428884 | O150: -17.59428884 | P150: 17.59428884 | Q150: 309.5589997 | R150: 0
A151: 0 | B151: 141 | C151: -127.7688373 | D151: 77.84678477 | E151: -251.5027501 | F151: 90.97316472 | G151: 89.39756412 | H151: 0 | I151: 39.86824162 | J151: 1589.47669 | K151: 0 | L151: -39.86824162 | M151: -23.40715433 | N151: 16.4610873 | O151: -16.4610873 | P151: 16.4610873 | Q151: 270.9673951 | R151: 0
A152: 0 | B152: 142 | C152: -127.7611344 | D152: 82.27094252 | E152: -259.9208171 | F152: 92.0677443 | G152: 103.185869 | H152: 0 | I152: 50.76491976 | J152: 2577.077078 | K152: 0 | L152: -50.76491976 | M152: -36.95511857 | N152: 13.80980119 | O152: -13.80980119 | P152: 13.80980119 | Q152: 190.710609 | R152: 0
A153: 0 | B153: 143 | C153: -127.7534152 | D153: 85.29511342 | E153: -263.8915668 | F153: 91.57838803 | G153: 109.9422275 | H153: 0 | I153: 56.09306244 | J153: 3146.431653 | K153: 0 | L153: -56.09306244 | M153: -46.23302648 | N153: 9.860035957 | O153: -9.860035957 | P153: 9.860035957 | Q153: 97.22030907 | R153: 0
A154: 0 | B154: 144 | C154: -127.7456794 | D154: 86.86783583 | E154: -263.3470586 | F154: 89.51351481 | G154: 109.2062048 | H154: 0 | I154: 55.41713285 | J154: 3071.058613 | K154: 0 | L154: -55.41713285 | M154: -50.48634255 | N154: 4.930790303 | O154: -4.930790303 | P154: 4.930790303 | Q154: 24.31269301 | R154: 0
A155: 0 | B155: 145 | C155: -127.7379273 | D155: 86.96234707 | E155: -258.2966093 | F155: 85.90864877 | G155: 101.0279598 | H155: 0 | I155: 48.7867345 | J155: 2380.145463 | K155: 0 | L155: -48.7867345 | M155: -49.36886628 | N155: -0.5821317796 | O155: 0.5821317796 | P155: 0.5821317796 | Q155: 0.3388774088 | R155: 0
A156: 0 | B156: 146 | C156: -127.7301587 | D156: 85.57703884 | E156: -248.8266333 | F156: 80.82580812 | G156: 85.96482624 | H156: 0 | I156: 36.73319661 | J156: 1349.327733 | K156: 0 | L156: -36.73319661 | M156: -42.967312 | N156: -6.234115387 | O156: 6.234115387 | P156: 6.234115387 | Q156: 38.86419466 | R156: 0
A157: 0 | B157: 147 | C157: -127.7223737 | D157: 82.73548466 | E157: -235.0991647 | F157: 74.35243819 | G157: 65.04333185 | H157: 0 | I157: 20.23203174 | J157: 409.3351083 | K157: 0 | L157: -20.23203174 | M157: -31.79524196 | N157: -11.56321022 | O157: 11.56321022 | P157: 11.56321022 | Q157: 133.7078306 | R157: 0
A158: 0 | B158: 148 | C158: -127.7145723 | D158: 78.48603863 | E158: -217.3490842 | F158: 66.59990699 | G158: 39.68924188 | H158: 0 | I158: 0.6338464934 | J158: 0.4017613772 | K158: 0 | L158: -0.6338464934 | M158: -16.75676867 | N158: -16.12292217 | O158: 16.12292217 | P158: 16.12292217 | Q158: 259.9486194 | R158: 0
A159: 0 | B159: 149 | C159: -127.7067544 | D159: 72.90101265 | E159: -195.8801006 | F159: 57.70158927 | G159: 11.63039567 | H159: 0 | I159: -20.43154194 | J159: 417.4479062 | K159: 0 | L159: 20.43154194 | M159: 0.9174779978 | N159: -19.51406395 | O159: 19.51406395 | P159: 19.51406395 | Q159: 380.7986917 | R159: 0
A160: 0 | B160: 150 | C160: -127.6989201 | D160: 66.0754459 | E160: -171.0595541 | F160: 47.81057192 | G160: -17.22104279 | H160: 0 | I160: -41.17118377 | J160: 1695.066373 | K160: 0 | L160: 41.17118377 | M160: 19.75771402 | N160: -21.41346975 | O160: 21.41346975 | P160: 21.41346975 | Q160: 458.5366868 | R160: 0
A161: 0 | B161: 151 | C161: -127.6910694 | D161: 58.12548759 | E161: -143.3121313 | F161: 37.09702026 | G161: -44.89889564 | H161: 0 | I161: -59.75727305 | J161: 3570.931682 | K161: 0 | L161: 59.75727305 | M161: 38.15968156 | N161: -21.59759149 | O161: 21.59759149 | P161: 21.59759149 | Q161: 466.4559581 | R161: 0
A162: 0 | B162: 152 | C162: -127.6832023 | D162: 49.18642042 | E162: -113.1125982 | F162: 25.7452505 | G162: -69.51696295 | H162: 0 | I162: -74.45877701 | J162: 5544.109474 | K162: 0 | L162: 74.45877701 | M162: 54.4994356 | N162: -19.95934141 | O162: 19.95934141 | P162: 19.95934141 | Q162: 398.3753095 | R162: 0
A163: 0 | B163: 153 | C163: -127.6753187 | D163: 39.41035857 | E163: -80.97767711 | F163: 13.95055879 | G163: -89.39756412 | H163: 0 | I163: -83.76732713 | J163: 7016.965095 | K163: 0 | L163: 83.76732713 | M163: 67.25032114 | N163: -16.51700599 | O163: 16.51700599 | P163: 16.51700599 | Q163: 272.811487 | R163: 0
A164: 0 | B164: 154 | C164: -127.6674187 | D164: 28.96365917 | E164: -47.45720555 | F164: 1.915861308 | G164: -103.185869 | H164: 0 | I164: -86.50865738 | J164: 7483.747802 | K164: 0 | L164: 86.50865738 | M164: 75.09406144 | N164: -11.41459594 | O164: 11.41459594 | P164: 11.41459594 | Q164: 130.2930005 | R164: 0
A165: 0 | B165: 155 | C165: -127.6595023 | D165: 18.02409145 | E165: -13.12472804 | F165: -10.1517967 | G165: -109.9422275 | H165: 0 | I165: -81.93184767 | J165: 6712.827663 | K165: 0 | L165: 81.93184767 | M165: 77.01826659 | N165: -4.91358108 | O165: 4.91358108 | P165: 4.91358108 | Q165: 24.14327903 | R165: 0
A166: 0 | B166: 156 | C166: -127.6515695 | D166: 6.777811658 | E166: 21.4323172 | F166: -22.04480294 | G166: -109.2062048 | H166: 0 | I166: -69.77013299 | J166: 4867.871457 | K166: 0 | L166: 69.77013299 | M166: 72.39358601 | N166: 2.623453028 | O166: -2.623453028 | P166: 2.623453028 | Q166: 6.882505791 | R166: 0
A167: 0 | B167: 157 | C167: -127.6436203 | D167: -4.583804685 | E167: 55.62264955 | F167: -33.55854982 | G167: -101.0279598 | H167: 0 | I167: -50.26896958 | J167: 2526.969303 | K167: 0 | L167: 50.26896958 | M167: 61.02510785 | N167: 10.75613827 | O167: -10.75613827 | P167: 10.75613827 | Q167: 115.6945105 | R167: 0
A168: 0 | B168: 158 | C168: -127.6356546 | D168: -15.86741942 | E168: 88.86126295 | F168: -44.49495454 | G168: -85.96482624 | H168: 0 | I168: -24.17927644 | J168: 584.6374091 | K168: 0 | L168: 24.17927644 | M168: 43.17435687 | N168: 18.99508044 | O168: -18.99508044 | P168: 18.99508044 | Q168: 360.8130808 | R168: 0
A169: 7.743333333 | B169: 159 | C169: -127.6276726 | D169: -26.8810217 | E169: 120.5794355 | F169: -54.66586692 | G169: -65.04333185 | H169: 1.360433333 | I169: 7.283857908 | J169: 0.2111176668 | K169: 0 | L169: 0.4594754257 | M169: 19.55024273 | N169: 26.83410064 | O169: -19.09076731 | P169: 19.09076731 | Q169: 364.4573963 | R169: 0
A170: 61.29 | B170: 160 | C170: -127.6196741 | D170: -37.43719545 | E170: 150.2344605 | F170: -63.89630631 | G170: -39.68924188 | H170: 5.259833333 | I170: 42.51435819 | J170: 352.5247254 | K170: 0 | L170: 18.77564181 | M170: -1.968786145 | N170: 40.54557204 | O170: 20.74442796 | P170: 20.74442796 | Q170: 430.3312912 | R170: 0
A171: 129.9733333 | B171: 161 | C171: -127.6116592 | D171: -47.35630855 | E171: 177.3189322 | F171: -72.027472 | G171: -11.63039567 | H171: 9.0441 | I171: 79.61541222 | J171: 2535.920219 | K171: 0 | L171: 50.35792111 | M171: 13.81594433 | N171: 93.43135655 | O171: 36.54197678 | P171: 36.54197678 | Q171: 1335.316067 | R171: 0
A172: 217.4766667 | B172: 162 | C172: -127.6036279 | D172: -56.46956958 | E172: 201.3694278 | F172: -78.9194752 | G172: 17.22104279 | H172: 12.47256667 | I172: 116.5201134 | J172: 10192.22566 | K172: 1 | L172: 100.9565533 | M172: 44.16725785 | N172: 160.6873712 | O172: 56.78929545 | P172: 56.78929545 | Q172: 3225.024078 | R172: 26.11282227
A173: 252.5166667 | B173: 163 | C173: -127.5955802 | D173: -64.62190016 | E173: 221.9744367 | F173: -84.45374572 | G173: 44.89889564 | H173: 15.4609 | I173: 151.1244217 | J173: 10280.38734 | K173: 1 | L173: 101.392245 | M173: 91.06332837 | N173: 242.1877501 | O173: 10.32891659 | P173: 10.32891659 | Q173: 106.6865179 | R173: 4.090390042
A174: 281.6633333 | B174: 164 | C174: -127.587516 | D174: -71.67457384 | E174: 238.7814014 | F174: -88.53507181 | G174: 69.51696295 | H174: 17.94143333 | I174: 181.4235181 | J174: 10048.02056 | K174: 1 | L174: 100.2398152 | M174: 93.35343329 | N174: 274.7769514 | O174: 6.88638195 | P174: 6.88638195 | Q174: 47.42225636 | R174: 2.444898265
A175: 331.2366667 | B175: 165 | C175: -127.5794355 | D175: -77.5075768 | E175: 251.5027501 | F175: -91.09323825 | G175: 89.39756412 | H175: 19.85276667 | I175: 205.6423792 | J175: 15773.92506 | K175: 1 | L175: 125.5942875 | M175: 90.0384348 | N175: 295.680814 | O175: 35.55585271 | P175: 35.55585271 | Q175: 1264.218662 | R175: 10.7342744
A176: 343.7566667 | B176: 166 | C176: -127.5713385 | D176: -82.02165008 | E176: 259.9208171 | F176: -92.08423427 | G176: 103.185869 | H176: 21.14366667 | I176: 222.3517787 | J176: 14739.14683 | K176: 1 | L176: 121.404888 | M176: 109.9476162 | N176: 332.2993949 | O176: 11.4572718 | P176: 11.4572718 | Q176: 131.2690772 | R176: 3.332959885
A177: 333.8666667 | B177: 167 | C177: -127.5632252 | D177: -85.13997869 | E177: 263.8915668 | F177: -91.49101074 | G177: 109.9422275 | H177: 21.77613333 | I177: 230.5618951 | J177: 10671.87583 | K177: 1 | L177: 103.3047716 | M177: 107.9516596 | N177: 338.5135547 | O177: -4.646888012 | P177: 4.646888012 | Q177: 21.5935682 | R177: 1.391839461
A178: 327.62 | B178: 168 | C178: -127.5550954 | D178: -86.80949869 | E178: 263.3470586 | F178: -89.3237735 | G178: 109.2062048 | H178: 21.73116667 | I178: 229.7872113 | J178: 9571.254546 | K178: 1 | L178: 97.83278871 | M178: 91.42135316 | N178: 321.2085645 | O178: 6.411435542 | P178: 6.411435542 | Q178: 41.10650571 | R178: 1.956973183
A179: 315.3366667 | B179: 169 | C179: -127.5469493 | D179: -87.00180022 | E179: 258.2966093 | F179: -85.61980776 | G179: 101.0279598 | H179: 21.00966667 | I179: 220.0783273 | J179: 9074.151224 | K179: 1 | L179: 95.25833939 | M179: 84.46573861 | N179: 304.5440659 | O179: 10.79260078 | P179: 10.79260078 | Q179: 116.4802316 | R179: 3.42256449
A180: 293.74 | B180: 170 | C180: =C$3*COS(C$2*$B180)+C$4*SIN(C$2*$B180) -> -127.5387867 | D180: -85.71361094 | E180: 248.8266333 | F180: -80.44283664 | G180: 85.96482624 | H180: 19.63403333 | I180: 202.0185408 | J180: 8412.826085 | K180: 1 | L180: 91.72145924 | M180: 82.39412923 | N180: 284.41267 | O180: 9.327330015 | P180: 9.327330015 | Q180: 86.9990852 | R180: 3.175369379
A181: 265.8066667 | B181: 171 | C181: -127.5306077 | D181: -82.96685167 | E181: 235.0991647 | F181: -73.88192488 | G181: 65.04333185 | H181: 17.64393333 | I181: 176.6854277 | J181: 7942.595228 | K181: 1 | L181: 89.12123893 | M181: 80.01318202 | N181: 256.6986098 | O181: 9.108056909 | P181: 9.108056909 | Q181: 82.95670066 | R181: 3.426572036
A182: 214.1666667 | B182: 172 | C182: -127.5224123 | D182: -78.80826344 | E182: 217.3490842 | F182: -66.04994658 | G182: 39.68924188 | H182: 15.0925 | I182: 145.5800192 | J182: 4704.128216 | K182: 1 | L182: 68.5866475 | M182: 77.79420128 | N182: 223.3742204 | O182: -9.207553776 | P182: 9.207553776 | Q182: 84.77904653 | R182: 4.299246899
A183: 137.19 | B183: 173 | C183: -127.5142006 | D183: -73.30861202 | E183: 195.8801006 | F183: -57.0816433 | G183: 11.63039567 | H183: 12.04186667 | I183: 110.5283558 | J183: 710.8432706 | K183: 1 | L183: 26.66164418 | M183: 59.87145642 | N183: 170.3998122 | O183: -33.20981224 | P183: 33.20981224 | Q183: 1102.891629 | R183: 24.20716688
A184: 93.52 | B184: 174 | C184: -127.5059724 | D184: -66.56148381 | E184: 171.0595541 | F184: -47.13130595 | G184: -17.22104279 | H184: 8.560966667 | I184: 73.56206466 | J184: 398.3191832 | K184: 0 | L184: 19.95793534 | M184: 22.11923378 | N184: 95.68129843 | O184: -2.161298433 | P184: 2.161298433 | Q184: 4.671210917 | R184: 0
A185: 34.23666667 | B185: 175 | C185: -127.4977278 | D185: -58.68169323 | E185: 143.3121313 | F185: -36.3701204 | G185: -44.89889564 | H185: 4.738766667 | I185: 36.78600968 | J185: 6.499149816 | K185: 0 | L185: -2.549343017 | M185: 14.03827665 | N185: 50.82428634 | O185: -16.58761967 | P185: 16.58761967 | Q185: 275.1491263 | R185: 0
A186: 7.776666667 | B186: 176 | C186: -127.4894668 | D186: -49.80332896 | E186: 113.1125982 | F186: -24.98322236 | G186: -69.51696295 | H186: 0.9611 | I186: 2.24193252 | J186: 30.63328208 | K186: 0 | L186: 5.534734147 | M186: -4.356991035 | N186: -2.115058515 | O186: 9.891725182 | P186: 9.891725182 | Q186: 97.84622707 | R186: 0
A187: 0 | B187: 177 | C187: -127.4811894 | D187: -40.07747222 | E187: 80.97767711 | F187: -13.16651231 | G187: -89.39756412 | H187: 0 | I187: -28.22274554 | J187: 796.5233658 | K187: 0 | L187: 28.22274554 | M187: 3.141732708 | N187: -25.08101283 | O187: 25.08101283 | P187: 25.08101283 | Q187: 629.0572046 | R187: 0
A188: 0 | B188: 178 | C188: -127.4728957 | D188: -29.66962579 | E188: 47.45720555 | F188: -1.123285251 | G188: -103.185869 | H188: 0 | I188: -53.07215476 | J188: 2816.65361 | K188: 0 | L188: 53.07215476 | M188: 24.21040921 | N188: -28.86174555 | O188: 28.86174555 | P188: 28.86174555 | Q188: 833.000356 | R188: 0
A189: 0 | B189: 179 | C189: -127.4645855 | D189: -18.75689776 | E189: 13.12472804 | F189: 10.93926684 | G189: -109.9422275 | H189: 0 | I189: -71.17740044 | J189: 5066.222333 | K189: 0 | L189: 71.17740044 | M189: 48.18965583 | N189: -22.9877446 | O189: 22.9877446 | P189: 22.9877446 | Q189: 528.436402 | R189: 0
A190: 0 | B190: 180 | C190: -127.456259 | D190: -7.524987662 | E190: -21.4323172 | F190: 22.8136195 | G190: -109.2062048 | H190: 0 | I190: -81.8838337 | J190: 6704.962221 | K190: 0 | L190: 81.8838337 | M190: 64.83498987 | N190: -17.04884383 | O190: 17.04884383 | P190: 17.04884383 | Q190: 290.6630758 | R190: 0
A191: 0 | B191: 181 | C191: -127.447916 | D191: 3.834973527 | E191: -55.62264955 | F191: 34.29548606 | G191: -101.0279598 | H191: 0 | I191: -85.0457503 | J191: 7232.779644 | K191: 0 | L191: 85.0457503 | M191: 73.91594616 | N191: -11.12980414 | O191: 11.12980414 | P191: 11.12980414 | Q191: 123.8725403 | R191: 0
A192: 0 | B192: 182 | C192: -127.4395567 | D192: 15.1296758 | E192: -88.86126295 | F192: 45.1873322 | G192: -85.96482624 | H192: 0 | I192: -81.0263224 | J192: 6565.264921 | K192: 0 | L192: 81.0263224 | M192: 75.96597668 | N192: -5.060345717 | O192: 5.060345717 | P192: 5.060345717 | Q192: 25.60709877 | R192: 0
A193: 0 | B193: 183 | C193: -127.4311809 | D193: 26.16691965 | E193: -120.5794355 | F193: 55.3017743 | G193: -65.04333185 | H193: 0 | I193: -70.66293886 | J193: 4993.250929 | K193: 0 | L193: 70.66293886 | M193: 71.68353744 | N193: 1.02059858 | O193: -1.02059858 | P193: 1.02059858 | Q193: 1.041621461 | R193: 0
A194: 0 | B194: 184 | C194: -127.4227888 | D194: 36.75888669 | E194: -150.2344605 | F194: 64.46480326 | G194: -39.68924188 | H194: 0 | I194: -55.20048575 | J194: 3047.093627 | K194: 0 | L194: 55.20048575 | M194: 61.85427503 | N194: 6.65378928 | O194: -6.65378928 | P194: 6.65378928 | Q194: 44.27291179 | R194: 0
A195: 0 | B195: 185 | C195: -127.4143803 | D195: 46.72533571 | E195: -177.3189322 | F195: 72.51877808 | G195: -11.63039567 | H195: 0 | I195: -36.1972789 | J195: 1310.243 | K195: 0 | L195: 36.1972789 | M195: 47.61906819 | N195: 11.42178928 | O195: -11.42178928 | P195: 11.42178928 | Q195: 130.4572704 | R195: 0
A196: 0 | B196: 186 | C196: -127.4059554 | D196: 55.89666979 | E196: -201.3694278 | F196: 79.32513796 | G196: 17.22104279 | H196: 0 | I196: -15.41021719 | J196: 237.4747939 | K196: 0 | L196: 15.41021719 | M196: 30.38820658 | N196: 14.97798939 | O196: -14.97798939 | P196: 14.97798939 | Q196: 224.3401661 | R196: 0
A197: 0 | B197: 187 | C197: -127.3975141 | D197: 64.11682233 | E197: -221.9744367 | F197: 84.76678613 | G197: 44.89889564 | H197: 0 | I197: 5.332868778 | J197: 28.4394894 | K197: 0 | L197: -5.332868778 | M197: 11.73773541 | N197: 17.07060418 | O197: -17.07060418 | P197: 17.07060418 | Q197: 291.4055272 | R197: 0
A198: 0 | B198: 188 | C198: -127.3890564 | D198: 71.24591277 | E198: -238.7814014 | F198: 88.75010432 | G198: 69.51696295 | H198: 0 | I198: 24.26483767 | J198: 588.7823473 | K198: 0 | L198: -24.26483767 | M198: -6.704841137 | N198: 17.55999654 | O198: -17.55999654 | P198: 17.55999654 | Q198: 308.3534784 | R198: 0
A199: 0 | B199: 189 | C199: -127.3805824 | D199: 77.16262693 | E199: -251.5027501 | F199: 91.20656343 | G199: 89.39756412 | H199: 0 | I199: 39.80573742 | J199: 1584.496731 | K199: 0 | L199: -39.80573742 | M199: -23.37759026 | N199: 16.42814715 | O199: -16.42814715 | P199: 16.42814715 | Q199: 269.8840189 | R199: 0
A200: 0 | B200: 190 | C200: -127.3720919 | D200: 81.76628134 | E200: -259.9208171 | F200: 92.09390247 | G200: 103.185869 | H200: 0 | I200: 50.67545926 | J200: 2568.002172 | K200: 0 | L200: -50.67545926 | M200: -36.89583463 | N200: 13.77962464 | O200: -13.77962464 | P200: 13.77962464 | Q200: 189.8780551 | R200: 0
... 4300 more rows

Sheet Q2-solar_farm
C1: 1/year | E1: 1/day | G1: 2/day | H1: 4/day | J1: n= | K1: =COUNT(A11:A105130) -> 105120 | L1: AR coefficients | M1: Type | N1: Coef | O1: SE Coef | P1: T-Value | Q1: P-Value | T1: Error Metric | U1: MeAPE | V1: =_xlfn.AGGREGATE(12,1,R15:R105120) -> 
A2: Frequency | C2: =2*PI()/$K$1*C$10 -> 5.977154973e-05 | D2: 0.0217568441 | E2: 0.02181661565 | F2: 0.0218763872 | G2: 0.0436332313 | H2: 0.0872664626 | I2: 0.1090830782 | M2: AR 1 | N2: 1.2025 | O2: 0.0149 | P2: 80.65 | Q2: 0 | U2: MBE | V2: =SUBTOTAL(109, O15:O105120)/K1 -> 1.891104539e-06
A3: Mean | B3: =AVERAGE(A11:A105130) -> 14.78965766 | C3: 2.053536396 | D3: -1.452308405 | E3: -23.30438959 | F3: -0.661787992 | G3: 10.26731873 | H3: -1.840601526 | I3: 0.7755918966 | M3: AR 2 | N3: -0.2147 | O3: 0.01 | P3: -21.48 | Q3: 0 | U3: NRMSE | V3: =SQRT(SUBTOTAL(109,Q15:Q105120)/K1)/T7 -> 0.3174125312
A4: Variance | B4: =STDEV(A11:A105130)^2 -> 403.3785803 | C4: 0.1461616172 | D4: 0.111990613 | E4: -4.443391697 | F4: -0.1706865327 | G4: 3.943804256 | H4: -2.032604981 | I4: 1.185238851 | M4: AR 3 | N4: -0.03093 | O4: 0.00508 | P4: -6.09 | Q4: 0 | U4: NMAE | V4: =SUBTOTAL(109, P15:P105120)/(K1*T7) -> 0.08704338419
B5: Contribution | C5: =(C3^2+C4^2)/2 -> 2.119187475 | D5: =(D3^2+D4^2)/2 -> 1.0608708 | E5: 281.4191519 | F5: 0.2335486194 | G5: 60.48571296 | H5: =(H3^2+H4^2)/2 -> 3.759648492 | I5: 1.003166962 | M5: AR 4 | N5: 0.02468 | O5: 0.00462 | P5: 5.34 | Q5: 0 | U5: NMBE | V5: =SUBTOTAL(109,O15:O105120)/(K1*T7) -> 1.278618267e-07
B6: Variance Explained | C6: =C5/$B$4 -> 0.005253594461 | D6: =D5/$B$4 -> 0.002629963145 | E6: =E5/$B$4 -> 0.6976551698 | F6: =F5/$B$4 -> 0.0005789812123 | G6: =G5/$B$4 -> 0.1499477561 | H6: =H5/$B$4 -> 0.009320396957 | I6: 0.002486911827 | J6: Three | K6: OLS | M6: MA 1 | N6: 0.6021 | O6: 0.0146 | P6: 41.1 | Q6: 0 | U6: SS
J7: Cycle | S7: Final Mean | T7: =SUBTOTAL(1,N15:N105130) -> 14.79021995
F8: Total | G8: =SUM(C6:G6) -> 0.8560654647 | J8: + | K8: =SUM(K11:K105130) -> 5602324.006
C9: Frequencies | J9: Beats
A10: Series | B10: Time | C10: 1 | D10: 364 | E10: 365 | F10: 366 | G10: 730 | H10: 1460 | I10: 1825 | J10: Model | K10: Diff^2 | L10: Residuals | M10: AR(4)MA(1) | N10: Final Model | O10: Diff | P10: ABS(Diff) | Q10: Diff^2 | R10: Diff/yi
A11: 0 | B11: 1 | C11: =C$3*COS(C$2*$B11)+C$4*SIN(C$2*$B11) -> 2.053545129 | D11: -1.449528316 | E11: -23.39577585 | F11: -0.6653633471 | G11: 10.42957284 | H11: -2.010750678 | I11: 0.9000152904 | J11: =B$3+SUM(C11:I11) -> 0.6513727305 | K11: =(A11-J11)^2 -> 0.4242864341 | L11: =A11-J11 -> -0.6513727305
A12: 0 | B12: =B11+1 -> 2 | C12: 2.053553854 | D12: -1.446062104 | E12: -23.476027 | F12: -0.6686202878 | G12: 10.57197367 | H12: -2.165596804 | I12: 1.013739911 | J12: =B$3+SUM(C12:I12) -> 0.6726189068 | K12: =(A12-J12)^2 -> 0.4524161938 | L12: =A12-J12 -> -0.6726189068
A13: 0 | B13: =B12+1 -> 3 | C13: 2.053562572 | D13: -1.441911412 | E13: -23.54510482 | F13: -0.6715572555 | G13: 10.69425015 | H13: -2.30396143 | I13: 1.115413878 | J13: 0.6903493397 | K13: 0.4765822109 | L13: =A13-J13 -> -0.6903493397 | T13: Final Estimates of Parameters
A14: 0 | B14: =B13+1 -> 4 | C14: 2.053571283 | D14: -1.437078203 | E14: -23.60297645 | F14: -0.6741728445 | G14: 10.79616951 | H14: -2.424791519 | I14: 1.203828558 | J14: 0.7042079943 | K14: 0.4959088992 | L14: =A14-J14 -> -0.7042079943 | T14: Type | U14: Coef | V14: SE Coef | W14: T-Value | X14: P-Value
A15: 0 | B15: 5 | C15: 2.053579986 | D15: -1.431564765 | E15: -23.64961435 | F15: -0.6764658033 | G15: 10.87753775 | H15: -2.527167479 | I15: 1.27793294 | J15: 0.7138959448 | K15: 0.5096474201 | L15: =A15-J15 -> -0.7138959448 | M15: =$N$2*L14+$N$3*L13+$N$4*L12+$N$5*L11+$N$6*(L14-L13) -> -0.702208182 | N15: =J15+M15 -> 0.01168776287 | O15: =(A15-N15) -> -0.01168776287 | P15: =ABS(O15) -> 0.01168776287 | Q15: =O15^2 -> 0.0001366038008 | R15: =ABS(P15/A15)*100 ->  | T15: Final Estimates of Parameters
A16: 0 | B16: 6 | C16: 2.053588682 | D16: -1.425373708 | E16: -23.6849963 | F16: -0.6784350344 | G16: 10.93819998 | H16: -2.61031017 | I16: 1.336846119 | J16: =B$3+SUM(C16:I16) -> 0.7191772272 | K16: =(A16-J16)^2 -> 0.5172158841 | L16: =A16-J16 -> -0.7191772272 | M16: =$N$2*L15+$N$3*L14+$N$4*L13+$N$5*L12+$N$6*(L15-L14) -> -0.7083472619 | N16: =J16+M16 -> 0.01082996529 | O16: =(A16-N16) -> -0.01082996529 | P16: =ABS(O16) -> 0.01082996529 | Q16: =O16^2 -> 0.0001172881482 | R16: =ABS(P16/A16)*100 ->  | T16: Type | U16: Coef | V16: SE Coef | W16: T-Value | X16: P-Value
A17: 0 | B17: 7 | C17: 2.053597371 | D17: -1.418507962 | E17: -23.70910549 | F17: -0.6800795956 | G17: 10.97804072 | H17: -2.673586824 | I17: 1.379867775 | J17: 0.7198836651 | K17: 0.5182324913 | L17: -0.7198836651 | M17: -0.7099736849 | N17: 0.009909980274 | O17: -0.009909980274 | P17: 0.009909980274 | Q17: 9.820770902e-05 | T17: AR 1 | U17: 1.2025 | V17: 0.0149 | W17: 80.65 | X17: 0
A18: 0 | B18: 8 | C18: 2.053606052 | D18: -1.410970777 | E18: -23.72193042 | F18: -0.6813986997 | G18: 10.99698414 | H18: -2.716515868 | I18: 1.406486497 | J18: 0.7159185926 | K18: 0.5125394313 | L18: -0.7159185926 | M18: -0.7069771547 | N18: 0.008941437955 | O18: -0.008941437955 | P18: 0.008941437955 | Q18: 7.994931269e-05 | T18: AR 2 | U18: -0.2147 | V18: 0.01 | W18: -21.48 | X18: 0
A19: 0 | B19: 9 | C19: 2.053614726 | D19: -1.402765722 | E19: -23.72346499 | F19: -0.6823917156 | G19: 10.99499418 | H19: -2.738770586 | I19: 1.416385859 | J19: 0.7072594079 | K19: 0.5002158701 | L19: -0.7072594079 | M19: -0.6993205148 | N19: 0.007938893082 | O19: -0.007938893082 | P19: 0.007938893082 | Q19: 6.302602337e-05 | T19: AR 3 | U19: -0.03093 | V19: 0.00508 | W19: -6.09 | X19: 0
A20: 0 | B20: 10 | C20: 2.053623393 | D20: -1.393896679 | E20: -23.71370849 | F20: -0.683058168 | G20: 10.97207462 | H20: -2.740181606 | I20: 1.409448183 | J20: 0.6939589158 | K20: 0.4815789768 | L20: -0.6939589158 | M20: -0.6870413133 | N20: 0.006917602487 | O20: -0.006917602487 | P20: 0.006917602487 | Q20: 4.785322417e-05 | T20: AR 4 | U20: 0.02468 | V20: 0.00462 | W20: 5.34 | X20: 0
A21: 0 | B21: 11 | C21: 2.053632052 | D21: -1.384367846 | E21: -23.69266554 | F21: -0.683397738 | G21: 10.92826909 | H21: -2.720738189 | I21: 1.385755942 | J21: 0.6761454313 | K21: 0.4571726442 | L21: -0.6761454313 | M21: -0.6702521418 | N21: 0.005893289449 | O21: -0.005893289449 | P21: 0.005893289449 | Q21: 3.473086052e-05 | T21: MA 1 | U21: 0.6021 | V21: 0.0146 | W21: 41.1 | X21: 0
A22: 0 | B22: 12 | C22: 2.053640704 | D22: -1.374183735 | E22: -23.66034617 | F22: -0.683410263 | G22: 10.86366098 | H22: -2.680588312 | I22: 1.345590771 | J22: 0.6540216387 | K22: 0.4277443039 | L22: -0.6540216387 | M22: -0.6491397402 | N22: 0.004881898466 | O22: -0.004881898466 | P22: 0.004881898466 | Q22: 2.383293263e-05
A23: 0 | B23: 13 | C23: 2.053649348 | D23: -1.363349165 | E23: -23.61676575 | F23: -0.6830957371 | G23: 10.77837327 | H23: -2.620037539 | I23: 1.289430127 | J23: 0.627862218 | K23: 0.3942109648 | L23: -0.627862218 | M23: -0.6239628738 | N23: 0.003899344163 | O23: -0.003899344163 | P23: 0.003899344163 | Q23: 1.52048849e-05
A24: 0 | B24: 14 | C24: 2.053657986 | D24: -1.351869266 | E24: -23.56194503 | F24: -0.6824543108 | G24: 10.67256832 | H24: -2.539546699 | I24: 1.21794161 | J24: 0.5980102701 | K24: 0.3576162832 | L24: -0.5980102701 | M24: -0.595049012 | N24: 0.002961258143 | O24: -0.002961258143 | P24: 0.002961258143 | Q24: 8.769049789e-06
A25: 0 | B25: 15 | C25: 2.053666616 | D25: -1.33974947 | E25: -23.4959101 | F25: -0.6814862911 | G25: 10.54644753 | H25: -2.439728375 | I25: 1.131975027 | J25: 0.5648725915 | K25: 0.3190810446 | L25: -0.5648725915 | M25: -0.5627898538 | N25: 0.002082737701 | O25: -0.002082737701 | P25: 0.002082737701 | Q25: 4.33779633e-06
A26: 0 | B26: 16 | C26: 2.053675238 | D26: -1.326995516 | E26: -23.41869239 | F26: -0.6801921411 | G26: 10.40025097 | H26: -2.321342244 | I26: 1.03255229 | J26: 0.5289138659 | K26: 0.2797498775 | L26: -0.5289138659 | M26: -0.5276357656 | N26: 0.001278100321 | O26: -0.001278100321 | P26: 0.001278100321 | Q26: 1.63354043e-06
A27: 0 | B27: 17 | C27: =C$3*COS(C$2*$B27)+C$4*SIN(C$2*$B27) -> 2.053683853 | D27: -1.313613439 | E27: -23.33032866 | F27: -0.6785724803 | G27: 10.23425695 | H27: -2.185289298 | I27: 0.9208552706 | J27: 0.4906498594 | K27: 0.2407372845 | L27: -0.4906498594 | M27: -0.4900892115 | N27: 0.0005606478314 | O27: -0.0005606478314 | P27: 0.0005606478314 | Q27: 3.143259909e-07
A28: 0 | B28: 18 | C28: 2.053692461 | D28: -1.299609574 | E28: -23.23086094 | F28: -0.6766280838 | G28: 10.04878143 | H28: -2.032604981 | I28: 0.7982117464 | J28: 0.4506397188 | K28: 0.2030761562 | L28: -0.4506397188 | M28: -0.4506972748 | N28: -5.75559892e-05 | O28: 5.75559892e-05 | P28: 5.75559892e-05 | Q28: 3.312691893e-09
A29: 0 | B29: 19 | C29: 2.053701062 | D29: -1.284990551 | E29: -23.1203366 | F29: -0.6743598819 | G29: 9.844177491 | H29: -1.864451312 | I29: 0.666079621 | J29: 0.4094774904 | K29: 0.1676718151 | L29: -0.4094774904 | M29: -0.4100433811 | N29: -0.0005658907122 | O29: 0.0005658907122 | P29: 0.0005658907122 | Q29: 3.202322981e-07
A30: 0 | B30: 20 | C30: 2.053709655 | D30: -1.269763287 | E30: -22.99880823 | F30: -0.6717689603 | G30: 9.6208346 | H30: -1.682108043 | I30: 0.5260295916 | J30: 0.3677829869 | K30: 0.1352643254 | L30: -0.3677829869 | M30: -0.3687383509 | N30: -0.0009553640191 | O30: 0.0009553640191 | P30: 0.0009553640191 | Q30: 9.12720409e-07
A31: 0 | B31: 21 | C31: 2.053718241 | D31: -1.253934992 | E31: -22.86633367 | F31: -0.6688565588 | G31: 9.379177902 | H31: -1.486962916 | I31: 0.3797264783 | J31: 0.3261921433 | K31: 0.1064013143 | L31: -0.3261921433 | M31: -0.327410916 | N31: -0.001218772728 | O31: 0.001218772728 | P31: 0.001218772728 | Q31: 1.485406962e-06
A32: 0 | B32: 22 | C32: 2.05372682 | D32: -1.237513157 | E32: -22.72297598 | F32: -0.6656240711 | G32: 9.119667407 | H32: -1.280501103 | I32: 0.2289094334 | J32: 0.2853470104 | K32: 0.08142291632 | L32: -0.2853470104 | M32: -0.2866978475 | N32: -0.001350837181 | O32: 0.001350837181 | P32: 0.001350837181 | Q32: 1.824761088e-06
A33: 0 | B33: 23 | C33: 2.053735391 | D33: -1.220505556 | E33: -22.56880338 | F33: -0.6620730443 | G33: 8.842797106 | H33: -1.064293904 | I33: 0.07537126805 | J33: 0.2458855425 | K33: 0.06045970002 | L33: -0.2458855425 | M33: -0.2472338489 | N33: -0.001348306434 | O33: 0.001348306434 | P33: 0.001348306434 | Q33: 1.81793024e-06
A34: 0 | B34: 24 | C34: 2.053743955 | D34: -1.202920239 | E34: -22.40388925 | F34: -0.6582051775 | G34: 8.549094038 | H34: -0.839986786 | I34: -0.07906285996 | J34: 0.208431341 | K34: 0.04344362392 | L34: -0.208431341 | M34: -0.2096413731 | N34: -0.001210032061 | O34: 0.001210032061 | P34: 0.001210032061 | Q34: 1.464177588e-06
A35: 0 | B35: 25 | C35: 2.053752511 | D35: -1.18476553 | E35: -22.22831209 | F35: -0.654022322 | G35: 8.239117284 | H35: -0.609286861 | I35: -0.2325571422 | J35: 0.1735835172 | K35: 0.03013123743 | L35: -0.1735835172 | M35: -0.174520526 | N35: -0.0009370087953 | O35: 0.0009370087953 | P35: 0.0009370087953 | Q35: 8.779854825e-07
A36: 0 | B36: 26 | C36: 2.053761061 | D36: -1.166050021 | E36: -22.04215545 | F36: -0.6495264793 | G36: 7.913456902 | H36: -0.3739498952 | I36: -0.3832869424 | J36: 0.1419068394 | K36: 0.02013755107 | L36: -0.1419068394 | M36: -0.1424392201 | N36: -0.0005323806867 | O36: 0.0005323806867 | P36: 0.0005323806867 | Q36: 2.834291955e-07
A37: 0 | B37: 27 | C37: 2.053769602 | D37: -1.146782573 | E37: -21.84550794 | F37: -0.644719801 | G37: 7.572732805 | H37: -0.1357669448 | I37: -0.5294604867 | J37: 0.1139223275 | K37: 0.01297829671 | L37: -0.1139223275 | M37: -0.1139237394 | N37: -1.411895182e-06 | O37: 1.411895182e-06 | P37: 1.411895182e-06 | Q37: 1.993448004e-12
A38: 0 | B38: 28 | C38: 2.053778137 | D38: -1.126972305 | E38: -21.63846315 | F38: -0.6396045874 | G38: 7.217593581 | H38: 0.1034492741 | I38: -0.6693401629 | J38: 0.09009845136 | K38: 0.008117730937 | L38: -0.09009845136 | M38: -0.08944987311 | N38: 0.0006485782511 | O38: -0.0006485782511 | P38: 0.0006485782511 | Q38: 4.206537477e-07
A39: 0 | B39: 29 | C39: 2.053786664 | D39: -1.106628594 | E39: -21.42111962 | F39: -0.6341832864 | G39: 6.848715257 | H39: 0.3418781814 | I39: -0.801263176 | J39: 0.07084308669 | K39: 0.005018742932 | L39: -0.07084308669 | M39: -0.06943477087 | N39: 0.001408315829 | O39: -0.001408315829 | P39: 0.001408315829 | Q39: 1.983353474e-06
A40: 0 | B40: 30 | C40: 2.053795184 | D40: -1.08576107 | E40: -21.1935808 | F40: -0.6284584924 | G40: 6.466800014 | H40: 0.5777051894 | I40: -0.9236613145 | J40: 0.0564963703 | K40: 0.003191839857 | L40: -0.0564963703 | M40: -0.05422966239 | N40: 0.002266707909 | O40: -0.002266707909 | P40: 0.002266707909 | Q40: 5.137964745e-06
A41: 0 | B41: 31 | C41: 2.053803697 | D41: -1.06437961 | E41: -20.95595499 | F41: -0.6224329451 | G41: 6.07257485 | H41: 0.8091355121 | I41: -1.035079592 | J41: 0.04732458662 | K41: 0.002239616499 | L41: -0.04732458662 | M41: -0.04411357457 | N41: 0.003211012051 | O41: -0.003211012051 | P41: 0.003211012051 | Q41: 1.031059839e-05
A42: 0 | B42: 32 | C42: 2.053812202 | D42: -1.042494335 | E42: -20.70835527 | F42: -0.616109528 | G42: 5.666790194 | H42: 1.034407825 | I42: -1.134193544 | J42: 0.04351520496 | K42: 0.001893573063 | L42: -0.04351520496 | M42: -0.03928816686 | N42: 0.004227038102 | O42: -0.004227038102 | P42: 0.004227038102 | Q42: 1.786785112e-05
A43: 0 | B43: 33 | C43: 2.0538207 | D43: -1.020115603 | E43: -20.4508995 | F43: -0.6094912672 | G43: 5.250218482 | H43: 1.25180767 | I43: -1.21982497 | J43: 0.04517317139 | K43: 0.002040615414 | L43: -0.04517317139 | M43: -0.03987379117 | N43: 0.005299380218 | O43: -0.005299380218 | P43: 0.005299380218 | Q43: 2.80834307e-05
A44: 0 | B44: 34 | C44: 2.05382919 | D44: -0.997254009 | E44: -20.18371021 | F44: -0.6025813299 | G44: 4.82365268 | H44: 1.459680502 | I44: -1.290955941 | J44: 0.05231854321 | K44: 0.002737229964 | L44: -0.05231854321 | M44: -0.04590686663 | N44: 0.006411676575 | O44: -0.006411676575 | P44: 0.006411676575 | Q44: 4.110959651e-05
A45: 0 | B45: 35 | C45: 2.053837673 | D45: -0.9739203728 | E45: -19.90691457 | F45: -0.595383023 | G45: 4.387904781 | H45: 1.656444285 | I45: -1.346740902 | J45: 0.06488553599 | K45: 0.004210132781 | L45: -0.06488553599 | M45: -0.05733864219 | N45: 0.007546893803 | O45: -0.007546893803 | P45: 0.007546893803 | Q45: 5.695560608e-05
A46: 0 | B46: 36 | C46: 2.053846149 | D46: -0.9501257396 | E46: -19.62064431 | F46: -0.5878997912 | G46: 3.943804256 | H46: 1.840601526 | I46: -1.386516718 | J46: 0.08272303401 | K46: 0.006843100355 | L46: -0.08272303401 | M46: -0.07403540123 | N46: 0.008687632777 | O46: -0.008687632777 | P46: 0.008687632777 | Q46: 7.547496327e-05
A47: 0 | B47: 37 | C47: 2.053854618 | D47: -0.9258813724 | E47: -19.32503569 | F47: -0.5801352158 | G47: 3.492196475 | H47: 2.010750678 | I47: -1.409810562 | J47: 0.1055965947 | K47: 0.01115064082 | L47: -0.1055965947 | M47: -0.0957801427 | N47: 0.009816452049 | O47: -0.009816452049 | P47: 0.009816452049 | Q47: 9.636273084e-05
A48: 0 | B48: 38 | C48: 2.053863079 | D48: -0.901198747 | E48: -19.0202294 | F48: -0.5720930124 | G48: 3.0339411 | H48: 2.165596804 | I48: -1.41634553 | J48: 0.1331919576 | K48: 0.01774009757 | L48: -0.1331919576 | M48: -0.1222757527 | N48: 0.01091620488 | O48: -0.01091620488 | P48: 0.01091620488 | Q48: 0.000119163529
A49: 0 | B49: 39 | C49: 2.053871533 | D49: -0.8760895468 | E49: -18.70637051 | F49: -0.5637770298 | G49: 2.569910445 | H49: 2.30396143 | I49: -1.406043942 | J49: 0.1651200452 | K49: 0.02726462934 | L49: -0.1651200452 | M49: -0.1531496597 | N49: 0.01197038556 | O49: -0.01197038556 | P49: 0.01197038556 | Q49: 0.0001432901304
A50: 0 | B50: 40 | C50: 2.053879979 | D50: -0.850565657 | E50: -18.3836084 | F50: -0.5551912476 | G50: 2.10098782 | H50: 2.424791519 | I50: -1.379028254 | J50: 0.200923425 | K50: 0.04037022271 | L50: -0.200923425 | M50: -0.1879599445 | N50: 0.01296348051 | O50: -0.01296348051 | P50: 0.01296348051 | Q50: 0.0001680518269
A51: 0 | B51: 41 | C51: 2.053888418 | D51: -0.824639159 | E51: -18.05209668 | F51: -0.5463397747 | G51: 1.628065845 | H51: 2.527167479 | I51: -1.335619611 | J51: 0.240084176 | K51: 0.05764041155 | L51: -0.240084176 | M51: -0.2262028565 | N51: 0.01388131947 | O51: -0.01388131947 | P51: 0.01388131947 | Q51: 0.0001926910303
A52: 0 | B52: 42 | C52: 2.05389685 | D52: -0.798322325 | E52: -17.71199315 | F52: -0.5372268469 | G52: 1.152044755 | H52: 2.61031017 | I52: -1.276334025 | J52: 0.2820330869 | K52: 0.07954266211 | L52: -0.2820330869 | M52: -0.2673216649 | N52: 0.01471142199 | O52: -0.01471142199 | P52: 0.01471142199 | Q52: 0.0002164259368
A53: 0 | B53: 43 | C53: 2.053905275 | D53: -0.7716276119 | E53: -17.36345967 | F53: -0.5278568253 | G53: 0.6738306813 | H53: 2.673586824 | I53: -1.201876244 | J53: 0.3261600892 | K53: 0.1063804038 | L53: -0.3261600892 | M53: -0.3107167549 | N53: 0.01544333435 | O53: -0.01544333435 | P53: 0.01544333435 | Q53: 0.000238496576
A54: 0 | B54: 44 | C54: 2.053913692 | D54: -0.7445676554 | E54: -17.00666212 | F54: -0.518234194 | G54: 0.194333933 | H54: 2.716515868 | I54: -1.113131371 | J54: 0.3718258105 | K54: 0.1382544333 | L54: -0.3718258105 | M54: -0.3557568582 | N54: 0.01606895226 | O54: -0.01606895226 | P54: 0.01606895226 | Q54: 0.0002582112268
A55: 0 | B55: 45 | C55: 2.053922101 | D55: -0.7171552639 | E55: -16.64177033 | F55: -0.5083635579 | G55: -0.2855327411 | H55: 2.738770586 | I55: -1.011154346 | J55: 0.4183741151 | K55: 0.1750369002 | L55: -0.4183741151 | M55: -0.4017912908 | N55: 0.01658282431 | O55: -0.01658282431 | P55: 0.01658282431 | Q55: 0.000274990062
A56: 0 | B56: 46 | C56: 2.053930504 | D56: -0.6894034131 | E56: -16.26895795 | F56: -0.4982496408 | G56: -0.7648558873 | H56: 2.740181606 | I56: -0.8971574015 | J56: 0.465145483 | K56: 0.2163603204 | L56: -0.465145483 | M56: -0.4481630511 | N56: 0.01698243188 | O56: -0.01698243188 | P56: 0.01698243188 | Q56: 0.0002884029927
